Workbook

Sheet Pres & Prop Rev
B2: =IF(Base1_Billing2=2,"BILLED","") -> 
A4: WORK PAPER | D4: RESIDENTIAL | E4: GENERAL SVC. | F4: LG. GEN. SVC. | G4: EX LG GEN SVC | H4: PUMPING | I4: ST & AREA LTG
A5: REFERENCE | C5: TOTAL | D5: SCHEDULE 1 | E5: SCH. 11,12 | F5: SCH. 21,22 | G5: SCHEDULE 25 | H5: SCH. 30, 31, 32 | I5: SCH. 41-48 | P5: Print Header for all printed pages on this worksheet:
B6: PRESENT BILL DETERMINANTS | L6: Calculate all revenue exhibits using ____ rates: | P6: ="AVISTA UTILITIES WASHINGTON ELECTRIC PRO FORMA REVENUE UNDER PRESENT AND PROPOSED "&N9&" RATES 12 MONTHS ENDED DECEMBER 31, 2015" -> AVISTA UTILITIES WASHINGTON ELECTRIC PRO FORMA REVENUE UNDER PRESENT AND PROPOSED BASE TARIFF RATES 12 MONTHS ENDED DECEMBER 31, 2015
B7: KILOWATT HOURS (KWHS) | K7: 1) | L7: BASE TARIFF
A8: PDE-E-10 | B8: BLOCK 1 | D8: ='Bill Determ'!$B$9 -> 1592525923 | E8: ='Bill Determ'!$B$17 -> 420252327 | F8: ='Bill Determ'!$B$28 -> 1271405693 | G8: ='Bill Determ'!$B$37 -> 125425699 | H8: =SUM('Bill Determ'!$B$41:$C$41) -> 49734289 | L8: or | N8: 1
A9: PDE-E-10 | B9: BLOCK 2 | D9: ='Bill Determ'!$C$9 -> 524802802 | E9: ='Bill Determ'!$C$17 -> 165857105 | F9: ='Bill Determ'!$C$28 -> 165400788 | G9: ='Bill Determ'!$C$37 -> 542858086 | H9: ='Bill Determ'!$D$42 -> 78193284 | K9: 2) | L9: BILLING | N9: =CHOOSE(Base1_Billing2,L7,L9) -> BASE TARIFF
A10: PDE-E-10 | B10: BLOCK 3 | D10: ='Bill Determ'!$D$9 -> 320179343 | G10: ='Bill Determ'!$D$37 -> 407842851 | N10: =CHOOSE(Base1_Billing2,"Base","Billing") -> Base
B11: BLOCK 4
A12: PDE-E-20 | B12: STREET & AREA LIGHTS | I12: ='Bill Determ'!E47 -> 25328044
B14: SUBTOTAL | C14: =SUM(D14:I14) -> 5689806234 | D14: =SUM(D8:D12) -> 2437508068 | E14: 586109432 | F14: 1436806481 | G14: 1076126636 | H14: 127927573 | I14: 25328044
B17: SUBTOTAL | C17: =SUM(D17:I17) -> 5689806234 | D17: =D14+D15 -> 2437508068 | E17: =E14+E15 -> 586109432 | F17: 1436806481 | G17: 1076126636 | H17: 127927573 | I17: 25328044
A18: PDE-E-10 | B18: ADJUSTMENT TO ACTUAL | C18: =SUM(D18:I18) -> 0 | D18: ='Bill Determ'!$E$11 -> 0 | E18: ='Bill Determ'!$D$21 -> 0 | F18: ='Bill Determ'!$D$33 -> 0 | G18: 0 | H18: ='Bill Determ'!$E$44 -> 0 | I18: 0
B20: TOTAL BEFORE ADJUSTMENT | C20: =SUM(D20:I20) -> 5689806234 | D20: =D17+D18 -> 2437508068 | E20: 586109432 | F20: 1436806481 | G20: 1076126636 | H20: 127927573 | I20: 25328044
A21: PDE-E-3 | B21: WEATHER & UNBILLED ADJ. KWHS | C21: =SUM(D21:I21) -> 0 | D21: 0 | E21: 0 | F21: 0 | G21: =G142+G145 -> 0 | H21: 0 | I21: =I142+I145 -> 0
B23: TOTAL PROFORMA KWHS | C23: =IF(ROUND(SUM(D23:I23),3)<>ROUND(SUM(C20:C21),3),#VALUE!,SUM(D23:I23)) -> 5689806234 | D23: =D20+D21 -> 2437508068 | E23: 586109432 | F23: 1436806481 | G23: 1076126636 | H23: 127927573 | I23: 25328044
A25: PDE-E-10 | B25: TOTAL BILLS | D25: ='Bill Determ'!$F$9 -> 2494197 | E25: ='Bill Determ'!$F$17 -> 369788 | F25: ='Bill Determ'!$F$28 -> 24074 | G25: ='Bill Determ'!$G$37 -> 253 | H25: ='Bill Determ'!$F$41 -> 29462
B26: MINIMUM BILLS
A27: PDE-E-10 | B27: EXCESS DEMAND | E27: ='Bill Determ'!$E$17 -> 364641 | F27: ='Bill Determ'!$E$28 -> 2697553 | G27: ='Bill Determ'!$F$37+'Bill Determ'!F38 -> 1168073
B29: PROPOSED BILL DETERMINANTS
B30: KILOWATT HOURS (KWHS)
B31: BLOCK 1 | D31: =D8 -> 1592525923 | E31: 420252327 | F31: 1271405693 | G31: 125425699 | H31: 49734289 | I31: 0
B32: BLOCK 2 | D32: =D9 -> 524802802 | E32: 165857105 | F32: 165400788 | G32: ='Bill Determ'!$C$37 -> 542858086 | H32: 78193284 | I32: 0
B33: BLOCK 3 | D33: 320179343 | E33: 0 | F33: 0 | G33: ='Bill Determ'!$D$37 -> 407842851 | H33: 0 | I33: 0
B34: BLOCK 4 | D34: 0 | E34: 0 | F34: 0 | G34: 0 | H34: 0 | I34: 0
B35: STREET & AREA LIGHTS | D35: 0 | E35: 0 | F35: 0 | G35: 0 | H35: 0 | I35: 25328044
B37: SUBTOTAL | C37: =SUM(D37:I37) -> 5689806234 | D37: =SUM(D31:D35) -> 2437508068 | E37: 586109432 | F37: 1436806481 | G37: 1076126636 | H37: 127927573 | I37: 25328044
C38: =SUM(D38:I38) -> 0 | D38: =D15 -> 0 | E38: =E15 -> 0 | F38: 0 | G38: 0 | H38: 0 | I38: 0
B40: SUBTOTAL | C40: =SUM(D40:I40) -> 5689806234 | D40: =D37+D38 -> 2437508068 | E40: 586109432 | F40: 1436806481 | G40: 1076126636 | H40: 127927573 | I40: 25328044
B41: ADJUSTMENT TO ACTUAL | C41: =SUM(D41:I41) -> 0 | D41: =D18 -> 0 | E41: 0 | F41: 0 | G41: 0 | H41: 0 | I41: 0
B43: TOTAL BEFORE ADJUSTMENT | C43: =SUM(D43:I43) -> 5689806234 | D43: =D40+D41 -> 2437508068 | E43: 586109432 | F43: 1436806481 | G43: 1076126636 | H43: 127927573 | I43: 25328044
B44: WEATHER & UNBILLED ADJ. KWHS | C44: =SUM(D44:I44) -> 0 | D44: =D21 -> 0 | E44: 0 | F44: 0 | G44: 0 | H44: 0 | I44: 0
B46: TOTAL PROFORMA KWHS | C46: =IF(ROUND(SUM(D46:I46),3)<>ROUND(SUM(C43:C44),3),#VALUE!,SUM(D46:I46)) -> 5689806234 | D46: =D43+D44 -> 2437508068 | E46: 586109432 | F46: 1436806481 | G46: 1076126636 | H46: 127927573 | I46: 25328044
B48: TOTAL BILLS | D48: =D25 -> 2494197 | E48: =E25 -> 369788 | F48: =F25 -> 24074 | G48: =G25 -> 253 | H48: =H25 -> 29462
B49: MINIMUM BILLS
B50: EXCESS DEMAND | E50: =E27 -> 364641 | F50: =F27 -> 2697553 | G50: =G27 -> 1168073
D55: 1 | E55: 2 | F55: 3 | G55: 4 | H55: 5 | I55: 6 | L55: =SUMPRODUCT(--(ISBLANK(D55:I55))) -> 0
A56: WORK PAPER | D56: RESIDENTIAL | E56: GENERAL SVC. | F56: LG. GEN. SVC. | G56: EX LG GEN SVC | H56: PUMPING | I56: ST & AREA LTG | L56: ="selected in cell "&CELL("address",Base1_Billing2)&":" -> selected in cell $N$8:
A57: REFERENCE | C57: TOTAL | D57: SCHEDULE 1 | E57: SCH. 11,12 | F57: SCH. 21,22 | G57: SCHEDULE 25 | H57: SCH. 30, 31, 32 | I57: SCH. 41-48 | L57: =N10 -> Base
B58: PRESENT RATES | L58: ="Rates_"&$L$57&"_Present" -> Rates_Base_Present | N58: - range name where Present Rates table can be found
A59: PDE-E-21 | B59: BASIC CHARGE | D59: =INDEX(INDIRECT($L$58),$K59,D$55) -> 8 | E59: 15 | F59: 0 | G59: 0 | H59: 15 | I59: 0 | K59: 1 | L59: ="Rates_"&$L$57&"_Proposed" -> Rates_Base_Proposed | N59: - range name where Proposed Rates table can be found
B60: MONTHLY MINIMUM
A62: PDE-E-21 | B62: BLOCK 1 PER KWH | D62: =INDEX(INDIRECT($L$58),$K62,D$55) -> 7.369 | E62: 11.391 | F62: 7.099 | G62: 5.708 | H62: 9.545 | I62: 0 | K62: 2
A63: PDE-E-21 | B63: BLOCK 2 PER KWH | D63: 8.573 | E63: 8.37 | F63: 6.349 | G63: 5.135 | H63: 6.817 | I63: 0 | K63: 3
A64: PDE-E-21 | B64: BLOCK 3 PER KWH | D64: 10.05 | E64: 0 | F64: 0 | G64: 4.391 | H64: 0 | I64: 0 | K64: 4
B65: BLOCK 4 PER KWH | K65: 5
B67: ADJUST TO ACTUAL PER KWH | D67: =(D124-D111)/D14*100 -> 7.980388086 | E67: =(E124-E111-SUM(E117:E120))/E14*100 -> 10.53611815 | F67: =(F124-F111-SUM(F117:F120))/F14*100 -> 7.012662284 | H67: =(H124-H111-SUM(H117:H120))/H14*100 -> 7.877562142
A69: PDE-E-21 | B69: DEMAND BLOCK 1 | D69: =INDEX(INDIRECT($L$58),$K69,D$55) -> 0 | E69: 0 | F69: 450 | G69: 15000 | H69: 0 | I69: 0 | K69: 6
A70: PDE-E-21 | B70: DEMAND BLOCK 2 | D70: 0 | E70: 6 | F70: 6 | G70: 5.25 | H70: 0 | I70: 0 | K70: 7
B75: PROPOSED RATES
B76: BASIC CHARGE | D76: =INDEX(INDIRECT($L$59),$K76,D$55) -> 8.5 | E76: =INDEX(INDIRECT($L$59),$K76,E$55) -> 18 | H76: =INDEX(INDIRECT($L$59),$K76,H$55) -> 18 | K76: 1
B77: MONTHLY MINIMUM
B79: BLOCK 1 PER KWH | D79: =INDEX(INDIRECT($L$59),$K79,D$55) -> 7.438 | E79: 11.369 | F79: 7.143 | G79: 5.545 | H79: 9.603 | K79: 2
B80: BLOCK 2 PER KWH | D80: 8.652 | E80: 8.353 | F80: 6.388 | G80: 4.988 | H80: 6.858 | K80: 3
B81: BLOCK 3 PER KWH | D81: 10.144 | G81: 4.265 | K81: 4
B82: BLOCK 4 PER KWH | K82: 5
B84: ADJUST TO ACTUAL PER KWH | D84: =(D177-D164)/D37*100 -> 8.054824996 | E84: =(E177-E164-SUM(E170:E173))/E37*100 -> 10.51553305 | F84: =(F177-F164-SUM(F170:F173))/F37*100 -> 7.056086699 | H84: =(H177-H164-SUM(H170:H173))/H37*100 -> 7.925171214
B86: DEMAND BLOCK 1 | F86: =INDEX(INDIRECT($L$59),$K86,F$55) -> 500 | G86: =INDEX(INDIRECT($L$59),$K86,G$55) -> 21000 | K86: 6
B87: DEMAND BLOCK 2 | E87: =INDEX(INDIRECT($L$59),$K87,E$55) -> 6 | F87: =INDEX(INDIRECT($L$59),$K87,F$55) -> 6 | G87: =INDEX(INDIRECT($L$59),$K87,G$55) -> 6 | K87: 7
B95: =CHOOSE(Base1_Billing2,"Note: Rates do not include BPA Residential Exchange Program Schedule 59, Energy Efficiency Rider Adjustment Schedule 91, or Power Cost Surcharge Schedule 93.","") -> Note: Rates do not include BPA Residential Exchange Program Schedule 59, Energy Efficiency Rider Adjustment Schedule 91, or Power Cost Surcharge Schedule 93.
A107: WORK PAPER | D107: RESIDENTIAL | E107: GENERAL SVC. | F107: LG. GEN. SVC. | G107: EX LG GEN SVC | H107: PUMPING | I107: ST & AREA LTG
A108: REFERENCE | C108: TOTAL | D108: SCHEDULE 1 | E108: SCH. 11,12 | F108: SCH. 21,22 | G108: SCHEDULE 25 | H108: SCH. 30, 31, 32 | I108: SCH. 41-48
B109: PRESENT REVENUE
B110: =UPPER(CHOOSE(Base1_Billing2,$N$9,$N$10))&" REVENUE" -> BASE TARIFF REVENUE
B111: BASIC CHARGE | C111: =SUM(D111:I111) -> 25942326 | D111: =D25*D59 -> 19953576 | E111: =E25*E59 -> 5546820 | H111: =H25*H59 -> 441930
B112: MONTHLY MINIMUM | C112: 0
B113: BLOCK 1 | C113: 267387704.8 | D113: =ROUND(D8*D62/100,2) -> 117353235.3 | E113: 47870942.57 | F113: 90257090.15 | G113: 7159298.9 | H113: 4747137.89
B114: BLOCK 2 | C114: 102581078.8 | D114: 44991344.22 | E114: 13882239.69 | F114: 10501296.03 | G114: 27875762.72 | H114: 5330436.17
B115: BLOCK 3 | C115: 50086403.56 | D115: =ROUND(D10*D64/100,2) -> 32178023.97 | G115: 17908379.59
B116: BLOCK 4 | C116: 0
B117: DEMAND BLOCK 1 | C117: 14628300 | F117: =F25*F69 -> 10833300 | G117: =G25*G69 -> 3795000
B118: DEMAND BLOCK 2 | C118: 24505547.25 | E118: =E27*E70 -> 2187846 | F118: =F27*F70 -> 16185318 | G118: =G27*G70 -> 6132383.25
A119: PDE-E-22/23 | B119: POWER FACTOR ADJUSTMENT | C119: 136615.8182 | E119: ='Bill Determ'!G17*0.5 -> 5084 | F119: =('Bill Determ'!G28)*0.5 -> 126386 | H119: ='Bill Determ'!G41*0.5 -> 5145.818182
A120: PDE-E-29/8 | B120: PRIMARY VOLTAGE DISCOUNT | C120: -1306712.533 | F120: -72437 | G120: ='WA Sch 25'!P142 -> -1234275.533
B121: ANNUAL MINIMUM ADJUSTMENT | C121: 0
A122: PDE-E-11 | B122: STREET & AREA LIGHT REVENUE | C122: 6870762.72 | I122: ='Lighting summary'!D19 -> 6870762.72
B124: SUBTOTAL | C124: =IF(ROUND(SUM(C111:C122),3)<>ROUND(SUM(D124:I124),3),#VALUE!,SUM(D124:I124)) -> 490832026.4 | D124: =SUM(D111:D122) -> 214476179.5 | E124: 69492932.26 | F124: 127830953.2 | G124: 61636548.93 | H124: 10524649.88 | I124: 6870762.72
C125: =SUM(D125:I125) -> 0 | D125: =ROUND(D15*D67/100,2) -> 0 | E125: =ROUND(E15*E67/100,2) -> 0 | F125: 0 | G125: =ROUND(G15*G63/100,2) -> 0 | H125: 0
B127: SUBTOTAL | C127: =SUM(D127:I127) -> 490832026.4 | D127: =D124+D125 -> 214476179.5 | E127: 69492932.26 | F127: 127830953.2 | G127: 61636548.93 | H127: 10524649.88 | I127: 6870762.72
B128: ADJUST TO ACTUAL | C128: =SUM(D128:I128) -> 0 | D128: =ROUND(D18*D67/100,2) -> 0 | E128: =ROUND(E18*E67/100,2) -> 0 | F128: 0 | G128: 0 | H128: 0 | I128: 0
B130: ="TOTAL "&UPPER(CHOOSE(Base1_Billing2,$N$9,$N$10))&" REVENUE" -> TOTAL BASE TARIFF REVENUE | C130: =IF(ROUND(SUM(D130:I130),3)<>ROUND(SUM(C127:C128),3),#VALUE!,SUM(D130:I130)) -> 490832026.4 | D130: =D127+D128 -> 214476179.5 | E130: 69492932.26 | F130: 127830953.2 | G130: 61636548.93 | H130: 10524649.88 | I130: 6870762.72
B132: ADJUSTMENT REVENUE | J132: =D8/$D$14 -> 0.6533418059 | L132: =$D$134*J132 -> 0 | N132: =L132*(D62/100) -> 0
B133: UNBILLED REVENUE ADJUSTMENT | J133: =D9/$D$14 -> 0.215303001 | L133: =$D$134*J133 -> 0 | N133: =L133*(D63/100) -> 0
A134: PDE-E-15 | B134: UNBILLED LOAD KWHS | C134: =SUM(D134:I134) -> 0 | D134: 0 | E134: 0 | F134: 0 | H134: 0 | J134: 0.1313551931 | L134: 0 | N134: 0
A135: PDE-E-5/6 | B135: UNBILLED LOAD RATE | D135: =D67 -> 7.980388086 | E135: =E67 -> 10.53611815 | F135: =F67 -> 7.012662284 | H135: =H67 -> 7.877562142 | J135: =SUM(J132:J134) -> 1 | L135: =SUM(L132:L134) -> 0 | N135: =SUM(N132:N134) -> 0
B136: UNBILLED LOAD REVENUE | C136: =SUM(D136:I136) -> 0 | D136: =ROUND(D134*D135/100,2) -> 0 | E136: =ROUND(E134*E135/100,2) -> 0 | F136: =ROUND(F134*F135/100,2) -> 0 | H136: =ROUND(H134*H135/100,2) -> 0
A138: PDE-E-17 | B138: WEATHER-SENSITIVE KWHS | C138: =SUM(D138:I138) -> 0 | D138: 0 | E138: 0 | F138: 0
A139: PDE-E-5/6 | B139: WEATHER-SENSITIVE RATE | D139: =I224 -> 9.194092878 | E139: =I243 -> 8.597161699 | F139: =I276 -> 6.898326126
B140: WEATHER-SENSITIVE REVENUE | C140: =SUM(D140:I140) -> 0 | D140: =ROUND(D138*D139/100,2) -> 0 | E140: =ROUND(E138*E139/100,2) -> 0 | F140: =ROUND(F138*F139/100,2) -> 0
A142: PDE-E-15 | B142: TOTAL UNBILLED KWH ADJUST | C142: =IF(ROUND(C134+C138,3)<>ROUND(SUM(D142:I142),3),#VALUE!,C134+C138) -> 0 | D142: =D134+D138 -> 0 | E142: =E134+E138 -> 0 | F142: =F134+F138 -> 0 | H142: =H134+H138 -> 0 | I142: =I134+I138 -> 0
B143: TOTAL UNBILLED REVENUE ADJ | C143: =IF(ROUND(C136+C140,3)<>ROUND(SUM(D143:I143),3),#VALUE!,C136+C140) -> 0 | D143: =D136+D140 -> 0 | E143: =E136+E140 -> 0 | F143: =F136+F140 -> 0 | H143: =H136+H140 -> 0
B144: WEATHER NORMALIZATION ADJ
A145: PDE-E-17 | B145: WEATHER-SENSITIVE KWHS | C145: =SUM(D145:I145) -> 0 | D145: 0 | E145: 0 | F145: 0
A146: PDE-E-5/6 | B146: WEATHER-SENSITIVE RATE | D146: =I224 -> 9.194092878 | E146: =I243 -> 8.597161699 | F146: =I276 -> 6.898326126
B147: WEATHER-SENSITIVE REVENUE | C147: =SUM(D147:I147) -> 0 | D147: =ROUND(D145*D146/100,2) -> 0 | E147: =ROUND(E145*E146/100,2) -> 0 | F147: =ROUND(F145*F146/100,2) -> 0
B149: TOTAL ADJUSTMENT REVENUE | C149: =IF(ROUND(C143+C147,3)<>ROUND(SUM(D149:I149),3),#VALUE!,C143+C147) -> 0 | D149: =D147+D143 -> 0 | E149: =E147+E143 -> 0 | F149: =F147+F143 -> 0 | H149: =H147+H143 -> 0
B150: =B130 -> TOTAL BASE TARIFF REVENUE | C150: =C130 -> 490832026.4 | D150: 214476179.5 | E150: 69492932.26 | F150: 127830953.2 | G150: 61636548.93 | H150: 10524649.88 | I150: 6870762.72
B152: TOTAL PRESENT REVENUE | C152: =IF(ROUND(C149+C150,3)<>ROUND(SUM(D152:I152),3),#VALUE!,SUM(D152:I152)) -> 490832026.4 | D152: =D149+D150 -> 214476179.5 | E152: 69492932.26 | F152: 127830953.2 | G152: 61636548.93 | H152: 10524649.88 | I152: 6870762.72
A160: WORK PAPER | D160: RESIDENTIAL | E160: GENERAL SVC. | F160: LG. GEN. SVC. | G160: EX LG GEN SVC | H160: PUMPING | I160: ST & AREA LTG
A161: REFERENCE | C161: TOTAL | D161: SCHEDULE 1 | E161: SCH. 11,12 | F161: SCH. 21,22 | G161: SCHEDULE 25 | H161: SCH. 30, 31, 32 | I161: SCH. 41-48
B162: PROPOSED REVENUE
B163: =UPPER(CHOOSE(Base1_Billing2,$N$9,$N$10))&" REVENUE" -> BASE TARIFF REVENUE
B164: BASIC CHARGE | C164: =SUM(D164:I164) -> 28387174.5 | D164: =D48*D76 -> 21200674.5 | E164: =E48*E76 -> 6656184 | H164: =H48*H76 -> 530316
B165: MONTHLY MINIMUM | C165: 0 | D165: =D49*D77 -> 0
B166: BLOCK 1 | C166: 268777912.6 | D166: =ROUND(D31*D79/100,2) -> 118452078.2 | E166: 47778487.06 | F166: 90816508.65 | G166: 6954855.01 | H166: =ROUND(H31*H79/100,2) -> 4775983.77
B167: BLOCK 2 | C167: 102266041.5 | D167: 45405938.43 | E167: 13854043.98 | F167: 10565802.34 | G167: 27077761.33 | H167: 5362495.42
B168: BLOCK 3 | C168: 49873490.15 | D168: =ROUND(D33*D81/100,2) -> 32478992.55 | G168: 17394497.6
B169: BLOCK 4 | C169: 0 | D169: =ROUND(D34*D82/100,2) -> 0
B170: DEMAND BLOCK 1 | C170: 17350000 | F170: =ROUND(F48*F86,2) -> 12037000 | G170: =ROUND(G48*G86,2) -> 5313000
B171: DEMAND BLOCK 2 | C171: 25381602 | E171: =ROUND(E50*E87,2) -> 2187846 | F171: =ROUND(F50*F87,2) -> 16185318 | G171: =ROUND(G50*G87,2) -> 7008438
B172: POWER FACTOR ADJUSTMENT | C172: 136615.8182 | E172: =E119 -> 5084 | F172: =F119 -> 126386 | H172: =H119 -> 5145.818182
B173: PRIMARY VOLTAGE DISCOUNT | C173: -1306712.533 | F173: =F120 -> -72437 | G173: ='WA Sch 25'!P142 -> -1234275.533
B174: ANNUAL MINIMUM ADJUSTMENT | C174: 0
A175: PDE-E-11 | B175: STREET & AREA LIGHT REVENUE | C175: 6966899.401 | I175: ='Lighting summary'!G19 -> 6966899.401
B177: SUBTOTAL | C177: =IF(ROUND(SUM(C164:C175),3)<>ROUND(SUM(D177:I177),3),#VALUE!,SUM(D177:I177)) -> 497833023.5 | D177: =SUM(D164:D175) -> 217537683.6 | E177: 70481645.04 | F177: 129658578 | G177: 62514276.41 | H177: 10673941.01 | I177: 6966899.401
C178: =SUM(D178:I178) -> 0 | D178: =ROUND(D38*D84/100,2) -> 0 | E178: =ROUND(E38*E84/100,2) -> 0 | F178: 0 | G178: =ROUND(G38*G80/100,2) -> 0 | H178: 0 | I178: 0
B180: SUBTOTAL | C180: =SUM(D180:I180) -> 497833023.5 | D180: =D177+D178 -> 217537683.6 | E180: 70481645.04 | F180: 129658578 | G180: 62514276.41 | H180: 10673941.01 | I180: 6966899.401
B181: ADJUST TO ACTUAL | C181: =SUM(D181:I181) -> 0 | D181: =ROUND(D41*D84/100,2) -> 0 | E181: 0 | F181: 0 | G181: 0 | H181: 0 | I181: 0
B183: ="SUBTOTAL "&UPPER(CHOOSE(Base1_Billing2,$N$9,$N$10))&" REVENUE" -> SUBTOTAL BASE TARIFF REVENUE | C183: =IF(ROUND(SUM(D183:I183),3)<>ROUND(SUM(C180:C181),3),#VALUE!,SUM(D183:I183)) -> 497833023.5 | D183: =D180+D181 -> 217537683.6 | E183: 70481645.04 | F183: 129658578 | G183: 62514276.41 | H183: 10673941.01 | I183: 6966899.401
B185: ADJUSTMENT REVENUE
B186: UNBILLED REVENUE ADJUSTMENT
B187: UNBILLED LOAD KWHS | C187: =SUM(D187:I187) -> 0 | D187: =D134 -> 0 | E187: =E134 -> 0 | F187: =F134 -> 0 | H187: =H134 -> 0
B188: UNBILLED LOAD RATE | D188: =D84 -> 8.054824996 | E188: 10.51553305 | F188: =F84 -> 7.056086699 | H188: =H84 -> 7.925171214
B189: UNBILLED LOAD REVENUE | C189: =SUM(D189:I189) -> 0 | D189: =ROUND(D187*D188/100,2) -> 0 | E189: =ROUND(E187*E188/100,2) -> 0 | F189: =ROUND(F187*F188/100,2) -> 0 | H189: =ROUND(H187*H188/100,2) -> 0
B191: WEATHER-SENSITIVE KWHS | C191: =SUM(D191:I191) -> 0 | D191: =D138 -> 0 | E191: =E138 -> 0 | F191: =F138 -> 0
B192: WEATHER-SENSITIVE RATE | D192: =I233 -> 9.279400524 | E192: =I251 -> 8.579785728 | F192: =I284 -> 6.9409883
B193: WEATHER-SENSITIVE REVENUE | C193: =SUM(D193:I193) -> 0 | D193: =ROUND(D191*D192/100,2) -> 0 | E193: =ROUND(E191*E192/100,2) -> 0 | F193: =ROUND(F191*F192/100,2) -> 0
B195: TOTAL UNBILLED KWH ADJUST | C195: =IF(ROUND(C187+C191,3)<>ROUND(SUM(D195:I195),3),#VALUE!,SUM(D195:I195)) -> 0 | D195: =D187+D191 -> 0 | E195: =E187+E191 -> 0 | F195: =F187+F191 -> 0 | H195: =H187+H191 -> 0
B196: TOTAL UNBILLED REVENUE ADJ | C196: =IF(ROUND(C189+C193,3)<>ROUND(SUM(D196:I196),3),#VALUE!,SUM(D196:I196)) -> 0 | D196: =D189+D193 -> 0 | E196: =E189+E193 -> 0 | F196: =F189+F193 -> 0 | H196: =H189+H193 -> 0
B197: WEATHER NORMALIZATION ADJ
B198: WEATHER-SENSITIVE KWHS | C198: =SUM(D198:I198) -> 0 | D198: =D145 -> 0 | E198: =E145 -> 0 | F198: =F145 -> 0
B199: WEATHER-SENSITIVE RATE | D199: =I233 -> 9.279400524 | E199: =I251 -> 8.579785728 | F199: =I284 -> 6.9409883
B200: WEATHER-SENSITIVE REVENUE | C200: =SUM(D200:I200) -> 0 | D200: =ROUND(D198*D199/100,2) -> 0 | E200: =ROUND(E198*E199/100,2) -> 0 | F200: =ROUND(F198*F199/100,2) -> 0
B202: TOTAL ADJUSTMENT REVENUE | C202: =IF(ROUND(SUM(D202:I202),3)<>ROUND(C196+C200,3),#VALUE!,SUM(D202:I202)) -> 0 | D202: =D200+D196 -> 0 | E202: =E200+E196 -> 0 | F202: =F200+F196 -> 0 | H202: =H200+H196 -> 0
B203: ="TOTAL "&UPPER(CHOOSE(Base1_Billing2,$N$9,$N$10))&" REVENUE" -> TOTAL BASE TARIFF REVENUE | C203: =SUM(D203:I203) -> 497833023.5 | D203: =D183 -> 217537683.6 | E203: 70481645.04 | F203: 129658578 | G203: 62514276.41 | H203: 10673941.01 | I203: 6966899.401
B204: TOTAL PROPOSED REVENUE | C204: =IF(ROUND(SUM(D204:I204),3)<>ROUND(SUM(C202:C203),3),#VALUE!,SUM(D204:I204)) -> 497833023.5 | D204: =D202+D203 -> 217537683.6 | E204: 70481645.04 | F204: 129658578 | G204: 62514276.41 | H204: 10673941.01 | I204: 6966899.401
B205: TOTAL PRESENT REVENUE | C205: =SUM(D205:I205) -> 490832026.4 | D205: =D152 -> 214476179.5 | E205: 69492932.26 | F205: 127830953.2 | G205: 61636548.93 | H205: 10524649.88 | I205: =I152 -> 6870762.72
B207: TOTAL REVENUE INCREASE | C207: =SUM(D207:I207) -> 7000997.05 | D207: =D204-D205 -> 3061504.17 | E207: 988712.78 | F207: 1827624.81 | G207: 877727.48 | H207: 149291.13 | I207: 96136.68032
B208: PERCENT REVENUE INCREASE | C208: =C207/C205 -> 0.01426352942 | D208: =D207/D205 -> 0.0142743319 | E208: 0.01422753002 | F208: 0.01429720083 | G208: 0.01424037353 | H208: 0.01418490227 | I208: =I207/I205 -> 0.01399214094
B209: =IF(Base1_Billing2=2,"Pres and Prop Revenues may be incorrect due to Sch 59--for example all of Sch 11 gets benefit of Sch 59 but it s/only be Sch 12; see Billing Rev on Exhibit page for fix","") -> 
A214: WORK PAPER | D214: TOTAL | E214: TOTAL | F214: BASELOAD | G214: BASELOAD | H214: WTHR-SENS. | I214: WTHR-SENS.
A215: REFERENCE | C215: RATES | D215: KWHS | E215: REVENUE | F215: KWHS | G215: REVENUE | H215: KWHS | I215: REVENUE
B217: PRESENT BASELOAD AND WEATHER-SENSITIVE RATES
B218: SCHEDULE 1
B219: 0-600 KWHS | C219: =D62 -> 7.369 | D219: =D8 -> 1592525923 | E219: =C219*D219/100 -> 117353235.3 | F219: =MIN(D219,F223) -> 1592525923 | G219: =F219*C219/100 -> 117353235.3 | H219: =D219-F219 -> 0 | I219: =H219*C219/100 -> 0
B220: 601-1300 KWHS | C220: =D63 -> 8.573 | D220: =D9 -> 524802802 | E220: =C220*D220/100 -> 44991344.22 | F220: =MIN(F223-F219,D220) -> 83574461 | G220: =F220*C220/100 -> 7164838.542 | H220: =D220-F220 -> 441228341 | I220: =H220*C220/100 -> 37826505.67 | L220: =H220/$H$223 -> 0.5794902656 | N220: =L220*$D$145 -> 0 | O220: =N220*(D63/100) -> 0
B221: OVER 1300 KWHS | C221: =D64 -> 10.05 | D221: =D10 -> 320179343 | E221: =C221*D221/100 -> 32178023.97 | F221: =MIN(F223-F219-F220,D221) -> 0 | G221: =F221*C221/100 -> 0 | H221: =D221-F221 -> 320179343 | I221: =H221*C221/100 -> 32178023.97 | L221: =H221/$H$223 -> 0.4205097344 | N221: =L221*$D$145 -> 0 | O221: =N221*(D64/100) -> 0
N222: =SUM(N220:N221) -> 0 | O222: =SUM(O220:O221) -> 0
B223: TOTAL | D223: =D219+D220+D221 -> 2437508068 | E223: 194522603.5 | F223: =672*D25 -> 1676100384 | G223: 124518073.8 | H223: 761407684 | I223: 70004529.65
B224: AVERAGE RATE | E224: =E223/D223*100 -> 7.980388086 | G224: =G223/F223*100 -> 7.429034382 | I224: =I223/H223*100 -> 9.194092878
B226: PROPOSED BASELOAD AND WEATHER-SENSITIVE RATES
B227: SCHEDULE 1
B228: 0-600 KWHS | C228: =D79 -> 7.438 | D228: =D219 -> 1592525923 | E228: =C228*D228/100 -> 118452078.2 | F228: =MIN(D228,F232) -> 1592525923 | G228: =F228*C228/100 -> 118452078.2 | H228: =H219 -> 0 | I228: =H228*C228/100 -> 0
B229: 601-1300 KWHS | C229: =D80 -> 8.652 | D229: =D220 -> 524802802 | E229: =C229*D229/100 -> 45405938.43 | F229: =MIN(F232-F228,D229) -> 83574461 | G229: =F229*C229/100 -> 7230862.366 | H229: =H220 -> 441228341 | I229: =H229*C229/100 -> 38175076.06
B230: OVER 1300 KWHS | C230: =D81 -> 10.144 | D230: =D221 -> 320179343 | E230: =C230*D230/100 -> 32478992.55 | F230: =MIN(F232-F228-F229,D230) -> 0 | G230: =F230*C230/100 -> 0 | H230: =H221 -> 320179343 | I230: =H230*C230/100 -> 32478992.55
B232: TOTAL | D232: =D228+D229+D230 -> 2437508068 | E232: 196337009.1 | F232: =F223 -> 1676100384 | G232: 125682940.5 | H232: 761407684 | I232: 70654068.62
B233: AVERAGE RATE | E233: =E232/D232*100 -> 8.054824996 | G233: =G232/F232*100 -> 7.498533007 | I233: =I232/H232*100 -> 9.279400524
B237: PRESENT BASELOAD AND WEATHER-SENSITIVE RATES
B238: SCHEDULE 11
B239: 0-3650 KWHS | C239: =E62 -> 11.391 | D239: =E8 -> 420252327 | E239: =C239*D239/100 -> 47870942.57 | F239: =MIN(D239,F242) -> 406766800 | G239: =F239*C239/100 -> 46334806.19 | H239: =D239-F239 -> 13485527 | I239: =H239*C239/100 -> 1536136.381
B240: over 3650 KWHS | C240: =E63 -> 8.37 | D240: =E9 -> 165857105 | E240: =C240*D240/100 -> 13882239.69 | F240: =MIN(F242-F239,D240) -> 0 | G240: =F240*C240/100 -> 0 | H240: =D240-F240 -> 165857105 | I240: =H240*C240/100 -> 13882239.69
B242: TOTAL | D242: =D239+D240 -> 586109432 | E242: 61753182.26 | F242: =1100*E25 -> 406766800 | G242: 46334806.19 | H242: 179342632 | I242: 15418376.07
B243: AVERAGE RATE | E243: =E242/D242*100 -> 10.53611815 | G243: =G242/F242*100 -> 11.391 | I243: =I242/H242*100 -> 8.597161699
B245: PROPOSED BASELOAD AND WEATHER-SENSITIVE RATES
B246: SCHEDULE 11
B247: 0-3650 KWHS | C247: =E79 -> 11.369 | D247: =E31 -> 420252327 | E247: =C247*D247/100 -> 47778487.06 | F247: =MIN(D247,F250) -> 406766800 | G247: =F247*C247/100 -> 46245317.49 | H247: =D247-F247 -> 13485527 | I247: =H247*C247/100 -> 1533169.565
B248: over 3650 KWHS | C248: =E80 -> 8.353 | D248: =E32 -> 165857105 | E248: =C248*D248/100 -> 13854043.98 | F248: =MIN(F250-F247,D248) -> 0 | G248: =F248*C248/100 -> 0 | H248: =D248-F248 -> 165857105 | I248: =H248*C248/100 -> 13854043.98
B250: TOTAL | D250: =D247+D248 -> 586109432 | E250: 61632531.04 | F250: =F242 -> 406766800 | G250: 46245317.49 | H250: 179342632 | I250: 15387213.55
B251: AVERAGE RATE | E251: =E250/D250*100 -> 10.51553305 | G251: =G250/F250*100 -> 11.369 | I251: =I250/H250*100 -> 8.579785728
B259: Note: Total Base Load for Sch. 1 = Base Load per bill times total billings (base load per bill on PDE-E-18) =
B260: ="672 X "&TEXT(D25,"#,##0")&" = "&TEXT(F223,"#,##0") -> 672 X 2,494,197 = 1,676,100,384
B261: ="Total Base Load for Sch. 11 = 1,100 X "&TEXT(E25,"#,##0")&" = "&TEXT(F242,"#,##0") -> Total Base Load for Sch. 11 = 1,100 X 369,788 = 406,766,800
B262: =IF(Base1_Billing2=2,"Pres and Prop Revenues may be incorrect due to Sch 59--for example all of Sch 11 gets benefit of Sch 59 but it s/only be Sch 12; see Billing Rev on Exhibit page for fix","") -> 
A267: WORK PAPER | D267: TOTAL | E267: TOTAL | F267: BASELOAD | G267: BASELOAD | H267: WTHR-SENS. | I267: WTHR-SENS.
A268: REFERENCE | C268: RATES | D268: KWHS | E268: REVENUE | F268: KWHS | G268: REVENUE | H268: KWHS | I268: REVENUE
B270: PRESENT BASELOAD AND WEATHER-SENSITIVE RATES
B271: SCHEDULE 21
B272: 0-250000 KWHS | C272: =F62 -> 7.099 | D272: =F8 -> 1271405693 | E272: =C272*D272/100 -> 90257090.15 | F272: =MIN(D272,F275) -> 818636370 | G272: =F272*C272/100 -> 58114995.91 | H272: =D272-F272 -> 452769323 | I272: =H272*C272/100 -> 32142094.24
B273: OVER 250000 KWHS | C273: =F63 -> 6.349 | D273: =F9 -> 165400788 | E273: =C273*D273/100 -> 10501296.03 | F273: =MIN(F275-F272,D273) -> 0 | G273: =F273*C273/100 -> 0 | H273: =D273-F273 -> 165400788 | I273: =H273*C273/100 -> 10501296.03
B275: TOTAL | D275: =D272+D273 -> 1436806481 | E275: =E272+E273 -> 100758386.2 | F275: =34005*F25 -> 818636370 | G275: =G272+G273 -> 58114995.91 | H275: =H272+H273 -> 618170111 | I275: =I272+I273 -> 42643390.27
B276: AVERAGE RATE | E276: =E275/D275*100 -> 7.012662283 | G276: =G275/F275*100 -> 7.099 | I276: =I275/H275*100 -> 6.898326126
B278: PROPOSED BASELOAD AND WEATHER-SENSITIVE RATES
B279: SCHEDULE 21
B280: 0-250000 KWHS | C280: =F79 -> 7.143 | D280: =D272 -> 1271405693 | E280: =C280*D280/100 -> 90816508.65 | F280: =MIN(D280,F283) -> 818636370 | G280: =F280*C280/100 -> 58475195.91 | H280: =H272 -> 452769323 | I280: =H280*C280/100 -> 32341312.74
B281: OVER 250000 KWHS | C281: =F80 -> 6.388 | D281: =D273 -> 165400788 | E281: =C281*D281/100 -> 10565802.34 | F281: =MIN(F283-F280,D281) -> 0 | G281: =F281*C281/100 -> 0 | H281: =H273 -> 165400788 | I281: =H281*C281/100 -> 10565802.34
B283: TOTAL | D283: =D280+D281 -> 1436806481 | E283: =E280+E281 -> 101382311 | F283: =F275 -> 818636370 | G283: =G280+G281 -> 58475195.91 | H283: =H280+H281 -> 618170111 | I283: =I280+I281 -> 42907115.08
B284: AVERAGE RATE | G284: =G283/F283*100 -> 7.143 | I284: =I283/H283*100 -> 6.9409883
B292: Note: Total Base Load for Sch. 21 = Base Load per bill times total billings (base load per bill on PDE-E-18) =
B293: ="34,005 X "&TEXT(F25,"#,##0")&" = "&TEXT(F275,"#,##0") -> 34,005 X 24,074 = 818,636,370
D297: =D207/D48 -> 1.227450827 | E297: =E207/E48 -> 2.673728677 | F297: =F207/F48 -> 75.91695647 | G297: =G207/G48 -> 3469.278577 | H297: =H207/H48 -> 5.067243568
D298: =D23/D25 -> 977.2716702
D300: =(800*((D79-D62)/100))+(165*((D80-D63)/100))+(D76-D59) -> 1.18235

Sheet Rate Design
A1: PRESENT RATES | D1: 1 | E1: 2 | F1: 3 | G1: 4 | H1: 5 | I1: 6 | N1: Tiers - used for bill comparisons
C2: TOTAL | D2: SCH. 1 | E2: SCH. 11,12 | F2: SCH. 21,22 | G2: SCH. 25 | H2: SCH. 30, 31, 32 | L2: Range Name | N2: SCHEDULE 1 | O2: SCH. 11,12 | P2: SCH. 21,22 | Q2: SCHEDULE 25 | R2: SCH. 30, 31, 32
B3: Base Tariff Rates
A4: 1 | B4: BASIC CHARGE | D4: 8 | E4: 15 | F4: 0 | G4: 0 | H4: 15
A5: 2 | B5: BLOCK 1 PER KWH | D5: =7.133+0.236 -> 7.369 | E5: =11.031+0.36 -> 11.391 | F5: =6.878+0.221 -> 7.099 | G5: =5.539+0.169 -> 5.708 | H5: =9.253+0.292 -> 9.545 | N5: 800 | O5: 3650 | P5: 250000 | Q5: 500000
A6: 3 | B6: BLOCK 2 PER KWH | D6: =8.299+0.274 -> 8.573 | E6: =8.105+0.265 -> 8.37 | F6: =6.15+0.199 -> 6.349 | G6: =4.983+0.152 -> 5.135 | H6: =6.609+0.208 -> 6.817 | N6: 1500 | O6: 9999999 | P6: 9999999 | Q6: 9999999
A7: 4 | B7: BLOCK 3 PER KWH | D7: =9.728+0.322 -> 10.05 | E7: 0 | F7: 0 | G7: 4.391 | H7: 0 | L7: Rates_Base_Present | N7: 9999999 | O7: 9999999 | P7: 9999999 | Q7: 9999999
A8: 5 | B8: BLOCK 4 PER KWH
A9: 6 | B9: DEMAND CHARGE | D9: 0 | E9: 0 | F9: 450 | G9: 15000 | H9: 0
A10: 7 | B10: DEMAND BLOCK 1 | D10: 0 | E10: 6 | F10: 6 | G10: 5.25 | H10: 0 | N10: 0 | O10: 20 | P10: 50 | Q10: 3000
B12: Billing Rates | D12: =IF(D13<>'Pres & Prop Rev'!D$5,#VALUE!,"") ->  | E12: =IF(E13<>'Pres & Prop Rev'!E$5,#VALUE!,"") ->  | F12: =IF(F13<>'Pres & Prop Rev'!F$5,#VALUE!,"") ->  | G12: =IF(G13<>'Pres & Prop Rev'!G$5,#VALUE!,"") ->  | H12: =IF(H13<>'Pres & Prop Rev'!H$5,#VALUE!,"") -> 
D13: SCHEDULE 1 | E13: SCH. 11,12 | F13: SCH. 21,22 | G13: SCHEDULE 25 | H13: SCH. 30, 31, 32
A14: 1 | B14: BASIC CHARGE | D14: =D4 -> 8 | E14: =E4 -> 15 | F14: =F4 -> 0 | G14: =G4 -> 0 | H14: =H4 -> 15
A15: 2 | B15: BLOCK 1 PER KWH | D15: =D5-0.195+0.338-0.164-0.083 -> 7.265 | E15: =E5+0.466-0.224-0.069 -> 11.564 | F15: =F5+0.35-0.169-0.078 -> 7.202 | G15: =G5+0.222-0.108-0.072 -> 5.75 | H15: =H5+0.309-0.15-0.072 -> 9.632 | N15: =N5 -> 800 | O15: =O5 -> 3650 | P15: =P5 -> 250000 | Q15: =Q5 -> 500000
A16: 3 | B16: BLOCK 2 PER KWH | D16: =D6-0.195+0.338-0.164-0.083 -> 8.469 | E16: =E6+0.466-0.224-0.069 -> 8.543 | F16: =F6+0.35-0.169-0.078 -> 6.452 | G16: =G6+0.222-0.108-0.072 -> 5.177 | H16: =H6+0.309-0.15-0.072 -> 6.904 | N16: =N6 -> 1500 | O16: 9999999 | P16: 9999999 | Q16: 9999999
A17: 4 | B17: BLOCK 3 PER KWH | D17: =D7-0.195+0.338-0.164-0.083 -> 9.946 | G17: =G7+0.222-0.108-0.072 -> 4.433 | L17: Rates_Billing_Present | N17: 9999999 | O17: 9999999 | P17: 9999999 | Q17: 9999999
A18: 5 | B18: BLOCK 4 PER KWH
A19: 6 | B19: DEMAND CHARGE | F19: =F9 -> 450 | G19: =G9 -> 15000
A20: 7 | B20: DEMAND BLOCK 1 | E20: =E10 -> 6 | F20: =F10 -> 6 | G20: =G10 -> 5.25 | N20: =N10 -> 0 | O20: =O10 -> 20 | P20: =P10 -> 50 | Q20: =Q10 -> 3000
A22: PROPOSED RATES
B24: Base Tariff Rates | D24: =IF(D25<>'Pres & Prop Rev'!D$5,#VALUE!,"") ->  | E24: =IF(E25<>'Pres & Prop Rev'!E$5,#VALUE!,"") ->  | F24: =IF(F25<>'Pres & Prop Rev'!F$5,#VALUE!,"") ->  | G24: =IF(G25<>'Pres & Prop Rev'!G$5,#VALUE!,"") ->  | H24: =IF(H25<>'Pres & Prop Rev'!H$5,#VALUE!,"") -> 
D25: SCHEDULE 1 | E25: SCH. 11,12 | F25: SCH. 21,22 | G25: SCHEDULE 25 | H25: SCH. 30, 31, 32 | T25: Rounding
A26: 1 | B26: BASIC CHARGE | D26: =ROUND(D62,$T26) -> 8.5 | E26: =ROUND(E62,$T26) -> 18 | F26: =ROUND(F62,$T26) -> 0 | G26: =ROUND(G62,$T26) -> 0 | H26: =ROUND(H62,$T26) -> 18 | T26: 2 | U26: 2
A27: 2 | B27: BLOCK 1 PER KWH | D27: =ROUND(D85,$T27) -> 7.438 | E27: =ROUND(E85,$T27) -> 11.369 | F27: 7.143 | G27: 5.545 | H27: 9.603 | N27: 800 | O27: 3650 | P27: 250000 | Q27: 500000 | T27: 3 | U27: 3
A28: 3 | B28: BLOCK 2 PER KWH | D28: 8.652 | E28: 8.353 | F28: 6.388 | G28: 4.988 | H28: 6.858 | N28: 1500 | O28: 9999999 | P28: 9999999 | Q28: 6000000 | T28: 3 | U28: 3
A29: 4 | B29: BLOCK 3 PER KWH | D29: 10.144 | E29: 0 | F29: 0 | G29: 4.265 | H29: 0 | L29: Rates_Base_Proposed | N29: 9999999 | O29: 9999999 | P29: 9999999 | Q29: 99999999 | T29: 3 | U29: 3
A30: 5 | B30: BLOCK 4 PER KWH | T30: 3 | U30: 3
A31: 6 | B31: DEMAND CHARGE | D31: =ROUND(D66,$T31) -> 0 | E31: =ROUND(E66,$T31) -> 0 | F31: =ROUND(F66,$T31) -> 500 | G31: =ROUND(G66,$T31) -> 21000 | H31: =ROUND(H66,$T31) -> 0 | T31: 2 | U31: 2
A32: 7 | B32: DEMAND BLOCK 1 | D32: =ROUND(D69,$T32) -> 0 | E32: =ROUND(E69,$T32) -> 6 | F32: =ROUND(F69,$T32) -> 6 | G32: =ROUND(G69,$T32) -> 6 | H32: =ROUND(H69,$T32) -> 0 | N32: 0 | O32: 20 | P32: 50 | Q32: 3000 | T32: 2 | U32: 2
B34: Billing Rates | D34: =IF(D35<>'Pres & Prop Rev'!D$5,#VALUE!,"") ->  | E34: =IF(E35<>'Pres & Prop Rev'!E$5,#VALUE!,"") ->  | F34: =IF(F35<>'Pres & Prop Rev'!F$5,#VALUE!,"") ->  | G34: =IF(G35<>'Pres & Prop Rev'!G$5,#VALUE!,"") ->  | H34: =IF(H35<>'Pres & Prop Rev'!H$5,#VALUE!,"") -> 
D35: SCHEDULE 1 | E35: SCH. 11,12 | F35: SCH. 21,22 | G35: SCHEDULE 25 | H35: SCH. 30, 31, 32 | S35: LIRAP/DSM increase
A36: 1 | B36: BASIC CHARGE | D36: =D26 -> 8.5 | E36: =E26 -> 18 | F36: =F26 -> 0 | G36: =G26 -> 0 | H36: =H26 -> 18 | S36: 1 | T36: 11 | U36: 21 | V36: 25 | W36: 31
A37: 2 | B37: BLOCK 1 PER KWH | D37: =D27-0.195+0.007+0.338-0.104-0.054 -> 7.43 | E37: =E27+0.466+0.01-0.104-0.072 -> 11.669 | F37: =F27+0.35+0.008-0.106-0.054 -> 7.341 | G37: =G27+0.222+0.005-0.102-0.035 -> 5.635 | H37: =H27+0.309+0.007-0.113-0.05 -> 9.756 | N37: =N27 -> 800 | O37: 3650 | P37: 250000 | Q37: 500000 | S37: 0 | T37: 0 | U37: 0 | V37: 0 | W37: 0
A38: 3 | B38: BLOCK 2 PER KWH | D38: =D28-0.195+0.007+0.338-0.104-0.054 -> 8.644 | E38: =E28+0.466+0.01-0.104-0.072 -> 8.653 | F38: =F28+0.35+0.008-0.106-0.054 -> 6.586 | G38: =G28+0.222+0.005-0.102-0.035 -> 5.078 | H38: =H28+0.309+0.007-0.113-0.05 -> 7.011 | N38: 1500 | O38: 9999999 | P38: 9999999 | Q38: 6000000 | S38: =S$37 -> 0 | T38: =T$37 -> 0 | U38: =U$37 -> 0 | V38: =V$37 -> 0 | W38: =W$37 -> 0
A39: 4 | B39: BLOCK 3 PER KWH | D39: 10.136 | G39: =G29+0.222-0.102-0.035-0.046 -> 4.304 | L39: Rates_Billing_Proposed | N39: 9999999 | O39: 9999999 | P39: 9999999 | Q39: 99999999 | S39: =S$37 -> 0 | T39: 0 | U39: 0 | V39: 0 | W39: 0
A40: 5 | B40: BLOCK 4 PER KWH | S40: 0 | T40: 0 | U40: 0 | V40: 0 | W40: 0
A41: 6 | B41: DEMAND CHARGE | F41: =F31 -> 500 | G41: =G31 -> 21000
A42: 7 | B42: DEMAND BLOCK 1 | E42: =E32 -> 6 | F42: =F32 -> 6 | G42: =G32 -> 6 | N42: =N32 -> 0 | O42: =O32 -> 20 | P42: =P32 -> 50 | Q42: =Q32 -> 3000
D45: 0 | E45: 0) ERM=0; 1) ERM as is
B47: Proposed Rate Workup - from Pres & Prop Rev tab
B49: KILOWATT HOURS (KWHS)
B50: BLOCK 1 | C50: =SUM(D50:H50) -> 3459343931 | D50: ='Pres & Prop Rev'!D31 -> 1592525923 | E50: ='Pres & Prop Rev'!E31 -> 420252327 | F50: ='Pres & Prop Rev'!F31 -> 1271405693 | G50: ='Pres & Prop Rev'!G31 -> 125425699 | H50: ='Pres & Prop Rev'!H31 -> 49734289
B51: BLOCK 2 | C51: =SUM(D51:H51) -> 1477112065 | D51: ='Pres & Prop Rev'!D32 -> 524802802 | E51: ='Pres & Prop Rev'!E32 -> 165857105 | F51: ='Pres & Prop Rev'!F32 -> 165400788 | G51: ='Pres & Prop Rev'!G32 -> 542858086 | H51: ='Pres & Prop Rev'!H32 -> 78193284
B52: BLOCK 3 | C52: =SUM(D52:H52) -> 728022194 | D52: ='Pres & Prop Rev'!D33 -> 320179343 | E52: ='Pres & Prop Rev'!E33 -> 0 | F52: ='Pres & Prop Rev'!F33 -> 0 | G52: ='Pres & Prop Rev'!G33 -> 407842851 | H52: ='Pres & Prop Rev'!H33 -> 0
B53: ADJ. TO ACTUAL/EE ADJ | C53: =SUM(D53:H53) -> 0 | D53: ='Pres & Prop Rev'!D41+'Pres & Prop Rev'!D38 -> 0 | E53: ='Pres & Prop Rev'!E41+'Pres & Prop Rev'!E38 -> 0 | F53: ='Pres & Prop Rev'!F41+'Pres & Prop Rev'!F38 -> 0 | G53: ='Pres & Prop Rev'!G41+'Pres & Prop Rev'!G38 -> 0 | H53: ='Pres & Prop Rev'!H41+'Pres & Prop Rev'!H38 -> 0
B54: WEATHER & U/B KWHS | C54: =SUM(D54:H54) -> 0 | D54: ='Pres & Prop Rev'!D44 -> 0 | E54: ='Pres & Prop Rev'!E44 -> 0 | F54: ='Pres & Prop Rev'!F44 -> 0 | G54: ='Pres & Prop Rev'!G44 -> 0 | H54: ='Pres & Prop Rev'!H44 -> 0
B55: TOTAL PROFORMA KWHS | C55: =IF(ROUND(SUM(D55:I55),3)<>ROUND(SUM(C50:C54),3),#VALUE!,SUM(D55:I55)) -> 5664478190 | D55: =SUM(D50:D54) -> 2437508068 | E55: =SUM(E50:E54) -> 586109432 | F55: =SUM(F50:F54) -> 1436806481 | G55: =SUM(G50:G54) -> 1076126636 | H55: =SUM(H50:H54) -> 127927573
B56: TOTAL BILLS | D56: ='Pres & Prop Rev'!D48 -> 2494197 | E56: ='Pres & Prop Rev'!E48 -> 369788 | F56: ='Pres & Prop Rev'!F48 -> 24074 | G56: ='Pres & Prop Rev'!G48 -> 253 | H56: ='Pres & Prop Rev'!H48 -> 29462
B57: EXCESS DEMAND | D57: ='Pres & Prop Rev'!D50 -> 0 | E57: ='Pres & Prop Rev'!E50 -> 364641 | F57: ='Pres & Prop Rev'!F50 -> 2697553 | G57: ='Pres & Prop Rev'!G50 -> 1168073 | H57: ='Pres & Prop Rev'!H50 -> 0
J58: Proposed rates: | K58: Formulas to copy
B59: Proposed Revenue | C59: =SUM(D59:I59) -> 490863248.6 | D59: =ROR!D46 -> 217534902.8 | E59: =ROR!E46 -> 70484005.71 | F59: =ROR!F46 -> 129654014.3 | G59: =ROR!G46 -> 62515578.64 | H59: =ROR!H46 -> 10674747.17 | J59: same as current | K59: FLOOR | L59: CEILING | M59: OTHER
B60: Targeted Rate Increase | C60: =ROR!C47 -> 0.01426144409 | D60: =ROR!D47 -> 0.01426136617 | E60: =ROR!E47 -> 0.0142615 | F60: =ROR!F47 -> 0.0142615 | G60: =ROR!G47 -> 0.0142615 | H60: =ROR!H47 -> 0.0142615 | J60: diff than current
B61: Present Basic Charge | D61: =D4 -> 8 | E61: =E4 -> 15 | F61: =F4 -> 0 | G61: =G4 -> 0 | H61: =H4 -> 15
B62: BASIC CHARGE | D62: 8.5 | E62: 18 | F62: 0 | G62: 0 | H62: 18 | K62: =FLOOR(K61*(1+K$60),$K63) -> 0 | L62: =CEILING(L61*(1+L$60),$L63) -> 0 | M62: =M61*(1+M$60) -> 0
B63: % D in Basic Charge | D63: =IF(D61,D62/D61-1,0) -> 0.0625 | E63: =IF(E61,E62/E61-1,0) -> 0.2 | F63: =IF(F61,F62/F61-1,0) -> 0 | G63: =IF(G61,G62/G61-1,0) -> 0 | H63: =IF(H61,H62/H61-1,0) -> 0.2 | K63: 0.05 | L63: 0.05
B64: Basic Charge Revenue | C64: =SUM(D64:I64) -> 28387174.5 | D64: =D56*D62 -> 21200674.5 | E64: =E56*E62 -> 6656184 | F64: =F56*F62 -> 0 | G64: =G56*G62 -> 0 | H64: =H56*H62 -> 530316
B65: Present Demand Block 1 | D65: =D9 -> 0 | E65: =E9 -> 0 | F65: =F9 -> 450 | G65: =G9 -> 15000 | H65: =H9 -> 0
B66: DEMAND BLOCK 1 | F66: 500 | G66: 21000 | K66: =FLOOR(K65*(1+K$60),$K67) -> 0 | L66: =CEILING(L65*(1+L$60),$L67) -> 0 | M66: =M65*(1+M$60) -> 0
B67: % D in Demand Block 1 | D67: =IF(D65,D66/D65-1,0) -> 0 | E67: =IF(E65,E66/E65-1,0) -> 0 | F67: =IF(F65,F66/F65-1,0) -> 0.1111111111 | G67: =IF(G65,G66/G65-1,0) -> 0.4 | H67: =IF(H65,H66/H65-1,0) -> 0 | K67: 5 | L67: 10
B68: Present Demand Block 2 | D68: =D10 -> 0 | E68: =E10 -> 6 | F68: =F10 -> 6 | G68: =G10 -> 5.25 | H68: =H10 -> 0
B69: DEMAND BLOCK 2 | E69: 6 | F69: 6 | G69: 6 | H69: 0 | K69: =FLOOR(K68*(1+K$60),$K70) -> 0 | L69: =CEILING(L68*(1+L$60),$L70) -> 0 | M69: =M68*(1+M$60) -> 0
B70: % D in Demand Block 2 | D70: =IF(D68,D69/D68-1,0) -> 0 | E70: =IF(E68,E69/E68-1,0) -> 0 | F70: =IF(F68,F69/F68-1,0) -> 0 | G70: =IF(G68,G69/G68-1,0) -> 0.1428571429 | H70: =IF(H68,H69/H68-1,0) -> 0 | K70: 0.05 | L70: 0.05
B71: Demand Revenue | C71: =SUM(D71:I71) -> 42731602 | D71: =D56*D66+D57*D69 -> 0 | E71: =E56*E66+E57*E69 -> 2187846 | F71: =F56*F66+F57*F69 -> 28222318 | G71: =G56*G66+G57*G69 -> 12321438 | H71: =H56*H66+H57*H69 -> 0
B72: Pwr Fctr/Prim Voltg Disc | C72: =SUM(D72:I72) -> -1170096.715 | D72: ='Pres & Prop Rev'!D172+'Pres & Prop Rev'!D173 -> 0 | E72: ='Pres & Prop Rev'!E172+'Pres & Prop Rev'!E173 -> 5084 | F72: ='Pres & Prop Rev'!F172+'Pres & Prop Rev'!F173 -> 53949 | G72: ='Pres & Prop Rev'!G172+'Pres & Prop Rev'!G173 -> -1234275.533 | H72: ='Pres & Prop Rev'!H172+'Pres & Prop Rev'!H173 -> 5145.818182
B74: Present Block 1 Base Rate | D74: =D5 -> 7.369 | E74: =E5 -> 11.391 | F74: =F5 -> 7.099 | G74: =G5 -> 5.708 | H74: =H5 -> 9.545
B75: Present Block 2 Base Rate | D75: =D6 -> 8.573 | E75: 8.37 | F75: 6.349 | G75: 5.135 | H75: 6.817
B76: Present Block 3 Base Rate | D76: 10.05 | E76: 0 | F76: 0 | G76: 4.391 | H76: 0
B78: 1) Flat Rate Increase | D78: 0 | E78: 1 | F78: 1 | G78: 1 | H78: 1
B79: 2) % Rate Increase | D79: 0.00931472197 | E79: -0.001915762685 | F79: 0.006146739739 | G79: -0.02861074324 | H79: 0.006123417564 | M79: =M$60 -> 0
B80: Method ---> | D80: 2 | E80: 2 | F80: 2 | G80: 2 | H80: 2
A82: Calculated | B82: BLOCK 1 PER KWH | D82: =CHOOSE(D$80,D74+D$78,D74*(1+D$79)) -> 7.437640186 | E82: =CHOOSE(E$80,E74+E$78,E74*(1+E$79)) -> 11.36917755 | F82: =CHOOSE(F$80,F74+F$78,F74*(1+F$79)) -> 7.142635705 | G82: =CHOOSE(G$80,G74+G$78,G74*(1+G$79)) -> 5.544689878 | H82: =CHOOSE(H$80,H74+H$78,H74*(1+H$79)) -> 9.603448021
B83: BLOCK 2 PER KWH | D83: 8.652855111 | E83: 8.353965066 | F83: 6.388025651 | G83: =CHOOSE(G$80,G75+G$78,G75*(1+G$79)) -> 4.988083833 | H83: 6.858743338 | M83: =0.75*M82 -> 0
B84: BLOCK 3 PER KWH | D84: 10.14361296 | E84: 0 | F84: 0 | G84: =CHOOSE(G$80,G76+G$78,G76*(1+G$79)) -> 4.265370226 | H84: 0
A85: Input | B85: BLOCK 1 PER KWH | D85: =D82 -> 7.437640186 | E85: =E82 -> 11.36917755 | F85: 7.142635705 | G85: =G82 -> 5.544689878 | H85: =H82 -> 9.603448021 | M85: =M82 -> 0
B86: BLOCK 2 PER KWH | D86: =D83-0.001 -> 8.651855111 | E86: =E83-0.001 -> 8.352965066 | F86: 6.388025651 | G86: 4.988083833 | H86: =H83-0.001 -> 6.857743338 | J86: =G86-G85 -> -0.5566060441 | M86: =M83 -> 0 | N86: =0.75*(N85-N74)+N75 -> 0
B87: BLOCK 3 PER KWH | D87: =D84 -> 10.14361296 | E87: =E84 -> 0 | F87: 0 | G87: =G84 -> 4.265370226 | H87: 0 | J87: =G87-G86 -> -0.722713607 | M87: =M84 -> 0
B88: Blocks 1-3 Revenue | C88: =SUM(D88:I88) -> 420907411.7 | D88: =SUMPRODUCT(D50:D52,D85:D87)/100 -> 196329279.4 | E88: =SUMPRODUCT(E50:E52,E85:E87)/100 -> 61633219.24 | F88: =SUMPRODUCT(F50:F52,F85:F87)/100 -> 101377721.8 | G88: =SUMPRODUCT(G50:G52,G85:G87)/100 -> 51428690 | H88: =SUMPRODUCT(H50:H52,H85:H87)/100 -> 10138501.32
B89: Adj. to Actual Revenue | C89: =SUM(D89:I89) -> 0 | D89: ='Pres & Prop Rev'!D181+'Pres & Prop Rev'!D178 -> 0 | E89: ='Pres & Prop Rev'!E181+'Pres & Prop Rev'!E178 -> 0 | F89: ='Pres & Prop Rev'!F181+'Pres & Prop Rev'!F178 -> 0 | G89: ='Pres & Prop Rev'!G181+'Pres & Prop Rev'!G178 -> 0 | H89: ='Pres & Prop Rev'!H181+'Pres & Prop Rev'!H178 -> 0
B90: Weather & U/B Revenue | C90: =SUM(D90:I90) -> 0 | D90: ='Pres & Prop Rev'!D202 -> 0 | E90: ='Pres & Prop Rev'!E202 -> 0 | F90: ='Pres & Prop Rev'!F202 -> 0 | G90: ='Pres & Prop Rev'!G202 -> 0 | H90: ='Pres & Prop Rev'!H202 -> 0
B92: Revenue Remaining | C92: =IF(ROUND(C59-C64-C71-C72-SUM(C88:C90),3)<>ROUND(SUM(D92:I92),3),#VALUE!,SUM(D92:I92)) -> 7157.148665 | D92: =D59-D64-D71-D72-SUM(D88:D90) -> 4948.898126 | E92: =E59-E64-E71-E72-SUM(E88:E90) -> 1672.469636 | F92: =F59-F64-F71-F72-SUM(F88:F90) -> 25.5661906 | G92: =G59-G64-G71-G72-SUM(G88:G90) -> -273.823058 | H92: =H59-H64-H71-H72-SUM(H88:H90) -> 784.03777 | J92: there will be some remainder in Schs. 21 & 25 because some components of their revenue don't change w/a rate change.
B93: Revenue Remaining - ¢/kWh | C93: =C92/C55*100 -> 0.0001263514206 | D93: =D92/D55*100 -> 0.000203031046 | E93: 0.0002853510872 | F93: 1.779376063e-06 | G93: -2.54452449e-05 | H93: 0.0006128762952
B94: check - < $6k is rounding | C94: =SUM(D94:I94) -> -10032.58438 | D94: =D59-'Pres & Prop Rev'!D204-D92 -> -7729.737174 | E94: =E59-'Pres & Prop Rev'!E204-E92 -> 688.2037895 | F94: =F59-'Pres & Prop Rev'!F204-F92 -> -4589.237414 | G94: =G59-'Pres & Prop Rev'!G204-G92 -> 1576.059955 | H94: =H59-'Pres & Prop Rev'!H204-H92 -> 22.12646771
A95: =IF(Base1_Billing2=2,"MAKE SURE TO CHANGE Base1_Billing2 to '1' before designing Base Rates","") -> 
B96: Proposed Target | C96: =SUM(D96:I96) -> 490863248.6 | D96: =D59 -> 217534902.8 | E96: =E59 -> 70484005.71 | F96: =F59 -> 129654014.3 | G96: =G59 -> 62515578.64 | H96: =H59 -> 10674747.17
B97: Proposed Actual | C97: =SUM(D97:I97) -> 490866124.1 | D97: ='Pres & Prop Rev'!D204 -> 217537683.6 | E97: ='Pres & Prop Rev'!E204 -> 70481645.04 | F97: ='Pres & Prop Rev'!F204 -> 129658578 | G97: ='Pres & Prop Rev'!G204 -> 62514276.41 | H97: ='Pres & Prop Rev'!H204 -> 10673941.01
C98: =SUM(D98:H98) -> 2875.43571 | D98: =D97-D96 -> 2780.839047 | E98: =E97-E96 -> -2360.673426 | F98: =F97-F96 -> 4563.671223 | G98: =G97-G96 -> -1302.236897 | H98: =H97-H96 -> -806.1642377
B99: Rate D Check
B100: Basic Charge | C100: ='Pres & Prop Rev'!C164/'Pres & Prop Rev'!C111-1 -> 0.09424168442 | D100: ='Pres & Prop Rev'!D164/'Pres & Prop Rev'!D111-1 -> 0.0625 | E100: ='Pres & Prop Rev'!E164/'Pres & Prop Rev'!E111-1 -> 0.2 | F100: ='Pres & Prop Rev'!F164/'Pres & Prop Rev'!F111-1 ->  | G100: ='Pres & Prop Rev'!G164/'Pres & Prop Rev'!G111-1 ->  | H100: ='Pres & Prop Rev'!H164/'Pres & Prop Rev'!H111-1 -> 0.2
B101: Demand Charge | C101: =SUM('Pres & Prop Rev'!C170:C171)/SUM('Pres & Prop Rev'!C117:C118)-1 -> 0.091934604 | D101: =SUM('Pres & Prop Rev'!D170:D171)/SUM('Pres & Prop Rev'!D117:D118)-1 ->  | E101: =SUM('Pres & Prop Rev'!E170:E171)/SUM('Pres & Prop Rev'!E117:E118)-1 -> 0 | F101: =SUM('Pres & Prop Rev'!F170:F171)/SUM('Pres & Prop Rev'!F117:F118)-1 -> 0.04455076126 | G101: =SUM('Pres & Prop Rev'!G170:G171)/SUM('Pres & Prop Rev'!G117:G118)-1 -> 0.2411566764 | H101: =SUM('Pres & Prop Rev'!H170:H171)/SUM('Pres & Prop Rev'!H117:H118)-1 -> 
B102: Adj. to Actual Revenue | C102: ='Pres & Prop Rev'!C181/'Pres & Prop Rev'!C128-1 ->  | D102: ='Pres & Prop Rev'!D181/'Pres & Prop Rev'!D128-1 ->  | E102: ='Pres & Prop Rev'!E181/'Pres & Prop Rev'!E128-1 ->  | F102: ='Pres & Prop Rev'!F181/'Pres & Prop Rev'!F128-1 ->  | G102: ='Pres & Prop Rev'!G181/'Pres & Prop Rev'!G128-1 ->  | H102: ='Pres & Prop Rev'!H181/'Pres & Prop Rev'!H128-1 -> 
B103: Weather & U/B Revenue | C103: ='Pres & Prop Rev'!C202/'Pres & Prop Rev'!C149-1 ->  | D103: ='Pres & Prop Rev'!D202/'Pres & Prop Rev'!D149-1 ->  | E103: ='Pres & Prop Rev'!E202/'Pres & Prop Rev'!E149-1 ->  | F103: ='Pres & Prop Rev'!F202/'Pres & Prop Rev'!F149-1 ->  | G103: ='Pres & Prop Rev'!G202/'Pres & Prop Rev'!G149-1 ->  | H103: ='Pres & Prop Rev'!H202/'Pres & Prop Rev'!H149-1 -> 
B104: Block Energy Charges | C104: =SUM('Pres & Prop Rev'!C166:C169)/SUM('Pres & Prop Rev'!C113:C116)-1 -> 0.002052723419 | D104: =SUM('Pres & Prop Rev'!D166:D169)/SUM('Pres & Prop Rev'!D113:D116)-1 -> 0.00932747988 | E104: =SUM('Pres & Prop Rev'!E166:E169)/SUM('Pres & Prop Rev'!E113:E116)-1 -> -0.001953765224 | F104: =SUM('Pres & Prop Rev'!F166:F169)/SUM('Pres & Prop Rev'!F113:F116)-1 -> 0.006192286654 | G104: =SUM('Pres & Prop Rev'!G166:G169)/SUM('Pres & Prop Rev'!G113:G116)-1 -> -0.02864051213 | H104: =SUM('Pres & Prop Rev'!H166:H169)/SUM('Pres & Prop Rev'!H113:H116)-1 -> 0.006043630108
B105: Overall Revenue | C105: ='Pres & Prop Rev'!C208 -> 0.01426352942 | D105: ='Pres & Prop Rev'!D208 -> 0.0142743319 | E105: ='Pres & Prop Rev'!E208 -> 0.01422753002 | F105: ='Pres & Prop Rev'!F208 -> 0.01429720083 | G105: ='Pres & Prop Rev'!G208 -> 0.01424037353 | H105: ='Pres & Prop Rev'!H208 -> 0.01418490227
B107: Avg. Usage | D107: =D55/D56 -> 977.2716702 | E107: =E55/E56 -> 1584.987701 | F107: =F55/F56 -> 59682.91439 | G107: =G55/G56 -> 4253464.964 | H107: =H55/H56 -> 4342.121139
B108: Bill Compare: | C108: =INDEX($D$2:$I$2,K108) -> SCH. 1 | F108: =INDEX($D$2:$I$2,L108) -> SCH. 11,12 | K108: 1 | L108: 2
B109: =IF(Base1_Billing2=2,"BILLING RATES","BASE RATES") -> BASE RATES | C109: Pres | D109: Prop | E109: % Incr | F109: Pres | G109: Prop | H109: % Incr
B110: 100
B111: 200
B112: 300
B113: 400
B114: 500
B115: 600
B116: 700
B117: 800
B118: 900
B119: 1000 | C119: =ROUND(D14+600*D15/100+400*D16/100,2) -> 85.47 | D119: =ROUND(D36+600*D37/100+400*D38/100,2) -> 87.66 | E119: =D119/C119-1 -> 0.02562302562 | F119: =D119-C119 -> 2.19
B120: 1100
B121: 1200
B122: 1300
B123: 1400
B124: 1500
D125: 2425727000 | E125: =395341000+52692000 -> 448033000
D126: =205474*12 -> 2465688 | E126: =(19967+8691)*12 -> 343896
D127: =D125/D126 -> 983.7931644 | E127: =E125/E126 -> 1302.815386

Sheet Exh 1
A1: AVISTA UTILITIES | S1: This worksheet pulls data from 'Pres & Prop Rev' tab.
A2: WASHINGTON ELECTRIC
A3: PROPOSED INCREASE BY SERVICE SCHEDULE
A4: 12 MONTHS ENDED DECEMBER 31, 2015
A5: (000s of Dollars)
N6: To be updated to reflect Nov. 1 Power Supply update & ERM offset.
D8: Base Tariff | F8: Base Tariff | G8: Base | H8: Total Billed | J8: Percent | M8: Expiration of | P8: Percent | T8: Percent | U8: Total Billed
D9: Revenue | E9: Proposed | F9: Revenue | G9: Tariff | H9: Revenue | I9: Total | J9: Increase | K9: Sch.93 | L9: Sch.98 | M9: 2014 | N9: Sch. 92 | O9: Net General | P9: Increase | T9: Increase | U9: Revenue
B10: Type of | C10: Schedule | D10: Under Present | E10: General | F10: Under Proposed | G10: Percent | H10: at Present | I10: General | J10: on Billed | K10: ERM | L10: REC Revenue | M10: ERM/BPA | N10: LIRAP | O10: & Sch. 92/93/94/98 | P10: on Billed | T10: on Base | U10: at Proposed
A11: No. | B11: Service | C11: Number | D11: Rates(1) | E11: Increase | F11: Rates(1) | G11: Increase | H11: Rates (2) | I11: Increase | J11: Revenue | K11: Decrease | L11: Decrease | M11: Decrease | N11: Increase | O11: Increase | P11: Revenue (2) | T11: Revenue | U11: Rates (2)
B12: (a) | C12: (b) | D12: (c) | E12: (d) | F12: (e) | G12: (f) | H12: (g) | I12: (h) | J12: (g) | K12: (g) | L12: (h) | M12: (i) | N12: (j) | O12: (k) | P12: (l) | R12: ="col (m) source" -> col (m) source
D13: =IF(Base1_Billing2<>1,"ERROR","") -> 
A14: 1 | B14: Residential | C14: 1 | D14: ='Pres & Prop Rev'!$D$152/1000 -> 214476.1795 | E14: ='Pres & Prop Rev'!$D$207/1000-0.2 -> 3061.30417 | F14: =D14+E14-0.1 -> 217537.3836 | G14: =E14/D14 -> 0.01427339939 | H14: 211941.1711 | I14: =E14 -> 3061.30417 | J14: =I14/H14 -> 0.01444412218 | K14: =('ERM Offset'!F10)/1000 -> -1310.893552 | L14: =('Sch 98 REC Revenue'!H10)/1000 -> -2535.008391 | M14: =('Pres & Prop Rev'!D23*(0.00164+0.00083))/1000 -> 6020.644928 | N14: =LIRAP!X8/1000 -> 173.5031633 | O14: =E14+K14+L14+M14+N14 -> 5409.550319 | P14: =(O14)/H14 -> 0.02552382952 | R14: from Pres & Prop Rev tab | T14: =(E14+M14+L14+N14)/D14 -> 0.03133422037 | U14: =I14+H14+M14+L14+N14 -> 218661.6149 | V14: =(O14-N14)/H14 -> 0.02470519121 | W14: LIRAP %
A16: 2 | B16: General Service | C16: 11/12 | D16: ='Pres & Prop Rev'!$E$152/1000 -> 69492.93226 | E16: ='Pres & Prop Rev'!$E$207/1000 -> 988.71278 | F16: =D16+E16 -> 70481.64504 | G16: =E16/D16 -> 0.01422753002 | H16: =70506.90157-110 -> 70396.90157 | I16: =E16 -> 988.71278 | J16: =I16/H16 -> 0.01404483376 | K16: =('ERM Offset'!F12)/1000 -> -424.7457084 | L16: =('Sch 98 REC Revenue'!H12)/1000 -> -609.5538093 | M16: =('Pres & Prop Rev'!E23*(0.00224+0.00069))/1000 -> 1717.300636 | N16: =LIRAP!X10/1000 -> 60.19501064 | O16: =E16+K16+L16+M16+N16 -> 1731.908909 | P16: =(O16)/H16 -> 0.0246020616 | R16: from below | T16: =(E16+M16+L16+N16)/D16 -> 0.03103415768 | U16: =I16+H16+M16+L16+N16 -> 72553.55619
A18: 3 | B18: Large General Service | C18: 21/22 | D18: ='Pres & Prop Rev'!$F$152/1000 -> 127830.9532 | E18: ='Pres & Prop Rev'!$F$207/1000 -> 1827.62481 | F18: =D18+E18 -> 129658.578 | G18: =E18/D18 -> 0.01429720083 | H18: =129310.86385-72 -> 129238.8638 | I18: 1827.62481 | J18: =I18/H18 -> 0.01414144906 | K18: =('ERM Offset'!F14)/1000 -> -781.3118112 | L18: =('Sch 98 REC Revenue'!H14)/1000 -> -1523.01487 | M18: =('Pres & Prop Rev'!F23*(0.00169+0.00078))/1000 -> 3548.912008 | N18: =LIRAP!X12/1000 -> 108.1168279 | O18: 3180.326965 | P18: 0.02460813157 | R18: from below | T18: 0.03099123239 | U18: 133200.5026
A20: 4 | B20: Extra Large General Service | C20: 25 | D20: ='Pres & Prop Rev'!$G$152/1000 -> 61636.54893 | E20: ='Pres & Prop Rev'!$G$207/1000-0.5 -> 877.22748 | F20: =D20+E20 -> 62513.77641 | G20: =E20/D20 -> 0.01423226146 | H20: 62088.5221 | I20: 877.22748 | J20: =I20/H20 -> 0.01412865777 | K20: =('ERM Offset'!F16)/1000 -> -376.7269388 | L20: =('Sch 98 REC Revenue'!H16)/1000 -> -1097.649169 | M20: =('Pres & Prop Rev'!G23*(0.00108+0.00072))/1000 -> 1937.027945 | N20: =LIRAP!X14/1000 -> -156.3482096 | O20: 1183.531108 | P20: 0.01906199516 | R20: from Pres & Prop Rev tab | T20: 0.02531384501 | U20: 63648.78014
A22: 5 | B22: Pumping Service | C22: 30/31/32 | D22: ='Pres & Prop Rev'!$H$152/1000 -> 10524.64988 | E22: ='Pres & Prop Rev'!$H$207/1000 -> 149.29113 | F22: =D22+E22 -> 10673.94101 | G22: =E22/D22 -> 0.01418490227 | H22: =10635.9468681818-19 -> 10616.94687 | I22: 149.29113 | J22: =I22/H22 -> 0.01406158775 | K22: =('ERM Offset'!F18)/1000 -> -64.32740313 | L22: =('Sch 98 REC Revenue'!H18)/1000 -> -144.5581575 | M22: =('Pres & Prop Rev'!H23*(0.0015+0.00072))/1000 -> 283.9992121 | N22: =LIRAP!X16/1000 -> 8.325445243 | O22: 232.7302267 | P22: 0.0219206359 | R22: from below | T22: 0.02822494176 | U22: 10914.0045
A24: 6 | B24: Street & Area Lights | C24: 41-48 | D24: ='Pres & Prop Rev'!$I$152/1000 -> 6870.76272 | E24: ='Pres & Prop Rev'!$I$207/1000-0.2 -> 95.93668032 | F24: =D24+E24 -> 6966.699401 | G24: =E24/D24 -> 0.01396303209 | H24: 7088.811105 | I24: 95.93668032 | J24: =I24/H24 -> 0.013533536 | K24: =('ERM Offset'!F20)/1000 -> -41.99458685 | L24: =('Sch 98 REC Revenue'!H20)/1000 -> -26.5944462 | M24: =('Pres & Prop Rev'!I23*(0.00503+0.00067))/1000 -> 144.3698508 | N24: =LIRAP!X18/1000 -> 6.148241529 | O24: 177.8657396 | P24: 0.02509105363 | R24: from Pres & Prop Rev tab | T24: 0.03199940609 | U24: 7308.671432
A26: 7 | B26: Total | D26: =SUM(D14:D24) -> 490832.0264 | E26: =SUM(E14:E24) -> 7000.09705 | F26: =SUM(F14:F24) -> 497832.0235 | G26: =E26/D26 -> 0.0142616958 | H26: =SUM(H14:H24) -> 491371.2166 | I26: =E26 -> 7000.09705 | J26: =I26/H26 -> 0.0142460462 | K26: =SUM(K14:K25) -> -3000 | L26: =SUM(L14:L25) -> -5936.378842 | M26: =SUM(M14:M24) -> 13652.25458 | N26: =SUM(N14:N24) -> 199.9404791 | O26: =SUM(O14:O24) -> 11915.91327 | P26: =(O26)/H26 -> 0.02425032819 | R26: from below | T26: 0.03038903833 | U26: 506287.1298
D27: =ROUND(D26-'Pres & Prop Rev'!C205/1000,0) -> 0
D28: =IF(Base1_Billing2=2,"Exhibit won't work until Base1_Billing2 range set to '1'","") -> 
B29: * All revenue based on 2015 billing determinants
A31: (1) Excludes all present rate adjustments: Schedule 59 (BPA Residential Exchange), Schedule 91 (DSM Adjustment), Schedule 92 (LIRAP Adjustment),
A32: Schedule 93 (Energy Recovery Mechanism), and Schedule 94 (BPA Transmission Revenue).
A34: (2) Includes all rate adjustments: Schedule 59 (BPA Residential Exchange), Schedule 91 (DSM), Schedule 92 (LIRAP),
A35: Schedule 93 (ERM), Schedule 94 (BPA Transmission Revenue), and Schedule 98 (REC Revenue Rebate).
B38: reduce billed revenue for BPA ResEx (already accounted for in Schs 1 & 48)
F39: Billing | I39: Billed Revenue
F40: Determinants | H40: Sch 59 Rate | I40: Impact
B41: Schedule 12 only | F41: 56669414 | H41: -0.00195 | I41: =F41*H41 -> -110505.3573
B42: Schedule 22 only | F42: 36993835 | H42: -0.00195 | I42: =F42*H42 -> -72137.97825
B43: Schedule 32 only | F43: 9770318 | H43: -0.00195 | I43: -19052.1201
B45: Total | F45: =SUM(F41:F44) -> 103433567 | I45: =SUM(I41:I44) -> -201695.4556 | J45: Manually deducted in Column G
J48: ERM Reduction Calc | M48: 0 | O48: 1 | P48: =-D14*$M$49 -> 0 | R48: =0/'Pres & Prop Rev'!D23 -> 0 | S48: =(D14/$D$26)*$P$54 -> 0
M49: =M48/D26 -> 0 | O49: 11 | P49: =-D16*M49 -> 0 | S49: =(D16/$D$26)*$P$54 -> 0
O50: 21 | P50: =-D18*M49 -> 0 | S50: =(D18/$D$26)*$P$54 -> 0
O51: 25 | P51: =-D20*M49 -> 0 | S51: =(D20/$D$26)*$P$54 -> 0
O52: 31 | P52: =-D22*M49 -> 0 | S52: =(D22/$D$26)*$P$54 -> 0
O53: 41-48 | P53: =-D24*M49 -> 0 | S53: =(D24/$D$26)*$P$54 -> 0
P54: =SUM(P48:P53) -> 0 | S54: =SUM(S48:S53) -> 0

Sheet Exh 2 (hidden)
A1: AVISTA UTILITIES | L1: This worksheet pulls data from 'ROR' tab.
A2: WASHINGTON ELECTRIC
A3: PRESENT & PROPOSED RATES OF RETURN BY RATE SCHEDULE
A4: 12 MONTHS ENDED JUNE 30, 2013
D9: Present Rates | G9: Base | I9: Proposed Rates
D10: Present | E10: Present | G10: Tariff | I10: Proposed | J10: Proposed
A11: Line | B11: Type of | C11: Sch. | D11: Rate of | E11: Relative | G11: Proposed | I11: Rate of | J11: Relative
A12: No. | B12: Service | C12: Number | D12: Return | E12: ROR | G12: Increase | I12: Return | J12: ROR
B13: (a) | C13: (b) | D13: (c) | E13: (d) | G13: (e) | I13: (f) | J13: (g)
A14: 1 | B14: Residential | C14: 1 | D14: =INDEX(ROR!$C$20:$I$20,$A14+1) -> 0.0559924026 | E14: =INDEX(ROR!$C$21:$I$21,$A14+1) -> 0.7359602073 | G14: =INDEX(ROR!$C$47:$I$47,$A14+1) -> 0.01426136617 | I14: =INDEX(ROR!$C$38:$I$38,$A14+1) -> 0.05626469756 | J14: =INDEX(ROR!$C$37:$I$37,$A14+1) -> 0.7098494276
A15: 2 | B15: General Service | C15: 11/12 | D15: =INDEX(ROR!$C$20:$I$20,$A15+1) -> 0.1549120817 | E15: =INDEX(ROR!$C$21:$I$21,$A15+1) -> 2.036153521 | G15: =INDEX(ROR!$C$47:$I$47,$A15+1) -> 0.0142615 | I15: =INDEX(ROR!$C$38:$I$38,$A15+1) -> 0.156931348 | J15: =INDEX(ROR!$C$37:$I$37,$A15+1) -> 1.979884944
A16: 3 | B16: Large General Service | C16: 21/22 | D16: =INDEX(ROR!$C$20:$I$20,$A16+1) -> 0.09439218595 | E16: =INDEX(ROR!$C$21:$I$21,$A16+1) -> 1.240684263 | G16: =INDEX(ROR!$C$47:$I$47,$A16+1) -> 0.0142615 | I16: =INDEX(ROR!$C$38:$I$38,$A16+1) -> 0.1015812336 | J16: =INDEX(ROR!$C$37:$I$37,$A16+1) -> 1.281574124
A17: 4 | B17: Extra Large General Svc. | C17: 25 | D17: =INDEX(ROR!$C$20:$I$20,$A17+1) -> 0.05469797148 | E17: =INDEX(ROR!$C$21:$I$21,$A17+1) -> 0.7189462956 | G17: =INDEX(ROR!$C$47:$I$47,$A17+1) -> 0.0142615 | I17: =INDEX(ROR!$C$38:$I$38,$A17+1) -> 0.06156124591 | J17: =INDEX(ROR!$C$37:$I$37,$A17+1) -> 0.7766719997
A18: 5 | B18: Pumping Service | C18: 30/31/32 | D18: =INDEX(ROR!$C$20:$I$20,$A18+1) -> 0.05412485375 | E18: =INDEX(ROR!$C$21:$I$21,$A18+1) -> 0.7114132764 | G18: =INDEX(ROR!$C$47:$I$47,$A18+1) -> 0.0142615 | I18: =INDEX(ROR!$C$38:$I$38,$A18+1) -> 0.06218304029 | J18: =INDEX(ROR!$C$37:$I$37,$A18+1) -> 0.7845167124
A19: 6 | B19: Street & Area Lights | C19: 41-48 | D19: =INDEX(ROR!$C$20:$I$20,$A19+1) -> 0.06360265384 | E19: =INDEX(ROR!$C$21:$I$21,$A19+1) -> 0.8359888151 | G19: =INDEX(ROR!$C$47:$I$47,$A19+1) -> 0.0142615 | I19: =INDEX(ROR!$C$38:$I$38,$A19+1) -> 0.06799216629 | J19: =INDEX(ROR!$C$37:$I$37,$A19+1) -> 0.8578060917
A20: 7 | B20: Total | D20: =INDEX(ROR!$C$20:$I$20,1) -> 0.07608074736 | E20: =INDEX(ROR!$C$21:$I$21,1) -> 1 | G20: =INDEX(ROR!$C$47:$I$47,1) -> 0.01426144409 | I20: =INDEX(ROR!$C$38:$I$38,1) -> 0.07926286248 | J20: =INDEX(ROR!$C$37:$I$37,1) -> 1

Sheet Exh 3
A1: AVISTA UTILITIES | R1: This worksheet uses Base & Billing rates from 'Rate Design' tab.
A2: WASHINGTON ELECTRIC
A3: PRESENT AND PROPOSED RATE COMPONENTS BY SCHEDULE
K4: To be updated to reflect Nov. 1 Power Supply update & ERM offset.
H7: General | I7: Sch. 93/98 | J7: Sch. 93/94 | K7: Sch. 92 | L7: Proposed | M7: Proposed | N7: Sch. 98 | O7: Sch. 93/94 | P7: Proposed Billing
D8: Base Tariff | E8: Present | F8: Present | H8: Rate | I8: ERM/REC | J8: ERM/BPA | K8: LIRAP | L8: Billing | M8: Base Tariff | N8: REC Revenue | O8: ERM/BPA | P8: Rate With | W8: GRC
A9: Type of Service | D9: Sch. Rate | E9: Other Adj.(1) | F9: Billing Rate | H9: Inc/Dec | I9: Decrease | J9: Increase | K9: Increase | L9: Rate | M9: Rate | N9: Decrease | O9: Increase | P9: ERM Decrease (2) | Q9: non-printing | T9: Present | U9: Proposed | V9: Proposed | W9: Revenue
A10: Total Proforma kWh's | B10: (a) | D10: (b) | E10: (c) | F10: (d) | H10: (e) | I10: (f) | J10: (g) | K10: (h) | L10: (i) | M10: (j) | N10: (h) | O10: (i) | P10: (j) | Q10: Base | R10: Billing | T10: Billing | U10: Base | V10: Billing | W10: Check
A11: Residential Service - Schedule 1
A12: Basic Charge | D12: ='Rate Design'!D4 -> 8 | E12: =F12-D12 -> 0 | F12: ='Rate Design'!D14 -> 8 | H12: =IF(ROUND(L12-F12,5)<>ROUND(M12-D12,5),#VALUE!,M12-D12) -> 0.5 | L12: ='Rate Design'!D36 -> 8.5 | M12: ='Rate Design'!D26 -> 8.5 | P12: =M12 -> 8.5 | Q12: =H12/D12 -> 0.0625 | R12: =H12/F12 -> 0.0625 | W12: =H12*'Pres & Prop Rev'!D25 -> 1247098.5
A13: Energy Charge:
A14: ="First "&TEXT('Rate Design'!N5,"#,##0")&" kWhs" -> First 800 kWhs | D14: ='Rate Design'!D5/100 -> 0.07369 | E14: =F14-D14 -> -0.00104 | F14: ='Rate Design'!D15/100 -> 0.07265 | H14: =M14-D14 -> 0.00069 | I14: ='Sch 98 REC Revenue'!D10+'ERM Offset'!I10 -> -0.001577800703 | J14: =0.00164+0.00083 -> 0.00247 | K14: =LIRAP!W8 -> 7e-05 | L14: ='Rate Design'!D37/100 -> 0.0743 | M14: ='Rate Design'!D27/100 -> 0.07438 | N14: ='Sch 98 REC Revenue'!#REF! ->  | O14: =0.00164+0.00083 -> 0.00247 | P14: =L14+N14+O14 ->  | Q14: =H14/D14 -> 0.009363550007 | R14: =H14/F14 -> 0.009497591191 | T14: =D14+E14-F14 -> 0 | U14: =D14+H14-M14 -> 0 | V14: =F14+H14+I14+J14-L14+K14 -> 2.199297368e-06 | W14: =H14*'Pres & Prop Rev'!D8 -> 1098842.887
A15: =TEXT('Rate Design'!N5,"#,##0")&" - "&TEXT('Rate Design'!N6,"#,##0")&" kWhs" -> 800 - 1,500 kWhs | D15: ='Rate Design'!D6/100 -> 0.08573 | E15: =F15-D15 -> -0.00104 | F15: ='Rate Design'!D16/100 -> 0.08469 | H15: =M15-D15 -> 0.00079 | I15: =I14 -> -0.001577800703 | J15: =0.00164+0.00083 -> 0.00247 | K15: =K14 -> 7e-05 | L15: ='Rate Design'!D38/100 -> 0.08644 | M15: ='Rate Design'!D28/100 -> 0.08652 | N15: =N14 ->  | O15: =O14 -> 0.00247 | P15: =L15+N15 ->  | Q15: =H15/D15 -> 0.009214977254 | R15: =H15/F15 -> 0.009328137915 | T15: =D15+E15-F15 -> 0 | U15: =D15+H15-M15 -> 0 | V15: 2.199297368e-06 | W15: =H15*'Pres & Prop Rev'!D9 -> 414594.2136
A16: ="All over "&TEXT('Rate Design'!N6,"#,##0")&" kWhs" -> All over 1,500 kWhs | D16: ='Rate Design'!D7/100 -> 0.1005 | E16: =F16-D16 -> -0.00104 | F16: ='Rate Design'!D17/100 -> 0.09946 | H16: 0.00094 | I16: =I14 -> -0.001577800703 | J16: 0.00247 | K16: =K14 -> 7e-05 | L16: ='Rate Design'!D39/100 -> 0.10136 | M16: ='Rate Design'!D29/100 -> 0.10144 | N16: =N14 ->  | O16: =O14 -> 0.00247 | P16: =L16+N16 ->  | Q16: =H16/D16 -> 0.009353233831 | R16: =H16/F16 -> 0.009451035592 | T16: 0 | U16: 0 | V16: 2.199297368e-06 | W16: =H16*'Pres & Prop Rev'!D10 -> 300968.5824
W17: =SUM(W12:W16) -> 3061504.183 | X17: ='Pres & Prop Rev'!D207-'Exh 3'!W17 -> -0.01286996529
A18: General Services - Schedule 11
A19: Basic Charge | D19: ='Rate Design'!E4 -> 15 | E19: =F19-D19 -> 0 | F19: ='Rate Design'!E14 -> 15 | H19: =IF(ROUND(L19-F19,5)<>ROUND(M19-D19,5),#VALUE!,M19-D19) -> 3 | L19: ='Rate Design'!E36 -> 18 | M19: ='Rate Design'!E26 -> 18 | P19: =M19 -> 18 | Q19: =H19/D19 -> 0.2 | R19: =H19/F19 -> 0.2 | W19: =H19*'Pres & Prop Rev'!E25 -> 1109364
A20: Energy Charge:
A21: ="First "&TEXT('Rate Design'!O5,"#,##0")&" kWhs" -> First 3,650 kWhs | D21: ='Rate Design'!E5/100 -> 0.11391 | E21: =F21-D21 -> 0.00173 | F21: ='Rate Design'!E15/100 -> 0.11564 | H21: =M21-D21 -> -0.00022 | I21: ='Sch 98 REC Revenue'!D12+'ERM Offset'!I12 -> -0.001764686697 | J21: =0.00224+0.00069 -> 0.00293 | K21: =LIRAP!W10 -> 0.0001 | L21: ='Rate Design'!E37/100 -> 0.11669 | M21: ='Rate Design'!E27/100 -> 0.11369 | N21: =N14 ->  | O21: =O14 -> 0.00247 | P21: =L21+N21 ->  | Q21: =H21/D21 -> -0.001931349311 | R21: =H21/F21 -> -0.001902455898 | T21: 0 | U21: 0 | V21: =F21+H21+I21+J21-L21+K21 -> -4.686697111e-06 | W21: =H21*'Pres & Prop Rev'!E8 -> -92455.51194
A22: ="All over "&TEXT('Rate Design'!O5,"#,##0")&" kWhs" -> All over 3,650 kWhs | D22: ='Rate Design'!E6/100 -> 0.0837 | E22: =F22-D22 -> 0.00173 | F22: ='Rate Design'!E16/100 -> 0.08543 | H22: =M22-D22 -> -0.00017 | I22: =I21 -> -0.001764686697 | J22: =J21 -> 0.00293 | K22: =K21 -> 0.0001 | L22: ='Rate Design'!E38/100 -> 0.08653 | M22: ='Rate Design'!E28/100 -> 0.08353 | N22: =N21 ->  | O22: =O21 -> 0.00247 | P22: =L22+N22 ->  | Q22: =H22/D22 -> -0.002031063321 | R22: =H22/F22 -> -0.001989933279 | T22: 0 | U22: 0 | V22: =F22+H22+I22+J22-L22+K22 -> -4.686697111e-06 | W22: =H22*'Pres & Prop Rev'!E9 -> -28195.70785
A23: Demand Charge:
A24: =TEXT('Rate Design'!O10,"#,##0")&" kW or less" -> 20 kW or less | D24: no charge | F24: no charge | H24: no charge | M24: no charge | P24: no charge
A25: ="Over "&TEXT('Rate Design'!O10,"#,##0")&" kW" -> Over 20 kW | D25: ='Rate Design'!E10 -> 6 | E25: =F25-D25 -> 0 | F25: ='Rate Design'!E20 -> 6 | H25: =IF(ROUND(L25-F25,5)<>ROUND(M25-D25,5),#VALUE!,M25-D25) -> 0 | L25: ='Rate Design'!E42 -> 6 | M25: ='Rate Design'!E32 -> 6 | P25: ='Rate Design'!E32 -> 6 | Q25: =H25/D25 -> 0 | R25: =H25/F25 -> 0
W26: =SUM(W19:W25) -> 988712.7802 | X26: =W26-'Pres & Prop Rev'!E207 -> 0.0002099967096
A27: Large General Service - Schedule 21
A28: Energy Charge:
A29: ="First "&TEXT('Rate Design'!P5,"#,##0")&" kWhs" -> First 250,000 kWhs | D29: ='Rate Design'!F5/100 -> 0.07099 | E29: =F29-D29 -> 0.00103 | F29: ='Rate Design'!F15/100 -> 0.07202 | H29: =M29-D29 -> 0.00044 | I29: ='Sch 98 REC Revenue'!D14+'ERM Offset'!I14 -> -0.001603783607 | J29: =0.00169+0.00078 -> 0.00247 | K29: =LIRAP!W12 -> 8e-05 | L29: ='Rate Design'!F37/100 -> 0.07341 | M29: ='Rate Design'!F27/100 -> 0.07143 | N29: =N14 ->  | O29: =O14 -> 0.00247 | P29: =L29+N29 ->  | Q29: =H29/D29 -> 0.006198056064 | R29: =H29/F29 -> 0.006109414052 | T29: 0 | U29: 0 | V29: =F29+H29+I29+J29-L29+K29 -> -3.783607249e-06 | W29: =H29*'Pres & Prop Rev'!F8 -> 559418.5049
A30: ="All over "&TEXT('Rate Design'!P5,"#,##0")&" kWhs" -> All over 250,000 kWhs | D30: ='Rate Design'!F6/100 -> 0.06349 | E30: =F30-D30 -> 0.00103 | F30: ='Rate Design'!F16/100 -> 0.06452 | H30: =M30-D30 -> 0.00039 | I30: =I29 -> -0.001603783607 | J30: =J29 -> 0.00247 | K30: =K29 -> 8e-05 | L30: ='Rate Design'!F38/100 -> 0.06586 | M30: ='Rate Design'!F28/100 -> 0.06388 | N30: =N29 ->  | O30: =O29 -> 0.00247 | P30: =L30+N30 ->  | Q30: =H30/D30 -> 0.006142699638 | R30: =H30/F30 -> 0.006044637322 | T30: 0 | U30: 0 | V30: =F30+H30+I30+J30-L30+K30 -> -3.783607249e-06 | W30: =H30*'Pres & Prop Rev'!F9 -> 64506.30732
A31: Demand Charge:
A32: =TEXT('Rate Design'!P10,"#,##0")&" kW or less" -> 50 kW or less | D32: ='Rate Design'!F9 -> 450 | E32: =F32-D32 -> 0 | F32: ='Rate Design'!F19 -> 450 | H32: =IF(ROUND(L32-F32,5)<>ROUND(M32-D32,5),#VALUE!,M32-D32) -> 50 | L32: ='Rate Design'!F41 -> 500 | M32: ='Rate Design'!F31 -> 500 | P32: =M32 -> 500 | Q32: =H32/D32 -> 0.1111111111 | R32: =H32/F32 -> 0.1111111111 | W32: =H32*'Pres & Prop Rev'!F25 -> 1203700
A33: ="Over "&TEXT('Rate Design'!P10,"#,##0")&" kW" -> Over 50 kW | D33: ='Rate Design'!F10 -> 6 | E33: =F33-D33 -> 0 | F33: ='Rate Design'!F20 -> 6 | H33: =IF(ROUND(L33-F33,5)<>ROUND(M33-D33,5),#VALUE!,M33-D33) -> 0 | L33: ='Rate Design'!F42 -> 6 | M33: ='Rate Design'!F32 -> 6 | P33: ='Rate Design'!F32 -> 6 | Q33: =H33/D33 -> 0 | R33: =H33/F33 -> 0
A34: Primary Voltage Discount | D34: 0.2 | E34: =F34-D34 -> 0 | F34: 0.2 | H34: =IF(ROUND(L34-F34,5)<>ROUND(M34-D34,5),#VALUE!,M34-D34) -> 0 | L34: 0.2 | M34: 0.2 | P34: 0.2 | Q34: =H34/D34 -> 0 | R34: =H34/F34 -> 0
W35: =SUM(W29:W34) -> 1827624.812 | X35: =W35-'Pres & Prop Rev'!F207 -> 0.002239990514
A36: Extra Large General Service - Schedule 25
A37: Energy Charge:
A38: ="First "&TEXT('Rate Design'!Q5,"#,##0")&" kWhs" -> First 500,000 kWhs | D38: ='Rate Design'!G5/100 -> 0.05708 | E38: =F38-D38 -> 0.00042 | F38: ='Rate Design'!G15/100 -> 0.0575 | H38: =M38-D38 -> -0.00163 | I38: ='Sch 98 REC Revenue'!D16+'ERM Offset'!I16 -> -0.001370076772 | J38: =0.00108+0.00072 -> 0.0018 | K38: =LIRAP!W14 -> 5e-05 | L38: ='Rate Design'!G37/100 -> 0.05635 | M38: ='Rate Design'!G27/100 -> 0.05545 | N38: =N14 ->  | O38: =O14 -> 0.00247 | P38: =L38+N38 ->  | Q38: =H38/D38 -> -0.02855641205 | R38: =H38/F38 -> -0.02834782609 | T38: 0 | U38: 0 | V38: =F38+H38+I38+J38-L38+K38 -> -7.677181935e-08 | W38: =H38*'Pres & Prop Rev'!G8 -> -204443.8894
A39: =TEXT('Rate Design'!Q27,"#,##0")&" - "&TEXT('Rate Design'!Q28,"#,##0")&" kWhs" -> 500,000 - 6,000,000 kWhs | D39: ='Rate Design'!G6/100 -> 0.05135 | E39: =F39-D39 -> 0.00042 | F39: ='Rate Design'!G16/100 -> 0.05177 | H39: =M39-D39 -> -0.00147 | I39: =I38 -> -0.001370076772 | J39: =J38 -> 0.0018 | K39: =K38 -> 5e-05 | L39: ='Rate Design'!G38/100 -> 0.05078 | M39: ='Rate Design'!G28/100 -> 0.04988 | N39: =N38 ->  | O39: =O38 -> 0.00247 | P39: =L39+N39 ->  | Q39: =H39/D39 -> -0.02862706913 | R39: =H39/F39 -> -0.02839482326 | T39: 0 | U39: 0 | V39: =F39+H39+I39+J39-L39+K39 -> -7.677181936e-08 | W39: =H39*'Pres & Prop Rev'!G9 -> -798001.3864
A40: ="All over "&TEXT('Rate Design'!Q28,"#,##0")&" kWhs" -> All over 6,000,000 kWhs | D40: ='Rate Design'!G7/100 -> 0.04391 | E40: =F40-D40 -> 0.00042 | F40: ='Rate Design'!G17/100 -> 0.04433 | H40: -0.00126 | I40: =I38 -> -0.001370076772 | J40: =J39 -> 0.0018 | K40: =-LIRAP!D14 -> -0.00046 | L40: ='Rate Design'!G39/100 -> 0.04304 | M40: ='Rate Design'!G29/100 -> 0.04265 | N40: =N38 ->  | O40: =O38 -> 0.00247 | Q40: =H40/D40 -> -0.02869505807 | R40: =H40/F40 -> -0.02842318971 | T40: 0 | U40: 0 | V40: =F40+H40+I40+J40-L40+K40 -> -7.677181936e-08 | W40: =H40*'Pres & Prop Rev'!G10 -> -513881.9923
A41: Demand Charge:
A42: =TEXT('Rate Design'!Q10,"#,##0")&" kva or less" -> 3,000 kva or less | D42: ='Rate Design'!G9 -> 15000 | E42: =F42-D42 -> 0 | F42: ='Rate Design'!G19 -> 15000 | H42: =IF(ROUND(L42-F42,5)<>ROUND(M42-D42,5),#VALUE!,M42-D42) -> 6000 | L42: ='Rate Design'!G41 -> 21000 | M42: ='Rate Design'!G31 -> 21000 | P42: ='Rate Design'!G31 -> 21000 | Q42: =H42/D42 -> 0.4 | R42: =H42/F42 -> 0.4 | W42: =H42*'Pres & Prop Rev'!G25 -> 1518000
A43: ="Over "&TEXT('Rate Design'!Q10,"#,##0")&" kva" -> Over 3,000 kva | D43: ='Rate Design'!G10 -> 5.25 | E43: =F43-D43 -> 0 | F43: ='Rate Design'!G20 -> 5.25 | H43: =IF(ROUND(L43-F43,5)<>ROUND(M43-D43,5),#VALUE!,M43-D43) -> 0.75 | L43: ='Rate Design'!G42 -> 6 | M43: ='Rate Design'!G32 -> 6 | P43: ='Rate Design'!G32 -> 6 | Q43: =H43/D43 -> 0.1428571429 | R43: =H43/F43 -> 0.1428571429 | W43: =H43*'Pres & Prop Rev'!G27 -> 876054.75
A44: Primary Volt. Discount | W44: =SUM(W38:W43) -> 877727.482 | X44: =W44-'Pres & Prop Rev'!G207 -> 0.001949999481
A45: 11 - 60 kv | D45: 0.2 | E45: =F45-D45 -> 0 | F45: 0.2 | H45: =IF(ROUND(L45-F45,5)<>ROUND(M45-D45,5),#VALUE!,M45-D45) -> 0 | L45: 0.2 | M45: 0.2 | P45: =M45 -> 0.2 | Q45: =H45/D45 -> 0 | R45: =H45/F45 -> 0
A46: 60 - 115 kv | D46: 1.1 | E46: =F46-D46 -> 0 | F46: 1.1 | H46: =IF(ROUND(L46-F46,5)<>ROUND(M46-D46,5),#VALUE!,M46-D46) -> 0 | L46: 1.1 | M46: 1.1 | P46: =M46 -> 1.1 | Q46: =H46/D46 -> 0 | R46: =H46/F46 -> 0
A47: 115 or higher kv | D47: 1.4 | E47: =F47-D47 -> 0 | F47: 1.4 | H47: =IF(ROUND(L47-F47,5)<>ROUND(M47-D47,5),#VALUE!,M47-D47) -> 0 | L47: 1.4 | M47: 1.4 | P47: 1.4 | Q47: =H47/D47 -> 0 | R47: =H47/F47 -> 0
A48: Annual Minimum | D48: Present: | E48: =6000000*D38+5000000*D39+12*F42 -> 779230 | J48: Proposed: | K48: Proposed: | L48: =6000000*M38+5000000*M39+12*M42 -> 834100 | P48: =L48 -> 834100 | Q48: =L48/E48-1 -> 0.07041566675
A50: Pumping Service - Schedule 31
A51: Basic Charge | D51: ='Rate Design'!H4 -> 15 | E51: =F51-D51 -> 0 | F51: ='Rate Design'!H14 -> 15 | H51: =IF(ROUND(L51-F51,5)<>ROUND(M51-D51,5),#VALUE!,M51-D51) -> 3 | L51: ='Rate Design'!H36 -> 18 | M51: ='Rate Design'!H26 -> 18 | P51: =M51 -> 18 | Q51: =H51/D51 -> 0.2 | R51: =H51/F51 -> 0.2 | W51: =H51*'Pres & Prop Rev'!H25 -> 88386
A52: Energy Charge:
A53: First 165 kW/kWh | D53: ='Rate Design'!H5/100 -> 0.09545 | E53: =F53-D53 -> 0.00087 | F53: ='Rate Design'!H15/100 -> 0.09632 | H53: =M53-D53 -> 0.00058 | I53: ='Sch 98 REC Revenue'!D18+'ERM Offset'!I18 -> -0.001632842363 | J53: =0.0015+0.00072 -> 0.00222 | K53: =LIRAP!W16 -> 7e-05 | L53: ='Rate Design'!H37/100 -> 0.09756 | M53: ='Rate Design'!H27/100 -> 0.09603 | N53: =N14 ->  | O53: =O14 -> 0.00247 | P53: =L53+N53 ->  | Q53: =H53/D53 -> 0.006076479832 | R53: =H53/F53 -> 0.006021594684 | T53: 0 | U53: 0 | V53: =F53+H53+I53+J53-L53+K53 -> -2.842363258e-06 | W53: =H53*'Pres & Prop Rev'!H8 -> 28845.88762
A54: All additional kWhs | D54: ='Rate Design'!H6/100 -> 0.06817 | E54: =F54-D54 -> 0.00087 | F54: ='Rate Design'!H16/100 -> 0.06904 | H54: =M54-D54 -> 0.00041 | I54: =I53 -> -0.001632842363 | J54: =J53 -> 0.00222 | K54: =K53 -> 7e-05 | L54: ='Rate Design'!H38/100 -> 0.07011 | M54: ='Rate Design'!H28/100 -> 0.06858 | N54: =N53 ->  | O54: =O53 -> 0.00247 | P54: =L54+N54 ->  | Q54: =H54/D54 -> 0.006014375825 | R54: =H54/F54 -> 0.005938586327 | T54: 0 | U54: 0 | V54: =F54+H54+I54+J54-L54+K54 -> -2.842363258e-06 | W54: =H54*'Pres & Prop Rev'!H9 -> 32059.24644
W55: =SUM(W51:W54) -> 149291.1341 | X55: =W55-'Pres & Prop Rev'!H207 -> 0.00405999925
A58: (1) Includes all present rate adjustments: Sch. 59 (BPA Residential Exchange), Sch. 91 (DSM Adjustment), Sch. 92 (LIRAP Adjustment),
A59: Sch. 93 (Energy Recovery Mechanism) and Sch 94 (BPA Transmission Revenue)

Sheet LIRAP
B2: Avista Electric
B3: LIRAP Rate Calculation
B4: UE-140188
D5: Present | F5: Present | G5: Settlement | I5: Present | K5: Adjusted | M5: Sch 025 | O5: Adjusted | Q5: =S24 -> 0.05 | S5: Settlement | U5: Settlement
D6: Sch. 92 | F6: Billing | G6: Billing | I6: LIRAP | K6: LIRAP | M6: 3rd Block Revenue | O6: LIRAP | Q6: LIRAP | S6: LIRAP | U6: Sch 92 | W6: Rate | X6: Revenue | Z6: IEP
D7: kWh Rate | F7: Determinants | G7: Determinants * | I7: Revenue | K7: Revenue | M7: Impact | O7: Revenue | Q7: Increase | S7: Revenue | U7: kWh Rate | W7: Impact | X7: Impact | Z7: Present
A8: 1 | B8: Residential | C8: 1 | D8: 0.0007 | F8: ='Pres & Prop Rev'!D23 -> 2437508068 | G8: 2437508067 | I8: =D8*F8 -> 1706255.648 | K8: =G8*D8 -> 1706255.647 | M8: =(K8/($K$20))*$K$29 -> 83990.83969 | O8: =K8+M8 -> 1790246.487 | Q8: =S8-O8 -> 89512.32433 | S8: =O8*(1+$S$24) -> 1879758.811 | U8: =ROUND(S8/G8,5) -> 0.00077 | W8: =ROUND(U8-D8,5) -> 7e-05 | X8: =S8-I8 -> 173503.1633 | Y8: =Q8/O8 -> 0.05 | AB8: 1 | AC8: Residential | AD8: 1 | AE8: =(I8/$I$20)*$I$29 -> 80050.34256
A10: 2 | B10: General Service | C10: 11/12 | D10: 0.00101 | F10: ='Pres & Prop Rev'!E23 -> 586109432 | G10: 586109432 | I10: =D10*F10 -> 591970.5263 | K10: =G10*D10 -> 591970.5263 | M10: =(K10/($K$20))*$K$29 -> 29139.88983 | O10: =K10+M10 -> 621110.4162 | Q10: =S10-O10 -> 31055.12081 | S10: =O10*(1+$S$24)-0.4 -> 652165.537 | U10: =ROUND(S10/G10,5) -> 0.00111 | W10: =ROUND(U10-D10,5) -> 0.0001 | X10: =S10-I10 -> 60195.01064 | Y10: =Q10/O10 -> 0.04999935599 | AB10: 2 | AC10: General Service | AD10: 11/12 | AE10: =(I10/$I$20)*$I$29 -> 27772.76869
A12: 3 | B12: Large General Service | C12: 21/22 | D12: 0.00074 | F12: ='Pres & Prop Rev'!F23 -> 1436806481 | G12: 1436806481 | I12: =D12*F12 -> 1063236.796 | K12: =G12*D12 -> 1063236.796 | M12: =(K12/($K$20))*$K$29 -> 52338.08395 | O12: 1115574.88 | Q12: =S12-O12 -> 55778.74399 | S12: =O12*(1+$S$24) -> 1171353.624 | U12: 0.00082 | W12: =ROUND(U12-D12,5) -> 8e-05 | X12: =S12-I12 -> 108116.8279 | Y12: =Q12/O12 -> 0.05 | AB12: 3 | AC12: Large General Service | AD12: 21/22 | AE12: =(I12/$I$20)*$I$29 -> 49882.60104
A14: 4 | B14: Extra Large General Service | C14: 25 | D14: 0.00046 | F14: ='Pres & Prop Rev'!G23 -> 1076126636 | G14: =F14-F29 -> 668283785 | I14: =D14*F14 -> 495018.2526 | K14: =G14*D14 -> 307410.5411 | M14: =(K14/($K$20))*$K$29 -> 15132.35694 | O14: =K14+M14 -> 322542.898 | Q14: =S14-O14 -> 16127.1449 | S14: =O14*(1+$S$24) -> 338670.0429 | U14: =ROUND(S14/G14,5) -> 0.00051 | W14: =ROUND(U14-D14,5) -> 5e-05 | X14: =S14-I14 -> -156348.2096 | Y14: =Q14/O14 -> 0.05 | Z14: =F28*D14 -> 187607.7115 | AA14: =F28*U14 -> 207999.854 | AB14: 4 | AC14: Extra Large General Service | AD14: 25 | AE14: =(I14/$I$20)*$I$29 -> 23224.17555
A16: 5 | B16: Pumping Service | C16: 30/31/32 | D16: 0.00064 | F16: ='Pres & Prop Rev'!H23 -> 127927573 | G16: 127927574 | I16: =D16*F16 -> 81873.64672 | K16: =G16*D16 -> 81873.64736 | M16: =(K16/($K$20))*$K$29 -> 4030.249748 | O16: 85903.89711 | Q16: =S16-O16 -> 4295.194855 | S16: =O16*(1+$S$24) -> 90199.09196 | U16: 0.00071 | W16: =ROUND(U16-D16,5) -> 7e-05 | X16: =S16-I16 -> 8325.445243 | Y16: =Q16/O16 -> 0.05 | AB16: 5 | AC16: Pumping Service | AD16: 30/31/32 | AE16: =(I16/$I$20)*$I$29 -> 3841.16734
A18: 6 | B18: Street & Area Lights | C18: 41-48 | D18: 0.0088 | F18: ='Pres & Prop Rev'!I23 -> 25328044 | G18: 25328044 | I18: ='Pres & Prop Rev'!I152*D18 -> 60462.71194 | K18: ='Pres & Prop Rev'!I152*D18 -> 60462.71194 | M18: =(K18/($K$20))*$K$29 -> 2976.291363 | O18: =K18+M18 -> 63439.0033 | Q18: =S18-O18 -> 3171.950165 | S18: =O18*(1+$S$24) -> 66610.95347 | U18: =ROUND(S18/'Pres & Prop Rev'!I204,4) -> 0.0096 | W18: =ROUND(U18-D18,5) -> 0.0008 | X18: =S18-I18 -> 6148.241529 | Y18: =Q18/O18 -> 0.05 | AB18: 6 | AC18: Street & Area Lights | AD18: 41-48 | AE18: =(I18/$I$20)*$I$29 -> 2836.656283
A20: 7 | B20: Total | F20: =SUM(F8:F19) -> 5689806234 | G20: =SUM(G8:G19) -> 5281963383 | I20: =SUM(I8:I19) -> 3998817.581 | K20: =SUM(K8:K19) -> 3811209.87 | M20: =(K20/($K$20))*$K$29 -> 187607.7115 | O20: =SUM(O8:O19) -> 3998817.581 | Q20: =S20-O20 -> 199940.4791 | S20: =SUM(S8:S19) -> 4198758.06 | X20: =SUM(X8:X18) -> 199940.4791 | AB20: 7 | AC20: Total
A22: * The 3rd block billing determinants of Schedule 25 excluded per Settlement Agreement.
S24: =ROUND(0.025*2,3) -> 0.05
S26: =S20-O20 -> 199940.4791
B28: IEP | F28: ='Pres & Prop Rev'!G10 -> 407842851
D29: IEP 3rd Block | F29: =F28 -> 407842851 | I29: =F29*D14 -> 187607.7115 | K29: =I20-K20 -> 187607.7115
F34: IEP Blocks | U34: 001 | W34: =M8/'Pres & Prop Rev'!D48 -> 0.03367450113
B35: Test Year Loads | F35: 1st | I35: 6000000 | K35: =D14 -> 0.00046 | M35: =I35*K35 -> 2760 | U35: 011 | W35: =M10/'Pres & Prop Rev'!E48 -> 0.0788016102
F36: 2nd | I36: 66000000 | K36: =K35 -> 0.00046 | M36: =I36*K36 -> 30360 | U36: 021 | W36: =M12/'Pres & Prop Rev'!F48 -> 2.174050176
F37: 3rd | I37: 408634245 | K37: =K35 -> 0.00046 | M37: 187971.7527 | U37: 025 | W37: =M14/'Pres & Prop Rev'!G48 -> 59.8116875
U38: 031 | W38: =M16/'Pres & Prop Rev'!H48 -> 0.1367948458
F40: IEP Blocks
F41: 1st | I41: 6000000 | K41: =U14 -> 0.00051 | M41: =I41*K41 -> 3060
F42: 2nd | I42: 66000000 | K42: =K41 -> 0.00051 | M42: =I42*K42 -> 33660
F43: 3rd | I43: 408634245 | K43: =K41 -> 0.00051 | M43: 208403.465
M45: =M41+M42-M35-M36 -> 3600

Sheet ERM Offset
A1: AVISTA UTILITIES
A2: WASHINGTON ELECTRIC
A3: ERM REVENUE DECREASE BY SERVICE SCHEDULE
A4: (000s of Dollars)
I5: To be updated to reflect Nov. 1 Power Supply update & ERM offset.
D8: Present Base | F8: ERM | H8: Percentage | K8: Billing
D9: Revenue | F9: Offset | H9: Change | I9: kWh Rate | K9: Determinants
A10: 1 | B10: Residential | C10: 1 | D10: ='Pres & Prop Rev'!D152 -> 214476179.5 | F10: =D10*$D$28 -> -1310893.552 | H10: =F10/D10 -> -0.006112070604 | I10: =F10/K10 -> -0.0005378007026 | K10: ='Pres & Prop Rev'!D46 -> 2437508068
A12: 2 | B12: General Service | C12: 11/12 | D12: ='Pres & Prop Rev'!E152 -> 69492932.26 | F12: =D12*$D$28 -> -424745.7084 | H12: =F12/D12 -> -0.006112070604 | I12: =F12/K12 -> -0.0007246866971 | K12: ='Pres & Prop Rev'!E46 -> 586109432
A14: 3 | B14: Large General Service | C14: 21/22 | D14: ='Pres & Prop Rev'!F152 -> 127830953.2 | F14: -781311.8112 | H14: -0.006112070604 | I14: -0.0005437836072 | K14: ='Pres & Prop Rev'!F46 -> 1436806481 | V14: =(O14-N14)/H14 -> 0
A16: 4 | B16: Extra Large General Service | C16: 25 | D16: ='Pres & Prop Rev'!G152 -> 61636548.93 | F16: -376726.9388 | H16: -0.006112070604 | I16: -0.0003500767718 | K16: ='Pres & Prop Rev'!G46 -> 1076126636
A18: 5 | B18: Pumping Service | C18: 30/31/32 | D18: ='Pres & Prop Rev'!H152 -> 10524649.88 | F18: -64327.40313 | H18: -0.006112070604 | I18: -0.0005028423633 | K18: ='Pres & Prop Rev'!H46 -> 127927573
A20: 6 | B20: Street & Area Lights | C20: 41-48 | D20: ='Pres & Prop Rev'!I152 -> 6870762.72 | F20: -41994.58685 | H20: =F20/D20 -> -0.006112070604 | I20: =F20/K20 -> -0.001658027238 | K20: ='Pres & Prop Rev'!I46 -> 25328044
A22: 7 | B22: Total | D22: =SUM(D10:D20) -> 490832026.4 | F22: =SUM(F10:F21) -> -3000000 | H22: -0.006112070604 | K22: =SUM(K10:K21) -> 5689806234
D27: -3000000
D28: =D27/D22 -> -0.006112070604

Sheet Sch 98 REC Revenue
A1: AVISTA UTILITIES
A2: WASHINGTON ELECTRIC
A3: PROPOSED REC REVENUE DECREASE BY SERVICE SCHEDULE
A4: (000s of Dollars)
F8: Billing | H8: REC
D9: kWh Rate | F9: Determinants | H9: Revenue
A10: 1 | B10: Residential | C10: 1 | D10: -0.00104 | F10: ='Pres & Prop Rev'!D46 -> 2437508068 | H10: =D10*F10 -> -2535008.391
A12: 2 | B12: General Service | C12: 11/12 | D12: -0.00104 | F12: ='Pres & Prop Rev'!E46 -> 586109432 | H12: =D12*F12 -> -609553.8093
A14: 3 | B14: Large General Service | C14: 21/22 | D14: -0.00106 | F14: ='Pres & Prop Rev'!F46 -> 1436806481 | H14: -1523014.87
A16: 4 | B16: Extra Large General Service | C16: 25 | D16: -0.00102 | F16: ='Pres & Prop Rev'!G46 -> 1076126636 | H16: -1097649.169
A18: 5 | B18: Pumping Service | C18: 30/31/32 | D18: -0.00113 | F18: ='Pres & Prop Rev'!H46 -> 127927573 | H18: -144558.1575
A20: 6 | B20: Street & Area Lights | C20: 41-48 | D20: -0.00105 | F20: ='Pres & Prop Rev'!I46 -> 25328044 | H20: -26594.4462
A22: 7 | B22: Total | F22: =SUM(F10:F21) -> 5689806234 | H22: =SUM(H10:H21) -> -5936378.842

Sheet ROR
B1: AVISTA UTILITIES
B2: WASHINGTON ELECTRIC
B3: PRESENT & PROPOSED RATE OF RETURN BY RATE SCHEDULE
B4: 12 MONTHS ENDED JUNE 30, 2013
C7: Total | D7: Sch 1 | E7: Sch 11 | F7: Sch 21 | G7: Sch 25 | H7: Sch 31 | I7: Schs 41-48
B8: Total Rate Base | C8: =SUM(D8:I8) -> 1365444000 | D8: 665460004 | E8: 148788571 | F8: 332574904 | G8: 158469076 | H8: 32921768 | I8: 27229677 | J8: from COS
B10: Revenue From Retail Rates | C10: =SUM(D10:I10) -> 490832026.5 | D10: 214476179.5 | E10: 69492932.26 | F10: 127830953.2 | G10: 61636549 | H10: 10524649.88 | I10: 6870762.72 | J10: from COS
B11: Other Operating Revenues | C11: =SUM(D11:I11) -> 58007000 | D11: 26152216 | E11: 5656657 | F11: 14585841 | G11: 9881439 | H11: 1320137 | I11: 410710 | J11: from COS
B12: Total Revenues | C12: =IF(ROUND(C10+C11,0)<>ROUND(SUM(D12:I12),0),#VALUE!,SUM(D12:I12)) -> 548839026.5 | D12: =D10+D11 -> 240628395.5 | E12: 75149589.26 | F12: 142416794.2 | G12: 71517988 | H12: 11844786.88 | I12: 7281472.72
B14: Total Operating Exp b4 conv items & taxes | C14: =SUM(D14:I14) -> 392070000 | D14: =D17-D15-D16 -> 187468601 | E14: =E17-E15-E16 -> 40601068 | F14: 93078434 | G14: 57292183 | H14: 8931659 | I14: 4698055
B15: Revenue Related conversion items | C15: =SUM(D15:I15) -> 22249000 | D15: 9584918 | E15: 3056308 | F15: 5909337 | G15: 2880417 | H15: 500148 | I15: 317872 | J15: from COS
B16: Income Taxes | C16: =SUM(D16:I16) -> 30636000 | D16: 6314172 | E16: 8443066 | F16: 12036551 | G16: 2677451 | H16: 631094 | I16: 533666 | J16: from COS
B17: Total Expenses | C17: =IF(ROUND(SUM(C14:C16),0)<>ROUND(SUM(D17:I17),0),#VALUE!,SUM(D17:I17)) -> 444955000 | D17: 203367691 | E17: 52100442 | F17: 111024322 | G17: 62850051 | H17: 10062901 | I17: 5549593 | J17: from COS
D18: .
B19: Net Operating Income | C19: =IF(ROUND(C12-C17,0)<>ROUND(SUM(D19:I19),0),#VALUE!,ROUND(SUM(D19:I19),-3)) -> 103884000 | D19: =D12-D17 -> 37260704.46 | E19: 23049147.26 | F19: 31392472.18 | G19: 8667937 | H19: 1781885.878 | I19: 1731879.72
B20: Present Rate of Return | C20: =C19/C8 -> 0.07608074736 | D20: 0.0559924026 | E20: 0.1549120817 | F20: 0.09439218595 | G20: 0.05469797148 | H20: 0.05412485375 | I20: =I19/I8 -> 0.06360265384
B21: Present Return Ratio | C21: =C20/$C20 -> 1 | D21: 0.7359602073 | E21: 2.036153521 | F21: 1.240684263 | G21: 0.7189462956 | H21: 0.7114132764 | I21: 0.8359888151
B23: Interest Expense | C23: =SUM(D23:I23) -> 37686000 | D23: 18366575 | E23: 4106537 | F23: 9179004 | G23: 4373715 | H23: 908635 | I23: 751534 | J23: from COS
B25: Proposed Misc Revenue Increase | C25: 0
B26: Proposed Rate Revenue Increase | C26: 7000000 | D26: =C26/C10 -> 0.01426149807
B27: Proposed Rev Increase | C27: =C25+C26 -> 7000000
D28: change
B29: Proposed Rate Revenues | C29: =C10+C26 -> 497832026.5 | D29: =C29-C10 -> 7000000 | F29: Uncollectibles | G29: 0.004449
B30: incremental conversion expenses | C30: =ROUND(C27*G29,-3)+ROUND(C27*G30,-3)+ROUND(C27*G31,-3) -> 315000 | F30: Commiss Fees | G30: 0.002
B31: incremental Income Taxes | C31: =ROUND(C27*G32,-3) -> 2340000 | F31: Excise Tax | G31: 0.038562
B32: Proposed Return | C32: =C19+C27-C30-C31 -> 108229000 | D32: =C32-C19 -> 4345000 | F32: Federal Inc Tax | G32: 0.334246
B33: Proposed Return % | C33: =C32/C8 -> 0.07926286248
B35: Allocation of incremental Misc Rev | C35: =SUM(D35:I35) -> 0 | D35: 0 | E35: 0 | F35: 0 | G35: 0 | H35: 0 | I35: 0 | J35: from COS
B37: Target Relative Return | C37: =C38/C33 -> 1 | D37: =D39/D8/C33 -> 0.7098494276 | E37: 1.979884944 | F37: 1.281574124 | G37: 0.7766719997 | H37: 0.7845167124 | I37: 0.8578060917 | J37: Input | K37: =D26 -> 0.01426149807
B38: Target Return % | C38: =C39/C8 -> 0.07926286248 | D38: =D39/D8 -> 0.05626469756 | E38: 0.156931348 | F38: 0.1015812336 | G38: 0.06156124591 | H38: 0.06218304029 | I38: 0.06799216629
B39: Target Return (NOI b4 Interest) | C39: =C32 -> 108229000 | D39: =$C$32-SUM(E39:I39) -> 37441905.87 | E39: =E8*E37*$C$32/$C$8 -> 23349591.02 | F39: =F8*F37*$C$32/$C$8 -> 33783369.01 | G39: =G8*G37*$C$32/$C$8 -> 9755553.756 | H39: =H8*H37*$C$32/$C$8 -> 2047175.626 | I39: =I8*I37*$C$32/$C$8 -> 1851404.726 | J39: =ROUND(C39-SUM(D39:I39),0) -> 0
B40: Target Return after Interest Expense | C40: =C39-C23 -> 70543000 | D40: =D39-D23 -> 19075330.87 | E40: 19243054.02 | F40: 24604365.01 | G40: 5381838.756 | H40: 1138540.626 | I40: 1099870.726 | J40: 0
B41: Target Return b4 Income Taxes & Interest | C41: =C40+C16+C31+C23 -> 141205000 | D41: =D40+D23+D40/$C40*SUM($C$16,$C$31) -> 46358851.71 | E41: =E40+E23+E40/$C40*SUM($C$16,$C$31) -> 32344940.65 | F41: 45284914.74 | G41: 12271345.75 | H41: 2579397.33 | I41: 2365549.816 | J41: 0
B42: Target Return b4 Misc Rev | C42: =C41-C11-$C$25*C35 -> 83198000 | D42: =D41-D11-$C$25*D35 -> 20206635.71 | E42: 26688283.65 | F42: 30699073.74 | G42: 2389906.753 | H42: 1259260.33 | I42: 1954839.816 | J42: 0
B43: =B14 -> Total Operating Exp b4 conv items & taxes | C43: 392070000 | D43: =D14 -> 187468601 | E43: 40601068 | F43: 93078434 | G43: 57292183 | H43: 8931659 | I43: =I14 -> 4698055 | J43: 0
B44: Conversion Items | C44: =C15+C30 -> 22564000 | D44: =$C44*D46/$C46 -> 9859666.608 | E44: 3194654.231 | F44: 5876506.892 | G44: 2833489.042 | H44: 483827.868 | I44: 315855.3032 | J44: =ROUND(C44-SUM(D44:I44),0) -> 0
B45: Incremental Rate Revenue | C45: =C26 -> 7000000 | D45: =(D42-D10+D14+($C$44*D10)/$C$29)/(1-$C$44/$C$29) -> 3058723.331 | E45: =(E42-E10+E14+($C$44*E10)/$C$29)/(1-$C$44/$C$29) -> 991073.4534 | F45: 1823061.139 | G45: =(G42-G10+G14+($C$44*G10)/$C$29)/(1-$C$44/$C$29) -> 879029.6436 | H45: 150097.2942 | I45: =(I42-I10+I14+($C$44*I10)/$C$29)/(1-$C$44/$C$29) -> 97987.38254 | J45: =ROUND(C45-SUM(D45:I45),0) -> 28
B46: Target Rate Revenue | C46: =C42+C43+C44 -> 497832000 | D46: =D10+D45 -> 217534902.8 | E46: =E10+E45 -> 70484005.71 | F46: 129654014.3 | G46: 62515578.64 | H46: 10674747.17 | I46: 6968750.103 | J46: =ROUND(C46-SUM(D46:I46),0) -> 1
B47: Change in Rate Revenue | C47: =C46/C10-1 -> 0.01426144409 | D47: 0.01426136617 | E47: 0.0142615 | F47: 0.0142615 | G47: 0.0142615 | H47: 0.0142615 | I47: 0.0142615
B49: Incremental Rate Revenue - rounded | C49: =SUM(D49:I49) -> 7000000 | D49: =ROUND(D45,-3) -> 3059000 | E49: =ROUND(E45,-3) -> 991000 | F49: 1823000 | G49: 879000 | H49: 150000 | I49: 98000
B50: Target Rate Revenue - rounded | C50: =SUM(D50:I50) -> 497833000 | D50: =ROUND(D46,-3) -> 217535000 | E50: =ROUND(E46,-3) -> 70484000 | F50: 129654000 | G50: 62516000 | H50: 10675000 | I50: =ROUND(I46,-3) -> 6969000
B52: ERM Revenue decrease | C52: =SUM(D52:I52) -> 0 | D52: 0 | E52: 0 | F52: 0 | G52: 0 | H52: 0 | I52: 0
B53: Net Increase | C53: =SUM(D53:I53) -> 6999972.243 | D53: =D45+D52 -> 3058723.331 | E53: =E45+E52 -> 991073.4534 | F53: 1823061.139 | G53: 879029.6436 | H53: 150097.2942 | I53: 97987.38254
B54: Present Billed | C54: =SUM(D54:I54) -> 481541000 | D54: 204738000 | E54: 66923000 | F54: 129127000 | G54: 62716000 | H54: 10909000 | I54: 7128000
B55: Net Increase as % of billed | C55: =C53/C54 -> 0.01453660694 | D55: =D53/D54 -> 0.01493969527 | E55: =E53/E54 -> 0.01480916058 | F55: 0.01411835742 | G55: 0.01401603488 | H55: 0.0137590333 | I55: 0.01374682695
B57: Movement To Unity | D57: =(D37-D21)/(1-D21) -> -0.09888956315 | E57: =(E37-E21)/(1-E21) -> 0.05430525164 | F57: =(F37-F21)/(1-F21) -> -0.1698900511 | G57: 0.2053902979 | H57: 0.2533153122 | I57: 0.1330231025
B60: Uniform Present Return | C60: =C19 -> 103884000 | D60: =$C60*D$8/$C$8 -> 50628694.44 | E60: =$C60*E$8/$C$8 -> 11319945.68 | F60: 25302547.25 | G60: 12056445.74 | H60: 2504712.714 | I60: 2071654.177
B61: Present Income Taxes at Unity | C61: =C16 -> 30636000 | D61: 14930698.5 | E61: 3338318.277 | F61: 7461869.369 | G61: 3555516.456 | H61: 738654.4483 | I61: 610942.9494
B62: Operating Expenses (Excl. Rev Rel exp & inc tax) | C62: =SUM(D62:I62) -> 392070000 | D62: =D14 -> 187468601 | E62: =E14 -> 40601068 | F62: 93078434 | G62: 57292183 | H62: 8931659 | I62: 4698055
B63: Deduct Other Operating Revenues | C63: =SUM(D63:I63) -> -58007000 | D63: =-D11 -> -26152216 | E63: =-E11 -> -5656657 | F63: -14585841 | G63: -9881439 | H63: -1320137 | I63: -410710
B64: Revenue Related Expenses at Unity | C64: =C15 -> 22249000 | D64: =$C64*SUM(D60:D63)/SUM($C$60:$C$63) -> 10772390.77 | E64: =$C64*SUM(E60:E63)/SUM($C$60:$C$63) -> 2355206.901 | F64: 5282644.072 | G64: 2992409.435 | H64: 515405.8704 | I64: 330942.9543
B65: Total Uniform Cost at Present Return | C65: =SUM(C60:C64) -> 490832000 | D65: =SUM(D60:D64) -> 237648168.7 | E65: 51957881.86 | F65: 116539653.7 | G65: 66015115.63 | H65: 11370295.03 | I65: 7300885.08
B67: Uniform Proposed Return | C67: =C32 -> 108229000 | D67: =$C67*D$8/$C$8 -> 52746264.78 | E67: =$C67*E$8/$C$8 -> 11793408.04 | F67: =$C67*F$8/$C$8 -> 26360838.88 | G67: 12560712.58 | H67: 2609473.57 | I67: 2158302.144
B68: Proposed Income Taxes at Unity | C68: =C16+C31 -> 32976000 | D68: 16071116.13 | E68: 3593301.459 | F68: 8031812.388 | G68: 3827089.394 | H68: 795073.4132 | I68: 657607.217
B69: Operating Expenses (Excl. Rev Rel exp & inc tax) | C69: =SUM(D69:I69) -> 392070000 | D69: =D14 -> 187468601 | E69: =E14 -> 40601068 | F69: 93078434 | G69: 57292183 | H69: 8931659 | I69: 4698055
B70: Deduct Other Operating Revenues | C70: =SUM(D70:I70) -> -58007000 | D70: =-D11-$C$25*D35 -> -26152216 | E70: =-E11-$C$25*E35 -> -5656657 | F70: -14585841 | G70: -9881439 | H70: -1320137 | I70: -410710
B71: Proposed Revenue Related Expenses at Unity | C71: =C15+C30 -> 22564000 | D71: =$C71*SUM(D67:D70)/SUM($C$67:$C$70) -> 10925916.1 | E71: =$C71*SUM(E67:E70)/SUM($C$67:$C$70) -> 2389538.961 | F71: 5359381.763 | G71: 3028923.452 | H71: 523002.9805 | I71: 337236.7409
B72: Total Uniform Cost at Proposed Return | C72: =SUM(C67:C71) -> 497832000 | D72: =SUM(D67:D71) -> 241059682 | E72: 52720659.46 | F72: 118244626 | G72: 66827469.42 | H72: 11539071.96 | I72: 7440491.101
B74: Revenue Change to Achieve Unity (rounded) | C74: =SUM(D74:I74) -> 6999000 | D74: =ROUND(D72-D10,-3)-2000 -> 26582000 | E74: =ROUND(E72-E10,-3) -> -16772000 | F74: =ROUND(F72-F10,-3) -> -9586000 | G74: =ROUND(G72-G10,-3) -> 5191000 | H74: =ROUND(H72-H10,-3) -> 1014000 | I74: =ROUND(I72-I10,-3) -> 570000
B76: Revenue to Cost Ratio at Present Rates | C76: =C10/C65 -> 1.000000054 | D76: =D10/D65 -> 0.90249456 | E76: =E10/E65 -> 1.337485859 | F76: 1.096888047 | G76: 0.9336732719 | H76: 0.9256268063 | I76: 0.9410862717
B77: Revenue to Cost Ratio at Proposed Rates | C77: =C46/C72 -> 1 | D77: =D46/D72 -> 0.9024109755 | E77: =E46/E72 -> 1.336933309 | F77: 1.096489698 | G77: 0.9354772698 | H77: 0.9250958141 | I77: 0.9365981368
B78: Change in Revenue to Cost Ratio | C78: =C77-C76 -> -5.398681791e-08 | D78: =D77-D76 -> -8.358456149e-05 | E78: =E77-E76 -> -0.0005525501081 | F78: -0.0003983491251 | G78: =G77-G76 -> 0.001803997907 | H78: -0.0005309921976 | I78: =I77-I76 -> -0.004488134848
C79: =C78/(1-C76) -> 1 | D79: =D78/(1-D76) -> -0.0008572297249 | E79: =E78/(1-E76) -> 0.001637254104 | F79: 0.004111437229 | G79: 0.02719865668 | H79: -0.00713956429 | I79: -0.07618147718

Sheet Bill Determ
A1: AVISTA UTILITIES
A2: WASHINGTON ELECTRIC
A3: ACTUAL / PRO FORMA BILLING DETERMINANTS BY RATE SCHEDULE
A4: 12 MONTHS ENDED DECEMBER 31, 2015
A8: Schedule 1 | B8: 0-800 kwhs | C8: 801-1500 kwhs | D8: over 1500 kwhs | E8: Total kwhs | F8: Total Billings(2)
A9: kwhs per billing run(1) | B9: 1592525923 | C9: 524802802 | D9: 320179343 | E9: =B9+C9+D9 -> 2437508068 | F9: 2494197
A10: Total kwhs per Rev. Run(2) | E10: 2437508068
A11: Adjust. kwhs to Actual | E11: =E10-E9 -> 0
A14: Schedule 11,12 | B14: 0-3,650 kwhs | C14: over 3,650 kwhs | D14: Total kwhs | E14: kw over 20(1) | F14: Total Billings(2) | G14: kvar billed(1)
A15: kwhs per Revenue Run(1) | D15: =B15+C15 -> 0
A16: Shifted from Sch 21(4) | D16: =SUM(B16:C16) -> 0
A17: Total by Block | B17: 420252327 | C17: 165857105 | D17: =SUM(B17:C17) -> 586109432 | E17: 364641 | F17: 369788 | G17: 10168
A18: Total kwhs per Rev. Run(2) | D18: 586109432
A19: Schedule Shifting from 21 | D19: =D16 -> 0
A20: Total Adjusted kwhs | D20: =D18+D19 -> 586109432
A21: Adjust. kwhs to Actual | D21: =D20-D17 -> 0
A24: Schedule 21,22 | B24: 0-250,000 kwhs | C24: over 250,000 kwhs | D24: Total kwhs | E24: kw over 50(1) | F24: Total Billings(2) | G24: kvar billed(1)
A25: kwhs per Revenue Run(1)
A26: Special Contract Shifted to Sched 21
A27: Shifted to Sch 011(4)
A28: Total | B28: 1271405693 | C28: 165400788 | D28: =SUM(B28:C28) -> 1436806481 | E28: 2697553 | F28: 24074 | G28: 252772
A29: Total kwhs per Rev. Run(2) | D29: 1436806481
A30: Schedule Shifting to Sch. 21 | D30: =D26 -> 0
A31: Schedule Shifting to Sch. 11 | D31: =D27 -> 0
A32: Total adjusted kwhs | D32: =D29+D30+D31 -> 1436806481
A33: Adjust. kwhs to Actual | D33: =D32-D28 -> 0
A36: Schedule 25(3) | B36: 0-500,000 kwhs | C36: 500,001-6M kwhs | D36: > 6M kwhs | E36: Total kwhs | F36: kva over 3,000 | G36: Total Billings(2)
A37: Total | B37: 125425699 | C37: 542858086 | D37: 407842851 | E37: =SUM(B37:D37) -> 1076126636 | F37: 1168073 | G37: 253
A40: Schedule 30, 31, & 32 | B40: Block 1 kwhs | C40: Block 2 kwhs | D40: Block 3 kwhs | E40: Total kwhs | F40: Total Billings(2) | G40: kvar billed(1)
A41: kwhs per billing run (30,31& 32)(1) | B41: 39236822 | C41: 10497467 | D41: 78193284 | E41: =B41+C41+D41 -> 127927573 | F41: 29462 | G41: ='Block Data'!O99 -> 10291.63636
A42: Total Schs. 30,31&32 | D42: =D41 -> 78193284 | E42: =E41 -> 127927573
A43: Total kwhs per Rev. Run(2) | E43: 127927573
A44: Adjust kwhs to Actual | E44: =E43-E42 -> 0
E46: Total kwhs
A47: Street & Area Lights | E47: 25328044
A50: (1) From workpaper PDE-E-22/23
A51: (2) From workpaper PDE-E-19
A52: (3) From workpaper PDE-E-7/8
A53: (4) From workpaper PDE-E-30
A63: Revenue Runs from this sheet | B63: =E10+D18+D29+E37+E43 -> 5664478190
A65: actual Revenue Runs | B65: ='Rev Runs 12MEJUNE2013'!P68 -> 5560584607
A66: less:
A67: Sch 25 Adj | B67: ='Rev Runs 12MEJUNE2013'!P50-'Bill Determ'!E37 -> -15989156 | C67: rev. runs too high
A69: Sch shifting | B69: =D26 -> 0 | C69: not shown on this sheet
A70: Schs 41-48 St & Area Lt | B70: =SUM('Rev Runs 12MEJUNE2013'!P55:P62) -> 25646329 | C70: not shown on this sheet
B71: =B65-SUM(B67:B70) -> 5550927434
A72: Diff | B72: =B63-B71 -> 113550756
A74: from Present Rev tab | B74: ='Pres & Prop Rev'!C20-'Pres & Prop Rev'!C15 -> 5689806234
A75: this sheet + SAL | B75: =B63+B70+B69 -> 5690124519
A76: Diff | B76: =B74-B75 -> -318285
A79: Rev. Run customers | B79: ='Rev Runs 12MEJUNE2013'!P34*12 -> 2848306
A80: less:
A81: normalize Sch 25 | B81: =('Rev Runs 12MEJUNE2013'!P16*12)-G37 -> 5 | C81: rev. runs too high
A82: Sch Shifting | B82: =-F26 -> 0 | C82: not shown on this sheet
A83: Schs 41-48 St & Area Lt | B83: =SUM('Rev Runs 12MEJUNE2013'!P21:P28)*12 -> 4503 | C83: not shown on this sheet
B84: =B79-SUM(B80:B83) -> 2843798
A86: from Present Rev tab | B86: =SUM('Pres & Prop Rev'!D25:I25) -> 2917774
A87: Diff | B87: =B84-B86 -> -73976

Sheet Bill Impact
A3: Schedule 001 Bill Impact
A7: Schedule 001 Present | G7: Schedule 001 Proposed
B8: Basic Charge | C8: Block 1 | D8: Block 2 | E8: Total Bill | G8: Basic Charge | H8: Block 1 | I8: Block 2 | J8: Total Bill | L8: Bill Impact | M8: % Change
B9: ='Exh 3'!D12 -> 8 | C9: ='Exh 3'!F14 -> 0.07265 | D9: ='Exh 3'!F15 -> 0.08469 | G9: ='Exh 3'!P12 -> 8.5 | H9: ='Exh 3'!L14 -> 0.0743 | I9: ='Exh 3'!L15 -> 0.08644
A10: 100 | B10: =$B$9 -> 8 | C10: =A10*$C$9 -> 7.265 | E10: =SUM(B10:D10) -> 15.265 | G10: =$G$9 -> 8.5 | H10: =A10*$H$9 -> 7.43 | J10: =SUM(G10:I10) -> 15.93 | L10: =J10-E10 -> 0.665 | M10: =L10/E10 -> 0.04356370783
A11: 200 | B11: =$B$9 -> 8 | C11: =A11*$C$9 -> 14.53 | E11: =SUM(B11:D11) -> 22.53 | G11: =$G$9 -> 8.5 | H11: =A11*$H$9 -> 14.86 | J11: =SUM(G11:I11) -> 23.36 | L11: =J11-E11 -> 0.83 | M11: =L11/E11 -> 0.0368397692
A12: 300 | B12: 8 | C12: 21.795 | E12: 29.795 | G12: 8.5 | H12: 22.29 | J12: 30.79 | L12: 0.995 | M12: 0.03339486491
A13: 400 | B13: 8 | C13: 29.06 | E13: 37.06 | G13: 8.5 | H13: 29.72 | J13: 38.22 | L13: 1.16 | M13: 0.03130059363
A14: 500 | B14: 8 | C14: 36.325 | E14: 44.325 | G14: 8.5 | H14: 37.15 | J14: 45.65 | L14: 1.325 | M14: 0.029892837
A15: 600 | B15: =$B$9 -> 8 | C15: =A15*$C$9 -> 43.59 | E15: =SUM(B15:D15) -> 51.59 | G15: =$G$9 -> 8.5 | H15: =A15*$H$9 -> 44.58 | J15: =SUM(G15:I15) -> 53.08 | L15: 1.49 | M15: =L15/E15 -> 0.02888156619
A16: 700 | B16: 8 | C16: =A16*$C$9 -> 50.855 | E16: =SUM(B16:D16) -> 58.855 | G16: 8.5 | H16: =A16*$H$9 -> 52.01 | J16: =SUM(G16:I16) -> 60.51 | L16: 1.655 | M16: =L16/E16 -> 0.02811995582
A17: 800 | B17: 8 | C17: =A17*$C$9 -> 58.12 | E17: 66.12 | G17: 8.5 | H17: =A17*$H$9 -> 59.44 | J17: 67.94 | L17: 1.82 | M17: 0.02752571083
A18: 965 | B18: 8 | C18: =ROUND($C$17,2) -> 58.12 | D18: =ROUND((A18-$A$17)*$D$9,2) -> 13.97 | E18: 80.09 | G18: 8.5 | H18: =ROUND($H$17,2) -> 59.44 | I18: =ROUND((A18-$A$17)*$I$9,2) -> 14.26 | J18: =SUM(G18:I18) -> 82.2 | L18: 2.11 | M18: 0.02634536147
A19: 1000 | B19: 8 | C19: =ROUND($C$17,2) -> 58.12 | D19: =ROUND((A19-$A$17)*$D$9,2) -> 16.94 | E19: 83.06 | G19: 8.5 | H19: =ROUND($H$17,2) -> 59.44 | I19: =ROUND((A19-$A$17)*$I$9,2) -> 17.29 | J19: 85.23 | L19: 2.17 | M19: 0.02612569227
A20: 1100 | B20: 8 | C20: =$C$17 -> 58.12 | D20: =(A20-$A$17)*$D$9 -> 25.407 | E20: =SUM(B20:D20) -> 91.527 | G20: 8.5 | H20: =$H$17 -> 59.44 | I20: =(A20-$A$17)*$I$9 -> 25.932 | J20: =SUM(G20:I20) -> 93.872 | L20: 2.345 | M20: =L20/E20 -> 0.02562085505
A21: 1200 | B21: 8 | C21: 58.12 | D21: =(A21-$A$17)*$D$9 -> 33.876 | E21: 99.996 | G21: 8.5 | H21: 59.44 | I21: =(A21-$A$17)*$I$9 -> 34.576 | J21: 102.516 | L21: 2.52 | M21: 0.02520100804
A22: 1300 | B22: 8 | C22: 58.12 | D22: =(A22-$A$17)*$D$9 -> 42.345 | E22: =SUM(B22:D22) -> 108.465 | G22: 8.5 | H22: 59.44 | I22: =(A22-$A$17)*$I$9 -> 43.22 | J22: =SUM(G22:I22) -> 111.16 | L22: 2.695 | M22: =L22/E22 -> 0.02484672475
A23: 1400 | B23: 8 | C23: 58.12 | D23: =(A23-$A$17)*$D$9 -> 50.814 | E23: 116.934 | G23: 8.5 | H23: 59.44 | I23: 51.864 | J23: 119.804 | L23: 2.87 | M23: 0.02454375973
A24: 1500 | B24: 8 | C24: 58.12 | D24: 59.283 | E24: 125.403 | G24: 8.5 | H24: 59.44 | I24: 60.508 | J24: 128.448 | L24: 3.045 | M24: 0.02428171575

Sheet WA Sch 25 (hidden)
A1: Washington Schedule 25 Billing Determinants | Q1: 1st | R1: =Q2 -> 500000 | S1: =R2 -> 6000000
P2: 12-mo Ended | Q2: 500000 | R2: 6000000 | S2: 99999999 | U2: Present | V2: Proposed | W2: Annual
B3: KWHs | C3: Acct No. | D3: 2012-07-01 | E3: 2012-08-01 | F3: 2012-09-01 | G3: 2012-10-01 | H3: 2012-11-01 | I3: 2012-12-01 | J3: 2013-01-01 | K3: 2013-02-01 | L3: 2013-03-01 | M3: 2013-04-01 | N3: 2013-05-01 | O3: 2013-06-01 | P3: Total | Q3: kwhs/mo | R3: kwhs/mo | S3: kwhs/mo | U3: LIRAP | V3: LIRAP | W3: Bill Impact
A4: 1 | B4: BF Goodrich | C4: 770037736 | D4: 4920409 | E4: 5471306 | F4: 5089955 | G4: 4422298 | H4: 4694815 | I4: 5445493 | J4: 5033826 | K4: 4877725 | L4: 5530526 | M4: 5120850 | N4: 4452916 | O4: 3330474 | P4: =SUM(D4:O4) -> 58390593 | Q4: =Q$2*12-SUMPRODUCT(--($D4:$O4<=Q$2),Q$2-$D4:$O4) -> 6000000 | R4: =R$2*12-SUM($Q4:Q4)-SUMPRODUCT(--($D4:$O4<=R$2),R$2-$D4:$O4) -> 52390593 | S4: =S$2*12-SUM($Q4:R4)-SUMPRODUCT(--($D4:$O4<=S$2),S$2-$D4:$O4) -> 0 | U4: =(Q4+R4)*LIRAP!$D$14 -> 26859.67278 | V4: =(Q4+R4)*LIRAP!$U$14 -> 29779.20243 | W4: =V4-U4 -> 2919.52965
A5: 2 | B5: Boise Cascade Plywood | C5: 500017 | D5: 3325249 | E5: 3446923 | F5: 3236491 | G5: 3368492 | H5: 3063022 | I5: 2609788 | J5: 2963335 | K5: 3091540 | L5: 3348299 | M5: 3278856 | N5: 3200870 | O5: 3189022 | P5: 38121887 | Q5: =Q$2*12-SUMPRODUCT(--($D5:$O5<=Q$2),Q$2-$D5:$O5) -> 6000000 | R5: =R$2*12-SUM($Q5:Q5)-SUMPRODUCT(--($D5:$O5<=R$2),R$2-$D5:$O5) -> 32121887 | S5: =S$2*12-SUM($Q5:R5)-SUMPRODUCT(--($D5:$O5<=S$2),S$2-$D5:$O5) -> 0 | U5: =(Q5+R5)*LIRAP!$D$14 -> 17536.06802 | V5: =(Q5+R5)*LIRAP!$U$14 -> 19442.16237 | W5: =V5-U5 -> 1906.09435
A6: 3 | B6: Boise Cascade Sawmill | C6: 500018 | D6: 1245605 | E6: 1206076 | F6: 1212763 | G6: 1410623 | H6: 1428388 | I6: 1462269 | J6: 1571434 | K6: 1385908 | L6: 1351486 | M6: 1442672 | N6: 1338567 | O6: 1310046 | P6: 16365837 | Q6: 6000000 | R6: =R$2*12-SUM($Q6:Q6)-SUMPRODUCT(--($D6:$O6<=R$2),R$2-$D6:$O6) -> 10365837 | S6: =S$2*12-SUM($Q6:R6)-SUMPRODUCT(--($D6:$O6<=S$2),S$2-$D6:$O6) -> 0 | U6: =(Q6+R6)*LIRAP!$D$14 -> 7528.28502 | V6: =(Q6+R6)*LIRAP!$U$14 -> 8346.57687 | W6: 818.29185
A7: 4 | B7: City of Spokane Sewage Treatment Plt | C7: 1900002 | D7: 1349275 | E7: 1305515 | F7: 1318655 | G7: 1341383 | H7: 1351362 | I7: 1419006 | J7: 1455130 | K7: 1340094 | L7: 1352240 | M7: 1282447 | N7: 1333145 | O7: 1344481 | P7: 16192733 | Q7: 6000000 | R7: =R$2*12-SUM($Q7:Q7)-SUMPRODUCT(--($D7:$O7<=R$2),R$2-$D7:$O7) -> 10192733 | S7: =S$2*12-SUM($Q7:R7)-SUMPRODUCT(--($D7:$O7<=S$2),S$2-$D7:$O7) -> 0 | U7: =(Q7+R7)*LIRAP!$D$14 -> 7448.65718 | V7: =(Q7+R7)*LIRAP!$U$14 -> 8258.29383 | W7: 809.63665
A8: 5 | B8: Deaconess Medical Center | C8: 1900011 | D8: 1871797 | E8: 1846297 | F8: 1652204 | G8: 1708501 | H8: 1667005 | I8: 1724612 | J8: 1779078 | K8: 1558513 | L8: 1704854 | M8: 1661570 | N8: 1706762 | O8: 1676678 | P8: 20557871 | Q8: 6000000 | R8: =R$2*12-SUM($Q8:Q8)-SUMPRODUCT(--($D8:$O8<=R$2),R$2-$D8:$O8) -> 14557871 | S8: =S$2*12-SUM($Q8:R8)-SUMPRODUCT(--($D8:$O8<=S$2),S$2-$D8:$O8) -> 0 | U8: =(Q8+R8)*LIRAP!$D$14 -> 9456.62066 | V8: =(Q8+R8)*LIRAP!$U$14 -> 10484.51421 | W8: 1027.89355
A9: 6 | B9: Gonzaga University | C9: 622922 | D9: 2112986 | E9: 2096094 | F9: 2221114 | G9: 2299928 | H9: 2302779 | I9: 2257024 | J9: 2524035 | K9: 2279264 | L9: 2214254 | M9: 2169880 | N9: 1855787 | O9: 1667061 | P9: 26000206 | Q9: 6000000 | R9: =R$2*12-SUM($Q9:Q9)-SUMPRODUCT(--($D9:$O9<=R$2),R$2-$D9:$O9) -> 20000206 | S9: =S$2*12-SUM($Q9:R9)-SUMPRODUCT(--($D9:$O9<=S$2),S$2-$D9:$O9) -> 0 | U9: =(Q9+R9)*LIRAP!$D$14 -> 11960.09476 | V9: =(Q9+R9)*LIRAP!$U$14 -> 13260.10506 | W9: 1300.0103
A10: 7 | B10: Honeywell Electronics | C10: 2304636 | D10: 1330785 | E10: 1331285 | F10: 1160949 | G10: 1113904 | H10: 941444 | I10: 993294 | J10: 1143128 | K10: 1020478 | L10: 1114488 | M10: 1094131 | N10: 1134949 | O10: 1171446 | P10: 13550281 | Q10: 6000000 | R10: =R$2*12-SUM($Q10:Q10)-SUMPRODUCT(--($D10:$O10<=R$2),R$2-$D10:$O10) -> 7550281 | S10: =S$2*12-SUM($Q10:R10)-SUMPRODUCT(--($D10:$O10<=S$2),S$2-$D10:$O10) -> 0 | U10: =(Q10+R10)*LIRAP!$D$14 -> 6233.12926 | V10: =(Q10+R10)*LIRAP!$U$14 -> 6910.64331 | W10: 677.51405
A11: 8 | B11: Huntwood Industries | C11: 610074869 | D11: 1020480 | E11: 1060961 | F11: 904686 | G11: 1056652 | H11: 983049 | I11: 945158 | J11: 1088948 | K11: 979060 | L11: 1120757 | M11: 1192620 | N11: 1192460 | O11: 1114540 | P11: 12659371 | Q11: 6000000 | R11: =R$2*12-SUM($Q11:Q11)-SUMPRODUCT(--($D11:$O11<=R$2),R$2-$D11:$O11) -> 6659371 | S11: =S$2*12-SUM($Q11:R11)-SUMPRODUCT(--($D11:$O11<=S$2),S$2-$D11:$O11) -> 0 | U11: =(Q11+R11)*LIRAP!$D$14 -> 5823.31066 | V11: =(Q11+R11)*LIRAP!$U$14 -> 6456.27921 | W11: 632.96855
A12: 9 | B12: Inland Empire Paper | C12: 2500004 | D12: =AVERAGE($G$12:$O$12) -> 40052853.78 | E12: =AVERAGE($G$12:$O$12) -> 40052853.78 | F12: 40052853.78 | G12: 40253596 | H12: 39265150 | I12: 41024296 | J12: 41052588 | K12: 38060916 | L12: 41297528 | M12: 38366954 | N12: 41641788 | O12: 39512868 | P12: 480634245.3 | Q12: 6000000 | R12: =R$2*12-SUM($Q12:Q12)-SUMPRODUCT(--($D12:$O12<=R$2),R$2-$D12:$O12) -> 66000000 | S12: =S$2*12-SUM($Q12:R12)-SUMPRODUCT(--($D12:$O12<=S$2),S$2-$D12:$O12) -> 408634245.3 | U12: =(Q12+R12+S12)*LIRAP!$D$14 -> 221091.7529 | V12: =(Q12+R12)*LIRAP!$U$14 -> 36720 | W12: =V12-U12 -> -184371.7529
A13: 10 | B13: JR Simplot | C13: 290048778 | D13: 5365097 | E13: 5662877 | F13: 4790125 | G13: 5345689 | H13: 4084492 | I13: 4161309 | J13: 5209449 | K13: 4853734 | L13: 3677570 | M13: 3833416 | N13: 4333694 | O13: 5378755 | P13: 56696207 | Q13: 6000000 | R13: =R$2*12-SUM($Q13:Q13)-SUMPRODUCT(--($D13:$O13<=R$2),R$2-$D13:$O13) -> 50696207 | S13: =S$2*12-SUM($Q13:R13)-SUMPRODUCT(--($D13:$O13<=S$2),S$2-$D13:$O13) -> 0 | U13: =(Q13+R13)*LIRAP!$D$14 -> 26080.25522 | V13: =(Q13+R13)*LIRAP!$U$14 -> 28915.06557 | W13: 2834.81035
A14: 11 | B14: McCaine Foods Inc | C14: 2500003 | D14: 5179832 | E14: 5791783 | F14: 5605242 | G14: 5723642 | H14: 5553061 | I14: 4487661 | J14: 5543513 | K14: 5064522 | L14: 5803330 | M14: 5573562 | N14: 5707050 | O14: 5669266 | P14: 65702464 | Q14: 6000000 | R14: =R$2*12-SUM($Q14:Q14)-SUMPRODUCT(--($D14:$O14<=R$2),R$2-$D14:$O14) -> 59702464 | S14: =S$2*12-SUM($Q14:R14)-SUMPRODUCT(--($D14:$O14<=S$2),S$2-$D14:$O14) -> 0 | U14: =(Q14+R14)*LIRAP!$D$14 -> 30223.13344 | V14: =(Q14+R14)*LIRAP!$U$14 -> 33508.25664 | W14: 3285.1232
A15: 12 | B15: Sacred Heart Medical Center | C15: 500020 | D15: 4737463 | E15: 4601902 | F15: 3904977 | G15: 3507191 | H15: 3237719 | I15: 3370325 | J15: 3411857 | K15: 3017819 | L15: 3303430 | M15: 3278116 | N15: 3773589 | O15: 3888007 | P15: 44032395 | Q15: 6000000 | R15: =R$2*12-SUM($Q15:Q15)-SUMPRODUCT(--($D15:$O15<=R$2),R$2-$D15:$O15) -> 38032395 | S15: =S$2*12-SUM($Q15:R15)-SUMPRODUCT(--($D15:$O15<=S$2),S$2-$D15:$O15) -> 0 | U15: =(Q15+R15)*LIRAP!$D$14 -> 20254.9017 | V15: =(Q15+R15)*LIRAP!$U$14 -> 22456.52145 | W15: 2201.61975
A16: 13 | B16: Spokane County Courthouse | C16: 1900012 | D16: 1417366 | E16: 1349681 | F16: 1141757 | G16: 1078535 | H16: 957881 | I16: 988449 | J16: 1075456 | K16: 932614 | L16: 995415 | M16: 1037127 | N16: 1166901 | O16: 1198724 | P16: 13339906 | Q16: 6000000 | R16: =R$2*12-SUM($Q16:Q16)-SUMPRODUCT(--($D16:$O16<=R$2),R$2-$D16:$O16) -> 7339906 | S16: =S$2*12-SUM($Q16:R16)-SUMPRODUCT(--($D16:$O16<=S$2),S$2-$D16:$O16) -> 0 | U16: =(Q16+R16)*LIRAP!$D$14 -> 6136.35676 | V16: =(Q16+R16)*LIRAP!$U$14 -> 6803.35206 | W16: 666.9953
A17: 14 | B17: Spokane Steel Foundry | C17: 2400169 | D17: 1219413 | E17: 1163969 | F17: 1018843 | G17: 1189123 | H17: =728188+225158 -> 953346 | I17: 939408 | J17: 1166260 | K17: 1120552 | L17: 1168683 | M17: 1185477 | N17: 960245 | O17: 830943 | P17: 12916262 | Q17: 6000000 | R17: =R$2*12-SUM($Q17:Q17)-SUMPRODUCT(--($D17:$O17<=R$2),R$2-$D17:$O17) -> 6916262 | S17: =S$2*12-SUM($Q17:R17)-SUMPRODUCT(--($D17:$O17<=S$2),S$2-$D17:$O17) -> 0 | U17: =(Q17+R17)*LIRAP!$D$14 -> 5941.48052 | V17: =(Q17+R17)*LIRAP!$U$14 -> 6587.29362 | W17: 645.8131
A18: 15 | B18: Triumph Composite / Boeing | C18: 690067830 | D18: 1648227 | E18: 1655766 | F18: 1311778 | G18: 1403816 | H18: 1218231 | I18: 1110875 | J18: 1431129 | K18: 1255544 | L18: 1391275 | M18: 1410007 | N18: 1431868 | O18: 1452461 | P18: 16720977 | Q18: 6000000 | R18: =R$2*12-SUM($Q18:Q18)-SUMPRODUCT(--($D18:$O18<=R$2),R$2-$D18:$O18) -> 10720977 | S18: =S$2*12-SUM($Q18:R18)-SUMPRODUCT(--($D18:$O18<=S$2),S$2-$D18:$O18) -> 0 | U18: =(Q18+R18)*LIRAP!$D$14 -> 7691.64942 | V18: =(Q18+R18)*LIRAP!$U$14 -> 8527.69827 | W18: 836.04885
A19: 16 | B19: Vaagen Brothers Lumber | C19: 1300001 | D19: 1745318 | E19: 1829682 | F19: 1782452 | G19: 1972690 | H19: 1962442 | I19: 1999508 | J19: 2244127 | K19: 1988683 | L19: 1905394 | M19: 1564046 | N19: 1417287 | O19: 1709226 | P19: 22120855 | Q19: 6000000 | R19: =R$2*12-SUM($Q19:Q19)-SUMPRODUCT(--($D19:$O19<=R$2),R$2-$D19:$O19) -> 16120855 | S19: =S$2*12-SUM($Q19:R19)-SUMPRODUCT(--($D19:$O19<=S$2),S$2-$D19:$O19) -> 0 | U19: =(Q19+R19)*LIRAP!$D$14 -> 10175.5933 | V19: =(Q19+R19)*LIRAP!$U$14 -> 11281.63605 | W19: 1106.04275
A20: 17 | B20: WSU - MP-A South Campus Feeder | C20: 290081951 | D20: 2271438 | E20: 2262747 | F20: 2139010 | G20: 2409590 | H20: 2333313 | I20: 2444730 | J20: 2638255 | K20: 2332254 | L20: 2356670 | M20: 2288468 | N20: 2182393 | O20: 2064362 | P20: 27723230 | Q20: 6000000 | R20: =R$2*12-SUM($Q20:Q20)-SUMPRODUCT(--($D20:$O20<=R$2),R$2-$D20:$O20) -> 21723230 | S20: =S$2*12-SUM($Q20:R20)-SUMPRODUCT(--($D20:$O20<=S$2),S$2-$D20:$O20) -> 0 | U20: =(Q20+R20)*LIRAP!$D$14 -> 12752.6858 | V20: =(Q20+R20)*LIRAP!$U$14 -> 14138.8473 | W20: 1386.1615
A21: 18 | B21: WSU - MP-B East Campus EA | C21: 500033 | D21: 4620198 | E21: 4715859 | F21: 4124530 | G21: 3744719 | H21: 3554234 | I21: 3913433 | J21: 4231100 | K21: 3766162 | L21: 3719392 | M21: 3551882 | N21: 4130053 | O21: 4230878 | P21: 48302440 | Q21: 6000000 | R21: =R$2*12-SUM($Q21:Q21)-SUMPRODUCT(--($D21:$O21<=R$2),R$2-$D21:$O21) -> 42302440 | S21: =S$2*12-SUM($Q21:R21)-SUMPRODUCT(--($D21:$O21<=S$2),S$2-$D21:$O21) -> 0 | U21: =(Q21+R21)*LIRAP!$D$14 -> 22219.1224 | V21: =(Q21+R21)*LIRAP!$U$14 -> 24634.2444 | W21: 2415.122
A22: 19 | B22: WSU - MP-C East Campus EB | C22: 410031282 | D22: 2227751 | E22: 2515888 | F22: 2700747 | G22: 2629196 | H22: 2708047 | I22: 2835756 | J22: 2834223 | K22: 2519513 | L22: 2894430 | M22: 2702041 | N22: 2612648 | O22: 2522688 | P22: 31702928 | Q22: 6000000 | R22: =R$2*12-SUM($Q22:Q22)-SUMPRODUCT(--($D22:$O22<=R$2),R$2-$D22:$O22) -> 25702928 | S22: =S$2*12-SUM($Q22:R22)-SUMPRODUCT(--($D22:$O22<=S$2),S$2-$D22:$O22) -> 0 | U22: =(Q22+R22)*LIRAP!$D$14 -> 14583.34688 | V22: =(Q22+R22)*LIRAP!$U$14 -> 16168.49328 | W22: 1585.1464
A23: 20 | B23: WSU - MP -D Casp East (no PVD) | C23: 500032 | D23: 2293464 | E23: 2426472 | F23: 2344272 | G23: 2466848 | H23: 2227032 | I23: 2523904 | J23: 2785896 | K23: 2379520 | L23: 2476472 | M23: 2382824 | N23: 2243200 | O23: 2172704 | P23: 28722608 | Q23: 6000000 | R23: =R$2*12-SUM($Q23:Q23)-SUMPRODUCT(--($D23:$O23<=R$2),R$2-$D23:$O23) -> 22722608 | S23: =S$2*12-SUM($Q23:R23)-SUMPRODUCT(--($D23:$O23<=S$2),S$2-$D23:$O23) -> 0 | U23: =(Q23+R23)*LIRAP!$D$14 -> 13212.39968 | V23: =(Q23+R23)*LIRAP!$U$14 -> 14648.53008 | W23: 1436.1304
A24: 21 | B24: WSU - MP-E Casp West (no PVD) | C24: 500034 | D24: 3261144 | E24: 3431408 | F24: 2813376 | G24: 2436600 | H24: 2415920 | I24: 2251232 | J24: 2532256 | K24: 2213008 | L24: 2230728 | M24: 2253344 | N24: 1963672 | O24: 2192712 | P24: 29995400 | Q24: 6000000 | R24: =R$2*12-SUM($Q24:Q24)-SUMPRODUCT(--($D24:$O24<=R$2),R$2-$D24:$O24) -> 23995400 | S24: =S$2*12-SUM($Q24:R24)-SUMPRODUCT(--($D24:$O24<=S$2),S$2-$D24:$O24) -> 0 | U24: =(Q24+R24)*LIRAP!$D$14 -> 13797.884 | V24: =(Q24+R24)*LIRAP!$U$14 -> 15297.654 | W24: 1499.77
B25: Schedule 25 Total | D25: =SUM(D4:D24) -> 93216150.78 | E25: 95225344.78 | F25: 90526779.78 | G25: 90883016 | H25: 86902732 | I25: 88907530 | J25: 93715023 | K25: 86037423 | L25: 90957221 | M25: 86670290 | N25: 89779844 | O25: 87627342 | P25: =IF(ROUND(SUM(P4:P24),0)<>ROUND(SUM(D25:O25),0),#VALUE!,SUM(P4:P24)) -> 1080448696 | Q25: =SUM(Q4:Q24) -> 126000000 | R25: =SUM(R4:R24) -> 545814451 | S25: =SUM(S4:S24) -> 408634245.3 | U25: =SUM(U4:U24) -> 497006.4003 | V25: =SUM(V4:V24) -> 342625.37 | W25: =SUM(W4:W24) -> -154381.0303
S26: =SUM(Q25:S25) -> 1080448696
B27: Revenue Run Total | D27: 81226635 | E27: 88403539 | F27: 89901749 | G27: 86977636 | H27: 90883016 | I27: 86677574 | J27: 88907530 | K27: 93723602 | L27: 86028844 | M27: 90957221 | N27: 86670290 | O27: 89779844 | P27: =SUM(D27:O27) -> 1060137480 | V27: =V25-U25 -> -154381.0303
B28: Booked Unbilled Reversal | D28: -81531354 | E28: -87739172 | F28: -89901749 | G28: -87038621 | H28: -90860287 | I28: -86678014 | J28: -88803368 | K28: -93820991 | L28: -85942864 | M28: -90373972 | N28: -86422164 | O28: -89792204 | P28: =SUM(D28:O28) -> -1058904760
B29: Gross Booked Unbilled | D29: 87739172 | E29: 89901749 | F29: 87038621 | G29: 90860287 | H29: 86678014 | I29: 88803368 | J29: 93820991 | K29: 85942864 | L29: 90373972 | M29: 86422164 | N29: 89792204 | O29: 87183410 | P29: =SUM(D29:O29) -> 1064556816
B30: Gross Unbilled True-up | D30: 664367 | E30: 0 | F30: -60985 | G30: 22729 | H30: -440 | I30: 104162 | J30: -105968 | K30: 94559 | L30: 583249 | M30: 248126 | N30: -12360 | O30: 443932 | P30: 1981371
B31: Unbilled Reversal True-up | D31: 304719 | E31: -664367 | F31: 0 | G31: 60985 | H31: -22729 | I31: 440 | J31: -104162 | K31: 105968 | L31: -94559 | M31: -583249 | N31: -248126 | O31: 12360 | P31: -1232720
B32: Spokane Steel Foundry | H32: 225158 | P32: 225158
B33: IEP Adjustment | D33: =D12-35240242 -> 4812611.778 | E33: =E12-34729258 -> 5323595.778 | F33: =F12-36503710 -> 3549143.778 | K33: -8579 | L33: 8579 | P33: 13685351.33
B34: Adj Revenue Runs, Sch 25 | D34: =SUM(D27:D33) -> 93216150.78 | E34: 95225344.78 | F34: 90526779.78 | G34: 90883016 | H34: 86902732 | I34: 88907530 | J34: 93715023 | K34: =SUM(K27:K33) -> 86037423 | L34: =SUM(L27:L33) -> 90957221 | M34: =SUM(M27:M33) -> 86670290 | N34: 89779844 | O34: 87627342 | P34: =IF(ROUND(SUM(P27:P33),0)<>ROUND(SUM(D34:O34),0),#VALUE!,SUM(P27:P33)) -> 1080448696
D35: =D34-D25 -> 0 | E35: 0 | F35: 0 | G35: 0 | H35: 0 | I35: 0 | J35: 0 | K35: 0 | L35: 0 | M35: 0 | N35: 0 | O35: 0 | P35: 0
B38: KVA | D38: =D$3 -> 2012-07-01 | E38: =E$3 -> 2012-08-01 | F38: 2012-09-01 | G38: 2012-10-01 | H38: 2012-11-01 | I38: 2012-12-01 | J38: 2013-01-01 | K38: 2013-02-01 | L38: 2013-03-01 | M38: 2013-04-01 | N38: 2013-05-01 | O38: 2013-06-01 | P38: Total | Q38: Peak | R38: Month
A39: 1 | B39: BF Goodrich | C39: 770037736 | D39: 9152 | E39: 9863 | F39: 9547 | G39: 10244 | H39: 10381 | I39: 9919 | J39: 10296 | K39: 9917 | L39: 10518 | M39: 10002 | N39: 8957 | O39: 7450 | P39: =SUM(D39:O39) -> 116246 | Q39: =MAX(D39:O39) -> 10518 | R39: =INDEX($D$38:$O$38,MATCH(Q39,$D39:$O39,0)) -> 2013-03-01
A40: 2 | B40: Boise Cascade Plywood | C40: 500017 | D40: 5234 | E40: 5242 | F40: 5347 | G40: 5248 | H40: 5258 | I40: 4973 | J40: 5317 | K40: 5257 | L40: 5267 | M40: 5287 | N40: 5202 | O40: 5303 | P40: 62935 | Q40: =MAX(D40:O40) -> 5347 | R40: =INDEX($D$38:$O$38,MATCH(Q40,$D40:$O40,0)) -> 2012-09-01
A41: 3 | B41: Boise Cascade Sawmill | C41: 500018 | D41: 2668 | E41: 2674 | F41: 2828 | G41: 3082 | H41: 3168 | I41: 3187 | J41: 3181 | K41: 3141 | L41: 3093 | M41: 3143 | N41: 3035 | O41: 2909 | P41: 36109 | Q41: 3187 | R41: 2012-12-01
A42: 4 | B42: City of Spokane Sewage Treatment Plt | C42: 1900002 | D42: 2620 | E42: 2553 | F42: 2537 | G42: 2722 | H42: 2754 | I42: 2805 | J42: 2608 | K42: 2811 | L42: 3319 | M42: 2723 | N42: 2763 | O42: 2913 | P42: 33128 | Q42: 3319 | R42: 2013-03-01
A43: 5 | B43: Deaconess Medical Center | C43: 1900011 | D43: 3538 | E43: 3573 | F43: 3336 | G43: 2763 | H43: 2799 | I43: 2981 | J43: 3028 | K43: 2910 | L43: 2853 | M43: 2802 | N43: 2913 | O43: 3506 | P43: 37002 | Q43: 3573 | R43: 2012-08-01
A44: 6 | B44: Gonzaga University | C44: 622922 | D44: 5258 | E44: 5238 | F44: 5270 | G44: 4733 | H44: 4886 | I44: 4700 | J44: 5026 | K44: 4677 | L44: 4368 | M44: 4549 | N44: 5745 | O44: 4556 | P44: 59006 | Q44: 5745 | R44: 2013-05-01
A45: 7 | B45: Honeywell Electronics | C45: 2304636 | D45: 3433 | E45: 3545 | F45: 3085 | G45: 2975 | H45: 2656 | I45: 2757 | J45: 3013 | K45: 2872 | L45: 2875 | M45: 2722 | N45: 3010 | O45: 3040 | P45: 35983 | Q45: 3545 | R45: 2012-08-01
A46: 8 | B46: Huntwood Industries | C46: 610074869 | D46: 4327 | E46: 4182 | F46: 4078 | G46: 4137 | H46: 4082 | I46: 4052 | J46: 4088 | K46: 4063 | L46: 4053 | M46: 4292 | N46: 4310 | O46: 4206 | P46: 49870 | Q46: 4327 | R46: 2012-07-01
A47: 9 | B47: Inland Empire Paper | C47: 2500004 | D47: =AVERAGE($G$47:$O$47) -> 61339.33333 | E47: =AVERAGE($G$47:$O$47) -> 61339.33333 | F47: 61339.33333 | G47: 59660 | H47: 61138 | I47: 60356 | J47: 61910 | K47: 62007 | L47: 61616 | M47: 62993 | N47: 61451 | O47: 60923 | P47: 736072 | Q47: 62993 | R47: 2013-04-01
A48: 10 | B48: JR Simplot | C48: 290048778 | D48: 8613 | E48: 8684 | F48: 8372 | G48: 8375 | H48: 8241 | I48: 8149 | J48: 8184 | K48: 8049 | L48: 8247 | M48: 8344 | N48: 8693 | O48: 8654 | P48: 100605 | Q48: 8693 | R48: 2013-05-01
A49: 11 | B49: McCaine Foods Inc | C49: 2500003 | D49: 9578 | E49: 9518 | F49: 9247 | G49: 9021 | H49: 9008 | I49: 8928 | J49: 8821 | K49: 9081 | L49: 9170 | M49: 9250 | N49: 9638 | O49: 9558 | P49: 110818 | Q49: 9638 | R49: 2013-05-01
A50: 12 | B50: Sacred Heart Medical Center | C50: 500020 | D50: 8827 | E50: 8744 | F50: 7829 | G50: 7297 | H50: 6310 | I50: 5604 | J50: 5625 | K50: 5478 | L50: 5981 | M50: 6769 | N50: 8047 | O50: 7804 | P50: 84315 | Q50: 8827 | R50: 2012-07-01
A51: 13 | B51: Spokane County Courthouse | C51: 1900012 | D51: 3278 | E51: 3250 | F51: 2850 | G51: 2897 | H51: 2109 | I51: 2082 | J51: 2195 | K51: 2126 | L51: 2078 | M51: 2620 | N51: 2920 | O51: 2944 | P51: 31349 | Q51: 3278 | R51: 2012-07-01
A52: 14 | B52: Spokane Steel Foundry | C52: 2400169 | D52: 5044 | E52: 4980 | F52: 4949 | G52: 5047 | H52: 4986 | I52: 4990 | J52: 5727 | K52: 5433 | L52: 5132 | M52: 5136 | N52: 4955 | O52: 5005 | P52: 61384 | Q52: 5727 | R52: 2013-01-01
A53: 15 | B53: Triumph Composite / Boeing | C53: 690067830 | D53: 3830 | E53: 3874 | F53: 3496 | G53: 3204 | H53: 2872 | I53: 2975 | J53: 3047 | K53: 2953 | L53: 2976 | M53: 3052 | N53: 3529 | O53: 3834 | P53: 39642 | Q53: 3874 | R53: 2012-08-01
A54: 16 | B54: Vaagen Brothers Lumber | C54: 1300001 | D54: 4182 | E54: 4267 | F54: 4203 | G54: 4368 | H54: 4494 | I54: 4633 | J54: 4640 | K54: 4736 | L54: 4526 | M54: 4012 | N54: 4139 | O54: 4197 | P54: 52397 | Q54: 4736 | R54: 2013-02-01
A55: 17 | B55: WSU - MP-A South Campus Feeder | C55: 290081951 | D55: 4406 | E55: 4418 | F55: 4704 | G55: 4613 | H55: 5132 | I55: 5000 | J55: 5135 | K55: 5131 | L55: 4946 | M55: 4563 | N55: 3908 | O55: 3994 | P55: 55950 | Q55: 5135 | R55: 2013-01-01
A56: 18 | B56: WSU - MP-B East Campus EA | C56: 500033 | D56: 11045 | E56: 10735 | F56: 9736 | G56: 7987 | H56: 7550 | I56: 7765 | J56: 8624 | K56: 8294 | L56: 7698 | M56: 7712 | N56: 10039 | O56: 10134 | P56: 107319 | Q56: 11045 | R56: 2012-07-01
A57: 19 | B57: WSU - MP-C East Campus EB | C57: 410031282 | D57: 4322 | E57: 4463 | F57: 4751 | G57: 5099 | H57: 5373 | I57: 5229 | J57: 5372 | K57: 5300 | L57: 5465 | M57: 4949 | N57: 4536 | O57: 4488 | P57: 59347 | Q57: 5465 | R57: 2013-03-01
A58: 20 | B58: WSU - MP -D Casp East (no PVD) | C58: 500032 | D58: 4644 | E58: 4650 | F58: 4784 | G58: 4734 | H58: 5013 | I58: 4882 | J58: 5191 | K58: 4974 | L58: 4828 | M58: 4554 | N58: 4322 | O58: 4273 | P58: 56849 | Q58: 5191 | R58: 2013-01-01
A59: 21 | B59: WSU - MP-E Casp West (no PVD) | C59: 500034 | D59: 7169 | E59: 7523 | F59: 6393 | G59: 5621 | H59: 4932 | I59: 4766 | J59: 4966 | K59: 4781 | L59: 4629 | M59: 4492 | N59: 4858 | O59: 6141 | P59: 66271 | Q59: 7523 | R59: 2012-08-01
B60: Schedule 25 Total | D60: =SUM(D39:D59) -> 172507.3333 | E60: 173315.3333 | F60: 168681.3333 | G60: 163827 | H60: 163142 | I60: 160733 | J60: 165994 | K60: 163991 | L60: 163638 | M60: 163966 | N60: 166970 | O60: 165832 | P60: =IF(ROUND(SUM(P39:P59),0)<>ROUND(SUM(D60:O60),0),#VALUE!,SUM(P39:P59)) -> 1992597
P62: =P$2 -> 12-mo Ended
B63: KVA in excess of 3,000 | D63: =D$3 -> 2012-07-01 | E63: =E$3 -> 2012-08-01 | F63: 2012-09-01 | G63: 2012-10-01 | H63: 2012-11-01 | I63: 2012-12-01 | J63: 2013-01-01 | K63: 2013-02-01 | L63: 2013-03-01 | M63: 2013-04-01 | N63: 2013-05-01 | O63: 2013-06-01 | P63: Total
A64: 1 | B64: =B4 -> BF Goodrich | C64: 770037736 | D64: =IF(D39>3000,D39-3000,0) -> 6152 | E64: 6863 | F64: 6547 | G64: =MAX(0,G39-3000) -> 7244 | H64: =MAX(0,H39-3000) -> 7381 | I64: 6919 | J64: 7296 | K64: 6917 | L64: 7518 | M64: 7002 | N64: 5957 | O64: 4450 | P64: =SUM(D64:O64) -> 80246
A65: 2 | B65: Boise Cascade Plywood | C65: 500017 | D65: 2234 | E65: 2242 | F65: 2347 | G65: 2248 | H65: =MAX(0,H40-3000) -> 2258 | I65: 1973 | J65: 2317 | K65: 2257 | L65: 2267 | M65: 2287 | N65: 2202 | O65: 2303 | P65: 26935
A66: 3 | B66: Boise Cascade Sawmill | C66: 500018 | D66: 0 | E66: 0 | F66: 0 | G66: 82 | H66: 168 | I66: 187 | J66: 181 | K66: 141 | L66: 93 | M66: 143 | N66: 35 | O66: 0 | P66: 1030
A67: 4 | B67: City of Spokane Sewage Treatment Plt | C67: 1900002 | D67: 0 | E67: 0 | F67: 0 | G67: 0 | H67: 0 | I67: 0 | J67: 0 | K67: 0 | L67: 319 | M67: 0 | N67: 0 | O67: 0 | P67: 319
A68: 5 | B68: Deaconess Medical Center | C68: 1900011 | D68: 538 | E68: 573 | F68: 336 | G68: 0 | H68: 0 | I68: 0 | J68: 28 | K68: 0 | L68: 0 | M68: 0 | N68: 0 | O68: 506 | P68: 1981
A69: 6 | B69: Gonzaga University | C69: 622922 | D69: 2258 | E69: 2238 | F69: 2270 | G69: 1733 | H69: 1886 | I69: 1700 | J69: 2026 | K69: 1677 | L69: 1368 | M69: 1549 | N69: 2745 | O69: 1556 | P69: 23006
A70: 7 | B70: Honeywell Electronics | C70: 2304636 | D70: 433 | E70: 545 | F70: 85 | G70: 0 | H70: 0 | I70: 0 | J70: 13 | K70: 0 | L70: 0 | M70: 0 | N70: 10 | O70: 40 | P70: 1126
A71: 8 | B71: Huntwood Industries | C71: 610074869 | D71: 1327 | E71: 1182 | F71: 1078 | G71: 1137 | H71: 1082 | I71: 1052 | J71: 1088 | K71: 1063 | L71: 1053 | M71: 1292 | N71: 1310 | O71: 1206 | P71: 13870
A72: 9 | B72: =B12 -> Inland Empire Paper | C72: 2500004 | D72: =MAX(0,D47-3000) -> 58339.33333 | E72: 58339.33333 | F72: 58339.33333 | G72: 56660 | H72: 58138 | I72: 57356 | J72: 58910 | K72: 59007 | L72: 58616 | M72: 59993 | N72: 58451 | O72: 57923 | P72: 700072
A73: 10 | B73: JR Simplot | C73: 290048778 | D73: 5613 | E73: 5684 | F73: 5372 | G73: 5375 | H73: 5241 | I73: 5149 | J73: 5184 | K73: 5049 | L73: 5247 | M73: 5344 | N73: 5693 | O73: 5654 | P73: 64605
A74: 11 | B74: McCaine Foods Inc | C74: 2500003 | D74: 6578 | E74: 6518 | F74: 6247 | G74: 6021 | H74: 6008 | I74: 5928 | J74: 5821 | K74: 6081 | L74: 6170 | M74: 6250 | N74: 6638 | O74: 6558 | P74: 74818
A75: 12 | B75: Sacred Heart Medical Center | C75: 500020 | D75: 5827 | E75: 5744 | F75: 4829 | G75: 4297 | H75: =MAX(0,H50-3000) -> 3310 | I75: 2604 | J75: 2625 | K75: 2478 | L75: 2981 | M75: 3769 | N75: 5047 | O75: 4804 | P75: 48315
A76: 13 | B76: Spokane County Courthouse | C76: 1900012 | D76: 278 | E76: 250 | F76: 0 | G76: 0 | H76: 0 | I76: 0 | J76: 0 | K76: 0 | L76: 0 | M76: 0 | N76: 0 | O76: 0 | P76: 528
A77: 14 | B77: Spokane Steel Foundry | C77: 2400169 | D77: 2044 | E77: 1980 | F77: 1949 | G77: 2047 | H77: 1986 | I77: 1990 | J77: 2727 | K77: 2433 | L77: 2132 | M77: 2136 | N77: 1955 | O77: 2005 | P77: 25384
A78: 15 | B78: Triumph Composite / Boeing | C78: 690067830 | D78: 830 | E78: 874 | F78: 496 | G78: 204 | H78: 0 | I78: 0 | J78: 47 | K78: 0 | L78: 0 | M78: 52 | N78: 529 | O78: 834 | P78: 3866
A79: 16 | B79: Vaagen Brothers Lumber | C79: 1300001 | D79: 1182 | E79: 1267 | F79: 1203 | G79: 1368 | H79: 1494 | I79: 1633 | J79: 1640 | K79: 1736 | L79: 1526 | M79: 1012 | N79: 1139 | O79: 1197 | P79: 16397
A80: 17 | B80: WSU - MP-A South Campus Feeder | C80: 290081951 | D80: 1406 | E80: 1418 | F80: 1704 | G80: 1613 | H80: 2132 | I80: 2000 | J80: 2135 | K80: 2131 | L80: 1946 | M80: 1563 | N80: 908 | O80: 994 | P80: 19950
A81: 18 | B81: WSU - MP-B East Campus EA | C81: 500033 | D81: 8045 | E81: 7735 | F81: 6736 | G81: 4987 | H81: 4550 | I81: 4765 | J81: 5624 | K81: 5294 | L81: 4698 | M81: 4712 | N81: 7039 | O81: 7134 | P81: 71319
A82: 19 | B82: WSU - MP-C East Campus EB | C82: 410031282 | D82: 1322 | E82: 1463 | F82: 1751 | G82: 2099 | H82: 2373 | I82: 2229 | J82: 2372 | K82: 2300 | L82: 2465 | M82: 1949 | N82: 1536 | O82: 1488 | P82: 23347
A83: 20 | B83: WSU - MP -D Casp East (no PVD) | C83: 500032 | D83: 1644 | E83: 1650 | F83: 1784 | G83: 1734 | H83: 2013 | I83: 1882 | J83: 2191 | K83: 1974 | L83: 1828 | M83: 1554 | N83: 1322 | O83: 1273 | P83: 20849
A84: 21 | B84: WSU - MP-E Casp West (no PVD) | C84: 500034 | D84: 4169 | E84: 4523 | F84: 3393 | G84: 2621 | H84: 1932 | I84: 1766 | J84: 1966 | K84: 1781 | L84: 1629 | M84: 1492 | N84: 1858 | O84: 3141 | P84: 30271
B85: Schedule 25 Total | D85: =SUM(D64:D84) -> 110219.3333 | E85: 111088.3333 | F85: 106466.3333 | G85: 101470 | H85: 101952 | I85: 99133 | J85: 104191 | K85: 102319 | L85: 101856 | M85: 102099 | N85: 104374 | O85: 103066 | P85: =IF(ROUND(SUM(P64:P84),0)<>ROUND(SUM(D85:O85),0),#VALUE!,SUM(P64:P84)) -> 1248234
P87: =P$2 -> 12-mo Ended
B88: KW | D88: =D$3 -> 2012-07-01 | E88: =E$3 -> 2012-08-01 | F88: 2012-09-01 | G88: 2012-10-01 | H88: 2012-11-01 | I88: 2012-12-01 | J88: 2013-01-01 | K88: 2013-02-01 | L88: 2013-03-01 | M88: 2013-04-01 | N88: 2013-05-01 | O88: 2013-06-01 | P88: Total
A89: 1 | B89: =B4 -> BF Goodrich | C89: 770037736 | D89: 8719 | E89: 9383 | F89: 9080 | G89: 9769 | H89: 9828 | I89: 9374 | J89: 9761 | K89: 9358 | L89: 9920 | M89: 9576 | N89: 8518 | O89: 7014 | P89: =SUM(D89:O89) -> 110300
A90: 2 | B90: Boise Cascade Plywood | C90: 500017 | D90: 5233 | E90: 5242 | F90: 5309 | G90: 5233 | H90: 5258 | I90: 4973 | J90: 5317 | K90: 5216 | L90: 5225 | M90: 5242 | N90: 5166 | O90: 5300 | P90: 62714
A91: 3 | B91: Boise Cascade Sawmill | C91: 500018 | D91: 2444 | E91: 2470 | F91: 2635 | G91: 2862 | H91: 2946 | I91: 2962 | J91: 2974 | K91: 2929 | L91: 2881 | M91: 2926 | N91: 2828 | O91: 2682 | P91: 33539
A92: 4 | B92: City of Spokane Sewage Treatment Plt | C92: 1900002 | D92: 2024 | E92: 1999 | F92: 2024 | G92: 2184 | H92: 2260 | I92: 2268 | J92: 2163 | K92: 2293 | L92: 2827 | M92: 2146 | N92: 2255 | O92: 2318 | P92: 26761
A93: 5 | B93: Deaconess Medical Center | C93: 1900011 | D93: 3284 | E93: 3322 | F93: 3104 | G93: 2629 | H93: 2692 | I93: 2881 | J93: 2919 | K93: 2776 | L93: 2709 | M93: 2654 | N93: 2747 | O93: 3255 | P93: 34972
A94: 6 | B94: Gonzaga University | C94: 622922 | D94: 4760 | E94: 4766 | F94: 4822 | G94: 4357 | H94: 4721 | I94: 4547 | J94: 4850 | K94: 4491 | L94: 4200 | M94: 4172 | N94: 5242 | O94: 4060 | P94: 54988
A95: 7 | B95: Honeywell Electronics | C95: 2304636 | D95: 2828 | E95: 2878 | F95: 2456 | G95: 2369 | H95: 2181 | I95: 2246 | J95: 2503 | K95: 2419 | L95: 2335 | M95: 2201 | N95: 2453 | O95: 2433 | P95: 29302
A96: 8 | B96: Huntwood Industries | C96: 610074869 | D96: 3654 | E96: 3503 | F96: 3427 | G96: 3503 | H96: 3427 | I96: 3419 | J96: 3461 | K96: 3410 | L96: 3394 | M96: 3595 | N96: 3595 | O96: 3536 | P96: 41924
A97: 9 | B97: =B12 -> Inland Empire Paper | C97: 2500004 | D97: =AVERAGE($G$97:$O$97) -> 61120 | E97: =AVERAGE($G$97:$O$97) -> 61120 | F97: 61120 | G97: 59448 | H97: 60916 | I97: 60152 | J97: 61664 | K97: 61788 | L97: 61388 | M97: 62788 | N97: 61236 | O97: 60700 | P97: 733440
A98: 10 | B98: JR Simplot | C98: 290048778 | D98: 8324 | E98: 8392 | F98: 8106 | G98: 8114 | H98: 8005 | I98: 7913 | J98: 7930 | K98: 7812 | L98: 7997 | M98: 8064 | N98: 8383 | O98: 8358 | P98: 97398
A99: 11 | B99: McCaine Foods Inc | C99: 2500003 | D99: 9296 | E99: 9251 | F99: 8960 | G99: 8770 | H99: 8770 | I99: 8725 | J99: 8579 | K99: 8814 | L99: 8781 | M99: 8837 | N99: 9229 | O99: 9195 | P99: 107207
A100: 12 | B100: Sacred Heart Medical Center | C100: 500020 | D100: 8442 | E100: 8366 | F100: 7543 | G100: 7056 | H100: 6187 | I100: 5561 | J100: 5578 | K100: 5439 | L100: 5880 | M100: 6594 | N100: 7736 | O100: 7522 | P100: 81904
A101: 13 | B101: Spokane County Courthouse | C101: 1900012 | D101: 2911 | E101: 2890 | F101: 2524 | G101: 2608 | H101: 1898 | I101: 1890 | J101: 1999 | K101: 1932 | L101: 1877 | M101: 2339 | N101: 2570 | O101: 2579 | P101: 28017
A102: 14 | B102: Spokane Steel Foundry | C102: 2400169 | D102: 4474 | E102: 4465 | F102: 4375 | G102: 4603 | H102: 4385 | I102: 4520 | J102: 5125 | K102: 4970 | L102: 4716 | M102: 4729 | N102: 4465 | O102: 4414 | P102: 55241
A103: 15 | B103: Triumph Composite / Boeing | C103: 690067830 | D103: 3368 | E103: 3419 | F103: 3066 | G103: 2797 | H103: 2520 | I103: 2646 | J103: 2722 | K103: 2638 | L103: 2638 | M103: 2688 | N103: 3066 | O103: 3368 | P103: 34936
A104: 16 | B104: Vaagen Brothers Lumber | C104: 1300001 | D104: 3730 | E104: 3819 | F104: 3774 | G104: 3920 | H104: 4066 | I104: 4166 | J104: 4211 | K104: 4301 | L104: 4122 | M104: 3595 | N104: 3752 | O104: 3752 | P104: 47208
A105: 17 | B105: WSU - MP-A South Campus Feeder | C105: 290081951 | D105: 3864 | E105: 3931 | F105: 4178 | G105: 4099 | H105: 4670 | I105: 4514 | J105: 4626 | K105: 4648 | L105: 4491 | M105: 4066 | N105: 3450 | O105: 3830 | P105: 50367
A106: 18 | B106: WSU - MP-B East Campus EA | C106: 500033 | D106: 10176 | E106: 9872 | F106: 8898 | G106: 7227 | H106: 7005 | I106: 7270 | J106: 8078 | K106: 7726 | L106: 7128 | M106: 7160 | N106: 9616 | O106: 9704 | P106: 99860
A107: 19 | B107: WSU - MP-C East Campus EB | C107: 410031282 | D107: 3923 | E107: 4024 | F107: 4318 | G107: 4687 | H107: 4956 | I107: 4754 | J107: 4922 | K107: 4880 | L107: 5116 | M107: 4838 | N107: 4418 | O107: 4427 | P107: 55263
A108: 20 | B108: WSU - MP -D Casp East (no PVD) | C108: 500032 | D108: 4160 | E108: 4256 | F108: 4368 | G108: 4320 | H108: 4688 | I108: 4528 | J108: 4816 | K108: 4608 | L108: 4464 | M108: 4144 | N108: 3856 | O108: 3872 | P108: 52080
A109: 21 | B109: WSU - MP-E Casp West (no PVD) | C109: 500034 | D109: 6720 | E109: 7008 | F109: 5872 | G109: 5216 | H109: 4576 | I109: 4448 | J109: 4656 | K109: 4464 | L109: 4320 | M109: 4160 | N109: 4496 | O109: 5712 | P109: 61648
B110: Schedule 25 Total | D110: =SUM(D89:D109) -> 163454 | E110: 164376 | F110: 159959 | G110: 155771 | H110: 155955 | I110: 153757 | J110: 158854 | K110: 156912 | L110: 156409 | M110: 156514 | N110: 159077 | O110: 158031 | P110: =IF(ROUND(SUM(P89:P109),0)<>ROUND(SUM(D110:O110),0),#VALUE!,SUM(P89:P109)) -> 1899069
B116: IEP KWHs | D116: =D$3 -> 2012-07-01 | E116: =E$3 -> 2012-08-01 | F116: 2012-09-01 | G116: 2012-10-01 | H116: 2012-11-01 | I116: 2012-12-01 | J116: 2013-01-01 | K116: 2013-02-01 | L116: 2013-03-01 | M116: 2013-04-01 | N116: 2013-05-01 | O116: 2013-06-01 | P116: Total
B117: Inland Empire Paper 60 KV | D117: =AVERAGE($G$117:$O$117) -> 4668916 | E117: =AVERAGE($G$117:$O$117) -> 4668916 | F117: 4668916 | G117: 4736520 | H117: 4443552 | I117: 4392216 | J117: 4879224 | K117: 4612320 | L117: 4933080 | M117: 4556088 | N117: 4840272 | O117: 4626972 | P117: =SUM(D117:O117) -> 56026992
B118: Inland Empire Paper 4.16 KV | D118: =AVERAGE($G$118:$O$118) -> 1701817.778 | E118: =AVERAGE($G$118:$O$118) -> 1701817.778 | F118: 1701817.778 | G118: 1771540 | H118: 1687630 | I118: 1744840 | J118: 1910940 | K118: 1586940 | L118: 1690760 | M118: 1629530 | N118: 1682580 | O118: 1611600 | P118: =SUM(D118:O118) -> 20421813.33
B119: Inland Empire Paper 115 KV | D119: =AVERAGE($G$119:$O$119) -> 33682120 | E119: =AVERAGE($G$119:$O$119) -> 33682120 | F119: 33682120 | G119: 33745536 | H119: 33133968 | I119: 34887240 | J119: 34262424 | K119: 31861656 | L119: 34673688 | M119: 32181336 | N119: 35118936 | O119: 33274296 | P119: =SUM(D119:O119) -> 404185440
A120: * | B120: Total Inland Empire Paper | D120: =SUM(D117:D119) -> 40052853.78 | E120: 40052853.78 | F120: 40052853.78 | G120: 40253596 | H120: 39265150 | I120: 41024296 | J120: 41052588 | K120: 38060916 | L120: 41297528 | M120: 38366954 | N120: 41641788 | O120: 39512868 | P120: 480634245.3
D121: =D12 -> 40052853.78 | E121: 40052853.78 | F121: 40052853.78 | G121: 40253596 | H121: 39265150 | I121: 41024296 | J121: 41052588 | K121: 38060916 | L121: 41297528 | M121: 38366954 | N121: 41641788 | O121: 39512868 | P121: =SUM(D121:O121) -> 480634245.3
B122: IEP KVA
B123: Inland Empire Paper 60 KV | D123: =AVERAGE($G$123:$O$123) -> 9560.555556 | E123: =AVERAGE($G$123:$O$123) -> 9560.555556 | F123: 9560.555556 | G123: 12332 | H123: 8759 | I123: 8629 | J123: 12107 | K123: 9052 | L123: 9243 | M123: 8727 | N123: 8436 | O123: 8760 | P123: =SUM(D123:O123) -> 114726.6667
B124: Inland Empire Paper 4.16 KV | D124: =AVERAGE($G$124:$O$124) -> 4375.111111 | E124: =AVERAGE($G$124:$O$124) -> 4375.111111 | F124: 4375.111111 | G124: 8618 | H124: 3222 | I124: 3204 | J124: 8568 | K124: 3172 | L124: 3156 | M124: 3144 | N124: 3144 | O124: 3148 | P124: =SUM(D124:O124) -> 52501.33333
B125: Inland Empire Paper 115 KV | D125: =AVERAGE($G$125:$O$125) -> 52464 | E125: =AVERAGE($G$125:$O$125) -> 52464 | F125: 52464 | G125: 50832 | H125: 52272 | I125: 51696 | J125: 52416 | K125: 52416 | L125: 52416 | M125: 53856 | N125: 51984 | O125: 54288 | P125: =SUM(D125:O125) -> 629568
A126: * | B126: Total Inland Empire Paper | D126: =SUM(D123:D125) -> 66399.66667 | E126: 66399.66667 | F126: 66399.66667 | G126: 71782 | H126: 64253 | I126: 63529 | J126: 73091 | K126: 64640 | L126: 64815 | M126: 65727 | N126: 63564 | O126: 66196 | P126: 796796
D127: =D47 -> 61339.33333 | E127: 61339.33333 | F127: 61339.33333 | G127: 59660 | H127: 61138 | I127: 60356 | J127: 61910 | K127: 62007 | L127: 61616 | M127: 62993 | N127: 61451 | O127: 60923 | P127: =SUM(D127:O127) -> 736072
B128: IEP KW
B129: Inland Empire Paper 60 KV | D129: =AVERAGE($G$129:$O$129) -> 8576 | E129: =AVERAGE($G$129:$O$129) -> 8576 | F129: 8576 | G129: 11016 | H129: 7776 | I129: 7704 | J129: 10800 | K129: 8208 | L129: 8352 | M129: 7848 | N129: 7560 | O129: 7920 | P129: =SUM(D129:O129) -> 102912
B130: Inland Empire Paper 4.16 KV | D130: =AVERAGE($G$130:$O$130) -> 3653.333333 | E130: =AVERAGE($G$130:$O$130) -> 3653.333333 | F130: 3653.333333 | G130: 7580 | H130: 2600 | I130: 2580 | J130: 7480 | K130: 2540 | L130: 2520 | M130: 2520 | N130: 2520 | O130: 2540 | P130: =SUM(D130:O130) -> 43840
B131: Inland Empire Paper 115 KV | D131: =AVERAGE($G$131:$O$131) -> 52464 | E131: =AVERAGE($G$131:$O$131) -> 52464 | F131: 52464 | G131: 50832 | H131: 52272 | I131: 51696 | J131: 52416 | K131: 52416 | L131: 52416 | M131: 53856 | N131: 51984 | O131: 54288 | P131: =SUM(D131:O131) -> 629568
A132: * | B132: Total Inland Empire Paper | D132: =SUM(D129:D131) -> 64693.33333 | E132: 64693.33333 | F132: 64693.33333 | G132: 69428 | H132: 62648 | I132: 61980 | J132: 70696 | K132: 63164 | L132: 63288 | M132: 64224 | N132: 62064 | O132: 64748 | P132: 776320
D133: =D97 -> 61120 | E133: 61120 | F133: 61120 | G133: 59448 | H133: 60916 | I133: 60152 | J133: 61664 | K133: 61788 | L133: 61388 | M133: 62788 | N133: 61236 | O133: 60700 | P133: =SUM(D133:O133) -> 733440
B135: Calc Revenue for IEP | D135: =500000*0.05634+MIN(5500000,D12-500000)*0.05095+MAX(0,D12-6000000)*0.04652+14000+D72*4.25-D123*1.1-D125*1.35 -> 2073132.913 | E135: =500000*0.05528+MIN(5500000,E12-500000)*0.04989+MAX(0,E12-6000000)*0.04546+14000+E72*4.25-E123*1.1-E125*1.35 -> 2030676.888 | F135: =500000*0.05528+MIN(5500000,F12-500000)*0.04989+MAX(0,F12-6000000)*0.04546+14000+F72*4.25-F123*1.1-F125*1.35 -> 2030676.888 | G135: 2031820.074 | H135: 1995153.119 | I135: 2072720.996 | J135: =500000*0.05642+MIN(5500000,J12-500000)*0.05086+MAX(0,J12-6000000)*0.04494+14500+J72*4.75-J123*1.1-J125*1.4 -> 2090825.705 | K135: =500000*0.05642+MIN(5500000,K12-500000)*0.05086+MAX(0,K12-6000000)*0.04494+14500+K72*4.75-K123*1.1-K125*1.4 -> 1960201.215 | L135: 2103587.208 | M135: 1976979.563 | N135: 2119767.003 | O135: 2018003.338 | P135: =SUM(D135:O135) -> 24503544.91
B136: Revenue for IEP per Handbill Report | D136: 1829885.41 | E136: 1788226.27 | F136: 1852217.91 | G136: 2031820.07 | H136: 1995153.12 | I136: 2072721 | J136: 2090825.7 | K136: 1960201.22 | L136: 2103587.21 | M136: 1976979.56 | N136: 2119767 | O136: 2018003.34 | P136: =SUM(D136:O136) -> 23839387.81
D137: =D135-D136 -> 243247.5033 | E137: =E135-E136 -> 242450.6183 | F137: 178458.9783
B138: Primary Voltage Discount
B139: >11 and <60 | C139: -0.2 | D139: =(D60-D58-D59-D47)*$C139 -> -19871 | E139: =(E60-E58-E59-E47)*$C139 -> -19960.6 | F139: -19233 | G139: -18762.4 | H139: =(H60-H58-H59-H47)*$C139 -> -18411.8 | I139: -18145.8 | J139: -18785.4 | K139: -18445.8 | L139: -18513 | M139: -18385.4 | N139: -19267.8 | O139: -18899 | P139: =SUM(D139:O139) -> -226681
B140: >60 and <115 | C140: =-1.1 -> -1.1 | D140: =D123*$C140 -> -10516.61111 | E140: =E123*$C140 -> -10516.61111 | F140: -10516.61111 | G140: -13565.2 | H140: =H123*$C140 -> -9634.9 | I140: -9491.9 | J140: -13317.7 | K140: -9957.2 | L140: -10167.3 | M140: -9599.7 | N140: -9279.6 | O140: =O123*$C140 -> -9636 | P140: =SUM(D140:O140) -> -126199.3333
B141: >115 | C141: -1.4 | D141: =D125*$C141 -> -73449.6 | E141: =E125*$C141 -> -73449.6 | F141: -73449.6 | G141: -71164.8 | H141: -73180.8 | I141: -72374.4 | J141: =J125*$C141 -> -73382.4 | K141: -73382.4 | L141: -73382.4 | M141: -75398.4 | N141: -72777.6 | O141: =O125*$C141 -> -76003.2 | P141: =SUM(D141:O141) -> -881395.2
D142: =SUM(D139:D141) -> -103837.2111 | E142: -103926.8111 | F142: -103199.2111 | G142: -103492.4 | H142: -101227.5 | I142: -100012.1 | J142: -105485.5 | K142: -101785.4 | L142: -102062.7 | M142: -103383.5 | N142: -101325 | O142: -104538.2 | P142: -1234275.533
B144: Base Revenues
B145: BF Goodrich | C145: 770037736 | D145: =500000*0.05708+MIN(5500000,D4-500000)*0.05135+MAX(0,D4-6000000)*0.04391+15000+D64*5.25-0.2*D39 -> 300995.6021 | E145: =500000*0.05708+MIN(5500000,E4-500000)*0.05135+MAX(0,E4-6000000)*0.04391+15000+E64*5.25-0.2*E39 -> 332874.7131 | F145: 311696.5392 | G145: 280932.2023 | H145: 295617.8003 | I145: 331832.0156 | J145: 312596.7651 | K145: 302667.0287 | L145: 339223.4101 | M145: 315580.7475 | N145: 276005.0866 | O145: 210757.3399 | P145: =SUM(D145:O145) -> 3610779.251
B146: Boise Cascade Plywood | C146: 500017 | D146: =500000*0.05708+MIN(5500000,D5-500000)*0.05135+MAX(0,D5-6000000)*0.04391+15000+D65*5.25-0.2*D40 -> 199298.2362 | E146: 205586.596 | F146: 195311.1628 | G146: 201589.4642 | H146: 185954.0797 | I146: 161241.2638 | J146: 181133.1023 | K146: 187413.429 | L146: 200648.5036 | M146: 197183.6056 | N146: 192749.7745 | O146: 192651.4297 | P146: =SUM(D146:O146) -> 2300760.647
B147: Boise Cascade Sawmill | C147: 500018 | D147: 81293.21675 | E147: 79262.2026 | F147: 79574.78005 | G147: 90114.59105 | H147: 91461.1238 | I147: 93296.86315 | J147: 98872.1859 | K147: 89143.4258 | L147: 87133.4561 | M147: 92068.3572 | N147: 86177.16545 | O147: 84554.0621 | P147: 1052951.43
B148: City of Spokane Sewage Treatment Plt | C148: 1900002 | D148: 86626.27125 | E148: 84392.59525 | F148: 85070.53425 | G148: 86200.61705 | H148: 86706.6387 | I148: 90169.9581 | J148: 92064.3255 | K148: 86116.6269 | L148: 88313.474 | M148: 83174.05345 | N148: 85769.39575 | O148: 86321.49935 | P148: 1040925.99
B149: Deaconess Medical Center | C149: 1900011 | D149: 116098.6759 | E149: 114966.0009 | F149: 103802.4754 | G149: 105043.9263 | H149: 102905.9067 | I149: 105827.6262 | J149: 108762.0553 | K149: 97312.64255 | L149: 104838.6529 | M149: 102626.2195 | N149: 104924.6287 | O149: 105917.7153 | P149: 1273026.526
B150: Gonzaga University | C150: 622922 | D150: 137169.7311 | E150: 136201.3269 | F150: 142782.7039 | G150: 144117.9528 | H150: 145037.0016 | I150: 141748.1824 | J150: 157105.4972 | K150: 142774.0564 | L150: 137875.3429 | M150: 136510.788 | N150: 126421.9125 | O150: 110726.3823 | P150: 1658470.878
B151: Honeywell Electronics | C151: 2304636 | D151: 87787.45975 | E151: 88378.73475 | F151: 77308.98115 | G151: 74468.9704 | H151: 65676.9494 | I151: 68319.2469 | J151: 76030.2728 | K151: 69692.1453 | L151: 74518.9588 | M151: 73504.22685 | N151: 75595.13115 | O151: 77620.7521 | P151: 908901.8294
B152: Huntwood Industries | C152: 610074869 | D152: 76367.998 | E152: 77714.44735 | F152: 69164.5261 | G152: 77265.9302 | H152: 73208.66615 | I152: 71111.4633 | J152: 78676.8798 | K152: 72907.881 | L152: 80133.52195 | M152: 85030.637 | N152: 85113.321 | O152: 80586.929 | P152: 927282.2009
B153: Inland Empire Paper | C153: 2500004 | D153: =500000*0.05708+MIN(5500000,D12-500000)*0.05135+MAX(0,D12-6000000)*0.04391+15000+D72*5.25-1.1*D123-1.4*D125 -> 2043541.098 | E153: =500000*0.05708+MIN(5500000,E12-500000)*0.05135+MAX(0,E12-6000000)*0.04391+15000+E72*5.25-1.1*E123-1.4*E125 -> 2043541.098 | F153: 2043541.098 | G153: 2042775.4 | H153: =500000*0.05708+MIN(5500000,H12-500000)*0.05135+MAX(0,H12-6000000)*0.04391+15000+H72*5.25-1.1*H123-1.4*H125 -> 2009046.536 | I153: 2083134.537 | J153: =500000*0.05708+MIN(5500000,J12-500000)*0.05135+MAX(0,J12-6000000)*0.04391+15000+J72*5.25-1.1*J123-1.4*J125 -> 2087701.539 | K153: =500000*0.05708+MIN(5500000,K12-500000)*0.05135+MAX(0,K12-6000000)*0.04391+15000+K72*5.25-1.1*K123-1.4*K125 -> 1960206.972 | L153: 2100063.754 | M153: 1977163.1 | N153: 2115806.461 | O153: 2015971.584 | P153: 24522493.18
B154: JR Simplot | C154: 290048778 | D154: =500000*0.05708+MIN(5500000,D13-500000)*0.05135+MAX(0,D13-6000000)*0.04391+15000+D73*5.25-0.2*D48 -> 321108.381 | E154: =500000*0.05708+MIN(5500000,E13-500000)*0.05135+MAX(0,E13-6000000)*0.04391+15000+E73*5.25-0.2*E48 -> 336757.934 | F154: 290366.5187 | G154: 318909.8801 | H154: 253470.7142 | I154: 256950.6672 | J154: 310949.4061 | K154: 292001.6909 | L154: 232605.5695 | M154: 241098.1116 | N154: 268549.8369 | O154: 322016.7693 | P154: 3444785.479
B155: McCaine Foods Inc | C155: 2500003 | D155: =500000*0.05708+MIN(5500000,D14-500000)*0.05135+MAX(0,D14-6000000)*0.04391+15000+D74*5.25-0.2*D49 -> 316468.2732 | E155: 347588.9571 | F155: 336641.5267 | G155: 341580.0667 | H155: 332755.0824 | I155: 277642.7924 | J155: 331320.4425 | K155: 308037.2547 | L155: 346424.4955 | M155: 335029.9087 | N155: 343843.9175 | O155: 341499.7091 | P155: 3958832.426
B156: Sacred Heart Medical Center | C156: 500020 | D156: 289960.075 | E156: 282579.8677 | F156: 242172.0189 | G156: 219059.1079 | H156: 200237.3706 | I156: 203481.3888 | J156: 205720.1069 | K156: 184743.9057 | L156: 201950.1805 | M156: 204629.7066 | N156: 236526.1451 | O156: 241174.3595 | P156: 2712234.233
B157: Spokane County Courthouse | C157: 1900012 | D157: 91450.6441 | E157: 87833.61935 | F157: 75924.22195 | G157: 72668.37225 | H157: 66630.38935 | I157: 68205.45615 | J157: 72650.6656 | K157: 65329.5289 | L157: 68563.96025 | M157: 70597.47145 | N157: 77201.36635 | O157: 78830.6774 | P157: 895886.3731
B158: Spokane Steel Foundry | C158: 2400169 | D158: 90204.05755 | E158: 87033.80815 | F158: 79425.03805 | G158: 88663.81605 | H158: 76248.6171 | I158: 75553.1008 | J158: 90923.801 | K158: 87091.9952 | L158: 88043.47205 | M158: 88926.04395 | N158: 76446.33075 | O158: 70059.17305 | P158: 998619.2537
B159: Stimson Lumber - Colville | C159: 610018682 | D159: 106092.9564 | E159: 106702.2841 | F159: 87129.6003 | G159: 90381.1516 | H159: 79846.76185 | I159: 74313.43125 | J159: 90990.82415 | K159: 81746.5844 | L159: 88711.77125 | M159: 89931.45945 | N159: 93462.8718 | O159: 96060.57235 | P159: 1085370.269
B160: Triumph Composite / Boeing | C160: 690067830 | D160: 112856.1793 | E160: 117617.5207 | F160: 114869.0602 | G160: 125471.0315 | H160: 125581.0967 | I160: 128186.3858 | J160: 140782.9214 | K160: 128150.6721 | L160: 122813.2819 | M160: 102689.3621 | N160: 95794.63745 | O160: 111078.6051 | P160: 1425890.754
B161: Vaagen Brothers Lumber | C161: 1300001 | D161: 141003.6413 | E161: 140617.9585 | F161: 135708.3635 | G161: 149143.0965 | H161: 147847.2226 | I161: 152901.8855 | J161: 163521.1443 | K161: 147787.7929 | L161: 148107.3045 | M161: 142670.9818 | N161: 133916.2805 | O161: 128289.6887 | P161: 1731515.361
B162: WSU - MP-A South Campus Feeder | C162: 290081951 | D162: 295139.4173 | E162: 298486.1096 | F162: 263076.4155 | G162: 234740.6707 | H162: 222752.4159 | I162: 242283.0346 | J162: 262933.185 | K162: 237392.1187 | L162: 231980.6792 | M162: 223449.7407 | N162: 264890.1716 | O162: 270547.2853 | P162: 3047671.244
B163: WSU - MP-B East Campus EA | C163: 500033 | D163: 138336.1138 | E163: 153843.9988 | F163: 164790.9084 | G163: 162874.1646 | H163: 168306.8634 | I163: 174137.5206 | J163: 174780.9511 | K163: 158256.9925 | L163: 178342.2305 | M163: 165857.2553 | N163: 159181.2748 | O163: 154319.4288 | P163: 1953027.703
B164: WSU - MP-C East Campus EB | C164: 410031282 | D164: =500000*0.05708+MIN(5500000,D23-500000)*0.05135+MAX(0,D23-6000000)*0.04391+15000+D83*5.25 -> 144265.3764 | E164: =500000*0.05708+MIN(5500000,E23-500000)*0.05135+MAX(0,E23-6000000)*0.04391+15000+E83*5.25 -> 151126.8372 | F164: 147609.3672 | G164: 153641.1448 | H164: 142791.3432 | I164: 157347.9704 | J164: 172423.5096 | K164: 150416.852 | L164: 154628.8372 | M164: 148381.5124 | N164: 139993.82 | O164: 136116.6004 | P164: 1798743.171
B165: WSU - MP -D Casp East (no PVD) | C165: 500032 | D165: =500000*0.05708+MIN(5500000,D24-500000)*0.05135+MAX(0,D24-6000000)*0.04391+15000+D84*5.25 -> 207211.9944 | E165: =500000*0.05708+MIN(5500000,E24-500000)*0.05135+MAX(0,E24-6000000)*0.04391+15000+E84*5.25 -> 217813.5508 | F165: 180145.1076 | G165: 156744.66 | H165: 152065.492 | I165: 142737.2632 | J165: 158217.8456 | K165: 140853.2108 | L165: 140965.1328 | M165: 141407.2144 | N165: 128454.0572 | O165: 146951.0112 | P165: 1913566.54
B166: Schedule 25 Total | P166: =SUM(P145:P165) -> 62261734.74
P167: =P166-'Pres & Prop Rev'!G152 -> 625185.8114

Sheet Lighting summary
B1: AVISTA UTILITIES
B2: WASHINGTON ELECTRIC
B3: STREET & AREA LIGHT REVENUE UNDER PRESENT & PROPOSED RATES
B4: 12 MONTHS ENDED JUNE 30, 2013
C7: ="Present "&IF(Base1_Billing2=2,"Billing ","")&"Rates(1)" -> Present Rates(1) | D7: ="Present "&IF(Base1_Billing2=2,"Billing","")&" Rates" -> Present Rates | F7: ="Proposed "&IF(Base1_Billing2=2,"Billing ","")&"Rates(2)" -> Proposed Rates(2) | G7: ="Proposed "&IF(Base1_Billing2=2,"Billing ","")&"Rates" -> Proposed Rates | I7: % Revenue Change
C8: Monthly | D8: Annual | F8: Monthly | G8: Annual | L8: Target Base | O8: Present | P8: Proposed
C9: Revenue | D9: Revenue | F9: Revenue | G9: Revenue | I9: Base Rates | J9: Billing Rates | L9: % Change | N9: kWh's | O9: kWh Rate | P9: kWh Rate
B11: Schedule 41 | C11: ='St Lts'!Y$54*IF(Base1_Billing2=2,1+$I$39,1) -> 1977.33 | D11: =C11*12 -> 23727.96 | F11: ='St Lts'!AQ$54*IF(Base1_Billing2=2,1+$D$39,1) -> 2002.81 | G11: =F11*12 -> 24033.72 | I11: =G11/D11-1 -> 0.01288606353 | J11: 0 | L11: 0.01293458634
B12: Schedule 42 | C12: ='St Lts'!Z$54*IF(Base1_Billing2=2,1+$I$39,1) -> 371887.73 | D12: =C12*12 -> 4462652.76 | F12: ='St Lts'!AR$54*IF(Base1_Billing2=2,1+$D$39,1) -> 377301.69 | G12: =F12*12 -> 4527620.28 | I12: =G12/D12-1 -> 0.01455804955 | J12: 0 | L12: =L11 -> 0.01293458634
B13: Schedule 44 | C13: ='St Lts'!AA$54*IF(Base1_Billing2=2,1+$I$39,1) -> 3168.94 | D13: 38027.28 | F13: ='St Lts'!AS$54*IF(Base1_Billing2=2,1+$D$39,1) -> 3209.69 | G13: 38516.28 | I13: 0.01285918951 | J13: 0 | L13: =L11 -> 0.01293458634
B14: Schedule 45 | C14: ='St Lts'!AB$54*IF(Base1_Billing2=2,1+$I$39,1) -> 6185.96 | D14: 74231.52 | F14: ='St Lts'!AT$54*IF(Base1_Billing2=2,1+$D$39,1) -> 6265.59 | G14: 75187.08 | I14: =G14/D14-1 -> 0.01287269882 | J14: 0 | L14: =L11 -> 0.01293458634
B15: Schedule 46 | C15: ='St Lts'!AC$54*IF(Base1_Billing2=2,1+$I$39,1) -> 13845.74 | D15: 166148.88 | F15: ='St Lts'!AU$54*IF(Base1_Billing2=2,1+$D$39,1) -> 14023.31 | G15: 168279.72 | I15: 0.01282488332 | J15: 0 | L15: =L11 -> 0.01293458634 | N15: ='Rev Runs 12MEJUNE2013'!P60 -> 1668234 | O15: =D15/N15 -> 0.09959566823 | P15: =G15/N15 -> 0.1008729711
B16: Schedule 47 | C16: =IF(Base1_Billing2=1,'Area Lts'!S40,'Area Lts'!S50) -> 108945.92 | D16: 1307351.04 | F16: =IF(Base1_Billing2=1,'Area Lts'!AG40,'Area Lts'!AG50) -> 110358.65 | G16: 1324303.8 | I16: 0.01296725935 | J16: 0 | L16: =L11 -> 0.01293458634
B17: Schedule 48 | C17: =IF(Base1_Billing2=1,'Area Lts'!T40,'Area Lts'!T50) -> 66551.94002 | D17: 798623.2803 | F17: =IF(Base1_Billing2=1,'Area Lts'!AH40,'Area Lts'!AH50) -> 67413.21005 | G17: 808958.5206 | I17: 0.01294132112 | J17: 0 | L17: =L11 -> 0.01293458634
B19: Total | C19: =SUM(C11:C17) -> 572563.56 | D19: =SUM(D11:D17) -> 6870762.72 | F19: =SUM(F11:F17) -> 580574.95 | G19: =SUM(G11:G17) -> 6966899.401 | I19: =G19/D19-1 -> 0.01399214094 | J19: 0 | L19: =L11 -> 0.01293458634
C20: =ROUND(C19-CHOOSE(Base1_Billing2,'St Lts'!AC56+'Area Lts'!T41,'St Lts'!AC62+'Area Lts'!T51),0) -> 0 | F20: =ROUND(F19-CHOOSE(Base1_Billing2,'St Lts'!AU55+'Area Lts'!AH41,'St Lts'!AU61+'Area Lts'!AH51),0) -> 0 | L20: =I19-L19 -> 0.001057554598
B21: Sch 46 Per kWh Rate | D21: =D15/N15 -> 0.09959566823 | G21: =G15/N15 -> 0.1008729711
B23: (1) from PDE-E-12/14
B24: (2) from PDE-E-13/14
C26: Billed | D26: =D19*(1+I39)+'Area Lts'!T48*12 -> 7139892.225 | F26: b4 Sch 91 | G26: =G19*(1+J39)+'Area Lts'!AH48*12 -> 7236316.56 | I26: =G26/D26-1 -> 0.01350501261 | K26: =G26-D26 -> 96424.33452
C27: Diff | D27: =D26-D19 -> 269129.5051 | F27: b4 Sch 91 | G27: =G26-G19 -> 269417.1593
C28: Pres 91 | D28: =D$19*(I36+I37) -> 275517.5851 | F28: 91 b4 Sch 91 | G28: =G$19*(J36+J37) -> 275805.2393
C29: Pres 93 | D29: =D$19*I38 -> 0 | F29: 93 b4 Sch 91 | G29: =G$19*J38 -> 0
C30: add'l 91 | D30: =D28*($L$36+L37) -> 0
C31: Billed | D31: =D26 -> 7139892.225 | F31: w/Sch 91 | G31: =G19*(1+D39)+'Area Lts'!AH48*12 -> 7236316.56 | I31: =G31/D31-1 -> 0.01350501261 | K31: =G31-D26 -> 96424.33452 | L31: =K31-J$19 -> 96424.33452
J34: Revised
D35: Proposed | I35: Present | J35: Present | K35: Proposed
D36: =K36 -> 0.03090031718 | G36: Sch 91-DSM | I36: 0.0313 | J36: =(L19+(1+I36))/(1+L19)-1 -> 0.03090031718 | K36: =J36*(1+L36) -> 0.03090031718 | L36: 0
D37: =K37 -> 0.008687629111 | G37: Sch 91-LIRAP | I37: 0.0088 | J37: =(L19+(1+I37))/(1+L19)-1 -> 0.008687629111 | K37: =J37*(1+L37) -> 0.008687629111 | L37: 0 | M37: Reflects additional LIRAP funding
D38: =K38 -> 0 | G38: Sch 93 - surch | I38: 0 | J38: =(L19+(1+I38))/(1+L19)-1 -> 0 | K38: =J38*(1+$L$38) -> 0 | L38: 0
D39: =D36+D37+D38 -> 0.03958794629 | G39: Total adder | I39: =I36+I37+I38 -> 0.0401 | J39: =J36+J37+J38 -> 0.03958794629 | K39: =K36+K37+K38 -> 0.03958794629
B42: copy of Total above | C42: 488916.6501 | D42: 5866999.801 | F42: 556466.5401 | G42: 6677598.481
B43: diff from curr Total above | C43: =C19-C42 -> 83646.90997 | D43: =D19-D42 -> 1003762.92 | F43: =F19-F42 -> 24108.41 | G43: =G19-G42 -> 289300.92
B44: % diff | C44: =C43/C42 -> 0.1710862372 | D44: =D43/D42 -> 0.1710862372 | F44: =F43/F42 -> 0.04332409636 | G44: =G43/G42 -> 0.04332409636

Sheet St Lts
A1: Street Light Summary | I1: WASHINGTON Street Lights | AJ1: % rate increase --> | AK1: ='Lighting summary'!L11 -> 0.01293458634 | AL1: ='Lighting summary'!L12 -> 0.01293458634 | AM1: ='Lighting summary'!L13 -> 0.01293458634 | AN1: ='Lighting summary'!L14 -> 0.01293458634 | AO1: ='Lighting summary'!L15 -> 0.01293458634 | BE1: compare input Present Billing Rates to calculated Present Billing Rates | BL1: =BE2 -> 1.0401
A2: DWWPAOAE Report, as of 01/10/12 | M2: Number of Lights(1) | S2: Present Rates | Y2: Monthly Revenue at Present Rates | AE2: Number of Lights | AK2: Proposed Rates | AQ2: Monthly Revenue at Proposed Rates | AX2: Present Billing Rates | BD2: =-0.00067-0.00503 -> -0.0057 | BE2: =1+'Lighting summary'!I39 -> 1.0401 | BF2: Sch 91 & 93 | BL2: New Billing Rates | BR2: Increase
I3: Fixture Type | J3: Pole Facility | K3: Size | L3: Sched | M3: 041 | N3: 042 | O3: 044 | P3: 045 | Q3: 046 | S3: 041 | T3: 042 | U3: 044 | V3: 045 | W3: 046 | Y3: 041 | Z3: 042 | AA3: 044 | AB3: 045 | AC3: 046 | AE3: 041 | AF3: 042 | AG3: 044 | AH3: 045 | AI3: 046 | AK3: 041 | AL3: 042 | AM3: 044 | AN3: 045 | AO3: 046 | AQ3: 041 | AR3: 042 | AS3: 044 | AT3: 045 | AU3: 046 | AW3: kwh | AX3: 041 | AY3: 042 | AZ3: 044 | BA3: 045 | BB3: 046 | BD3: Sch 93 | BE3: 041 | BF3: 042 | BG3: 044 | BH3: 045 | BI3: 046 | BL3: 041 | BM3: 042 | BN3: 044 | BO3: 045 | BP3: 046 | BR3: 041 | BS3: 042 | BT3: 044 | BU3: 045 | BV3: 046
I4: Single Mercury Vapor | J4: Direct Burial | K4: 4000 | L4: 214 | M4: =SUMIF($G:$G,TEXT(M$3,"000")&TEXT($L4,"000"),$E:$E) -> 75 | N4: 0 | O4: 0 | P4: 0 | Q4: 0 | S4: 13.89 | T4: 0 | U4: 0 | V4: 0 | W4: 0 | Y4: =IF(AND(M4<>0,S4=0),#VALUE!,M4*S4) -> 1041.75 | Z4: =IF(AND(N4<>0,T4=0),#VALUE!,N4*T4) -> 0 | AA4: =IF(AND(O4<>0,U4=0),#VALUE!,O4*U4) -> 0 | AB4: =IF(AND(P4<>0,V4=0),#VALUE!,P4*V4) -> 0 | AC4: =IF(AND(Q4<>0,W4=0),#VALUE!,Q4*W4) -> 0 | AE4: =M4 -> 75 | AF4: =N4 -> 0 | AG4: 0 | AH4: 0 | AI4: 0 | AK4: =ROUND(S4*(1+AK$1),2) -> 14.07 | AL4: 0 | AM4: 0 | AN4: 0 | AO4: 0 | AQ4: =IF(AND(AE4<>0,AK4=0),#VALUE!,AE4*AK4) -> 1055.25 | AR4: =IF(AND(AF4<>0,AL4=0),#VALUE!,AF4*AL4) -> 0 | AS4: =IF(AND(AG4<>0,AM4=0),#VALUE!,AG4*AM4) -> 0 | AT4: =IF(AND(AH4<>0,AN4=0),#VALUE!,AH4*AN4) -> 0 | AU4: =IF(AND(AI4<>0,AO4=0),#VALUE!,AI4*AO4) -> 0 | AV4: =SUM(AQ4:AU4)-SUM(Y4:AC4) -> 13.5 | AW4: 42 | AX4: 14.21 | BD4: =ROUND(AW4*$BD$2,2) -> -0.24 | BE4: =ROUND((S4*$BE$2)+$BD4-AX4,2) -> 0 | BL4: =AK4*$BL$1 -> 14.634207 | BM4: =AL4*$BL$1 -> 0 | BN4: 0 | BO4: 0 | BP4: 0 | BR4: =BL4-AX4 -> 0.424207 | BS4: =BM4-AY4 -> 0 | BT4: =BN4-AZ4 -> 0 | BU4: =BO4-BA4 -> 0 | BV4: =BP4-BB4 -> 0
B5: State | C5: Sched | D5: Rate Sub | E5: # of Lights | I5: Single High-Pressure Sodium Vapor | J5: Direct Burial | K5: 50W | L5: 234 | M5: 0 | N5: 129 | O5: 0 | P5: 0 | Q5: 0 | S5: 0 | T5: 13.04 | U5: 0 | V5: 0 | W5: 0 | Y5: =IF(AND(M5<>0,S5=0),#VALUE!,M5*S5) -> 0 | Z5: =IF(AND(N5<>0,T5=0),#VALUE!,N5*T5) -> 1682.16 | AA5: =IF(AND(O5<>0,U5=0),#VALUE!,O5*U5) -> 0 | AB5: =IF(AND(P5<>0,V5=0),#VALUE!,P5*V5) -> 0 | AC5: =IF(AND(Q5<>0,W5=0),#VALUE!,Q5*W5) -> 0 | AE5: =M5 -> 0 | AF5: 129 | AG5: 0 | AH5: 0 | AI5: 0 | AK5: 0 | AL5: 13.21 | AM5: 0 | AN5: 0 | AO5: 0 | AQ5: =IF(AND(AE5<>0,AK5=0),#VALUE!,AE5*AK5) -> 0 | AR5: =IF(AND(AF5<>0,AL5=0),#VALUE!,AF5*AL5) -> 1704.09 | AS5: 0 | AT5: 0 | AU5: 0 | AV5: 21.93 | AW5: 20 | AY5: 13.45 | BD5: =ROUND(AW5*$BD$2,2) -> -0.11 | BF5: =ROUND((T5*$BE$2)+$BD5-AY5,2) -> 0 | BL5: =AK5*$BL$1 -> 0 | BM5: =AL5*$BL$1 -> 13.739721 | BN5: =AM5*$BL$1 -> 0 | BO5: =AN5*$BL$1 -> 0 | BP5: =AO5*$BL$1 -> 0 | BR5: =BL5-AX5 -> 0 | BS5: =BM5-AY5 -> 0.289721 | BT5: =BN5-AZ5 -> 0 | BU5: =BO5-BA5 -> 0 | BV5: =BP5-BB5 -> 0
I6: High-Pressure Sodium Vapor | J6: Dusk to Dawn | K6: 70W | L6: 335 | M6: 0 | N6: 0 | O6: 0 | P6: 0 | Q6: 41 | S6: 0 | T6: 0 | U6: 0 | V6: 0 | W6: 3.36 | Y6: 0 | Z6: 0 | AA6: 0 | AB6: 0 | AC6: 137.76 | AE6: 0 | AF6: 0 | AG6: 0 | AH6: 0 | AI6: 41 | AK6: 0 | AL6: 0 | AM6: 0 | AN6: 0 | AO6: 3.4 | AQ6: 0 | AR6: 0 | AS6: 0 | AT6: 0 | AU6: 139.4 | AV6: 1.64 | AW6: 25 | BB6: 3.34 | BD6: -0.14 | BI6: 0.01 | BL6: 0 | BM6: 0 | BN6: 0 | BO6: 0 | BP6: 3.53634 | BR6: 0 | BS6: 0 | BT6: 0 | BU6: 0 | BV6: 0.19634
B7: 2 | C7: 041 | D7: 214 | E7: =75 -> 75 | G7: =IF(OR(ISBLANK(C7),ISBLANK(D7)),"",TEXT(C7,"000")&TEXT(D7,"000")) -> 041214 | I7: Single Mercury Vapor | J7: Wood Pole | K7: 7000 | L7: 411 | M7: 34 | N7: 0 | O7: 0 | P7: 0 | Q7: 0 | S7: 15.06 | T7: 0 | U7: 0 | V7: 0 | W7: 0 | Y7: 512.04 | Z7: 0 | AA7: 0 | AB7: 0 | AC7: 0 | AE7: 34 | AF7: 0 | AG7: 0 | AH7: 0 | AI7: 0 | AK7: 15.25 | AL7: 0 | AM7: 0 | AN7: 0 | AO7: 0 | AQ7: 518.5 | AR7: 0 | AS7: 0 | AT7: 0 | AU7: 0 | AV7: 6.46 | AW7: 80 | AX7: 15.21 | BD7: -0.46 | BE7: =ROUND((S7*$BE$2)+$BD7-AX7,2) -> -0.01 | BL7: 15.861525 | BM7: 0 | BN7: 0 | BO7: 0 | BP7: 0 | BR7: 0.651525 | BS7: 0 | BT7: 0 | BU7: 0 | BV7: 0
B8: 2 | C8: 041 | D8: 411 | E8: 34 | G8: 041411 | I8: Mercury Vapor | J8: Dusk to Dawn | K8: 7000 | L8: 415 | M8: 0 | N8: 0 | O8: 0 | P8: 87 | Q8: 0 | S8: 0 | T8: 0 | U8: 0 | V8: 6.61 | W8: 0 | Y8: 0 | Z8: 0 | AA8: 0 | AB8: 575.07 | AC8: 0 | AE8: 0 | AF8: 0 | AG8: 0 | AH8: 87 | AI8: 0 | AK8: 0 | AL8: 0 | AM8: 0 | AN8: 6.7 | AO8: 0 | AQ8: 0 | AR8: 0 | AS8: 0 | AT8: 582.9 | AU8: 0 | AV8: 7.83 | AW8: 80 | BA8: 6.43 | BD8: -0.46 | BH8: -0.01 | BL8: 0 | BM8: 0 | BN8: 0 | BO8: 6.96867 | BP8: 0 | BR8: 0 | BS8: 0 | BT8: 0 | BU8: 0.53867 | BV8: 0
B9: 2 | C9: 041 | D9: 511 | E9: 6 | G9: 041511 | I9: Mercury Vapor | J9: Dusk to 1 AM | K9: 7000 | L9: 419 | M9: 0 | N9: 0 | O9: 0 | P9: 16 | Q9: 0 | S9: 0 | T9: 0 | U9: 0 | V9: 4.47 | W9: 0 | Y9: 0 | Z9: 0 | AA9: 0 | AB9: 71.52 | AC9: 0 | AE9: =M9 -> 0 | AF9: =N9 -> 0 | AG9: =O9 -> 0 | AH9: =P9 -> 16 | AI9: =Q9 -> 0 | AK9: 0 | AL9: 0 | AM9: 0 | AN9: 4.53 | AO9: 0 | AQ9: 0 | AR9: 0 | AS9: 0 | AT9: 72.48 | AU9: 0 | AV9: 0.96 | AW9: 80 | BA9: 4.2 | BD9: -0.46 | BH9: -0.01 | BL9: =AK9*$BL$1 -> 0 | BM9: =AL9*$BL$1 -> 0 | BN9: =AM9*$BL$1 -> 0 | BO9: =AN9*$BL$1 -> 4.711653 | BP9: =AO9*$BL$1 -> 0 | BR9: 0 | BS9: 0 | BT9: 0 | BU9: 0.511653 | BV9: 0
B10: 2 | C10: 041 | D10: 611 | E10: 12 | G10: 041611 | I10: Single High-Pressure Sodium Vapor | J10: Wood Pole | K10: 100W | L10: 421 | M10: 0 | N10: 9 | O10: 0 | P10: 0 | Q10: 0 | S10: 0 | T10: 24.75 | U10: 0 | V10: 0 | W10: 0 | Y10: 0 | Z10: 222.75 | AA10: 0 | AB10: 0 | AC10: 0 | AE10: 0 | AF10: 9 | AG10: 0 | AH10: 0 | AI10: 0 | AK10: 0 | AL10: 25.07 | AM10: 0 | AN10: 0 | AO10: 0 | AQ10: 0 | AR10: 225.63 | AS10: 0 | AT10: 0 | AU10: 0 | AV10: 2.88 | AW10: 40 | AY10: 25.51 | BD10: -0.23 | BF10: 0 | BL10: 0 | BM10: 26.075307 | BN10: 0 | BO10: 0 | BP10: 0 | BR10: 0 | BS10: 0.565307 | BT10: 0 | BU10: 0 | BV10: 0
B11: 2 | C11: 041 | E11: =SUM(E7:E10) -> 127 | I11: Single High-Pressure Sodium Vapor | J11: Wood Pole | K11: 100W | L11: 431 | M11: 0 | N11: 9750 | O11: 3 | P11: 0 | Q11: 0 | S11: 0 | T11: 15.02 | U11: 7.1 | V11: 0 | W11: 0 | Y11: 0 | Z11: 146445 | AA11: 21.3 | AB11: 0 | AC11: 0 | AE11: 0 | AF11: 9750 | AG11: 3 | AH11: 0 | AI11: 0 | AK11: 0 | AL11: =ROUND(T11*(1+AL$1),2) -> 15.21 | AM11: 7.19 | AN11: 0 | AO11: 0 | AQ11: 0 | AR11: 148297.5 | AS11: 21.57 | AT11: 0 | AU11: 0 | AV11: =SUM(AQ11:AU11)-SUM(Y11:AC11) -> 1852.77 | AW11: 40 | AY11: 15.39 | AZ11: 7.15 | BD11: -0.23 | BF11: 0 | BG11: 0 | BL11: 0 | BM11: 15.819921 | BN11: 7.478319 | BO11: 0 | BP11: 0 | BR11: 0 | BS11: 0.429921 | BT11: 0.328319 | BU11: 0 | BV11: 0
I12: Single High-Pressure Sodium Vapor | J12: Pedestal Base | K12: 100W | L12: 432 | M12: 0 | N12: 144 | O12: 20 | P12: 0 | Q12: 0 | S12: 0 | T12: 24.75 | U12: 7.1 | V12: 0 | W12: 0 | Y12: 0 | Z12: 3564 | AA12: 142 | AB12: 0 | AC12: 0 | AE12: 0 | AF12: 144 | AG12: 20 | AH12: 0 | AI12: 0 | AK12: 0 | AL12: =ROUND(T12*(1+AL$1),2) -> 25.07 | AM12: 7.19 | AN12: 0 | AO12: 0 | AQ12: 0 | AR12: 3610.08 | AS12: 143.8 | AT12: 0 | AU12: 0 | AV12: 47.88 | AW12: 40 | AY12: 25.51 | AZ12: 7.15 | BD12: -0.23 | BF12: 0 | BG12: 0 | BL12: 0 | BM12: 26.075307 | BN12: 7.478319 | BO12: 0 | BP12: 0 | BR12: 0 | BS12: 0.565307 | BT12: 0.328319 | BU12: 0 | BV12: 0
B13: 2 | C13: 042 | D13: 234 | E13: 129 | G13: 042234 | I13: Single High-Pressure Sodium Vapor | J13: Direct Burial | K13: 100W | L13: 433 | M13: 0 | N13: 85 | O13: 10 | P13: 0 | Q13: 0 | S13: 0 | T13: 24.75 | U13: 7.1 | V13: 0 | W13: 0 | Y13: 0 | Z13: 2103.75 | AA13: 71 | AB13: 0 | AC13: 0 | AE13: 0 | AF13: 85 | AG13: 10 | AH13: 0 | AI13: 0 | AK13: 0 | AL13: 25.07 | AM13: 7.19 | AN13: 0 | AO13: 0 | AQ13: 0 | AR13: 2130.95 | AS13: 71.9 | AT13: 0 | AU13: 0 | AV13: 28.1 | AW13: 40 | AY13: 25.51 | AZ13: 7.15 | BD13: -0.23 | BF13: 0 | BG13: 0 | BL13: 0 | BM13: 26.075307 | BN13: 7.478319 | BO13: 0 | BP13: 0 | BR13: 0 | BS13: 0.565307 | BT13: 0.328319 | BU13: 0 | BV13: 0
B14: 2 | C14: 042 | D14: 421 | E14: 9 | G14: 042421 | I14: Single High-Pressure Sodium Vapor | J14: Direct Burial | K14: 100W | L14: 434 | M14: =SUMIF($G:$G,TEXT(M$3,"000")&TEXT($L14,"000"),$E:$E) -> 0 | N14: 2507 | O14: 0 | P14: 0 | Q14: 0 | S14: 0 | T14: 13.96 | U14: 0 | V14: 0 | W14: 0 | Y14: 0 | Z14: 34997.72 | AA14: 0 | AB14: 0 | AC14: 0 | AE14: 0 | AF14: 2507 | AG14: 0 | AH14: 0 | AI14: 0 | AK14: 0 | AL14: 14.14 | AM14: 0 | AN14: 0 | AO14: 0 | AQ14: 0 | AR14: 35448.98 | AS14: 0 | AT14: 0 | AU14: 0 | AV14: 451.26 | AW14: 40 | AY14: 14.29 | BD14: -0.23 | BF14: 0 | BL14: 0 | BM14: 14.707014 | BN14: 0 | BO14: 0 | BP14: 0 | BR14: 0 | BS14: 0.417014 | BT14: 0 | BU14: 0 | BV14: 0
B15: 2 | C15: 042 | D15: 431 | E15: 9750 | G15: 042431 | I15: Single High-Pressure Sodium Vapor | J15: No Pole / Dusk to Dawn (046) | K15: 100W | L15: 435 | M15: 0 | N15: 2470 | O15: 45 | P15: 0 | Q15: 81 | S15: 0 | T15: 13.23 | U15: 7.1 | V15: 0 | W15: 4.75 | Y15: 0 | Z15: 32678.1 | AA15: 319.5 | AB15: 0 | AC15: 384.75 | AE15: 0 | AF15: 2470 | AG15: 45 | AH15: 0 | AI15: 81 | AK15: 0 | AL15: 13.4 | AM15: 7.19 | AN15: 0 | AO15: 4.81 | AQ15: 0 | AR15: 33098 | AS15: 323.55 | AT15: 0 | AU15: 389.61 | AV15: 428.81 | AW15: 40 | AY15: 13.53 | AZ15: 7.15 | BB15: 4.71 | BD15: -0.23 | BF15: 0 | BG15: 0 | BI15: 0 | BL15: 0 | BM15: 13.93734 | BN15: 7.478319 | BO15: 0 | BP15: 5.002881 | BR15: 0 | BS15: 0.40734 | BT15: 0.328319 | BU15: 0 | BV15: 0.292881
B16: 2 | C16: 042 | D16: 432 | E16: 144 | G16: 042432 | I16: Single High-Pressure Sodium Vapor | J16: Developer Contributed | K16: 100W | L16: 436 | M16: 0 | N16: 603 | O16: 0 | P16: 0 | Q16: 0 | S16: 0 | T16: 13.96 | U16: 0 | V16: 0 | W16: 0 | Y16: 0 | Z16: 8417.88 | AA16: 0 | AB16: 0 | AC16: 0 | AE16: 0 | AF16: 603 | AG16: 0 | AH16: 0 | AI16: 0 | AK16: 0 | AL16: =AL11 -> 15.21 | AM16: 0 | AN16: 0 | AO16: 0 | AQ16: 0 | AR16: 9171.63 | AS16: 0 | AT16: 0 | AU16: 0 | AV16: 753.75 | AW16: 40 | AY16: 14.29 | BD16: -0.23 | BF16: 0 | BL16: 0 | BM16: 15.819921 | BN16: 0 | BO16: 0 | BP16: 0 | BR16: 0 | BS16: 1.529921 | BT16: 0 | BU16: 0 | BV16: 0
B17: 2 | C17: 042 | D17: 433 | E17: 85 | G17: 042433 | I17: Decorative Sodium Vapor | J17: No Pole | K17: Kim Light 100W | L17: 438 | M17: 0 | N17: 32 | O17: 0 | P17: 0 | Q17: 0 | S17: 0 | T17: 13.96 | U17: 0 | V17: 0 | W17: 0 | Y17: 0 | Z17: 446.72 | AA17: 0 | AB17: 0 | AC17: 0 | AE17: 0 | AF17: 32 | AG17: 0 | AH17: 0 | AI17: 0 | AK17: 0 | AL17: =ROUND(T17*(1+AL$1),2) -> 14.14 | AM17: 0 | AN17: 0 | AO17: 0 | AQ17: 0 | AR17: 452.48 | AS17: 0 | AT17: 0 | AU17: 0 | AV17: 5.76 | AW17: 40 | AY17: 14.29 | BD17: -0.23 | BF17: 0 | BL17: 0 | BM17: 14.707014 | BN17: 0 | BO17: 0 | BP17: 0 | BR17: 0 | BS17: 0.417014 | BT17: 0 | BU17: 0 | BV17: 0
B18: 2 | C18: 042 | D18: 434 | E18: 2507 | G18: 042434 | I18: Double High-Pressure Sodium Vapor | J18: Wood Pole | K18: 100W | L18: 441 | M18: 0 | N18: 24 | O18: 0 | P18: 0 | Q18: 0 | S18: 0 | T18: 27.19 | U18: 12.45 | V18: 0 | W18: 0 | Y18: 0 | Z18: 652.56 | AA18: 0 | AB18: 0 | AC18: 0 | AE18: 0 | AF18: 24 | AG18: 0 | AH18: 0 | AI18: 0 | AK18: 0 | AL18: 27.54 | AM18: 12.61 | AN18: 0 | AO18: 0 | AQ18: 0 | AR18: 660.96 | AS18: 0 | AT18: 0 | AU18: 0 | AV18: 8.4 | AW18: 80 | AY18: 27.83 | AZ18: 12.5 | BD18: -0.46 | BF18: -0.01 | BG18: -0.01 | BL18: 0 | BM18: 28.644354 | BN18: 13.115661 | BO18: 0 | BP18: 0 | BR18: 0 | BS18: 0.814354 | BT18: 0.615661 | BU18: 0 | BV18: 0
B19: 2 | C19: 042 | D19: 435 | E19: 2470 | G19: 042435 | I19: Decorative Sodium Vapor | J19: Direct Burial | K19: Granville 100W | L19: 474 | M19: 0 | N19: 190 | O19: 0 | P19: 0 | Q19: 0 | S19: 0 | T19: 24.31 | U19: 0 | V19: 0 | W19: 0 | Y19: 0 | Z19: 4618.9 | AA19: 0 | AB19: 0 | AC19: 0 | AE19: 0 | AF19: 190 | AG19: 0 | AH19: 0 | AI19: 0 | AK19: 0 | AL19: 24.62 | AM19: 0 | AN19: 0 | AO19: 0 | AQ19: 0 | AR19: 4677.8 | AS19: 0 | AT19: 0 | AU19: 0 | AV19: 58.9 | AW19: 40 | AY19: 25.05 | BD19: -0.23 | BF19: 0 | BL19: 0 | BM19: 25.607262 | BN19: 0 | BO19: 0 | BP19: 0 | BR19: 0 | BS19: 0.557262 | BT19: 0 | BU19: 0 | BV19: 0
B20: 2 | C20: 042 | D20: 436 | E20: 603 | G20: 042436 | I20: Decorative Sodium Vapor (Capital Only) | J20: Direct Burial | K20: Granville 100W | L20: 478 | M20: 0 | N20: 30 | O20: 0 | P20: 0 | Q20: 0 | S20: 0 | T20: 17.2 | U20: 0 | V20: 0 | W20: 0 | Y20: 0 | Z20: 516 | AA20: 0 | AB20: 0 | AC20: 0 | AE20: 0 | AF20: 30 | AG20: 0 | AH20: 0 | AI20: 0 | AK20: =ROUND(S20*(1+AK$1),2) -> 0 | AL20: 17.42 | AM20: 0 | AN20: 0 | AO20: 0 | AQ20: 0 | AR20: 522.6 | AS20: 0 | AT20: 0 | AU20: 0 | AV20: 6.6 | AY20: 17.89 | BD20: 0 | BF20: =ROUND((T20*$BE$2)+$BD20-AY20,2) -> 0 | BL20: 0 | BM20: 18.118542 | BN20: 0 | BO20: 0 | BP20: 0 | BR20: 0 | BS20: 0.228542 | BT20: 0 | BU20: 0 | BV20: 0
B21: 2 | C21: 042 | D21: 438 | E21: 32 | G21: 042438 | I21: Decorative Sodium Vapor | J21: Direct Burial | K21: Post Top 100W | L21: 484 | M21: 0 | N21: 161 | O21: 0 | P21: 0 | Q21: 0 | S21: 0 | T21: 23.14 | U21: 0 | V21: 0 | W21: 0 | Y21: 0 | Z21: 3725.54 | AA21: 0 | AB21: 0 | AC21: 0 | AE21: 0 | AF21: 161 | AG21: 0 | AH21: 0 | AI21: 0 | AK21: 0 | AL21: 23.44 | AM21: 0 | AN21: 0 | AO21: 0 | AQ21: 0 | AR21: 3773.84 | AS21: 0 | AT21: 0 | AU21: 0 | AV21: 48.3 | AW21: 40 | AY21: 23.84 | BD21: -0.23 | BF21: 0 | BL21: 0 | BM21: 24.379944 | BN21: 0 | BO21: 0 | BP21: 0 | BR21: 0 | BS21: 0.539944 | BT21: 0 | BU21: 0 | BV21: 0
B22: 2 | C22: 042 | D22: 441 | E22: 24 | G22: 042441 | I22: LED (Dusk to Dawn) | J22: Dusk to Dawn | K22: 100W | L22: 495 | M22: 0 | N22: 0 | O22: 0 | P22: 0 | Q22: 44 | S22: 0 | T22: 0 | U22: 0 | V22: 0 | W22: 4.75 | Y22: 0 | Z22: 0 | AA22: 0 | AB22: 0 | AC22: 209 | AE22: =SUMIF($G:$G,TEXT(AE$3,"000")&TEXT($L22,"000"),$E:$E) -> 0 | AF22: 0 | AG22: 0 | AH22: 0 | AI22: 44 | AK22: 0 | AL22: 0 | AM22: 0 | AN22: 0 | AO22: 4.81 | AQ22: 0 | AR22: 0 | AS22: 0 | AT22: 0 | AU22: 211.64 | AW22: 49 | BB22: 4.66 | BD22: -0.28 | BI22: =ROUND((W22*$BE$2)+$BD22-BB22,2) -> 0 | BL22: =AK22*$BL$1 -> 0 | BM22: 0 | BN22: 0 | BO22: 0 | BP22: 5.002881 | BR22: =BL22-AX22 -> 0 | BS22: 0 | BT22: 0 | BU22: 0 | BV22: 0.342881
B23: 2 | C23: 042 | D23: 474 | E23: 190 | G23: 042474 | I23: LED (Dusk to 11:00) | J23: Dusk to 11 PM | K23: 100W | L23: 499 | M23: 0 | N23: 0 | O23: 0 | P23: 0 | Q23: 45 | S23: 0 | T23: 0 | U23: 0 | V23: 0 | W23: 2.63 | Y23: 0 | Z23: 0 | AA23: 0 | AB23: 0 | AC23: 118.35 | AE23: 0 | AF23: 0 | AG23: 0 | AH23: 0 | AI23: 45 | AK23: 0 | AL23: 0 | AM23: 0 | AN23: 0 | AO23: 2.66 | AQ23: 0 | AR23: 0 | AS23: 0 | AT23: 0 | AU23: 119.7 | AW23: 21 | BB23: 2.62 | BD23: -0.12 | BI23: 0 | BL23: 0 | BM23: 0 | BN23: 0 | BO23: 0 | BP23: 2.766666 | BR23: 0 | BS23: 0 | BT23: 0 | BU23: 0 | BV23: 0.146666
B24: 3 | C24: 042 | D24: 478 | E24: 30 | G24: =IF(OR(ISBLANK(C24),ISBLANK(D24)),"",TEXT(C24,"000")&TEXT(D24,"000")) -> 042478 | I24: Single Mercury Vapor | J24: Wood Pole | K24: 10000 | L24: 511 | M24: =SUMIF($G:$G,TEXT(M$3,"000")&TEXT($L24,"000"),$E:$E) -> 6 | N24: 0 | O24: 0 | P24: 0 | Q24: 0 | S24: 18.41 | T24: 0 | U24: 0 | V24: 0 | W24: 0 | Y24: 110.46 | Z24: 0 | AA24: 0 | AB24: 0 | AC24: 0 | AE24: 6 | AF24: =N24 -> 0 | AG24: =O24 -> 0 | AH24: =P24 -> 0 | AI24: =Q24 -> 0 | AK24: 18.65 | AL24: 0 | AM24: 0 | AN24: 0 | AO24: 0 | AQ24: 111.9 | AR24: 0 | AS24: 0 | AT24: 0 | AU24: 0 | AV24: 1.44 | AW24: 111 | AX24: 18.52 | BD24: -0.63 | BE24: 0 | BL24: 19.397865 | BM24: 0 | BN24: 0 | BO24: 0 | BP24: 0 | BR24: 0.877865 | BS24: 0 | BT24: 0 | BU24: 0 | BV24: 0
B25: 2 | C25: 042 | D25: 484 | E25: 161 | G25: 042484 | I25: Mercury Vapor | J25: Dusk to Dawn | K25: 10000 | L25: 515 | M25: 0 | N25: 0 | O25: 0 | P25: 7 | Q25: 0 | S25: 0 | T25: 0 | U25: 0 | V25: 9.13 | W25: 0 | Y25: 0 | Z25: 0 | AA25: 0 | AB25: 63.91 | AC25: 0 | AE25: =SUMIF($G:$G,TEXT(AE$3,"000")&TEXT($L25,"000"),$E:$E) -> 0 | AF25: =SUMIF($G:$G,TEXT(AF$3,"000")&TEXT($L25,"000"),$E:$E) -> 0 | AG25: =SUMIF($G:$G,TEXT(AG$3,"000")&TEXT($L25,"000"),$E:$E) -> 0 | AH25: =SUMIF($G:$G,TEXT(AH$3,"000")&TEXT($L25,"000"),$E:$E) -> 7 | AI25: =SUMIF($G:$G,TEXT(AI$3,"000")&TEXT($L25,"000"),$E:$E) -> 0 | AK25: 0 | AL25: 0 | AM25: 0 | AN25: 9.25 | AO25: 0 | AQ25: 0 | AR25: 0 | AS25: 0 | AT25: 64.75 | AU25: 0 | AV25: 0.84 | AW25: 111 | BA25: 8.87 | BD25: -0.63 | BH25: =ROUND((V25*$BE$2)+$BD25-BA25,2) -> 0 | BL25: 0 | BM25: 0 | BN25: 0 | BO25: 9.620925 | BP25: 0 | BR25: 0 | BS25: 0 | BT25: 0 | BU25: 0.750925 | BV25: 0
B26: 2 | C26: 042 | D26: 522 | E26: 31 | G26: 042522 | I26: Single High-Pressure Sodium Vapor | J26: Pedestal Base | K26: 200W | L26: 522 | M26: 0 | N26: 31 | O26: 0 | P26: 0 | Q26: 0 | S26: 0 | T26: 56.1 | U26: 0 | V26: 0 | W26: 0 | Y26: 0 | Z26: 1739.1 | AA26: 0 | AB26: 0 | AC26: 0 | AE26: 0 | AF26: 31 | AG26: 0 | AH26: 0 | AI26: 0 | AK26: 0 | AL26: 56.83 | AM26: 0 | AN26: 0 | AO26: 0 | AQ26: 0 | AR26: 1761.73 | AS26: 0 | AT26: 0 | AU26: 0 | AV26: 22.63 | AW26: 85 | AY26: 57.86 | BD26: -0.48 | BF26: 0.01 | BL26: 0 | BM26: 59.108883 | BN26: 0 | BO26: 0 | BP26: 0 | BR26: 0 | BS26: 1.248883 | BT26: 0 | BU26: 0 | BV26: 0
B27: 2 | C27: 042 | D27: 531 | E27: 2641 | G27: 042531 | I27: Single High-Pressure Sodium Vapor | J27: Wood Pole | K27: 200W | L27: 531 | M27: 0 | N27: 2641 | O27: 2 | P27: 0 | Q27: 0 | S27: 0 | T27: 22.36 | U27: 11.06 | V27: 0 | W27: 0 | Y27: 0 | Z27: 59052.76 | AA27: 22.12 | AB27: 0 | AC27: 0 | AE27: 0 | AF27: 2641 | AG27: 2 | AH27: 0 | AI27: 0 | AK27: 0 | AL27: 22.65 | AM27: 11.2 | AN27: 0 | AO27: 0 | AQ27: 0 | AR27: 59818.65 | AS27: 22.4 | AT27: 0 | AU27: 0 | AV27: 766.17 | AW27: 85 | AY27: 22.77 | AZ27: 11.01 | BD27: -0.48 | BF27: 0.01 | BG27: =ROUND((U27*$BE$2)+$BD27-AZ27,2) -> 0.01 | BL27: 0 | BM27: 23.558265 | BN27: 11.64912 | BO27: 0 | BP27: 0 | BR27: 0 | BS27: 0.788265 | BT27: 0.63912 | BU27: 0 | BV27: 0
B28: 2 | C28: 042 | D28: 532 | E28: 853 | G28: 042532 | I28: Single High-Pressure Sodium Vapor | J28: Pedestal Base | K28: 200W | L28: 532 | M28: 0 | N28: 853 | O28: 107 | P28: 0 | Q28: 0 | S28: 0 | T28: 33.11 | U28: 11.06 | V28: 0 | W28: 0 | Y28: 0 | Z28: 28242.83 | AA28: 1183.42 | AB28: 0 | AC28: 0 | AE28: 0 | AF28: 853 | AG28: 107 | AH28: 0 | AI28: 0 | AK28: 0 | AL28: 33.54 | AM28: 11.2 | AN28: 0 | AO28: 0 | AQ28: 0 | AR28: 28609.62 | AS28: 1198.4 | AT28: 0 | AU28: 0 | AV28: 381.77 | AW28: 85 | AY28: 33.95 | AZ28: 11.01 | BD28: -0.48 | BF28: 0.01 | BG28: 0.01 | BL28: 0 | BM28: 34.884954 | BN28: 11.64912 | BO28: 0 | BP28: 0 | BR28: 0 | BS28: 0.934954 | BT28: 0.63912 | BU28: 0 | BV28: 0
B29: 2 | C29: 042 | D29: 533 | E29: 53 | G29: 042533 | I29: Single High-Pressure Sodium Vapor | J29: Direct Burial | K29: 200W | L29: 533 | M29: 0 | N29: 53 | O29: 1 | P29: 0 | Q29: 0 | S29: 0 | T29: 33.11 | U29: 11.06 | V29: 0 | W29: 0 | Y29: 0 | Z29: 1754.83 | AA29: 11.06 | AB29: 0 | AC29: 0 | AE29: 0 | AF29: 53 | AG29: 1 | AH29: 0 | AI29: 0 | AK29: 0 | AL29: 33.54 | AM29: 11.2 | AN29: 0 | AO29: 0 | AQ29: 0 | AR29: 1777.62 | AS29: 11.2 | AT29: 0 | AU29: 0 | AV29: 22.93 | AW29: 85 | AY29: 33.95 | AZ29: 11.01 | BD29: -0.48 | BF29: 0.01 | BG29: 0.01 | BL29: 0 | BM29: 34.884954 | BN29: 11.64912 | BO29: 0 | BP29: 0 | BR29: 0 | BS29: 0.934954 | BT29: 0.63912 | BU29: 0 | BV29: 0
B30: 2 | C30: 042 | D30: 535 | E30: 696 | G30: 042535 | I30: Single High-Pressure Sodium Vapor | J30: No Pole / Dusk to Dawn (046) | K30: 200W | L30: 535 | M30: 0 | N30: 696 | O30: 20 | P30: 0 | Q30: 136 | S30: 0 | T30: 18.4 | U30: 11.06 | V30: 0 | W30: 8.73 | Y30: 0 | Z30: 12806.4 | AA30: 221.2 | AB30: 0 | AC30: 1187.28 | AE30: 0 | AF30: 696 | AG30: 20 | AH30: 0 | AI30: 136 | AK30: 0 | AL30: 18.64 | AM30: 11.2 | AN30: 0 | AO30: 8.84 | AQ30: 0 | AR30: 12973.44 | AS30: 224 | AT30: 0 | AU30: 1202.24 | AV30: 184.8 | AW30: 85 | AY30: 18.65 | AZ30: 11.01 | BB30: 8.59 | BD30: -0.48 | BF30: 0.01 | BG30: 0.01 | BI30: 0.01 | BL30: 0 | BM30: 19.387464 | BN30: 11.64912 | BO30: 0 | BP30: 9.194484 | BR30: 0 | BS30: 0.737464 | BT30: 0.63912 | BU30: 0 | BV30: 0.604484
B31: 2 | C31: 042 | D31: 536 | E31: 598 | G31: 042536 | I31: Single High-Pressure Sodium Vapor | J31: Developer Contributed | K31: 200W | L31: 536 | M31: 0 | N31: 598 | O31: 0 | P31: 0 | Q31: 0 | S31: 0 | T31: 22.36 | U31: 0 | V31: 0 | W31: 0 | Y31: 0 | Z31: 13371.28 | AA31: 0 | AB31: 0 | AC31: 0 | AE31: 0 | AF31: 598 | AG31: 0 | AH31: 0 | AI31: 0 | AK31: 0 | AL31: =AL27 -> 22.65 | AM31: 0 | AN31: 0 | AO31: 0 | AQ31: 0 | AR31: 13544.7 | AS31: 0 | AT31: 0 | AU31: 0 | AV31: 173.42 | AW31: 85 | AY31: 22.77 | BD31: -0.48 | BF31: 0.01 | BL31: 0 | BM31: 23.558265 | BN31: 0 | BO31: 0 | BP31: 0 | BR31: 0 | BS31: 0.788265 | BT31: 0 | BU31: 0 | BV31: 0
B32: 3 | C32: 042 | D32: 538 | E32: 20 | G32: =IF(OR(ISBLANK(C32),ISBLANK(D32)),"",TEXT(C32,"000")&TEXT(D32,"000")) -> 042538 | I32: Single High-Pressure Sodium Vapor (Capital Only) | J32: Direct Burial | K32: 200W | L32: 538 | M32: 0 | N32: 20 | O32: 0 | P32: 0 | Q32: 0 | S32: 0 | T32: 22.06 | U32: 0 | V32: 0 | W32: 0 | Y32: 0 | Z32: 441.2 | AA32: 0 | AB32: 0 | AC32: 0 | AE32: 0 | AF32: 20 | AG32: 0 | AH32: 0 | AI32: 0 | AK32: 0 | AL32: =ROUND(T32*(1+AL$1),2) -> 22.35 | AM32: 0 | AN32: 0 | AO32: 0 | AQ32: 0 | AR32: 447 | AS32: 0 | AT32: 0 | AU32: 0 | AW32: 85 | AY32: 22.45 | BD32: -0.48 | BF32: 0.01 | BL32: 0 | BM32: 23.246235 | BN32: 0 | BO32: 0 | BP32: 0 | BR32: 0 | BS32: 0.796235 | BT32: 0 | BU32: 0 | BV32: 0
B33: 2 | C33: 042 | D33: 541 | E33: 7 | G33: 042541 | I33: Double High-Pressure Sodium Vapor | J33: Wood Pole | K33: 200W | L33: 541 | M33: 0 | N33: 7 | O33: 0 | P33: 0 | Q33: 0 | S33: 0 | T33: 44.73 | U33: 0 | V33: 0 | W33: 0 | Y33: 0 | Z33: 313.11 | AA33: 0 | AB33: 0 | AC33: 0 | AE33: 0 | AF33: 7 | AG33: 0 | AH33: 0 | AI33: 0 | AK33: 0 | AL33: 45.31 | AM33: 0 | AN33: 0 | AO33: 0 | AQ33: 0 | AR33: 317.17 | AS33: 0 | AT33: 0 | AU33: 0 | AV33: =SUM(AQ33:AU33)-SUM(Y33:AC33) -> 4.06 | AW33: 170 | AY33: 45.55 | BD33: -0.97 | BF33: 0 | BL33: 0 | BM33: 47.126931 | BN33: 0 | BO33: 0 | BP33: 0 | BR33: 0 | BS33: 1.576931 | BT33: 0 | BU33: 0 | BV33: 0
B34: 2 | C34: 042 | D34: 542 | E34: 21 | G34: 042542 | I34: Double High-Pressure Sodium Vapor | J34: Pedestal Base | K34: 200W | L34: 542 | M34: =SUMIF($G:$G,TEXT(M$3,"000")&TEXT($L34,"000"),$E:$E) -> 0 | N34: 21 | O34: 0 | P34: 0 | Q34: 0 | S34: 0 | T34: 56.1 | U34: 20.33 | V34: 0 | W34: 0 | Y34: 0 | Z34: 1178.1 | AA34: 0 | AB34: 0 | AC34: 0 | AE34: 0 | AF34: 21 | AG34: 0 | AH34: 0 | AI34: 0 | AK34: 0 | AL34: 56.83 | AM34: 20.59 | AN34: 0 | AO34: 0 | AQ34: 0 | AR34: 1193.43 | AS34: 0 | AT34: 0 | AU34: 0 | AV34: 15.33 | AW34: 170 | AY34: 57.38 | AZ34: 20.18 | BD34: -0.97 | BF34: 0 | BG34: 0 | BL34: 0 | BM34: 59.108883 | BN34: 21.415659 | BO34: 0 | BP34: 0 | BR34: 0 | BS34: 1.728883 | BT34: 1.235659 | BU34: 0 | BV34: 0
B35: 2 | C35: 042 | D35: 631 | E35: 98 | G35: 042631 | I35: Single Mercury Vapor | J35: Wood Pole | K35: 20000 | L35: 611 | M35: 12 | N35: 0 | O35: 0 | P35: 0 | Q35: 0 | S35: 26.09 | T35: 0 | U35: 0 | V35: 0 | W35: 0 | Y35: 313.08 | Z35: 0 | AA35: 0 | AB35: 0 | AC35: 0 | AE35: 12 | AF35: 0 | AG35: 0 | AH35: 0 | AI35: 0 | AK35: 26.43 | AL35: 0 | AM35: 0 | AN35: 0 | AO35: 0 | AQ35: 317.16 | AR35: 0 | AS35: 0 | AT35: 0 | AU35: 0 | AV35: 4.08 | AW35: 182 | AX35: 26.1 | BD35: -1.04 | BE35: 0 | BL35: 27.489843 | BM35: 0 | BN35: 0 | BO35: 0 | BP35: 0 | BR35: 1.389843 | BS35: 0 | BT35: 0 | BU35: 0 | BV35: 0
B36: 2 | C36: 042 | D36: 632 | E36: 100 | G36: 042632 | I36: Mercury Vapor | J36: Dusk to Dawn | K36: 20000 | L36: 615 | M36: 0 | N36: 0 | O36: 0 | P36: 326 | Q36: 0 | S36: 0 | T36: 0 | U36: 0 | V36: 14.11 | W36: 0 | Y36: 0 | Z36: 0 | AA36: 0 | AB36: 4599.86 | AC36: 0 | AE36: 0 | AF36: 0 | AG36: 0 | AH36: 326 | AI36: 0 | AK36: 0 | AL36: 0 | AM36: 0 | AN36: 14.29 | AO36: 0 | AQ36: 0 | AR36: 0 | AS36: 0 | AT36: 4658.54 | AU36: 0 | AV36: 58.68 | AW36: 182 | BA36: 13.64 | BD36: -1.04 | BH36: 0 | BL36: 0 | BM36: 0 | BN36: 0 | BO36: 14.863029 | BP36: 0 | BR36: 0 | BS36: 0 | BT36: 0 | BU36: 1.223029 | BV36: 0
B37: 2 | C37: 042 | D37: 633 | E37: 52 | G37: 042633 | I37: Single High-Pressure Sodium Vapor | J37: Wood Pole | K37: 250W | L37: 631 | M37: 0 | N37: 98 | O37: 0 | P37: 0 | Q37: 0 | S37: 0 | T37: 26.36 | U37: 12.86 | V37: 0 | W37: 0 | Y37: 0 | Z37: 2583.28 | AA37: 0 | AB37: 0 | AC37: 0 | AE37: 0 | AF37: 98 | AG37: 0 | AH37: 0 | AI37: 0 | AK37: 0 | AL37: 26.7 | AM37: 13.03 | AN37: 0 | AO37: 0 | AQ37: 0 | AR37: 2616.6 | AS37: 0 | AT37: 0 | AU37: 0 | AV37: 33.32 | AW37: 107 | AY37: 26.81 | AZ37: 12.77 | BD37: -0.61 | BF37: 0 | BG37: 0 | BL37: 0 | BM37: 27.77067 | BN37: 13.552503 | BO37: 0 | BP37: 0 | BR37: 0 | BS37: 0.96067 | BT37: 0.782503 | BU37: 0 | BV37: 0
B38: 2 | C38: 042 | D38: 636 | E38: 22 | G38: 042636 | I38: Single High-Pressure Sodium Vapor | J38: Pedestal Base | K38: 250W | L38: 632 | M38: 0 | N38: 100 | O38: 5 | P38: 0 | Q38: 0 | S38: 0 | T38: 37.12 | U38: 12.86 | V38: 0 | W38: 0 | Y38: 0 | Z38: 3712 | AA38: 64.3 | AB38: 0 | AC38: 0 | AE38: 0 | AF38: 100 | AG38: 5 | AH38: 0 | AI38: 0 | AK38: 0 | AL38: 37.6 | AM38: 13.03 | AN38: 0 | AO38: 0 | AQ38: 0 | AR38: 3760 | AS38: 65.15 | AT38: 0 | AU38: 0 | AV38: 48.85 | AW38: 107 | AY38: 38 | AZ38: 12.77 | BD38: -0.61 | BF38: 0 | BG38: 0 | BL38: 0 | BM38: 39.10776 | BN38: 13.552503 | BO38: 0 | BP38: 0 | BR38: 0 | BS38: 1.10776 | BT38: 0.782503 | BU38: 0 | BV38: 0
B39: 2 | C39: 042 | D39: 831 | E39: =96+1 -> 97 | G39: 042831 | I39: Single High-Pressure Sodium Vapor | J39: Direct Burial | K39: 250W | L39: 633 | M39: 0 | N39: 52 | O39: 0 | P39: 0 | Q39: 0 | S39: 0 | T39: 37.12 | U39: 12.86 | V39: 0 | W39: 0 | Y39: 0 | Z39: 1930.24 | AA39: 0 | AB39: 0 | AC39: 0 | AE39: 0 | AF39: 52 | AG39: 0 | AH39: 0 | AI39: 0 | AK39: 0 | AL39: 37.6 | AM39: 13.03 | AN39: 0 | AO39: 0 | AQ39: 0 | AR39: 1955.2 | AS39: 0 | AT39: 0 | AU39: 0 | AV39: 24.96 | AW39: 107 | AY39: 38 | AZ39: 12.77 | BD39: -0.61 | BF39: 0 | BG39: 0 | BL39: 0 | BM39: 39.10776 | BN39: 13.552503 | BO39: 0 | BP39: 0 | BR39: 0 | BS39: 1.10776 | BT39: 0.782503 | BU39: 0 | BV39: 0
B40: 2 | C40: 042 | D40: 832 | E40: 5 | G40: 042832 | I40: Single High-Pressure Sodium Vapor | J40: Dusk to Dawn (046) | K40: 250W | L40: 635 | M40: 0 | N40: 0 | O40: 3 | P40: 0 | Q40: 408 | S40: 0 | T40: 0 | U40: 12.86 | V40: 0 | W40: 10.52 | Y40: 0 | Z40: 0 | AA40: 38.58 | AB40: 0 | AC40: 4292.16 | AE40: 0 | AF40: 0 | AG40: 3 | AH40: 0 | AI40: 408 | AK40: 0 | AL40: 0 | AM40: 13.03 | AN40: 0 | AO40: 10.66 | AQ40: 0 | AR40: 0 | AS40: 39.09 | AT40: 0 | AU40: 4349.28 | AV40: 57.63 | AW40: 107 | AZ40: 12.77 | BB40: 10.33 | BD40: -0.61 | BG40: 0 | BI40: 0 | BL40: 0 | BM40: 0 | BN40: 13.552503 | BO40: 0 | BP40: 11.087466 | BR40: 0 | BS40: 0 | BT40: 0.782503 | BU40: 0 | BV40: 0.757466
B41: 2 | C41: 042 | D41: 835 | E41: 10 | G41: =IF(OR(ISBLANK(C41),ISBLANK(D41)),"",TEXT(C41,"000")&TEXT(D41,"000")) -> 042835 | I41: Single High-Pressure Sodium Vapor | J41: Developer Contributed | K41: 250W | L41: 636 | M41: 0 | N41: 22 | O41: 0 | P41: 0 | Q41: 0 | S41: 0 | T41: 26.36 | U41: 0 | V41: 0 | W41: 0 | Y41: 0 | Z41: 579.92 | AA41: 0 | AB41: 0 | AC41: 0 | AE41: 0 | AF41: 22 | AG41: 0 | AH41: 0 | AI41: 0 | AK41: 0 | AL41: =AL37 -> 26.7 | AM41: 0 | AN41: 0 | AO41: 0 | AQ41: 0 | AR41: 587.4 | AS41: 0 | AT41: 0 | AU41: 0 | AV41: 7.48 | AW41: 107 | AY41: 26.81 | BD41: -0.61 | BF41: 0 | BL41: 0 | BM41: 27.77067 | BN41: 0 | BO41: 0 | BP41: 0 | BR41: 0 | BS41: 0.96067 | BT41: 0 | BU41: 0 | BV41: 0
B42: 2 | C42: 042 | D42: 836 | E42: 3 | G42: 042836 | I42: Mercury Vapor | J42: Dusk to Dawn | K42: 35000 | L42: 715 | M42: 0 | N42: 0 | O42: 0 | P42: 6 | Q42: 0 | S42: 0 | T42: 0 | U42: 0 | V42: 22.91 | W42: 0 | Y42: 0 | Z42: 0 | AA42: 0 | AB42: 137.46 | AC42: 0 | AE42: 0 | AF42: 0 | AG42: 0 | AH42: 6 | AI42: 0 | AK42: 0 | AL42: =ROUND(T42*(1+AL$1),2) -> 0 | AM42: 0 | AN42: 23.21 | AO42: 0 | AQ42: 0 | AR42: 0 | AS42: 0 | AT42: 139.26 | AU42: 0 | AV42: 1.8 | AW42: 285 | BA42: 22.21 | BD42: -1.62 | BH42: 0 | BL42: 0 | BM42: 0 | BN42: 0 | BO42: 24.140721 | BP42: 0 | BR42: 0 | BS42: 0 | BT42: 0 | BU42: 1.930721 | BV42: 0
B43: 2 | C43: 042 | D43: 842 | E43: 3 | G43: 042842 | I43: Single High-Pressure Sodium Vapor | J43: Pedestal Base | K43: 310W | L43: 732 | M43: 0 | N43: 0 | O43: 26 | P43: 0 | Q43: 0 | S43: 0 | T43: 0 | U43: 15.08 | V43: 0 | W43: 0 | Y43: 0 | Z43: 0 | AA43: 392.08 | AB43: 0 | AC43: 0 | AE43: 0 | AF43: 0 | AG43: 26 | AH43: 0 | AI43: 0 | AK43: 0 | AL43: 0 | AM43: 15.28 | AN43: 0 | AO43: 0 | AQ43: 0 | AR43: 0 | AS43: 397.28 | AT43: 0 | AU43: 0 | AV43: 5.2 | AW43: 133 | AZ43: 14.92 | BD43: -0.76 | BG43: 0 | BL43: 0 | BM43: 0 | BN43: 15.892728 | BO43: 0 | BP43: 0 | BR43: 0 | BS43: 0 | BT43: 0.972728 | BU43: 0 | BV43: 0
E44: =SUM(E13:E43) -> 21444 | I44: Single High-Pressure Sodium Vapor | J44: No Pole / Dusk to Dawn (046) | K44: 310W | L44: 735 | M44: =SUMIF($G:$G,TEXT(M$3,"000")&TEXT($L44,"000"),$E:$E) -> 0 | N44: 0 | O44: 30 | P44: 0 | Q44: 438 | S44: 0 | T44: 0 | U44: 15.08 | V44: 0 | W44: 12.7 | Y44: 0 | Z44: 0 | AA44: 452.4 | AB44: 0 | AC44: 5562.6 | AE44: 0 | AF44: 0 | AG44: 30 | AH44: 0 | AI44: 438 | AK44: 0 | AL44: 0 | AM44: 15.28 | AN44: 0 | AO44: 12.86 | AQ44: 0 | AR44: 0 | AS44: 458.4 | AT44: 0 | AU44: 5632.68 | AV44: 76.08 | AW44: 133 | AZ44: 14.92 | BB44: 12.45 | BD44: -0.76 | BG44: 0 | BI44: 0 | BL44: 0 | BM44: 0 | BN44: 15.892728 | BO44: 0 | BP44: 13.375686 | BR44: 0 | BS44: 0 | BT44: 0.972728 | BU44: 0 | BV44: 0.925686
I45: Mercury Vapor | J45: Dusk to 1 AM | K45: 55000 | L45: 819 | M45: 0 | N45: 0 | O45: 0 | P45: 34 | Q45: 0 | S45: 0 | T45: 0 | U45: 0 | V45: 21.71 | W45: 0 | Y45: 0 | Z45: 0 | AA45: 0 | AB45: 738.14 | AC45: 0 | AE45: 0 | AF45: 0 | AG45: 0 | AH45: 34 | AI45: 0 | AK45: 0 | AL45: 0 | AM45: 0 | AN45: 21.99 | AO45: 0 | AQ45: 0 | AR45: 0 | AS45: 0 | AT45: 747.66 | AU45: 0 | AV45: 9.52 | AW45: 417 | BA45: 20.2 | BD45: -2.38 | BH45: 0 | BL45: 0 | BM45: 0 | BN45: 0 | BO45: 22.871799 | BP45: 0 | BR45: 0 | BS45: 0 | BT45: 0 | BU45: 2.671799 | BV45: 0
B46: 2 | C46: 044 | D46: 431 | E46: 3 | G46: =IF(OR(ISBLANK(C46),ISBLANK(D46)),"",TEXT(C46,"000")&TEXT(D46,"000")) -> 044431 | I46: Single High-Pressure Sodium Vapor | J46: Wood Pole | K46: 400W | L46: 831 | M46: 0 | N46: 97 | O46: 0 | P46: 0 | Q46: 0 | S46: 0 | T46: 33.4 | U46: 19.37 | V46: 0 | W46: 0 | Y46: 0 | Z46: 3239.8 | AA46: 0 | AB46: 0 | AC46: 0 | AE46: 0 | AF46: 97 | AG46: 0 | AH46: 0 | AI46: 0 | AK46: 0 | AL46: 33.83 | AM46: 19.62 | AN46: 0 | AO46: 0 | AQ46: 0 | AR46: 3281.51 | AS46: 0 | AT46: 0 | AU46: 0 | AV46: 41.71 | AW46: 169 | AY46: 33.78 | AZ46: 19.19 | BD46: -0.96 | BF46: 0 | BG46: 0 | BL46: 0 | BM46: 35.186583 | BN46: 20.406762 | BO46: 0 | BP46: 0 | BR46: 0 | BS46: 1.406583 | BT46: 1.216762 | BU46: 0 | BV46: 0
B47: 2 | C47: 044 | D47: 432 | E47: 20 | G47: 044432 | I47: Single High-Pressure Sodium Vapor | J47: Pedestal Base | K47: 400W | L47: 832 | M47: 0 | N47: 5 | O47: 1 | P47: 0 | Q47: 0 | S47: 0 | T47: 49.51 | U47: 19.37 | V47: 0 | W47: 0 | Y47: 0 | Z47: 247.55 | AA47: 19.37 | AB47: 0 | AC47: 0 | AE47: 0 | AF47: 5 | AG47: 1 | AH47: 0 | AI47: 0 | AK47: 0 | AL47: 50.15 | AM47: 19.62 | AN47: 0 | AO47: 0 | AQ47: 0 | AR47: 250.75 | AS47: 19.62 | AT47: 0 | AU47: 0 | AV47: 3.45 | AW47: 169 | AY47: 50.54 | AZ47: 19.19 | BD47: -0.96 | BF47: 0 | BG47: 0 | BL47: 0 | BM47: 52.161015 | BN47: 20.406762 | BO47: 0 | BP47: 0 | BR47: 0 | BS47: 1.621015 | BT47: 1.216762 | BU47: 0 | BV47: 0
B48: 2 | C48: 044 | D48: 433 | E48: 10 | G48: 044433 | I48: Single High-Pressure Sodium Vapor | J48: No Pole / Dusk to Dawn (046) | K48: 400W | L48: 835 | M48: 0 | N48: 10 | O48: 9 | P48: 0 | Q48: 76 | S48: 0 | T48: 26.14 | U48: 19.37 | V48: 0 | W48: 16.1 | Y48: 0 | Z48: 261.4 | AA48: 174.33 | AB48: 0 | AC48: 1223.6 | AE48: 0 | AF48: 10 | AG48: 9 | AH48: 0 | AI48: 76 | AK48: 0 | AL48: 26.48 | AM48: 19.62 | AN48: 0 | AO48: 16.31 | AQ48: 0 | AR48: 264.8 | AS48: 176.58 | AT48: 0 | AU48: 1239.56 | AV48: 21.61 | AW48: 169 | AY48: 26.23 | AZ48: 19.19 | BB48: 15.79 | BD48: -0.96 | BF48: 0 | BG48: 0 | BI48: 0 | BL48: 0 | BM48: 27.541848 | BN48: 20.406762 | BO48: 0 | BP48: 16.964031 | BR48: 0 | BS48: 1.311848 | BT48: 1.216762 | BU48: 0 | BV48: 1.174031
B49: 2 | C49: 044 | D49: 435 | E49: 45 | G49: 044435 | I49: Single High-Pressure Sodium Vapor | J49: Developer Contributed | K49: 400W | L49: 836 | M49: 0 | N49: 3 | O49: 0 | P49: 0 | Q49: 0 | S49: 0 | T49: 33.4 | U49: 0 | V49: 0 | W49: 0 | Y49: 0 | Z49: 100.2 | AA49: 0 | AB49: 0 | AC49: 0 | AE49: 0 | AF49: 3 | AG49: 0 | AH49: 0 | AI49: 0 | AK49: 0 | AL49: =AL46 -> 33.83 | AM49: 0 | AN49: 0 | AO49: 0 | AQ49: 0 | AR49: 101.49 | AS49: 0 | AT49: 0 | AU49: 0 | AV49: 1.29 | AW49: 169 | AY49: 33.78 | BD49: -0.96 | BF49: 0 | BL49: 0 | BM49: 35.186583 | BN49: 0 | BO49: 0 | BP49: 0 | BR49: 0 | BS49: 1.406583 | BT49: 0 | BU49: 0 | BV49: 0
B50: 2 | C50: 044 | D50: 531 | E50: 2 | G50: 044531 | I50: Double High-Pressure Sodium Vapor | J50: Pedestal Base | K50: 400W | L50: 842 | M50: 0 | N50: 3 | O50: 0 | P50: 0 | Q50: 0 | S50: 0 | T50: 87.55 | U50: 0 | V50: 0 | W50: 0 | Y50: 0 | Z50: 262.65 | AA50: 0 | AB50: 0 | AC50: 0 | AE50: 0 | AF50: 3 | AG50: 0 | AH50: 0 | AI50: 0 | AK50: 0 | AL50: =ROUND(T50*(1+AL$1),2) -> 88.68 | AM50: 0 | AN50: 0 | AO50: 0 | AQ50: 0 | AR50: 266.04 | AS50: 0 | AT50: 0 | AU50: 0 | AV50: 3.39 | AW50: 338 | AY50: 89.13 | BD50: -1.93 | BF50: 0 | BL50: 0 | BM50: 92.236068 | BN50: 0 | BO50: 0 | BP50: 0 | BR50: 0 | BS50: 3.106068 | BT50: 0 | BU50: 0 | BV50: 0
B51: 2 | C51: 044 | D51: 532 | E51: 107 | G51: 044532 | I51: Double High-Pressure Sodium Vapor | J51: No Pole | K51: 400W | L51: 845 | M51: 0 | N51: 0 | O51: 1 | P51: 0 | Q51: 0 | S51: 0 | T51: 0 | U51: 36.28 | V51: 0 | W51: 0 | Y51: 0 | Z51: 0 | AA51: 36.28 | AB51: 0 | AC51: 0 | AE51: 0 | AF51: 0 | AG51: 1 | AH51: 0 | AI51: 0 | AK51: 0 | AL51: 0 | AM51: 36.75 | AN51: 0 | AO51: 0 | AQ51: 0 | AR51: 0 | AS51: 36.75 | AT51: 0 | AU51: 0 | AV51: 0.47 | AW51: 338 | AZ51: 35.8 | BD51: -1.93 | BG51: 0 | BL51: 0 | BM51: 0 | BN51: 38.223675 | BO51: 0 | BP51: 0 | BR51: 0 | BS51: 0 | BT51: 2.423675 | BU51: 0 | BV51: 0
B52: 2 | C52: 044 | D52: 533 | E52: 1 | G52: 044533 | I52: Single High-Pressure Sodium Vapor | J52: Dust to Dawn (046) | K52: 150W | L52: 935 | M52: 0 | N52: 0 | O52: 0 | P52: 0 | Q52: 112 | S52: 0 | T52: 0 | U52: 0 | V52: 0 | W52: 6.52 | Y52: 0 | Z52: 0 | AA52: 0 | AB52: 0 | AC52: 730.24 | AE52: 0 | AF52: 0 | AG52: 0 | AH52: 0 | AI52: 112 | AK52: =ROUND(S52*(1+AK$1),2) -> 0 | AL52: 0 | AM52: =ROUND(U52*(1+AM$1),2) -> 0 | AN52: =ROUND(V52*(1+AN$1),2) -> 0 | AO52: 6.6 | AQ52: =IF(AND(AE52<>0,AK52=0),#VALUE!,AE52*AK52) -> 0 | AR52: 0 | AS52: 0 | AT52: 0 | AU52: 739.2 | AV52: 8.96 | AW52: 62 | BB52: 6.43 | BD52: -0.35 | BI52: 0 | BL52: 0 | BM52: 0 | BN52: 0 | BO52: 0 | BP52: 6.86466 | BR52: 0 | BS52: 0 | BT52: 0 | BU52: 0 | BV52: 0.43466
B53: 2 | C53: 044 | D53: 535 | E53: 20 | G53: 044535 | S53: 0 | T53: 0 | U53: 0 | V53: 0 | W53: 0 | AK53: 0 | AL53: 0 | AM53: 0 | AN53: 0 | AO53: =ROUND(W53*(1+AO$1),2) -> 0 | AV53: 0 | BL53: 0 | BM53: 0 | BN53: 0 | BO53: 0 | BP53: 0
B54: 2 | C54: 044 | D54: 632 | E54: 5 | G54: 044632 | M54: =SUM(M4:M53) -> 127 | N54: =SUM(N4:N53) -> 21444 | O54: =SUM(O4:O53) -> 283 | P54: =SUM(P4:P53) -> 476 | Q54: =SUM(Q4:Q53) -> 1381 | Y54: =ROUND(SUM(Y4:Y53),2) -> 1977.33 | Z54: =ROUND(SUM(Z4:Z53),2) -> 371887.73 | AA54: =ROUND(SUM(AA4:AA53),2) -> 3168.94 | AB54: =ROUND(SUM(AB4:AB53),2) -> 6185.96 | AC54: =ROUND(SUM(AC4:AC53),2) -> 13845.74 | AE54: =SUM(AE4:AE53) -> 127 | AF54: =SUM(AF4:AF53) -> 21444 | AG54: =SUM(AG4:AG53) -> 283 | AH54: =SUM(AH4:AH53) -> 476 | AI54: =SUM(AI4:AI53) -> 1381 | AK54: 0 | AL54: 0 | AM54: 0 | AN54: 0 | AO54: 0 | AQ54: =ROUND(SUM(AQ4:AQ53),2) -> 2002.81 | AR54: =ROUND(SUM(AR4:AR53),2) -> 377301.69 | AS54: =ROUND(SUM(AS4:AS53),2) -> 3209.69 | AT54: =ROUND(SUM(AT4:AT53),2) -> 6265.59 | AU54: =ROUND(SUM(AU4:AU53),2) -> 14023.31 | BL54: 0 | BM54: 0 | BN54: 0 | BO54: 0 | BP54: 0
B55: 2 | C55: 044 | D55: 635 | E55: =3 -> 3 | G55: =IF(OR(ISBLANK(C55),ISBLANK(D55)),"",TEXT(C55,"000")&TEXT(D55,"000")) -> 044635 | K55: Total | Q55: =SUM(M54:Q54) -> 23711 | AI55: =SUM(AE54:AI54) -> 23711 | AK55: 0 | AL55: 0 | AM55: 0 | AN55: 0 | AO55: 0 | AU55: =SUM(AQ54:AU54) -> 402803.09 | BL55: 0 | BM55: 0 | BN55: 0 | BO55: 0 | BP55: 0
B56: 2 | C56: 044 | D56: 732 | E56: 26 | G56: =IF(OR(ISBLANK(C56),ISBLANK(D56)),"",TEXT(C56,"000")&TEXT(D56,"000")) -> 044732 | I56: (1) from Street Light Report and Area Light Report, 1/10/12, PDE-E-24-28 | Q56: =ROUND(Q55-E82,0) -> 0 | AC56: =SUM(Y54:AC54) -> 397065.7 | AI56: =AI55-Q55 -> 0 | AK56: 0 | AL56: 0 | AM56: 0 | AN56: 0 | AO56: 0 | AU56: =AU55/AC56-1 -> 0.01444947272 | BL56: 0 | BM56: 0 | BN56: 0 | BO56: 0 | BP56: 0
B57: 2 | C57: 044 | D57: 735 | E57: 30 | G57: 044735 | Y57: 1953 | Z57: 374990 | AA57: =3105+336 -> 3441 | AB57: 5969 | AC57: 13415 | AD57: Jun '13 revenue | AK57: 0 | AL57: 0 | AM57: 0 | AN57: 0 | AO57: 0 | BL57: 0 | BM57: 0 | BN57: 0 | BO57: 0 | BP57: 0
B58: 2 | C58: 044 | D58: 832 | E58: 1 | G58: 044832 | I58: no customer count - taken out of exhibit to limit print range | Y58: =Y54-Y57 -> 24.33 | Z58: =Z54-Z57 -> -3102.27 | AA58: =AA54-AA57 -> -272.06 | AB58: =AB54-AB57 -> 216.96 | AC58: =AC54-AC57 -> 430.74 | AK58: 0 | AL58: 0 | AM58: 0 | AN58: 0 | AO58: 0 | BL58: 0 | BM58: 0 | BN58: 0 | BO58: 0 | BP58: 0
B59: 2 | C59: 044 | D59: 835 | E59: 9 | G59: 044835 | I59: Single High-Pressure Sodium Vapor | J59: Dusk to 1 AM (046) | K59: 100W | L59: 439 | M59: =SUMIF($G:$G,TEXT(M$3,"000")&TEXT($L59,"000"),$E:$E) -> 0 | N59: 0 | O59: 0 | P59: 0 | Q59: 0 | R59: =IF(SUM(M59:Q59)>0,0,1) -> 1 | S59: 0 | T59: 0 | U59: 0 | V59: 0 | W59: 3.67 | AC59: =SUM(Y58:AC58) -> -2702.3 | AE59: =SUMIF($G:$G,TEXT(AE$3,"000")&TEXT($L59,"000"),$E:$E) -> 0 | AF59: 0 | AG59: 0 | AH59: 0 | AI59: 0 | AK59: 0 | AL59: 0 | AM59: 0 | AN59: 0 | AO59: 3.72 | AW59: 40 | BB59: 3.6 | BD59: =ROUND(AW59*$BD$2,2) -> -0.23 | BI59: -0.01 | BL59: 0 | BM59: 0 | BN59: 0 | BO59: 0 | BP59: 3.869172 | BR59: 0 | BS59: 0 | BT59: 0 | BU59: 0 | BV59: 0.269172
B60: 2 | C60: 044 | D60: 845 | E60: 1 | G60: 044845 | I60: Double High-Pressure Sodium Vapor | J60: Pedestal Base | K60: 100W | L60: 442 | M60: 0 | N60: 0 | O60: 0 | P60: 0 | Q60: 0 | R60: 1 | S60: 0 | T60: 38.52 | U60: 12.45 | V60: 0 | W60: 0 | AC60: =AC59/SUM(Y57:AC57) -> -0.006759670609 | AE60: 0 | AF60: 0 | AG60: 0 | AH60: 0 | AI60: 0 | AK60: 0 | AL60: 39.02 | AM60: 12.61 | AN60: 0 | AO60: 0 | AQ60: Surch Rate | AW60: 80 | AY60: 38.7 | AZ60: 12.37 | BD60: -0.46 | BF60: 0.9 | BG60: 0.12 | BL60: 0 | BM60: 40.584702 | BN60: 13.115661 | BO60: 0 | BP60: 0 | BR60: 0 | BS60: 1.884702 | BT60: 0.745661 | BU60: 0 | BV60: 0
E61: =SUM(E46:E60) -> 283 | I61: Double High-Pressure Sodium Vapor | J61: Direct Burial | K61: 100W | L61: 443 | M61: 0 | N61: 0 | O61: 0 | P61: 0 | Q61: 0 | R61: =IF(SUM(M61:Q61)>0,0,1) -> 1 | S61: 0 | T61: 0 | U61: 12.45 | V61: 0 | W61: 0 | Y61: Surch Rate | AE61: 0 | AF61: 0 | AG61: 0 | AH61: 0 | AI61: 0 | AK61: 0 | AL61: 0 | AM61: 12.61 | AN61: 0 | AO61: 0 | AQ61: =1+'Lighting summary'!D39 -> 1.039587946 | AT61: Billed | AU61: =AU55*AQ61 -> 418749.2371 | AW61: 80 | AZ61: 12.37 | BD61: -0.46 | BG61: 0.12 | BL61: 0 | BM61: 0 | BN61: 13.115661 | BO61: 0 | BP61: 0 | BR61: 0 | BS61: 0 | BT61: 0.745661 | BU61: 0 | BV61: 0
I62: Double High-Pressure Sodium Vapor | J62: Developer Contributed | K62: 100W | L62: 446 | M62: 0 | N62: 0 | O62: 0 | P62: 0 | Q62: 0 | R62: 1 | S62: 0 | T62: 27.19 | U62: 0 | V62: 0 | W62: 0 | Y62: =1+'Lighting summary'!I39 -> 1.0401 | AB62: Billed | AC62: =AC56*$Y$62 -> 412988.0346 | AE62: 0 | AF62: 0 | AG62: 0 | AH62: 0 | AI62: 0 | AK62: 0 | AL62: 27.54 | AM62: 0 | AN62: 0 | AO62: 0 | AW62: 80 | AY62: 27.26 | BD62: -0.46 | BF62: 0.56 | BL62: 0 | BM62: 28.644354 | BN62: 0 | BO62: 0 | BP62: 0 | BR62: 0 | BS62: 1.384354 | BT62: 0 | BU62: 0 | BV62: 0
B63: 2 | C63: 045 | D63: 415 | E63: =6+81 -> 87 | G63: 045415 | AB63: Actual | AC63: =SUM(Y57:AC57) -> 399768 | AD63: Diff is Sch 93
B64: 2 | C64: 045 | D64: 419 | E64: 16 | G64: =IF(OR(ISBLANK(C64),ISBLANK(D64)),"",TEXT(C64,"000")&TEXT(D64,"000")) -> 045419 | AB64: Diff | AC64: =AC63-AC62 -> -13220.03457
B65: 2 | C65: 045 | D65: 515 | E65: 7 | G65: =IF(OR(ISBLANK(C65),ISBLANK(D65)),"",TEXT(C65,"000")&TEXT(D65,"000")) -> 045515 | I65: Decorative Sodium Vapor | J65: No Pole | K65: Granville 100W | L65: 475 | M65: =SUMIF($G:$G,TEXT(M$3,"000")&TEXT($L65,"000"),$E:$E) -> 0 | N65: 0 | O65: 0 | P65: 0 | Q65: 0 | R65: 1 | S65: 0 | T65: 18.66 | U65: 0 | V65: 0 | W65: 0 | AE65: =SUMIF($G:$G,TEXT(AE$3,"000")&TEXT($L65,"000"),$E:$E) -> 0 | AF65: 0 | AG65: 0 | AH65: 0 | AI65: 0 | AK65: 0 | AL65: 18.9 | AM65: 0 | AN65: 0 | AO65: 0 | AW65: 40 | AY65: 18.75 | BD65: -0.23 | BF65: 0.43 | BL65: 0 | BM65: 19.65789 | BN65: 0 | BO65: 0 | BP65: 0 | BR65: 0 | BS65: 0.90789 | BT65: 0 | BU65: 0 | BV65: 0
B66: 2 | C66: 045 | D66: 615 | E66: =34+292 -> 326 | G66: 045615 | I66: Single High-Pressure Sodium Vapor | J66: Dusk to 1 AM (046) | K66: 200W | L66: 539 | M66: 0 | N66: 0 | O66: 0 | P66: 0 | Q66: 0 | R66: 1 | S66: 0 | T66: 0 | U66: 0 | V66: 0 | W66: 6.54 | AE66: 0 | AF66: 0 | AG66: 0 | AH66: 0 | AI66: 0 | AK66: 0 | AL66: 0 | AM66: 0 | AN66: 0 | AO66: 6.62 | AW66: 85 | BB66: 6.39 | BD66: -0.48 | BI66: -0.07 | BL66: 0 | BM66: 0 | BN66: 0 | BO66: 0 | BP66: 6.885462 | BR66: 0 | BS66: 0 | BT66: 0 | BU66: 0 | BV66: 0.495462
B67: 2 | C67: 045 | D67: 715 | E67: 6 | G67: 045715 | I67: Double High-Pressure Sodium Vapor | J67: Direct Burial | K67: 200W | L67: 543 | M67: 0 | N67: 0 | O67: 0 | P67: 0 | Q67: 0 | R67: 1 | S67: 0 | T67: 0 | U67: 20.33 | V67: 0 | W67: 0 | AE67: 0 | AF67: 0 | AG67: 0 | AH67: 0 | AI67: 0 | AK67: 0 | AL67: 0 | AM67: 20.59 | AN67: 0 | AO67: 0 | AW67: 170 | AZ67: 20.11 | BD67: -0.97 | BG67: 0.07 | BL67: 0 | BM67: 0 | BN67: 21.415659 | BO67: 0 | BP67: 0 | BR67: 0 | BS67: 0 | BT67: 1.305659 | BU67: 0 | BV67: 0
B68: 2 | C68: 045 | D68: 819 | E68: 34 | G68: 045819 | I68: Mercury Vapor | J68: Dusk to 1 AM | K68: 20000 | L68: 619 | M68: 0 | N68: 0 | O68: 0 | P68: 0 | Q68: 0 | R68: 1 | S68: 0 | T68: 0 | U68: 0 | V68: 9.39 | W68: 0 | AE68: 0 | AF68: 0 | AG68: 0 | AH68: 0 | AI68: 0 | AK68: 0 | AL68: 0 | AM68: 0 | AN68: 9.51 | AO68: 0 | AW68: 182 | BA68: 9.04 | BD68: -1.04 | BH68: -0.31 | BL68: 0 | BM68: 0 | BN68: 0 | BO68: 9.891351 | BP68: 0 | BR68: 0 | BS68: 0 | BT68: 0 | BU68: =BO68-BA68 -> 0.851351 | BV68: 0
E69: =SUM(E63:E68) -> 476 | I69: Single High-Pressure Sodium Vapor | J69: Dusk to 1 AM (046) | K69: 250W | L69: 639 | M69: 0 | N69: 0 | O69: 0 | P69: 0 | Q69: 0 | R69: 1 | S69: 0 | T69: 0 | U69: 0 | V69: 0 | W69: 8.09 | AE69: 0 | AF69: 0 | AG69: 0 | AH69: 0 | AI69: 0 | AK69: 0 | AL69: 0 | AM69: 0 | AN69: 0 | AO69: 8.19 | AW69: 107 | BB69: 7.9 | BD69: =ROUND(AW69*$BD$2,2) -> -0.61 | BI69: -0.1 | BL69: 0 | BM69: 0 | BN69: 0 | BO69: 0 | BP69: 8.518419 | BR69: =BL69-AX69 -> 0 | BS69: 0 | BT69: 0 | BU69: 0 | BV69: 0.618419
I70: Double High-Pressure Sodium Vapor | J70: Pedestal Base | K70: 250W | L70: 642 | M70: 0 | N70: 0 | O70: 0 | P70: 0 | Q70: 0 | R70: 1 | S70: 0 | T70: 0 | U70: 22.75 | V70: 0 | W70: 0 | AE70: 0 | AF70: 0 | AG70: 0 | AH70: 0 | AI70: 0 | AK70: 0 | AL70: 0 | AM70: 23.04 | AN70: 0 | AO70: 0 | AW70: 214 | AZ70: 22.45 | BD70: -1.22 | BG70: -0.01 | BL70: 0 | BM70: 0 | BN70: 23.963904 | BO70: 0 | BP70: 0 | BR70: 0 | BS70: 0 | BT70: 1.513904 | BU70: 0 | BV70: 0
B71: 2 | C71: 046 | D71: 335 | E71: 41 | G71: 046335 | I71: Single High-Pressure Sodium Vapor | J71: Wood Pole | K71: 310W | L71: 731 | M71: 0 | N71: 0 | O71: 0 | P71: 0 | Q71: 0 | R71: 1 | S71: 0 | T71: 0 | U71: 15.08 | V71: 0 | W71: 0 | AE71: 0 | AF71: 0 | AG71: 0 | AH71: 0 | AI71: 0 | AK71: 0 | AL71: 0 | AM71: 15.28 | AN71: 0 | AO71: 0 | AW71: 133 | AZ71: 14.9 | BD71: -0.76 | BG71: 0.02 | BL71: 0 | BM71: 0 | BN71: 15.892728 | BO71: 0 | BP71: 0 | BR71: 0 | BS71: 0 | BT71: 0.992728 | BU71: 0 | BV71: 0
B72: 2 | C72: 046 | D72: 435 | E72: 81 | G72: 046435 | I72: Single High-Pressure Sodium Vapor | J72: Direct Burial | K72: 310W | L72: 733 | M72: 0 | N72: 0 | O72: 0 | P72: 0 | Q72: 0 | R72: 1 | S72: 0 | T72: 0 | U72: 15.08 | V72: 0 | W72: 0 | AE72: 0 | AF72: 0 | AG72: 0 | AH72: 0 | AI72: 0 | AK72: 0 | AL72: 0 | AM72: 15.28 | AN72: 0 | AO72: 0 | AW72: 133 | AZ72: 14.9 | BD72: -0.76 | BG72: 0.02 | BL72: 0 | BM72: 0 | BN72: 15.892728 | BO72: 0 | BP72: 0 | BR72: 0 | BS72: 0 | BT72: 0.992728 | BU72: 0 | BV72: 0
B73: 2 | C73: 046 | D73: 495 | E73: 44 | G73: =IF(OR(ISBLANK(C73),ISBLANK(D73)),"",TEXT(C73,"000")&TEXT(D73,"000")) -> 046495 | I73: Single High-Pressure Sodium Vapor | J73: Dusk to 1 AM (046) | K73: 310W | L73: 739 | M73: 0 | N73: 0 | O73: 0 | P73: 0 | Q73: 0 | R73: 1 | S73: 0 | T73: 0 | U73: 0 | V73: 0 | W73: 9.71 | AE73: 0 | AF73: 0 | AG73: 0 | AH73: 0 | AI73: 0 | AK73: 0 | AL73: 0 | AM73: 0 | AN73: 0 | AO73: 9.84 | AW73: 133 | BB73: 9.48 | BD73: -0.76 | BI73: -0.14 | BL73: 0 | BM73: 0 | BN73: 0 | BO73: 0 | BP73: 10.234584 | BR73: =BL73-AX73 -> 0 | BS73: =BM73-AY73 -> 0 | BT73: =BN73-AZ73 -> 0 | BU73: =BO73-BA73 -> 0 | BV73: =BP73-BB73 -> 0.754584
B74: 2 | C74: 046 | D74: 499 | E74: 45 | G74: 046499 | I74: Double High-Pressure Sodium Vapor | J74: Pedestal Base | K74: 310W | L74: 742 | M74: 0 | N74: 0 | O74: 0 | P74: 0 | Q74: 0 | R74: 1 | S74: 0 | T74: 0 | U74: 28.38 | V74: 0 | W74: 0 | AE74: 0 | AF74: 0 | AG74: 0 | AH74: 0 | AI74: 0 | AK74: 0 | AL74: 0 | AM74: 28.75 | AN74: 0 | AO74: 0 | AW74: 266 | AZ74: 28 | BD74: -1.52 | BG74: 0 | BL74: 0 | BM74: 0 | BN74: 29.902875 | BO74: 0 | BP74: 0 | BR74: 0 | BS74: 0 | BT74: 1.902875 | BU74: 0 | BV74: 0
B75: 2 | C75: 046 | D75: 535 | E75: 136 | G75: 046535 | I75: Mercury Vapor | J75: Dusk to Dawn | K75: 55000 | L75: 815 | M75: 0 | N75: 0 | O75: 0 | P75: 0 | Q75: 0 | R75: 1 | S75: 0 | T75: 0 | U75: 0 | V75: 32.61 | W75: 0 | AE75: 0 | AF75: 0 | AG75: 0 | AH75: 0 | AI75: 0 | AK75: 0 | AL75: 0 | AM75: 0 | AN75: 33.03 | AO75: 0 | AW75: 417 | BA75: 31.9 | BD75: -2.38 | BH75: -0.36 | BL75: 0 | BM75: 0 | BN75: 0 | BO75: 34.354503 | BP75: 0 | BR75: 0 | BS75: 0 | BT75: 0 | BU75: 2.454503 | BV75: 0
B76: 2 | C76: 046 | D76: 635 | E76: 408 | G76: 046635 | I76: Single High-Pressure Sodium Vapor | J76: Direct Burial | K76: 400W | L76: 833 | M76: 0 | N76: 0 | O76: 0 | P76: 0 | Q76: 0 | R76: 1 | S76: 0 | T76: 0 | U76: 19.37 | V76: 0 | W76: 0 | AE76: 0 | AF76: 0 | AG76: 0 | AH76: 0 | AI76: 0 | AK76: 0 | AL76: 0 | AM76: 19.62 | AN76: 0 | AO76: 0 | AW76: 169 | AZ76: 19.14 | BD76: -0.96 | BG76: 0.05 | BL76: 0 | BM76: 0 | BN76: 20.406762 | BO76: 0 | BP76: 0 | BR76: 0 | BS76: 0 | BT76: 1.266762 | BU76: 0 | BV76: 0
B77: 2 | C77: 046 | D77: 735 | E77: 438 | G77: 046735 | I77: Single High-Pressure Sodium Vapor | J77: Dusk to 1 AM (046) | K77: 400W | L77: 839 | M77: 0 | N77: 0 | O77: 0 | P77: 0 | Q77: 0 | R77: 1 | S77: 0 | T77: 0 | U77: 0 | V77: 0 | W77: 12.15 | AE77: 0 | AF77: 0 | AG77: 0 | AH77: 0 | AI77: 0 | AK77: 0 | AL77: 0 | AM77: 0 | AN77: 0 | AO77: 12.31 | AW77: 169 | BB77: 11.85 | BD77: -0.96 | BI77: -0.17 | BL77: =AK77*$BL$1 -> 0 | BM77: =AL77*$BL$1 -> 0 | BN77: =AM77*$BL$1 -> 0 | BO77: =AN77*$BL$1 -> 0 | BP77: =AO77*$BL$1 -> 12.803631 | BR77: 0 | BS77: 0 | BT77: 0 | BU77: 0 | BV77: 0.953631
B78: 2 | C78: 046 | D78: 835 | E78: 76 | G78: 046835 | BD78: 0 | BL78: =AK78*1.0516 -> 0 | BM78: =AL78*1.0516 -> 0 | BN78: =AM78*1.0516 -> 0 | BP78: =AO78*1.0516 -> 0
B79: 2 | C79: 046 | D79: 935 | E79: 112 | G79: 046935
E80: =SUM(E71:E79) -> 1381
B82: 2 | E82: =E11+E44+E61+E69+E80 -> 23711
D84: Street Light Summary total, WA | E84: 23711
D85: Area Light Count, WA | E85: 8715
E86: =E84+E85 -> 32426
E87: =E82+'Area Lts'!E63-E86 -> 0

Sheet Area Lts
A1: Area Light Summary | I1: WASHINGTON Area Lights | S1: Monthly Rev. | Z1: =SL_RateIncr -> 0 | AC1: % rate increase --> | AD1: ='Lighting summary'!L16 -> 0.01293458634 | AG1: Monthly Rev. | AJ1: -0.00195 | AK1: =-0.00503-0.00067 -> -0.0057 | AO1: compare input Present Billing Rates to calculated Present Billing Rates
A2: DWWPWMS.AREA_LIGHT_ASMBLY1, as of 2/10/11 | M2: # of Lights(1) | P2: Pres. Rates | S2: at Pres. Rates | V2: # of Lights(1) | AA2: # of Lights | AD2: Prop. Rates | AG2: at Prop. Rates | AK2: Pres. Billing Rates | AO2: ='St Lts'!BE2 -> 1.0401 | AP2: ='St Lts'!BF2 -> Sch 91 & 93 | AR2: New Billing Rates | AT2: ='Lighting summary'!I39 -> 0.0401 | AU2: Increase
I3: Fixture Type | J3: Pole Facility | K3: Size | L3: Sched | M3: 047 | N3: 048 | P3: 047 | Q3: 048 | S3: 047 | T3: 048 | V3: 047 | W3: 048 | AA3: 047 | AB3: 048 | AD3: 047 | AE3: 048 | AG3: 047 | AH3: 048 | AJ3: kwh | AK3: 047 | AL3: 048 | AM3: Sch 59 | AN3: Sch 93/94 | AO3: 047 | AP3: 048 | AR3: 047 | AS3: 048 | AU3: 047 | AV3: 048
I4: Sodium Vapor | J4: Granville w/16' decorative pole | K4: 100W | L4: HAG | M4: =SUMIF($G:$G,TEXT(M$3,"000")&TEXT($L4,"000"),$E:$E) -> 0 | N4: 0 | P4: 29.14 | Q4: =P4 -> 29.14 | S4: =IF(AND(M4<>0,P4=0),#VALUE!,M4*P4) -> 0 | T4: =IF(AND(N4<>0,Q4=0),#VALUE!,N4*Q4) -> 0 | V4: =SUMIF($G:$G,TEXT(V$3,"000")&TEXT($L4,"000"),$E:$E) -> 0 | W4: 0 | AA4: =M4 -> 0 | AB4: =N4 -> 0 | AD4: =ROUND(P4*(1+AD$1),2) -> 29.52 | AE4: =AD4 -> 29.52 | AG4: =IF(AND(AA4<>0,AD4=0),#VALUE!,AA4*AD4) -> 0 | AH4: =IF(AND(AB4<>0,AE4=0),#VALUE!,AB4*AE4) -> 0 | AJ4: 40 | AK4: 30.08 | AL4: 30 | AM4: =ROUND($AJ$1*$AJ4,2) -> -0.08 | AN4: =ROUND($AK$1*$AJ4,2) -> -0.23 | AO4: =ROUND(P4*$AO$2-AK4+AN4,2) -> 0 | AP4: =ROUND(Q4*$AO$2-AL4+AM4+AN4,2) -> 0 | AR4: =AD4*$AT$2 -> 1.183752 | AS4: =AE4*$AT$2+AM4 -> 1.103752 | AU4: =AR4-AK4 -> -28.896248 | AV4: =AS4-AL4 -> -28.896248
B5: State | C5: Sched | D5: Rate Sub | E5: # of Lights | I5: Sodium Vapor | J5: Floodlight on existing standard | K5: 250W | L5: HAH | M5: 95 | N5: 9 | P5: 21.56 | Q5: =P5 -> 21.56 | S5: 2048.2 | T5: 194.04 | V5: 95 | W5: 9 | AA5: =M5 -> 95 | AB5: 9 | AD5: 21.84 | AE5: =AD5 -> 21.84 | AG5: 2074.8 | AH5: 196.56 | AJ5: 107 | AK5: 21.81 | AL5: 21.6 | AM5: =ROUND($AJ$1*$AJ5,2) -> -0.21 | AN5: =ROUND($AK$1*$AJ5,2) -> -0.61 | AO5: =ROUND(P5*$AO$2-AK5+AN5,2) -> 0 | AP5: =ROUND(Q5*$AO$2-AL5+AM5+AN5,2) -> 0 | AR5: =AD5*$AT$2 -> 0.875784 | AS5: =AE5*$AT$2+AM5 -> 0.665784 | AU5: =AR5-AK5 -> -20.934216 | AV5: =AS5-AL5 -> -20.934216
I6: Sodium Vapor | J6: Kim light w/25' fiberglass pole | K6: 100W | L6: HAI | M6: 15 | N6: 3 | P6: 28.14 | Q6: 28.14 | S6: 422.1 | T6: 84.42 | V6: 15 | W6: 3 | AA6: 15 | AB6: 3 | AD6: 28.5 | AE6: =AD6 -> 28.5 | AG6: 427.5 | AH6: 85.5 | AJ6: 40 | AK6: 29.04 | AL6: 28.96 | AM6: -0.08 | AN6: -0.23 | AO6: 0 | AP6: 0 | AR6: =AD6*$AT$2 -> 1.14285 | AS6: 1.06285 | AU6: -27.89715 | AV6: -27.89715
B7: WA | C7: 047 | D7: HAH | E7: 95 | G7: =IF(OR(ISBLANK(C7),ISBLANK(D7)),"",TEXT(C7,"000")&TEXT(D7,"000")) -> 047HAH | I7: Sodium Vapor | J7: Post Top w/16' decorative pole | K7: 100W | L7: HAP | M7: 0 | N7: 0 | P7: 27.79 | Q7: 27.79 | S7: 0 | T7: 0 | V7: 0 | W7: 0 | AA7: 0 | AB7: 0 | AD7: 28.15 | AE7: 28.15 | AG7: 0 | AH7: 0 | AJ7: 40 | AK7: 28.67 | AL7: 28.59 | AM7: -0.08 | AN7: -0.23 | AO7: 0 | AP7: 0 | AR7: 1.128815 | AS7: 1.048815 | AU7: -27.541185 | AV7: -27.541185
B8: WA | C8: 047 | D8: HAI | E8: 15 | G8: =IF(OR(ISBLANK(C8),ISBLANK(D8)),"",TEXT(C8,"000")&TEXT(D8,"000")) -> 047HAI | I8: Sodium Vapor | J8: on existing standard | K8: 100W | L8: HPA | M8: 609 | N8: 881 | P8: 13.36 | Q8: 13.36 | S8: 8136.24 | T8: 11770.16 | V8: 609 | W8: 881 | AA8: 609 | AB8: 881 | AD8: 13.53 | AE8: 13.53 | AG8: 8239.77 | AH8: 11919.93 | AJ8: 40 | AK8: 13.67 | AL8: 13.59 | AM8: -0.08 | AN8: -0.23 | AO8: 0 | AP8: 0 | AR8: 0.542553 | AS8: 0.462553 | AU8: -13.127447 | AV8: -13.127447
B9: WA | C9: 047 | D9: HPA | E9: 609 | G9: 047HPA | I9: Sodium Vapor | J9: on existing standard | K9: 200W | L9: HPB | M9: 1188 | N9: 565 | P9: 18.98 | Q9: 18.98 | S9: 22548.24 | T9: 10723.7 | V9: 1188 | W9: 565 | AA9: 1188 | AB9: 565 | AD9: 19.23 | AE9: 19.23 | AG9: 22845.24 | AH9: 10864.95 | AJ9: 84 | AK9: 19.25 | AL9: 19.08 | AM9: -0.16 | AN9: -0.48 | AO9: 0.01 | AP9: 0.02 | AR9: 0.771123 | AS9: 0.611123 | AU9: -18.478877 | AV9: -18.468877
B10: WA | C10: 047 | D10: HPB | E10: 1188 | G10: 047HPB | I10: Sodium Vapor | J10: on existing standard | K10: 400W | L10: HPC | M10: 130 | N10: 10 | P10: 26.21 | Q10: 26.21 | S10: 3407.3 | T10: 262.1 | V10: 130 | W10: 10 | AA10: 130 | AB10: 10 | AD10: 26.55 | AE10: 26.55 | AG10: 3451.5 | AH10: 265.5 | AJ10: 169 | AK10: 26.3 | AL10: 25.97 | AM10: -0.33 | AN10: =ROUND($AK$1*$AJ10,2) -> -0.96 | AO10: 0 | AP10: 0 | AR10: 1.064655 | AS10: 0.734655 | AU10: -25.235345 | AV10: -25.235345
B11: WA | C11: 047 | D11: HPC | E11: 130 | G11: 047HPC | I11: Sodium Vapor | J11: 30' wood pole | K11: 200W | L11: HPD | M11: 971 | N11: 265 | P11: 26.36 | Q11: 26.36 | S11: 25595.56 | T11: 6985.4 | V11: 971 | W11: 265 | AA11: 971 | AB11: 265 | AD11: 26.7 | AE11: 26.7 | AG11: 25925.7 | AH11: 7075.5 | AJ11: 84 | AK11: 26.93 | AL11: 26.76 | AM11: -0.16 | AN11: -0.48 | AO11: 0.01 | AP11: 0.02 | AR11: 1.07067 | AS11: 0.91067 | AU11: -25.85933 | AV11: -25.84933
B12: WA | C12: 047 | D12: HPD | E12: 971 | G12: 047HPD | I12: Sodium Vapor | J12: 30' wood pole | K12: 100W | L12: HPE | M12: 419 | N12: 322 | P12: 19.57 | Q12: 19.57 | S12: 8199.83 | T12: 6301.54 | V12: 419 | W12: 322 | AA12: 419 | AB12: 322 | AD12: 19.82 | AE12: 19.82 | AG12: 8304.58 | AH12: 6382.04 | AJ12: 40 | AK12: 20.12 | AL12: 20.04 | AM12: -0.08 | AN12: -0.23 | AO12: 0 | AP12: 0 | AR12: 0.794782 | AS12: 0.714782 | AU12: -19.325218 | AV12: -19.325218
B13: WA | C13: 047 | D13: HPE | E13: 419 | G13: 047HPE | I13: Sodium Vapor | J13: 30' wood pole | K13: 400W | L13: HPG | M13: 54 | N13: 7 | P13: 33.69 | Q13: 33.69 | S13: 1819.26 | T13: 235.83 | V13: 54 | W13: 7 | AA13: 54 | AB13: 7 | AD13: 34.13 | AE13: 34.13 | AG13: 1843.02 | AH13: 238.91 | AJ13: 169 | AK13: 34.08 | AL13: 33.75 | AM13: -0.33 | AN13: -0.96 | AO13: 0 | AP13: 0 | AR13: 1.368613 | AS13: 1.038613 | AU13: -32.711387 | AV13: -32.711387
B14: WA | C14: 047 | D14: HPG | E14: 54 | G14: 047HPG | I14: Sodium Vapor | J14: 30' steel pole | K14: 200W | L14: HPL | M14: 46 | N14: 5 | P14: 33.11 | Q14: 33.11 | S14: 1523.06 | T14: 165.55 | V14: 46 | W14: 5 | AA14: 46 | AB14: 5 | AD14: 33.54 | AE14: 33.54 | AG14: 1542.84 | AH14: 167.7 | AJ14: 84 | AK14: 33.95 | AL14: 33.78 | AM14: -0.16 | AN14: -0.48 | AO14: 0.01 | AP14: 0.02 | AR14: 1.344954 | AS14: 1.184954 | AU14: -32.605046 | AV14: -32.595046
B15: WA | C15: 047 | D15: HPL | E15: 46 | G15: 047HPL | I15: Sodium Vapor | J15: 25' steel pole | K15: 200W | L15: HPO | M15: 8 | N15: 13 | P15: 28.68 | Q15: 28.68 | S15: 229.44 | T15: 372.84 | V15: 8 | W15: 13 | AA15: 8 | AB15: 13 | AD15: 29.05 | AE15: 29.05 | AG15: 232.4 | AH15: 377.65 | AJ15: 84 | AK15: 29.34 | AL15: 29.17 | AM15: =ROUND($AJ$1*$AJ15,2) -> -0.16 | AN15: -0.48 | AO15: 0.01 | AP15: 0.02 | AR15: 1.164905 | AS15: 1.004905 | AU15: -28.175095 | AV15: -28.165095
B16: WA | C16: 047 | D16: HPO | E16: 8 | G16: =IF(OR(ISBLANK(C16),ISBLANK(D16)),"",TEXT(C16,"000")&TEXT(D16,"000")) -> 047HPO | I16: Sodium Vapor | J16: 20' fiberglass pole | K16: 100W | L16: HPS | M16: 68 | N16: 154 | P16: 19.57 | Q16: 19.57 | S16: 1330.76 | T16: 3013.78 | V16: 68 | W16: 154 | AA16: 68 | AB16: 154 | AD16: 19.82 | AE16: 19.82 | AG16: 1347.76 | AH16: 3052.28 | AJ16: 40 | AK16: 20.12 | AL16: 20.04 | AM16: -0.08 | AN16: -0.23 | AO16: 0 | AP16: 0 | AR16: 0.794782 | AS16: 0.714782 | AU16: -19.325218 | AV16: -19.325218
B17: WA | C17: 047 | D17: HPS | E17: 68 | G17: 047HPS | I17: Sodium Vapor | J17: 30' steel pole w/2 arms | K17: 200W | L17: HPY | M17: 15 | N17: 0 | P17: 56.1 | Q17: 56.1 | S17: 841.5 | T17: 0 | V17: 15 | W17: 0 | AA17: 15 | AB17: 0 | AD17: 56.83 | AE17: 56.83 | AG17: 852.45 | AH17: 0 | AJ17: 84 | AK17: 57.86 | AL17: 57.69 | AM17: -0.16 | AN17: -0.48 | AO17: 0.01 | AP17: 0.02 | AR17: 2.278883 | AS17: 2.118883 | AU17: -55.581117 | AV17: -55.571117
B18: WA | C18: 047 | D18: HPY | E18: 15 | G18: 047HPY | I18: Mercury Vapor | J18: on existing standard | K18: 7000 | L18: MVA | M18: 140 | N18: 422 | P18: 15.37 | Q18: 15.37 | S18: 2151.8 | T18: 6486.14 | V18: 140 | W18: 422 | AA18: 140 | AB18: 422 | AD18: 15.57 | AE18: 15.57 | AG18: 2179.8 | AH18: 6570.54 | AJ18: 80 | AK18: 15.54 | AL18: 15.38 | AM18: -0.16 | AN18: -0.46 | AO18: -0.01 | AP18: -0.01 | AR18: 0.624357 | AS18: 0.464357 | AU18: -14.915643 | AV18: -14.915643
B19: WA | C19: 047 | D19: MVA | E19: 140 | G19: 047MVA | I19: Mercury Vapor | J19: on existing standard | K19: 10000 | L19: MVB | M19: 276 | N19: 499 | P19: 18.41 | Q19: 18.41 | S19: 5081.16 | T19: 9186.59 | V19: 276 | W19: 499 | AA19: 276 | AB19: 499 | AD19: 18.65 | AE19: 18.65 | AG19: 5147.4 | AH19: 9306.35 | AJ19: 111 | AK19: 18.52 | AL19: 18.3 | AM19: =ROUND($AJ$1*$AJ19,2) -> -0.22 | AN19: -0.63 | AO19: 0 | AP19: 0 | AR19: 0.747865 | AS19: 0.527865 | AU19: -17.772135 | AV19: -17.772135
B20: WA | C20: 047 | D20: MVB | E20: 276 | G20: 047MVB | I20: Mercury Vapor | J20: on existing standard | K20: 20000 | L20: MVC | M20: 493 | N20: 51 | P20: 26.2 | Q20: 26.2 | S20: 12916.6 | T20: 1336.2 | V20: 493 | W20: 51 | AA20: 493 | AB20: 51 | AD20: 26.54 | AE20: 26.54 | AG20: 13084.22 | AH20: 1353.54 | AJ20: 182 | AK20: 26.21 | AL20: 25.86 | AM20: -0.35 | AN20: -1.04 | AO20: 0 | AP20: 0 | AR20: 1.064254 | AS20: 0.714254 | AU20: -25.145746 | AV20: -25.145746
B21: WA | C21: 047 | D21: MVC | E21: 493 | G21: 047MVC | I21: Mercury Vapor | J21: 30' wood pole | K21: 7000 | L21: MVD | M21: 57 | N21: 177 | P21: 19.18 | Q21: 19.18 | S21: 1093.26 | T21: 3394.86 | V21: 57 | W21: 177 | AA21: 57 | AB21: 177 | AD21: 19.43 | AE21: 19.43 | AG21: 1107.51 | AH21: 3439.11 | AJ21: 80 | AK21: 19.5 | AL21: 19.34 | AM21: -0.16 | AN21: -0.46 | AO21: -0.01 | AP21: -0.01 | AR21: 0.779143 | AS21: 0.619143 | AU21: -18.720857 | AV21: -18.720857
B22: WA | C22: 047 | D22: MVD | E22: 57 | G22: 047MVD | I22: Mercury Vapor | J22: 30' wood pole | K22: 10000 | L22: MVE | M22: 94 | N22: 150 | P22: 22.28 | Q22: 22.28 | S22: 2094.32 | T22: 3342 | V22: 94 | W22: 150 | AA22: 94 | AB22: 150 | AD22: 22.57 | AE22: 22.57 | AG22: 2121.58 | AH22: 3385.5 | AJ22: 111 | AK22: 22.54 | AL22: 22.32 | AM22: -0.22 | AN22: -0.63 | AO22: 0 | AP22: 0 | AR22: 0.905057 | AS22: 0.685057 | AU22: -21.634943 | AV22: -21.634943
B23: WA | C23: 047 | D23: MVE | E23: 94 | G23: 047MVE | I23: Mercury Vapor | J23: 30' wood pole | K23: 20000 | L23: MVF | M23: 287 | N23: 29 | P23: 30.06 | Q23: 30.06 | S23: 8627.22 | T23: 871.74 | V23: 287 | W23: 29 | AA23: 287 | AB23: 29 | AD23: 30.45 | AE23: 30.45 | AG23: 8739.15 | AH23: 883.05 | AJ23: 182 | AK23: 30.23 | AL23: 29.88 | AM23: -0.35 | AN23: -1.04 | AO23: 0 | AP23: 0 | AR23: 1.221045 | AS23: 0.871045 | AU23: -29.008955 | AV23: -29.008955
B24: WA | C24: 047 | D24: MVF | E24: 287 | G24: 047MVF | I24: Mercury Vapor | J24: 25' steel | K24: 7000 | L24: MVG | M24: =SUMIF($G:$G,TEXT(M$3,"000")&TEXT($L24,"000"),$E:$E) -> 0 | N24: 1 | P24: 25 | Q24: 25 | S24: 0 | T24: 25 | V24: =SUMIF($G:$G,TEXT(V$3,"000")&TEXT($L24,"000"),$E:$E) -> 0 | W24: 1 | AA24: 0 | AB24: 1 | AD24: 25.32 | AE24: 25.32 | AG24: 0 | AH24: 25.32 | AJ24: 80 | AK24: 25.55 | AL24: 25.39 | AM24: -0.16 | AN24: -0.46 | AO24: -0.01 | AP24: -0.01 | AR24: 1.015332 | AS24: 0.855332 | AU24: -24.534668 | AV24: -24.534668
B25: WA | C25: 047 | D25: MVH | E25: 5 | G25: 047MVH | I25: Mercury Vapor | J25: 25' steel | K25: 10000 | L25: MVH | M25: 5 | N25: 23 | P25: 28.11 | Q25: 28.11 | S25: 140.55 | T25: 646.53 | V25: 5 | W25: 23 | AA25: 5 | AB25: 23 | AD25: 28.47 | AE25: 28.47 | AG25: 142.35 | AH25: 654.81 | AJ25: 111 | AK25: 28.61 | AL25: 28.39 | AM25: -0.22 | AN25: -0.63 | AO25: 0 | AP25: 0 | AR25: 1.141647 | AS25: 0.921647 | AU25: -27.468353 | AV25: -27.468353
B26: WA | C26: 047 | D26: MVI | E26: 2 | G26: 047MVI | I26: Mercury Vapor | J26: 25' steel | K26: 20000 | L26: MVI | M26: 2 | N26: 0 | P26: 35.86 | Q26: 35.86 | S26: 71.72 | T26: 0 | V26: 2 | W26: 0 | AA26: 2 | AB26: 0 | AD26: 36.32 | AE26: 36.32 | AG26: 72.64 | AH26: 0 | AJ26: 182 | AK26: 36.26 | AL26: 35.91 | AM26: -0.35 | AN26: -1.04 | AO26: 0 | AP26: 0 | AR26: 1.456432 | AS26: 1.106432 | AU26: -34.803568 | AV26: -34.803568
B27: WA | C27: 047 | D27: MVJ | E27: 2 | G27: 047MVJ | I27: Mercury Vapor | J27: 30' steel | K27: 7000 | L27: MVJ | M27: 2 | N27: 0 | P27: 26.22 | Q27: 26.22 | S27: 52.44 | T27: 0 | V27: 2 | W27: 0 | AA27: 2 | AB27: 0 | AD27: 26.56 | AE27: 26.56 | AG27: 53.12 | AH27: 0 | AJ27: 80 | AK27: 26.82 | AL27: 26.66 | AM27: -0.16 | AN27: -0.46 | AO27: -0.01 | AP27: -0.01 | AR27: 1.065056 | AS27: 0.905056 | AU27: -25.754944 | AV27: -25.754944
B28: WA | C28: 047 | D28: MVK | E28: 2 | G28: 047MVK | I28: Mercury Vapor | J28: 30' steel | K28: 10000 | L28: MVK | M28: 2 | N28: 38 | P28: 29.31 | Q28: 29.31 | S28: 58.62 | T28: 1113.78 | V28: 2 | W28: 38 | AA28: 2 | AB28: 38 | AD28: 29.69 | AE28: 29.69 | AG28: 59.38 | AH28: 1128.22 | AJ28: 111 | AK28: 29.86 | AL28: 29.64 | AM28: -0.22 | AN28: -0.63 | AO28: 0 | AP28: 0 | AR28: 1.190569 | AS28: 0.970569 | AU28: -28.669431 | AV28: -28.669431
B29: WA | C29: 047 | D29: MVL | E29: 6 | G29: 047MVL | I29: Mercury Vapor | J29: 30' steel | K29: 20000 | L29: MVL | M29: 6 | N29: 0 | P29: 37.08 | Q29: 37.08 | S29: 222.48 | T29: 0 | V29: 6 | W29: 0 | AA29: 6 | AB29: 0 | AD29: 37.56 | AE29: 37.56 | AG29: 225.36 | AH29: 0 | AJ29: 182 | AK29: 37.53 | AL29: 37.18 | AM29: -0.35 | AN29: -1.04 | AO29: 0 | AP29: 0 | AR29: 1.506156 | AS29: 1.156156 | AU29: -36.023844 | AV29: -36.023844
B30: WA | C30: 047 | D30: MVO | E30: 0 | G30: 047MVO | I30: Mercury Vapor | J30: 25' aluminum | K30: 7000 | L30: MVM | M30: 0 | N30: 0 | P30: 27.06 | Q30: 27.06 | S30: 0 | T30: 0 | V30: 0 | W30: 0 | AA30: 0 | AB30: 0 | AD30: 27.41 | AE30: 27.41 | AG30: 0 | AH30: 0 | AJ30: 80 | AK30: 27.7 | AL30: 27.54 | AM30: -0.16 | AN30: -0.46 | AO30: -0.01 | AP30: -0.01 | AR30: 1.099141 | AS30: 0.939141 | AU30: -26.600859 | AV30: -26.600859
B31: WA | C31: 047 | D31: PA | E31: 54 | G31: 047PA | I31: Mercury Vapor | J31: 25' aluminum | K31: 10000 | L31: MVN | M31: 0 | N31: 0 | P31: 30.16 | Q31: 30.16 | S31: 0 | T31: 0 | V31: 0 | W31: 0 | AA31: 0 | AB31: 0 | AD31: 30.55 | AE31: 30.55 | AG31: 0 | AH31: 0 | AJ31: 111 | AK31: 30.74 | AL31: 30.52 | AM31: -0.22 | AN31: -0.63 | AO31: 0 | AP31: 0 | AR31: 1.225055 | AS31: 1.005055 | AU31: -29.514945 | AV31: -29.514945
E32: =SUM(E7:E31) -> 5036 | I32: Mercury Vapor | J32: 25' aluminum | K32: 20000 | L32: MVO | M32: 0 | N32: 0 | P32: 37.9 | Q32: 37.9 | S32: 0 | T32: 0 | V32: 0 | W32: 0 | AA32: 0 | AB32: 0 | AD32: 38.39 | AE32: 38.39 | AG32: 0 | AH32: 0 | AJ32: 182 | AK32: 38.38 | AL32: 38.03 | AM32: -0.35 | AN32: -1.04 | AO32: 0 | AP32: 0 | AR32: 1.539439 | AS32: 1.189439 | AU32: -36.840561 | AV32: -36.840561
I33: Mercury Vapor | J33: Special | K33: 7000 | L33: MVV | M33: 0 | N33: 2 | P33: 7.77 | Q33: 7.77 | S33: 0 | T33: 15.54 | V33: 0 | W33: 2 | AA33: 0 | AB33: 2 | AD33: 7.87 | AE33: 7.87 | AG33: 0 | AH33: 15.74 | AJ33: 42 | AK33: 7.77 | AL33: 7.69 | AM33: =ROUND($AJ$1*$AJ33,2) -> -0.08 | AN33: -0.24 | AO33: 0.07 | AP33: 0.07 | AR33: 0.315587 | AS33: 0.235587 | AU33: -7.454413 | AV33: -7.454413
B34: WA | C34: 048 | D34: HAH | E34: 9 | G34: 048HAH | I34: none | J34: 30' wood pole | K34: n/a | L34: PA | M34: 54 | N34: 2 | P34: 6.19 | Q34: 6.19 | S34: 334.26 | T34: 12.38 | V34: 54 | W34: 2 | AA34: 54 | AB34: 2 | AD34: 6.27 | AE34: 6.27 | AG34: 338.58 | AH34: 12.54 | AK34: 6.44 | AL34: 6.44 | AM34: 0 | AN34: 0 | AO34: 0 | AP34: 0 | AR34: 0.251427 | AS34: 0.251427 | AU34: -6.188573 | AV34: -6.188573
B35: WA | C35: 048 | D35: HAI | E35: 3 | G35: =IF(OR(ISBLANK(C35),ISBLANK(D35)),"",TEXT(C35,"000")&TEXT(D35,"000")) -> 048HAI | I35: none | J35: 55' wood pole | K35: n/a | L35: PB | M35: 0 | N35: 1 | P35: 11.82 | Q35: 11.82 | S35: 0 | T35: 11.82 | V35: 0 | W35: 1 | AA35: 0 | AB35: 1 | AD35: 11.97 | AE35: 11.97 | AG35: 0 | AH35: 11.97 | AK35: 12.29 | AL35: 12.29 | AM35: 0 | AN35: 0 | AO35: 0 | AP35: 0 | AR35: 0.479997 | AS35: 0.479997 | AU35: -11.810003 | AV35: -11.810003
B36: WA | C36: 048 | D36: HPA | E36: 881 | G36: 048HPA | L36: SLB | M36: 0 | N36: 30 | Q36: 1e-07 | S36: 0 | T36: 3e-06 | V36: 0 | W36: 30 | AA36: 0 | AB36: 30 | AD36: =ROUND(P36*(1+$Z$1),2) -> 0 | AE36: 1e-06 | AG36: 0 | AH36: 3e-05 | AO36: 0 | AP36: 0 | AR36: 0 | AS36: 4.01e-08 | AU36: 0 | AV36: 4.01e-08
B37: WA | C37: 048 | D37: HPB | E37: 565 | G37: 048HPB | L37: SLC | M37: 0 | N37: 19 | Q37: 1e-06 | S37: 0 | T37: 1.9e-05 | V37: 0 | W37: 19 | AA37: 0 | AB37: 19 | AD37: =ROUND(P37*(1+$Z$1),2) -> 0 | AE37: 1e-06 | AG37: 0 | AH37: 1.9e-05 | AO37: 0 | AP37: 0 | AR37: 0 | AS37: 4.01e-08 | AU37: 0 | AV37: 4.01e-08
B38: WA | C38: 048 | D38: HPC | E38: 10 | G38: 048HPC | L38: SLD | M38: 0 | N38: 1 | Q38: 1e-06 | S38: 0 | T38: 1e-06 | V38: 0 | W38: 1 | AA38: 0 | AB38: 1 | AD38: =ROUND(P38*(1+$Z$1),2) -> 0 | AE38: 1e-06 | AG38: 0 | AH38: 1e-06 | AO38: 0 | AP38: 0 | AR38: 0 | AS38: 4.01e-08 | AU38: 0 | AV38: 4.01e-08
B39: WA | C39: 048 | D39: HPD | E39: 265 | G39: 048HPD
B40: WA | C40: 048 | D40: HPE | E40: 322 | G40: 048HPE | M40: =SUM(M5:M39) -> 5036 | N40: =SUM(N5:N39) -> 3679 | S40: =SUM(S5:S39) -> 108945.92 | T40: =SUM(T5:T39) -> 66551.94002 | V40: =SUM(V5:V39) -> 5036 | W40: =SUM(W5:W39) -> 3679 | AA40: =SUM(AA5:AA39) -> 5036 | AB40: =SUM(AB5:AB39) -> 3679 | AG40: =SUM(AG5:AG39) -> 110358.65 | AH40: =SUM(AH5:AH39) -> 67413.21005
B41: WA | C41: 048 | D41: HPG | E41: 7 | G41: 048HPG | K41: Total | N41: =SUM(M40:N40) -> 8715 | T41: =ROUND(SUM(S40:T40),2) -> 175497.86 | W41: =SUM(V40:W40) -> 8715 | AB41: =SUM(AA40:AB40) -> 8715 | AH41: =ROUND(SUM(AG40:AH40),2) -> 177771.86
B42: WA | C42: 048 | D42: HPL | E42: 5 | G42: =IF(OR(ISBLANK(C42),ISBLANK(D42)),"",TEXT(C42,"000")&TEXT(D42,"000")) -> 048HPL | I42: ='St Lts'!I56 -> (1) from Street Light Report and Area Light Report, 1/10/12, PDE-E-24-28 | N42: =ROUND(N41-E63,0) -> 0 | S42: 105403 | T42: 63154 | Z42: Dec '10 revenue | AB42: =AB41-N41 -> 0 | AH42: =AH41/T41-1 -> 0.01295742296
B43: WA | C43: 048 | D43: HPO | E43: 13 | G43: 048HPO | S43: =S40-S42 -> 3542.92 | T43: =T40-T42 -> 3397.940023
B44: WA | C44: 048 | D44: HPS | E44: 154 | G44: 048HPS | T44: =SUM(S43:T43) -> 6940.860023
B45: WA | C45: 048 | D45: MVA | E45: 422 | G45: 048MVA | S45: Surch Rate | T45: =T44/SUM(P42:T42) -> 0.04117811792 | AG45: Surch Rate
B46: WA | C46: 048 | D46: MVB | E46: 499 | G46: 048MVB | S46: ='St Lts'!Y62 -> 1.0401 | AG46: ='St Lts'!AQ61 -> 1.039587946
B47: WA | C47: 048 | D47: MVC | E47: 51 | G47: 048MVC | R47: Base + DSM | S47: =S40*$S46 -> 113314.6514 | T47: =T40*$S46 -> 69220.67282 | AF47: Base + DSM | AG47: =AG40*$AG46 -> 114727.5223 | AH47: =AH40*$AG46 -> 70081.96059
B48: WA | C48: 048 | D48: MVD | E48: 177 | G48: 048MVD | R48: less Sch 59 | T48: =SUMPRODUCT($N$4:$N$38,$AM$4:$AM$38) -> -532.34 | AF48: less Sch 59 | AH48: =SUMPRODUCT($N$4:$N$38,$AM$4:$AM$38) -> -532.34
B49: WA | C49: 048 | D49: MVE | E49: 150 | G49: 048MVE | R49: less Sch 93/94 | S49: =SUMPRODUCT($M$4:$M$38,$AN$4:$AN$38) -> -2708.13 | T49: =SUMPRODUCT($N$4:$N$38,$AN$4:$AN$38) -> -1548.63 | AF49: less Sch 93/94 | AG49: =SUMPRODUCT($M$4:$M$38,$AN$4:$AN$38) -> -2708.13 | AH49: =SUMPRODUCT($N$4:$N$38,$AN$4:$AN$38) -> -1548.63
B50: WA | C50: 048 | D50: MVF | E50: 29 | G50: 048MVF | R50: Total Billed | S50: =S47+S48+S49 -> 110606.5214 | T50: =T47+T48+T49 -> 67139.70282 | U50: 0 | V50: 0 | W50: 0 | X50: 0 | Y50: 0 | Z50: 0 | AA50: 0 | AB50: 0 | AC50: 0 | AG50: =AG47+AG48+AG49 -> 112019.3923 | AH50: =AH47+AH48+AH49 -> 68000.99059
B51: WA | C51: 048 | D51: MVG | E51: 1 | G51: 048MVG | T51: =S50+T50 -> 177746.2242 | AH51: =AG50+AH50 -> 180020.3829
B52: WA | C52: 048 | D52: MVH | E52: 23 | G52: 048MVH
B53: WA | C53: 048 | D53: MVK | E53: 38 | G53: 048MVK
B54: WA | C54: 048 | D54: MVN | E54: 0 | G54: 048MVN | X54: Monthly Increase (Decrease)
B55: WA | C55: 048 | D55: MVV | E55: 2 | G55: 048MVV | X55: Annual Increase (Decrease)
B56: WA | C56: 048 | D56: PA | E56: 2 | G56: 048PA
B57: WA | C57: 048 | D57: PB | E57: 1 | G57: 048PB
B58: WA | C58: 048 | D58: SLB | E58: 30 | G58: 048SLB
B59: WA | C59: 048 | D59: SLC | E59: 19 | G59: 048SLC
B60: WA | C60: 048 | D60: SLD | E60: 1 | G60: 048SLD
E61: =SUM(E34:E60) -> 3679
B63: WA | E63: =E32+E61 -> 8715

Sheet Capital Recovery Factor Calc (hidden)
B1: Avista
B2: Capital Recovery Factor Calculation
B3: Proposed - UE-140188
B6: Cost of Capital | F6: Source
B7: Capital
B8: Component
B9: Rate of Return | E9: 0.0732 | F9: Settlement
B11: Less:
B12: Long Term Debt | E12: 0.0282 | F12: Settlement Appendix I
B13: Federal Income Tax Rate | E13: 0.35
E14: =ROUND(E12*E13,5) -> 0.00987
B16: Total | E16: =E9-E14 -> 0.06333
B19: Grossed-up Rate of Return
B21: Revenue Conversion Factor | E21: 0.62074 | F21: Andrews Conversion Factor
B23: Grossed-up Rate of Return | E23: =ROUND(E16/E21,5) -> 0.10202
B26: Depreciation Rate
D27: Test Year | E27: Effective
B28: Account | C28: Plant in | D28: Depreciation | E28: Depreciation
B29: Number | C29: Service | D29: Expense | E29: Rate
B30: 373 - Street Lighting | C30: 23600000 | D30: 641000 | E30: =ROUND(D30/C30,4) -> 0.0272 | F30: From Cost of Service (Knox)
B31: Revenue Conversion Factor (Before FIT) | E31: 0.954989 | F31: Andrews Conversion Factor
B32: Grossed-up Depreciation Rate | E32: =E30/E31 -> 0.02848200346
B36: Capital Recovery Factor | C36: =E23+E32 -> 0.1305020035

Sheet Block Data (hidden)
U2: Rate Design
A3: WASHINGTON ELECTRIC SYSTEM
C4: July | D4: August | E4: September | F4: October | G4: November | H4: December | I4: January | J4: February | K4: March | L4: April | M4: May | N4: June | O4: Annual Total | U4: May
A5: Rate Design Program Monthly Results
A6: Block ID 900 | B6: Schedule 001
B7: Block 1 | C7: 117669129 | D7: 123766009 | E7: 120879903 | F7: 115292478 | G7: 125210871 | H7: 137873168 | I7: 142115857 | J7: 140917325 | K7: 135542628 | L7: 130705783 | M7: 14978538 | N7: 119292151 | O7: =SUM(C7:N7) -> 1424243840 | R7: =SUM(C7:L7,N7) -> 1409265302 | S7: =R7/$R$10 -> 0.6454482076 | U7: 14978538
B8: Block 2 | C8: 29167233 | D8: 41014399 | E8: 33822151 | F8: 24022052 | G8: 34477861 | H8: 56677282 | I8: 68578636 | J8: 65463345 | K8: 52517788 | L8: 43107819 | M8: 3538501 | N8: 27377223 | O8: =SUM(C8:N8) -> 479764290 | R8: =SUM(C8:L8,N8) -> 476225789 | S8: =R8/$R$10 -> 0.2181129994 | U8: 3538501
B9: Block 3 | C9: 11159141 | D9: 19211628 | E9: 13129691 | F9: 7755916 | G9: 14517428 | H9: 36380182 | I9: 63215888 | J9: 64427364 | K9: 35015459 | L9: 20804038 | M9: 1286158 | N9: 12282391 | O9: =SUM(C9:N9) -> 299185284 | R9: 297899126 | S9: 0.1364387931 | U9: 1286158
A10: kWhs | B10: Total | C10: =SUM(C7:C9) -> 157995503 | D10: =SUM(D7:D9) -> 183992036 | E10: 167831745 | F10: 147070446 | G10: 174206160 | H10: 230930632 | I10: 273910381 | J10: 270808034 | K10: 223075875 | L10: 194617640 | M10: 19803197 | N10: 158951765 | O10: 2203193414 | R10: =SUM(R7:R9) -> 2183390217 | S10: =SUM(S7:S9) -> 1 | U10: 19803197
B11: Billed Customers | C11: 202281 | D11: 201833 | E11: 203291 | F11: 202476 | G11: 203015 | H11: 203421 | I11: 203757 | J11: 203839 | K11: 203429 | L11: 203540 | M11: 203177 | N11: 203022 | O11: =SUM(C11:N11) -> 2437081 | U11: 203177
B12: Block 1 Limit | C12: =C11*800 -> 161824800 | D12: =D11*800 -> 161466400 | E12: 162632800 | F12: 161980800 | G12: 162412000 | H12: 162736800 | I12: 163005600 | J12: 163071200 | K12: 162743200 | L12: 162832000 | M12: 162541600 | N12: 162417600 | O12: =SUM(C12:N12) -> 1949664800 | U12: 162541600
B13: Revenue Run Total | C13: ='Rev Runs 12MEJUNE2013'!D45 -> 158134847 | D13: ='Rev Runs 12MEJUNE2013'!E45 -> 183523410 | E13: ='Rev Runs 12MEJUNE2013'!F45 -> 167506156 | F13: ='Rev Runs 12MEJUNE2013'!G45 -> 147406008 | G13: ='Rev Runs 12MEJUNE2013'!H45 -> 174458061 | H13: ='Rev Runs 12MEJUNE2013'!I45 -> 233052070 | I13: ='Rev Runs 12MEJUNE2013'!J45 -> 276010396 | J13: ='Rev Runs 12MEJUNE2013'!K45 -> 271466630 | K13: ='Rev Runs 12MEJUNE2013'!L45 -> 220392514 | L13: ='Rev Runs 12MEJUNE2013'!M45 -> 195685539 | M13: ='Rev Runs 12MEJUNE2013'!N45 -> 172072750 | N13: ='Rev Runs 12MEJUNE2013'!O45 -> 157012413 | O13: =SUM(C13:N13) -> 2356720794 | U13: 172072750
B14: Difference | C14: =C13-C10 -> 139344 | D14: -468626 | E14: -325589 | F14: 335562 | G14: 251901 | H14: 2121438 | I14: 2100015 | J14: 658596 | K14: -2683361 | L14: 1067899 | M14: 152269553 | N14: -1939352 | O14: =SUM(C14:N14) -> 153527380 | P14: =O14/O13 -> 0.06514449246 | U14: 152269553
B16: Block 1 | C16: =(C7/C$10)*C$14 -> 103778.1886 | D16: =(D7/D$10)*D$14 -> -315230.8708 | E16: -234503.7093 | F16: 263056.0766 | G16: 181054.1235 | H16: =(H7/H$10)*H$14 -> 1266568.126 | I16: 1089573.277 | J16: 342706.179 | K16: -1630430.91 | L16: 717204.1289 | M16: =(M7/M$10)*M$14 -> 115172074.8 | N16: -1455469.662 | O16: =SUM(C16:N16) -> 115500379.7
B17: Block 2 | C17: =(C8/C$10)*C$14 -> 25724.01643 | D17: -104463.2918 | E17: -65614.04889 | F17: 54809.70537 | G17: =(G8/G$10)*G$14 -> 49854.76784 | H17: 520664.3169 | I17: 525778.4088 | J17: 159204.6459 | K17: -631732.0693 | L17: 236539.6929 | M17: 27208029.37 | N17: -334026.3141 | O17: =SUM(C17:N17) -> 27644769.2
B18: Block 3 | C18: 9841.79495 | D18: -48931.83737 | E18: -25471.24183 | F18: 17696.21807 | G18: =(G9/G$10)*G$14 -> 20992.10861 | H18: 334205.5572 | I18: 484663.3142 | J18: 156685.1751 | K18: -421198.021 | L18: 114155.1782 | M18: 9889448.847 | N18: -149856.0243 | O18: 10382231.07
C19: =SUM(C16:C18) -> 139344 | D19: =SUM(D16:D18) -> -468626 | E19: -325589 | F19: 335562 | G19: 251901 | H19: =SUM(H16:H18) -> 2121438 | I19: =SUM(I16:I18) -> 2100015 | J19: =SUM(J16:J18) -> 658596 | K19: -2683361 | L19: =SUM(L16:L18) -> 1067899 | M19: =SUM(M16:M18) -> 152269553 | N19: =SUM(N16:N18) -> -1939352 | O19: 153527380
B21: Block 1 | C21: =C7+C16 -> 117772907.2 | D21: =D7+D16 -> 123450778.1 | E21: 120645399.3 | F21: 115555534.1 | G21: 125391925.1 | H21: =H7+H16 -> 139139736.1 | I21: 143205430.3 | J21: 141260031.2 | K21: 133912197.1 | L21: 131422987.1 | M21: 130150612.8 | N21: 117836681.3 | O21: =SUM(C21:N21) -> 1539744220
B22: Block 2 | C22: =C8+C17 -> 29192957.02 | D22: 40909935.71 | E22: 33756536.95 | F22: 24076861.71 | G22: =G8+G17 -> 34527715.77 | H22: 57197946.32 | I22: 69104414.41 | J22: 65622549.65 | K22: 51886055.93 | L22: 43344358.69 | M22: 30746530.37 | N22: 27043196.69 | O22: =SUM(C22:N22) -> 507409059.2
B23: Block 3 | C23: 11168982.79 | D23: 19162696.16 | E23: 13104219.76 | F23: 7773612.218 | G23: =G9+G18 -> 14538420.11 | H23: 36714387.56 | I23: 63700551.31 | J23: 64584049.18 | K23: 34594260.98 | L23: 20918193.18 | M23: 11175606.85 | N23: 12132534.98 | O23: 309567515.1
C24: =SUM(C21:C23) -> 158134847 | D24: =SUM(D21:D23) -> 183523410 | E24: 167506156 | F24: 147406008 | G24: 174458061 | H24: =SUM(H21:H23) -> 233052070 | I24: =SUM(I21:I23) -> 276010396 | J24: =SUM(J21:J23) -> 271466630 | K24: 220392514 | L24: =SUM(L21:L23) -> 195685539 | M24: =SUM(M21:M23) -> 172072750 | N24: =SUM(N21:N23) -> 157012413 | O24: 2356720794
C25: =C24-C13 -> 0 | D25: =D24-D13 -> 0 | E25: 0 | F25: 0 | G25: 0 | H25: =H24-H13 -> 0 | I25: =I24-I13 -> 0 | J25: =J24-J13 -> 0 | K25: 0 | L25: =L24-L13 -> 0 | M25: =M24-M13 -> 0 | N25: =N24-N13 -> 0 | O25: 0
A27: Block ID 98 | B27: Schedule 011/012
B28: Block 1 | C28: 29481078 | D28: 31167600 | E28: 30696545 | F28: 29539252 | G28: 31143102 | H28: 35135247 | I28: 37479645 | J28: 37687382 | K28: 35255152 | L28: 33615393 | M28: 3577080 | N28: 30988893 | O28: =SUM(C28:N28) -> 365766369 | R28: =SUM(C28:L28,N28) -> 362189289 | S28: =R28/$R$30 -> 0.7257683285 | U28: 3577080
B29: Block 2 | C29: 10468523 | D29: 13170446 | E29: 12026538 | F29: 10003413 | G29: 10113824 | H29: 12961970 | I29: 15202727 | J29: 15338253 | K29: 12773690 | L29: 12265174 | M29: 1305201 | N29: 12528719 | O29: =SUM(C29:N29) -> 138158478 | R29: =SUM(C29:L29,N29) -> 136853277 | S29: =R29/$R$30 -> 0.2742316715 | U29: 1305201
A30: kWhs | B30: Total | C30: =SUM(C28:C29) -> 39949601 | D30: 44338046 | E30: 42723083 | F30: 39542665 | G30: 41256926 | H30: 48097217 | I30: =SUM(I28:I29) -> 52682372 | J30: =SUM(J28:J29) -> 53025635 | K30: 48028842 | L30: 45880567 | M30: 4882281 | N30: 43517612 | O30: 503924847 | R30: =SUM(R28:R29) -> 499042566 | S30: =SUM(S28:S29) -> 1 | U30: 4882281
B31: Revenue Run Total | C31: ='Rev Runs 12MEJUNE2013'!D46+'Rev Runs 12MEJUNE2013'!D47 -> 40373228 | D31: ='Rev Runs 12MEJUNE2013'!E46+'Rev Runs 12MEJUNE2013'!E47 -> 44288853 | E31: ='Rev Runs 12MEJUNE2013'!F46+'Rev Runs 12MEJUNE2013'!F47 -> 42731370 | F31: ='Rev Runs 12MEJUNE2013'!G46+'Rev Runs 12MEJUNE2013'!G47 -> 39770491 | G31: ='Rev Runs 12MEJUNE2013'!H46+'Rev Runs 12MEJUNE2013'!H47 -> 41678120 | H31: ='Rev Runs 12MEJUNE2013'!I46+'Rev Runs 12MEJUNE2013'!I47 -> 48405846 | I31: ='Rev Runs 12MEJUNE2013'!J46+'Rev Runs 12MEJUNE2013'!J47 -> 52490617 | J31: ='Rev Runs 12MEJUNE2013'!K46+'Rev Runs 12MEJUNE2013'!K47 -> 53404915 | K31: ='Rev Runs 12MEJUNE2013'!L46+'Rev Runs 12MEJUNE2013'!L47 -> 47749692 | L31: ='Rev Runs 12MEJUNE2013'!M46+'Rev Runs 12MEJUNE2013'!M47 -> 45823490 | M31: ='Rev Runs 12MEJUNE2013'!N46+'Rev Runs 12MEJUNE2013'!N47 -> 43938991 | N31: ='Rev Runs 12MEJUNE2013'!O46+'Rev Runs 12MEJUNE2013'!O47 -> 43996886 | O31: =SUM(C31:N31) -> 544652499 | U31: 43938991
C32: =C31-C30 -> 423627 | D32: -49193 | E32: 8287 | F32: 227826 | G32: 421194 | H32: 308629 | I32: -191755 | J32: 379280 | K32: -279150 | L32: -57077 | M32: 39056710 | N32: 479274 | O32: =SUM(C32:N32) -> 40727652 | P32: =O32/O31 -> 0.07477731595 | U32: 39056710
B34: Block 1 | C34: =(C28/C$30)*C$32 -> 312618.4071 | D34: =(D28/D$30)*D$32 -> -34580.40859 | E34: 5954.211413 | F34: 170191.0993 | G34: 317941.4701 | H34: 225454.9602 | I34: -136419.623 | J34: 269569.0536 | K34: -204907.6195 | L34: -41818.70259 | M34: 28615513.16 | N34: 341291.0319 | O34: =SUM(C34:N34) -> 29840807.04
B35: Block 2 | C35: =(C29/C$30)*C$32 -> 111008.5929 | D35: -14612.59141 | E35: 2332.788587 | F35: 57634.90069 | G35: 103252.5299 | H35: 83174.03976 | I35: -55335.377 | J35: 109710.9464 | K35: -74242.38052 | L35: -15258.29741 | M35: 10441196.84 | N35: 137982.9681 | O35: =SUM(C35:N35) -> 10886844.96
C36: =SUM(C34:C35) -> 423627 | D36: =SUM(D34:D35) -> -49193 | E36: 8287 | F36: 227826 | G36: 421194 | H36: 308629 | I36: -191755 | J36: 379280 | K36: -279150 | L36: -57077 | M36: 39056710 | N36: 479274 | O36: =SUM(O34:O35) -> 40727652
B38: Block 1 | C38: =C28+C34 -> 29793696.41 | D38: =D28+D34 -> 31133019.59 | E38: 30702499.21 | F38: 29709443.1 | G38: 31461043.47 | H38: 35360701.96 | I38: 37343225.38 | J38: 37956951.05 | K38: 35050244.38 | L38: 33573574.3 | M38: 32192593.16 | N38: 31330184.03 | O38: =SUM(C38:N38) -> 395607176
B39: Block 2 | C39: =C29+C35 -> 10579531.59 | D39: =D29+D35 -> 13155833.41 | E39: 12028870.79 | F39: 10061047.9 | G39: 10217076.53 | H39: 13045144.04 | I39: 15147391.62 | J39: 15447963.95 | K39: 12699447.62 | L39: 12249915.7 | M39: 11746397.84 | N39: 12666701.97 | O39: =SUM(C39:N39) -> 149045323
C40: =SUM(C38:C39) -> 40373228 | D40: 44288853 | E40: 42731370 | F40: 39770491 | G40: 41678120 | H40: 48405846 | I40: 52490617 | J40: 53404915 | K40: 47749692 | L40: 45823490 | M40: 43938991 | N40: 43996886 | O40: 544652499
C41: =C40-C31 -> 0 | D41: 0 | E41: 0 | F41: 0 | G41: 0 | H41: 0 | I41: 0 | J41: 0 | K41: 0 | L41: 0 | M41: 0 | N41: 0 | O41: 0
A43: Block ID 11 | B43: Schedule 011/012
B44: Block 1 | C44: 67254 | D44: 68325 | E44: 69036 | F44: 68912 | G44: 69470 | H44: 69314 | I44: 69545 | J44: 71550 | K44: 71152 | L44: 73886 | M44: =R44 -> 70323 | N44: 75109 | O44: =SUM(C44:N44) -> 843876 | R44: =AVERAGE(C44:L44,N44) -> 70323 | U44: 7949
B45: Block 2 | C45: 24168 | D45: 29342 | E45: 28586 | F45: 25116 | G45: 23484 | H45: 23687 | I45: 23186 | J45: 26474 | K45: 24326 | L45: 27908 | M45: =R45 -> 26091 | N45: 30724 | O45: =SUM(C45:N45) -> 313092 | R45: =AVERAGE(C45:L45,N45) -> 26091 | U45: 2528
A46: kW | B46: Total | C46: =SUM(C44:C45) -> 91422 | D46: 97667 | E46: 97622 | F46: 94028 | G46: 92954 | H46: 93001 | I46: =SUM(I44:I45) -> 92731 | J46: =SUM(J44:J45) -> 98024 | K46: 95478 | L46: 101794 | M46: 96414 | N46: 105833 | O46: 1156968 | R46: =SUM(R44:R45) -> 96414 | U46: 10477
A48: Block ID 111 | B48: Schedule 011/012
B49: kVar | C49: 723 | D49: 517 | E49: 828 | F49: 913 | G49: 872 | H49: 789 | I49: 548 | J49: 910 | K49: 841 | L49: 1019 | M49: =R49 -> 847.3636364 | N49: 1361 | O49: =SUM(C49:N49) -> 10168.36364 | R49: =AVERAGE(C49:L49,N49) -> 847.3636364 | U49: 155
B50: pf Charge | C50: 0.5 | D50: 0.5 | E50: 0.5 | F50: 0.5 | G50: 0.5 | H50: 0.5 | I50: 0.5 | J50: 0.5 | K50: 0.5 | L50: 0.5 | M50: 0.5 | N50: 0.5 | O50: 0.5 | U50: 0.5
B51: pf Revenue | C51: =C49*C50 -> 361.5 | D51: 258.5 | E51: 414 | F51: 456.5 | G51: 436 | H51: 394.5 | I51: 274 | J51: 455 | K51: 420.5 | L51: 509.5 | M51: 423.6818182 | N51: 680.5 | O51: 5084.181818 | U51: 77.5
A53: Block ID 221 | B53: Schedule 021/022
B54: Block 1 | C54: 108318270 | D54: 111371965 | E54: 108746047 | F54: 106499607 | G54: 106302759 | H54: 112768930 | I54: 113667817 | J54: 110004747 | K54: 105930592 | L54: 99955213 | M54: 13826999 | N54: 103856411 | O54: =SUM(C54:N54) -> 1201249357 | R54: =SUM(C54:L54,N54) -> 1187422358 | S54: =R54/$R$56 -> 0.8920659353 | U54: 13826999
B55: Block 2 | C55: 15087290 | D55: 15095294 | E55: 13263254 | F55: 12216531 | G55: 11622305 | H55: 14195283 | I55: 14044005 | J55: 12838494 | K55: 11238941 | L55: 10682718 | M55: 3190875 | N55: 13386119 | O55: =SUM(C55:N55) -> 146861109 | R55: =SUM(C55:L55,N55) -> 143670234 | S55: =R55/$R$56 -> 0.1079340647 | U55: 3190875
A56: kWhs | B56: Total | C56: =SUM(C54:C55) -> 123405560 | D56: 126467259 | E56: 122009301 | F56: 118716138 | G56: 117925064 | H56: 126964213 | I56: =SUM(I54:I55) -> 127711822 | J56: =SUM(J54:J55) -> 122843241 | K56: 117169533 | L56: 110637931 | M56: 17017874 | N56: 117242530 | O56: 1348110466 | R56: =SUM(R54:R55) -> 1331092592 | S56: =SUM(S54:S55) -> 1 | U56: 17017874
B57: Revenue Run Total | C57: ='Rev Runs 12MEJUNE2013'!D48+'Rev Runs 12MEJUNE2013'!D49 -> 121107265 | D57: ='Rev Runs 12MEJUNE2013'!E48+'Rev Runs 12MEJUNE2013'!E49 -> 126512976 | E57: ='Rev Runs 12MEJUNE2013'!F48+'Rev Runs 12MEJUNE2013'!F49 -> 122113063 | F57: ='Rev Runs 12MEJUNE2013'!G48+'Rev Runs 12MEJUNE2013'!G49 -> 118391398 | G57: ='Rev Runs 12MEJUNE2013'!H48+'Rev Runs 12MEJUNE2013'!H49 -> 118063968 | H57: ='Rev Runs 12MEJUNE2013'!I48+'Rev Runs 12MEJUNE2013'!I49 -> 125942489 | I57: ='Rev Runs 12MEJUNE2013'!J48+'Rev Runs 12MEJUNE2013'!J49 -> 128129769 | J57: ='Rev Runs 12MEJUNE2013'!K48+'Rev Runs 12MEJUNE2013'!K49 -> 122554592 | K57: ='Rev Runs 12MEJUNE2013'!L48+'Rev Runs 12MEJUNE2013'!L49 -> 117894577 | L57: ='Rev Runs 12MEJUNE2013'!M48+'Rev Runs 12MEJUNE2013'!M49 -> 110974169 | M57: ='Rev Runs 12MEJUNE2013'!N48+'Rev Runs 12MEJUNE2013'!N49 -> 113575945 | N57: ='Rev Runs 12MEJUNE2013'!O48+'Rev Runs 12MEJUNE2013'!O49 -> 117273821 | O57: =SUM(C57:N57) -> 1442534032 | U57: 113575945
C58: =C57-C56 -> -2298295 | D58: 45717 | E58: 103762 | F58: -324740 | G58: 138904 | H58: -1021724 | I58: 417947 | J58: -288649 | K58: 725044 | L58: 336238 | M58: 96558071 | N58: 31291 | O58: =SUM(C58:N58) -> 94423566 | P58: =O58/O57 -> 0.06545673371 | U58: 96558071
B60: Block 1 | C60: =(C54/C$56)*C$58 -> -2017310.552 | D60: =(D54/D$56)*D$58 -> 40260.16033 | E60: 92482.35369 | F60: -291322.5022 | G60: 125214.0803 | H60: -907489.7525 | I60: 371986.8871 | J60: -258481.9479 | K60: 655497.5357 | L60: 303772.3194 | M60: 78453298.64 | N60: 27718.36258 | O60: =SUM(C60:N60) -> 76595625.59
B61: Block 2 | C61: =(C55/C$56)*C$58 -> -280984.4481 | D61: =(D55/D$56)*D$58 -> 5456.839669 | E61: 11279.64631 | F61: -33417.49777 | G61: 13689.91967 | H61: -114234.2475 | I61: 45960.1129 | J61: -30167.05213 | K61: 69546.46425 | L61: 32465.68064 | M61: 18104772.36 | N61: 3572.637418 | O61: =SUM(C61:N61) -> 17827940.41
C62: =SUM(C60:C61) -> -2298295 | D62: =SUM(D60:D61) -> 45717 | E62: =SUM(E60:E61) -> 103762 | F62: =SUM(F60:F61) -> -324740 | G62: =SUM(G60:G61) -> 138904 | H62: =SUM(H60:H61) -> -1021724 | I62: =SUM(I60:I61) -> 417947 | J62: =SUM(J60:J61) -> -288649 | K62: =SUM(K60:K61) -> 725044 | L62: =SUM(L60:L61) -> 336238 | M62: =SUM(M60:M61) -> 96558071 | N62: =SUM(N60:N61) -> 31291 | O62: =SUM(O60:O61) -> 94423566
B64: Block 1 | C64: =C54+C60 -> 106300959.4 | D64: =D54+D60 -> 111412225.2 | E64: 108838529.4 | F64: 106208284.5 | G64: 106427973.1 | H64: 111861440.2 | I64: 114039803.9 | J64: 109746265.1 | K64: 106586089.5 | L64: 100258985.3 | M64: 92280297.64 | N64: 103884129.4 | O64: =SUM(C64:N64) -> 1277844983
B65: Block 2 | C65: =C55+C61 -> 14806305.55 | D65: =D55+D61 -> 15100750.84 | E65: 13274533.65 | F65: 12183113.5 | G65: 11635994.92 | H65: 14081048.75 | I65: 14089965.11 | J65: 12808326.95 | K65: 11308487.46 | L65: 10715183.68 | M65: 21295647.36 | N65: 13389691.64 | O65: =SUM(C65:N65) -> 164689049.4
C66: =SUM(C64:C65) -> 121107265 | D66: 126512976 | E66: 122113063 | F66: 118391398 | G66: 118063968 | H66: 125942489 | I66: 128129769 | J66: 122554592 | K66: 117894577 | L66: 110974169 | M66: 113575945 | N66: 117273821 | O66: 1442534032
C67: =C66-C57 -> 0 | D67: 0 | E67: 0 | F67: 0 | G67: 0 | H67: 0 | I67: 0 | J67: 0 | K67: 0 | L67: 0 | M67: 0 | N67: 0 | O67: 0
A69: Block ID 21 | B69: Schedule 021/022
B70: Block 1 | C70: 109786 | D70: 109121 | E70: 108773 | F70: 108061 | G70: 106939 | H70: 105941 | I70: 105555 | J70: 101713 | K70: 101223 | L70: 96140 | M70: =R70 -> 104464.6364 | N70: 95859 | O70: =SUM(C70:N70) -> 1253575.636 | R70: =AVERAGE(C70:L70,N70) -> 104464.6364 | U70: 12097
B71: Block 2 | C71: 250417 | D71: 244286 | E71: 248468 | F71: 237430 | G71: 225701 | H71: 218647 | I71: 217068 | J71: 211102 | K71: 209504 | L71: 209878 | M71: =R71 -> 227719.1818 | N71: 232410 | O71: =SUM(C71:N71) -> 2732630.182 | R71: =AVERAGE(C71:L71,N71) -> 227719.1818 | U71: 30948
A72: kW | B72: Total | C72: =SUM(C70:C71) -> 360203 | D72: 353407 | E72: 357241 | F72: 345491 | G72: 332640 | H72: 324588 | I72: 322623 | J72: 312815 | K72: 310727 | L72: 306018 | M72: 332183.8182 | N72: 328269 | O72: 3986205.818 | R72: =SUM(R70:R71) -> 332183.8182 | U72: 43045
A74: Block ID 21 | B74: Schedule 021/022
B75: kVar | C75: 22679 | D75: 22929 | E75: 24798 | F75: 27579 | G75: 21310 | H75: 20064 | I75: 17128 | J75: 16621 | K75: 18738 | L75: 19258 | M75: =R75 -> 21064.36364 | N75: 20604 | O75: =SUM(C75:N75) -> 252772.3636 | R75: =AVERAGE(C75:L75,N75) -> 21064.36364 | U75: 2175
B76: pf Charge | C76: 0.5 | D76: 0.5 | E76: 0.5 | F76: 0.5 | G76: 0.5 | H76: 0.5 | I76: 0.5 | J76: 0.5 | K76: 0.5 | L76: 0.5 | M76: 0.5 | N76: 0.5 | O76: 0.5 | U76: 0.5
B77: pf Revenue | C77: =C75*C76 -> 11339.5 | D77: 11464.5 | E77: 12399 | F77: 13789.5 | G77: 10655 | H77: 10032 | I77: =I75*I76 -> 8564 | J77: =J75*J76 -> 8310.5 | K77: 9369 | L77: 9629 | M77: 10532.18182 | N77: 10302 | O77: 126386.1818 | U77: 1087.5
A79: Block ID 30 | B79: Schedule 30/31/32
B80: Block 1 | C80: 4755578 | D80: 5123989 | E80: 5265525 | F80: 4515242 | G80: 2640799 | H80: 1583191 | I80: 1486104 | J80: 1539534 | K80: 1501567 | L80: 2372543 | M80: 159803 | N80: 4974958 | O80: =SUM(C80:N80) -> 35918833 | R80: =SUM(C80:L80,N80) -> 35759030 | S80: =R80/$R$83 -> 0.2981143771 | U80: 159803
B81: Block 2 | C81: 1320808 | D81: 1515504 | E81: 1507392 | F81: 1057732 | G81: 508805 | H81: 399526 | I81: 429522 | J81: 415247 | K81: 417470 | L81: 526213 | M81: 44908 | N81: 1373923 | O81: =SUM(C81:N81) -> 9517050 | R81: =SUM(C81:L81,N81) -> 9472142 | S81: =R81/$R$83 -> 0.07896695498 | U81: 44908
B82: Block 3 | C82: 10443519 | D82: 14509843 | E82: 15398541 | F82: 9308431 | G82: 3616215 | H82: 1934148 | I82: 2036495 | J82: 2047521 | K82: 1910514 | L82: 2363247 | M82: 193602 | N82: 11151060 | O82: =SUM(C82:N82) -> 74913136 | R82: 74719534 | S82: 0.6229186679 | U82: 193602
A83: kWhs | B83: Total | C83: =SUM(C80:C82) -> 16519905 | D83: 21149336 | E83: 22171458 | F83: 14881405 | G83: 6765819 | H83: 3916865 | I83: 3952121 | J83: 4002302 | K83: 3829551 | L83: 5262003 | M83: 398313 | N83: 17499941 | O83: 120349019 | R83: =SUM(R80:R82) -> 119950706 | S83: =SUM(S80:S82) -> 1 | U83: 398313
B84: Revenue Run Total | C84: ='Rev Runs 12MEJUNE2013'!D52+'Rev Runs 12MEJUNE2013'!D53+'Rev Runs 12MEJUNE2013'!D54 -> 16554637 | D84: ='Rev Runs 12MEJUNE2013'!E52+'Rev Runs 12MEJUNE2013'!E53+'Rev Runs 12MEJUNE2013'!E54 -> 21168659 | E84: ='Rev Runs 12MEJUNE2013'!F52+'Rev Runs 12MEJUNE2013'!F53+'Rev Runs 12MEJUNE2013'!F54 -> 22186328 | F84: ='Rev Runs 12MEJUNE2013'!G52+'Rev Runs 12MEJUNE2013'!G53+'Rev Runs 12MEJUNE2013'!G54 -> 14842915 | G84: ='Rev Runs 12MEJUNE2013'!H52+'Rev Runs 12MEJUNE2013'!H53+'Rev Runs 12MEJUNE2013'!H54 -> 5844571 | H84: ='Rev Runs 12MEJUNE2013'!I52+'Rev Runs 12MEJUNE2013'!I53+'Rev Runs 12MEJUNE2013'!I54 -> 3658237 | I84: ='Rev Runs 12MEJUNE2013'!J52+'Rev Runs 12MEJUNE2013'!J53+'Rev Runs 12MEJUNE2013'!J54 -> 3985173 | J84: ='Rev Runs 12MEJUNE2013'!K52+'Rev Runs 12MEJUNE2013'!K53+'Rev Runs 12MEJUNE2013'!K54 -> 4037555 | K84: ='Rev Runs 12MEJUNE2013'!L52+'Rev Runs 12MEJUNE2013'!L53+'Rev Runs 12MEJUNE2013'!L54 -> 3852067 | L84: ='Rev Runs 12MEJUNE2013'!M52+'Rev Runs 12MEJUNE2013'!M53+'Rev Runs 12MEJUNE2013'!M54 -> 5243679 | M84: ='Rev Runs 12MEJUNE2013'!N52+'Rev Runs 12MEJUNE2013'!N53+'Rev Runs 12MEJUNE2013'!N54 -> 11987118 | N84: ='Rev Runs 12MEJUNE2013'!O52+'Rev Runs 12MEJUNE2013'!O53+'Rev Runs 12MEJUNE2013'!O54 -> 17532534 | O84: =SUM(C84:N84) -> 130893473 | U84: 11987118
C85: =C84-C83 -> 34732 | D85: 19323 | E85: 14870 | F85: -38490 | G85: -921248 | H85: -258628 | I85: 33052 | J85: 35253 | K85: 22516 | L85: -18324 | M85: 11588805 | N85: 32593 | O85: =SUM(C85:N85) -> 10544454 | P85: =O85/O84 -> 0.08055752329 | U85: 11588805
B87: Block 1 | C87: =(C80/C$83)*C$85 -> 9998.286013 | D87: =(D80/D$83)*D$85 -> 4681.510542 | E87: 3531.493362 | F87: -11678.44465 | G87: -359576.6894 | H87: -104537.0525 | I87: 12428.4427 | J87: 13560.49396 | K87: 8828.523911 | L87: -8261.96373 | M87: 4649423.457 | N87: 9265.677301 | O87: =SUM(C87:N87) -> 4227663.735 | P87: =O87/$O$90 -> 0.4009371879
B88: Block 2 | C88: =(C81/C$83)*C$85 -> 2776.910851 | D88: 1384.633721 | E88: 1010.980831 | F88: -2735.770223 | G88: -69279.94802 | H88: -26380.43699 | I88: 3592.137271 | J88: 3657.570691 | K88: 2454.531751 | L88: -1832.444226 | M88: 1306585.662 | N88: 2558.881332 | O88: =SUM(C88:N88) -> 1223792.709 | P88: =O88/$O$90 -> 0.1160603204
B89: Block 3 | C89: 21956.80314 | D89: 13256.85574 | E89: 10327.52581 | F89: -24075.78513 | G89: -492391.3626 | H89: -127710.5106 | I89: 17031.42002 | J89: 18034.93535 | K89: 11232.94434 | L89: -8229.592045 | M89: 5632795.881 | N89: 20768.44137 | O89: 5092997.556 | P89: 0.4830024917
C90: =SUM(C87:C89) -> 34732 | D90: =SUM(D87:D89) -> 19323 | E90: =SUM(E87:E89) -> 14870 | F90: =SUM(F87:F89) -> -38490 | G90: =SUM(G87:G89) -> -921248 | H90: =SUM(H87:H89) -> -258628 | I90: =SUM(I87:I89) -> 33052 | J90: =SUM(J87:J89) -> 35253 | K90: =SUM(K87:K89) -> 22516 | L90: =SUM(L87:L89) -> -18324 | M90: =SUM(M87:M89) -> 11588805 | N90: =SUM(N87:N89) -> 32593 | O90: =SUM(O87:O89) -> 10544454 | P90: =SUM(P87:P89) -> 1
B92: Block 1 | C92: =C80+C87 -> 4765576.286 | D92: =D80+D87 -> 5128670.511 | E92: 5269056.493 | F92: 4503563.555 | G92: 2281222.311 | H92: 1478653.948 | I92: 1498532.443 | J92: 1553094.494 | K92: 1510395.524 | L92: 2364281.036 | M92: 4809226.457 | N92: 4984223.677 | O92: =SUM(C92:N92) -> 40146496.73 | P92: =O92/$O$95 -> 0.3067112195
B93: Block 2 | C93: =C81+C88 -> 1323584.911 | D93: 1516888.634 | E93: 1508402.981 | F93: 1054996.23 | G93: 439525.052 | H93: 373145.563 | I93: 433114.1373 | J93: 418904.5707 | K93: 419924.5318 | L93: 524380.5558 | M93: 1351493.662 | N93: 1376481.881 | O93: =SUM(C93:N93) -> 10740842.71 | P93: =O93/$O$95 -> 0.08205789382
B94: Block 3 | C94: 10465475.8 | D94: 14523099.86 | E94: 15408868.53 | F94: 9284355.215 | G94: 3123823.637 | H94: 1806437.489 | I94: 2053526.42 | J94: 2065555.935 | K94: 1921746.944 | L94: 2355017.408 | M94: 5826397.881 | N94: 11171828.44 | O94: 80006133.56 | P94: 0.6112308866
C95: =SUM(C92:C94) -> 16554637 | D95: =SUM(D92:D94) -> 21168659 | E95: =SUM(E92:E94) -> 22186328 | F95: =SUM(F92:F94) -> 14842915 | G95: =SUM(G92:G94) -> 5844571 | H95: =SUM(H92:H94) -> 3658237 | I95: =SUM(I92:I94) -> 3985173 | J95: =SUM(J92:J94) -> 4037555 | K95: =SUM(K92:K94) -> 3852067 | L95: =SUM(L92:L94) -> 5243679 | M95: =SUM(M92:M94) -> 11987118 | N95: =SUM(N92:N94) -> 17532534 | O95: =SUM(O92:O94) -> 130893473 | P95: 1
C96: =C95-C84 -> 0 | D96: =D95-D84 -> 0 | E96: =E95-E84 -> 0 | F96: =F95-F84 -> 0 | G96: =G95-G84 -> 0 | H96: =H95-H84 -> 0 | I96: =I95-I84 -> 0 | J96: =J95-J84 -> 0 | K96: =K95-K84 -> 0 | L96: =L95-L84 -> 0 | M96: =M95-M84 -> 0 | N96: =N95-N84 -> 0 | O96: =O95-O84 -> 0
A98: Block ID 131 | B98: Schedule 31/32
B99: kVar | C99: 1277 | D99: 1229 | E99: 1216 | F99: 1127 | G99: 744 | H99: 593 | I99: 379 | J99: 597 | K99: 560 | L99: 608 | M99: =R99 -> 857.6363636 | N99: 1104 | O99: =SUM(C99:N99) -> 10291.63636 | R99: =AVERAGE(C99:L99,N99) -> 857.6363636 | U99: 11
B100: pf Charge | C100: 0.5 | D100: 0.5 | E100: 0.5 | F100: 0.5 | G100: 0.5 | H100: 0.5 | I100: 0.5 | J100: 0.5 | K100: 0.5 | L100: 0.5 | M100: 0.5 | N100: 0.5 | O100: 0.5 | U100: 0.5
B101: pf Revenue | C101: =C99*C100 -> 638.5 | D101: 614.5 | E101: 608 | F101: 563.5 | G101: 372 | H101: 296.5 | I101: =I99*I100 -> 189.5 | J101: =J99*J100 -> 298.5 | K101: 280 | L101: 304 | M101: 428.8181818 | N101: 552 | O101: 5145.818182 | U101: 5.5

Sheet Rev Runs 12MEJUNE2013 (hidden)
B4: Electric Revenue Meters Report by Location Twelve Months Ended for Report Date : '06/30/2013'
B6: State Cde:WA
D8: Meters
C9: Period | D9: 201207 | E9: 201208 | F9: 201209 | G9: 201210 | H9: 201211 | I9: 201212 | J9: 201301 | K9: 201302 | L9: 201303 | M9: 201304 | N9: 201305 | O9: 201306 | P9: 12 Month Average
B10: Rate Schedule Num
B11: 001 | D11: 202281 | E11: 201833 | F11: 203291 | G11: 202476 | H11: 203015 | I11: 203421 | J11: 203757 | K11: 203839 | L11: 203429 | M11: 203540 | N11: 203177 | O11: 203022 | P11: 203090.0833
B12: 011 | D12: 20549 | E12: 20547 | F12: 20600 | G12: 20588 | H12: 20630 | I12: 20719 | J12: 20700 | K12: 20863 | L12: 20852 | M12: 20983 | N12: 21000 | O12: 21059 | P12: 20757.5
B13: 012 | D13: 8446 | E13: 8453 | F13: 8457 | G13: 8471 | H13: 8488 | I13: 8502 | J13: 8504 | K13: 8512 | L13: 8504 | M13: 8514 | N13: 8530 | O13: 8533 | P13: 8492.833333
B14: 021 | D14: 2274 | E14: 2258 | F14: 2236 | G14: 2224 | H14: 2210 | I14: 2209 | J14: 2213 | K14: 2106 | L14: 2086 | M14: 1974 | N14: 1949 | O14: 1938 | P14: 2139.75
B15: 022 | D15: 67 | E15: 65 | F15: 62 | G15: 62 | H15: 60 | I15: 60 | J15: 60 | K15: 60 | L15: 58 | M15: 56 | N15: 56 | O15: 55 | P15: 60.08333333
B16: 025 | D16: 21 | E16: 22 | F16: 21 | G16: 22 | H16: 22 | I16: 22 | J16: 22 | K16: 25 | L16: 18 | M16: 21 | N16: 22 | O16: 20 | P16: 21.5
B17: 028 | D17: 0 | E17: 0 | F17: 0 | G17: 0 | H17: 0 | I17: 0 | P17: 0
B18: 030 | D18: 32 | E18: 32 | F18: 32 | G18: 32 | H18: 31 | I18: 31 | J18: 32 | K18: 32 | L18: 31 | M18: 32 | N18: 33 | O18: 32 | P18: 31.83333333
B19: 031 | D19: 1168 | E19: 1166 | F19: 1171 | G19: 1160 | H19: 1164 | I19: 1163 | J19: 1163 | K19: 1158 | L19: 1160 | M19: 1164 | N19: 1182 | O19: 1173 | P19: 1166
B20: 032 | D20: 1227 | E20: 1228 | F20: 1235 | G20: 1228 | H20: 1225 | I20: 1225 | J20: 1229 | K20: 1223 | L20: 1217 | M20: 1214 | N20: 1219 | O20: 1218 | P20: 1224
B21: 041 | D21: 16 | E21: 11 | F21: 11 | G21: 11 | H21: 11 | I21: 11 | J21: 11 | K21: 11 | L21: 11 | M21: 11 | N21: 11 | O21: 11 | P21: 11.41666667
B22: 042 | D22: 290 | E22: 283 | F22: 284 | G22: 285 | H22: 285 | I22: 285 | J22: 286 | K22: 286 | L22: 286 | M22: 287 | N22: 287 | O22: 288 | P22: 286
B23: 044 | D23: 15 | E23: 13 | F23: 13 | G23: 13 | H23: 13 | I23: 13 | J23: 13 | K23: 13 | L23: 13 | M23: 13 | N23: 13 | O23: 13 | P23: 13.16666667
B24: 044A | D24: 2 | E24: 1 | F24: 1 | G24: 1 | H24: 1 | I24: 1 | J24: 1 | K24: 1 | L24: 1 | M24: 1 | N24: 1 | O24: 1 | P24: 1.083333333
B25: 045 | D25: 14 | E25: 11 | F25: 11 | G25: 11 | H25: 11 | I25: 11 | J25: 11 | K25: 11 | L25: 11 | M25: 11 | N25: 11 | O25: 11 | P25: 11.25
B26: 046 | D26: 60 | E26: 52 | F26: 52 | G26: 51 | H26: 51 | I26: 51 | J26: 51 | K26: 52 | L26: 52 | M26: 52 | N26: 52 | O26: 52 | P26: 52.33333333
B27: 047 | D27: 0 | E27: 0 | F27: 0 | G27: 0 | H27: 0 | I27: 0 | J27: 0 | K27: 0 | L27: 0 | M27: 0 | N27: 0 | O27: 0 | P27: 0
B28: 048 | D28: 0 | E28: 0 | F28: 0 | G28: 0 | H28: 0 | I28: 0 | J28: 0 | K28: 0 | L28: 0 | M28: 0 | N28: 0 | O28: 0 | P28: 0
B29: 058 | D29: 0 | E29: 0 | F29: 0 | G29: 0 | H29: 0 | I29: 0 | J29: 0 | K29: 0 | L29: 0 | M29: 0 | N29: 0 | O29: 0 | P29: 0
B30: 058A | D30: 0 | E30: 0 | F30: 0 | G30: 0 | H30: 0 | I30: 0 | J30: 0 | K30: 0 | L30: 0 | M30: 0 | N30: 0 | O30: 0 | P30: 0
B31: 090 | D31: 0 | E31: 0 | F31: 0 | G31: 0 | H31: 0 | I31: 0 | J31: 0 | K31: 0 | L31: 0 | M31: 0 | N31: 0 | O31: 0 | P31: 0
B32: 095 | D32: 0 | E32: 0 | F32: 0 | G32: 0 | H32: 0 | I32: 0 | J32: 0 | K32: 0 | L32: 0 | M32: 0 | N32: 0 | O32: 0 | P32: 0
B33: 099 | D33: 0 | E33: 0 | F33: 0 | G33: 0 | H33: 0 | I33: 0 | J33: 0 | K33: 0 | L33: 0 | M33: 0 | N33: 0 | O33: 0 | P33: 0
B34: Total for WA | D34: 236462 | E34: 235975 | F34: 237477 | G34: 236635 | H34: 237217 | I34: 237724 | J34: 238053 | K34: 238192 | L34: 237729 | M34: 237873 | N34: 237543 | O34: 237426 | P34: =SUM(P11:P33) -> 237358.8333
B35: Sum | D35: 236462 | E35: 235975 | F35: 237477 | G35: 236635 | H35: 237217 | I35: 237724 | J35: 238053 | K35: 238192 | L35: 237729 | M35: 237873 | N35: 237543 | O35: 237426
B40: State Cde:WA
D42: Usage
C43: Period | D43: 201207 | E43: 201208 | F43: 201209 | G43: 201210 | H43: 201211 | I43: 201212 | J43: 201301 | K43: 201302 | L43: 201303 | M43: 201304 | N43: 201305 | O43: 201306 | P43: 12 Month Total
B44: Rate Schedule Num
B45: 001 | D45: 158134847 | E45: 183523410 | F45: 167506156 | G45: 147406008 | H45: 174458061 | I45: 233052070 | J45: 276010396 | K45: 271466630 | L45: 220392514 | M45: 195685539 | N45: 172072750 | O45: 157012413 | P45: 2356720794
B46: 011 | D46: 36912471 | E46: 40678251 | F46: 39000258 | G46: 36160151 | H46: 37593800 | I46: 43159916 | J46: 46478823 | K46: 47098399 | L46: 42497473 | M46: 41171579 | N46: 39880067 | O46: 40303857 | P46: 490935045
B47: 012 | D47: 3460757 | E47: 3610602 | F47: 3731112 | G47: 3610340 | H47: 4084320 | I47: 5245930 | J47: 6011794 | K47: 6306516 | L47: 5252219 | M47: 4651911 | N47: 4058924 | O47: 3693029 | P47: 53717454
B48: 021 | D48: 118447535 | E48: 123445366 | F48: 119242423 | G48: 115773048 | H48: 115178688 | I48: 122308029 | J48: 124154229 | K48: 118360722 | L48: 114400067 | M48: 107898039 | N48: 110801405 | O48: 114604031 | P48: 1404613582
B49: 022 | D49: 2659730 | E49: 3067610 | F49: 2870640 | G49: 2618350 | H49: 2885280 | I49: 3634460 | J49: 3975540 | K49: 4193870 | L49: 3494510 | M49: 3076130 | N49: 2774540 | O49: 2669790 | P49: 37920450
B50: 025 | D50: 81226635 | E50: 88403539 | F50: 89901749 | G50: 86977636 | H50: 90883016 | I50: 86677574 | J50: 88907530 | K50: 93723602 | L50: 86028844 | M50: 90957221 | N50: 86670290 | O50: 89779844 | P50: 1060137480
B51: 028 | D51: 0 | E51: 0 | F51: 0 | G51: 0 | H51: 0 | I51: 0 | P51: 0
B52: 030 | D52: 3610060 | E52: 3947420 | F52: 4400880 | G52: 2597700 | H52: 530020 | I52: -82660 | J52: 3260 | K52: 5000 | L52: 3540 | M52: 680662 | N52: 2916810 | O52: 4101550 | P52: 22714242
B53: 031 | D53: 11921196 | E53: 15682632 | F53: 16326321 | G53: 11294523 | H53: 4962081 | I53: 3513874 | J53: 3718762 | K53: 3768089 | L53: 3614245 | M53: 4168745 | N53: 8305659 | O53: 12389271 | P53: 99665398
B54: 032 | D54: 1023381 | E54: 1538607 | F54: 1459127 | G54: 950692 | H54: 352470 | I54: 227023 | J54: 263151 | K54: 264466 | L54: 234282 | M54: 394272 | N54: 764649 | O54: 1041713 | P54: 8513833
B55: 041 | D55: 8720 | E55: 8720 | F55: 8720 | G55: 8720 | H55: 8720 | I55: 8720 | J55: 8720 | K55: 8720 | L55: 8720 | M55: 8720 | N55: 8720 | O55: 8720 | P55: 104640
B56: 042 | D56: 1142161 | E56: 1142547 | F56: 1140385 | G56: 1140960 | H56: 1140554 | I56: 1142572 | J56: 1142890 | K56: 1143398 | L56: 1143650 | M56: 1143816 | N56: 1123946 | O56: 1124387 | P56: 13671266
B57: 044 | D57: 22332 | E57: 22332 | F57: 22332 | G57: 23938 | H57: 24502 | I57: 24502 | J57: 24502 | K57: 24502 | L57: 24502 | M57: 24502 | N57: 24502 | O57: 24502 | P57: 286950
B58: 044A | D58: 0 | E58: 0 | F58: 0 | G58: 0 | H58: 0 | I58: 0 | J58: 0 | K58: 0 | L58: 0 | M58: 0 | N58: 0 | O58: 0 | P58: 0
B59: 045 | D59: 84237 | E59: 84237 | F59: 84237 | G59: 84237 | H59: 84237 | I59: 84237 | J59: 84237 | K59: 84237 | L59: 84237 | M59: 84237 | N59: 84237 | O59: 84237 | P59: 1010844
B60: 046 | D60: 139134 | E60: 139134 | F60: 137006 | G60: 138602 | H60: 138602 | I60: 138602 | J60: 138602 | K60: 138919 | L60: 139962 | M60: 139917 | N60: 139877 | O60: 139877 | P60: 1668234
B61: 047 | D61: 473919 | E61: 475431 | F61: 471617 | G61: 474798 | H61: 470758 | I61: 470560 | J61: 470799 | K61: 470657 | L61: 471490 | M61: 471830 | N61: 472055 | O61: 468162 | P61: 5662076
B62: 048 | D62: 272019 | E62: 270932 | F62: 271401 | G62: 271567 | H62: 270082 | I62: 270531 | J62: 270886 | K62: 272041 | L62: 268347 | M62: 268482 | N62: 269741 | O62: 266290 | P62: 3242319
B63: 058 | D63: 0 | E63: 0 | F63: 0 | G63: 0 | H63: 0 | I63: 0 | J63: 0 | K63: 0 | L63: 0 | M63: 0 | N63: 0 | O63: 0 | P63: 0
B64: 058A | D64: 0 | E64: 0 | F64: 0 | G64: 0 | H64: 0 | I64: 0 | J64: 0 | K64: 0 | L64: 0 | M64: 0 | N64: 0 | O64: 0 | P64: 0
B65: 090 | D65: 0 | E65: 0 | F65: 0 | G65: 0 | H65: 0 | I65: 0 | J65: 0 | K65: 0 | L65: 0 | M65: 0 | N65: 0 | O65: 0 | P65: 0
B66: 095 | D66: 0 | E66: 0 | F66: 0 | G66: 0 | H66: 0 | I66: 0 | J66: 0 | K66: 0 | L66: 0 | M66: 0 | N66: 0 | O66: 0 | P66: 0
B67: 099 | D67: 0 | E67: 0 | F67: 0 | G67: 0 | H67: 0 | I67: 0 | J67: 0 | K67: 0 | L67: 0 | M67: 0 | N67: 0 | O67: 0 | P67: 0
B68: Total for WA | D68: 419539134 | E68: 466040770 | F68: 446574364 | G68: 409531270 | H68: 433065191 | I68: 499875940 | J68: 551664121 | K68: 547329768 | L68: 478058602 | M68: 450825602 | N68: 430368172 | O68: 427711673 | P68: 5560584607
B69: Sum | D69: 419539134 | E69: 466040770 | F69: 446574364 | G69: 409531270 | H69: 433065191 | I69: 499875940 | J69: 551664121 | K69: 547329768 | L69: 478058602 | M69: 450825602 | N69: 430368172 | O69: 427711673 | P69: 5560584607
A74: Jurisdiction:WA
D76: Usage
C77: Period | D77: 201207 | E77: 201208 | F77: 201209 | G77: 201210 | H77: 201211 | I77: 201212 | J77: 201301 | K77: 201302 | L77: 201303 | M77: 201304 | N77: 201305 | O77: 201306 | P77: 12 Month Total
A78: Source Id | B78: Rate Schedule Num
A79: REVUNBL-E | B79: 001 | D79: 115654942 | E79: 135794344 | F79: 115973629 | G79: 126067865 | H79: 152490796 | I79: 174787144 | J79: 180403918 | K79: 156267849 | L79: 132749248 | M79: 117218348 | N79: 107585978 | O79: 95484001 | P79: 1610478062
B80: 011 | D80: 26938829 | E80: 30040099 | F80: 26993547 | G80: 30939880 | H80: 32794681 | I80: 32276300 | J80: 30248995 | K80: 27019712 | L80: 25546369 | M80: 24567682 | N80: 24851824 | O80: 24453948 | P80: 336671866
B81: 012 | D81: 2548268 | E81: 2660227 | F81: 2593426 | G81: 3077789 | H81: 3574352 | I81: 3923602 | J81: 3951445 | K81: 3618024 | L81: 3180046 | M81: 2793972 | N81: 2526234 | O81: 2242110 | P81: 36689495
B82: 021 | D82: 86167847 | E82: 90734195 | F82: 82149509 | G82: 98408259 | H82: 100037179 | I82: 91130336 | J82: 80663987 | K82: 67741728 | L82: 68370986 | M82: 64261347 | N82: 68871446 | O82: 69296153 | P82: 967832972
B83: 022 | D83: 1929403 | E83: 2250961 | F83: 1972465 | G83: 2227347 | H83: 2546726 | I83: 2709154 | J83: 2588878 | K83: 2424846 | L83: 2120031 | M83: 1830533 | N83: 1736786 | O83: 1614319 | P83: 25951449
B84: 025 | D84: 87739172 | E84: 89901749 | F84: 87038621 | G84: 90860287 | H84: 86678014 | I84: 88803368 | J84: 93820991 | K84: 85942864 | L84: 90373972 | M84: 86422164 | N84: 89792204 | O84: 87183410 | P84: 1064556816
B85: 031 | D85: 8700514 | E85: 11582218 | F85: 11323409 | G85: 9638339 | H85: 4333902 | I85: 2662444 | J85: 2452621 | K85: 2193909 | L85: 2190698 | M85: 2504940 | N85: 5210357 | O85: 7563385 | P85: 70356736
B86: 032 | D86: 582461 | E86: 900384 | F86: 803597 | G86: 566961 | H86: 223397 | I86: 140129 | J86: 181676 | K86: 153958 | L86: 141335 | M86: 160573 | N86: 347357 | O86: 418527 | P86: 4620355
B87: 042 | D87: 0 | E87: 0 | F87: 0 | G87: 0 | H87: 0 | I87: 0 | J87: NULL | K87: NULL | L87: NULL | M87: NULL | N87: NULL | O87: NULL | P87: 0
B88: Total for REVUNBL-E | D88: 330261436 | E88: 363864177 | F88: 328848203 | G88: 361786727 | H88: 382679047 | I88: 396432477 | J88: 394312511 | K88: 345362890 | L88: 324672685 | M88: 299759559 | N88: 300922186 | O88: 288255853 | P88: 4117157751
A89: REVUNBL-ER | B89: 001 | D89: -99208997 | E89: -115654942 | F89: -135794344 | G89: -115973629 | H89: -126067865 | I89: -152490796 | J89: -174787144 | K89: -180403918 | L89: -156267849 | M89: -132749248 | N89: -117218348 | O89: -107585978 | P89: -1614203058
B90: 011 | D90: -22792092 | E90: -26938829 | F90: -30040099 | G90: -26993547 | H90: -30939880 | I90: -32794681 | J90: -32276300 | K90: -30248995 | L90: -27019712 | M90: -25546369 | N90: -24567682 | O90: -24851824 | P90: -335010010
B91: 012 | D91: -2257561 | E91: -2548268 | F91: -2660227 | G91: -2593426 | H91: -3077789 | I91: -3574352 | J91: -3923602 | K91: -3951445 | L91: -3618024 | M91: -3180046 | N91: -2793972 | O91: -2526234 | P91: -36704946
B92: 021 | D92: -75334513 | E92: -86167847 | F92: -90734195 | G92: -82149509 | H92: -98408259 | I92: -100037179 | J92: -91130336 | K92: -80663987 | L92: -67741728 | M92: -68370986 | N92: -64261347 | O92: -68871446 | P92: -973871332
B93: 022 | D93: -1824604 | E93: -1929403 | F93: -2250961 | G93: -1972465 | H93: -2227347 | I93: -2546726 | J93: -2709154 | K93: -2588878 | L93: -2424846 | M93: -2120031 | N93: -1830533 | O93: -1736786 | P93: -26161734
B94: 025 | D94: -81531354 | E94: -87739172 | F94: -89901749 | G94: -87038621 | H94: -90860287 | I94: -86678014 | J94: -88803368 | K94: -93820991 | L94: -85942864 | M94: -90373972 | N94: -86422164 | O94: -89792204 | P94: -1058904760
B95: 031 | D95: -6803610 | E95: -8700514 | F95: -11582218 | G95: -11323409 | H95: -9638339 | I95: -4333902 | J95: -2662444 | K95: -2452621 | L95: -2193909 | M95: -2190698 | N95: -2504940 | O95: -5210357 | P95: -69596961
B96: 032 | D96: -432957 | E96: -582461 | F96: -900384 | G96: -803597 | H96: -566961 | I96: -223397 | J96: -140129 | K96: -181676 | L96: -153958 | M96: -141335 | N96: -160573 | O96: -347357 | P96: -4634785
B97: Total for REVUNBL-ER | D97: -290185688 | E97: -330261436 | F97: -363864177 | G97: -328848203 | H97: -361786727 | I97: -382679047 | J97: -396432477 | K97: -394312511 | L97: -345362890 | M97: -324672685 | N97: -299759559 | O97: -300922186 | P97: -4119087586
A98: Total for WA | D98: 40075748 | E98: 33602741 | F98: -35015974 | G98: 32938524 | H98: 20892320 | I98: 13753430 | J98: -2119966 | K98: -48949621 | L98: -20690205 | M98: -24913126 | N98: 1162627 | O98: -12666333 | P98: -1929835
A99: Sum | D99: 40075748 | E99: 33602741 | F99: -35015974 | G99: 32938524 | H99: 20892320 | I99: 13753430 | J99: -2119966 | K99: -48949621 | L99: -20690205 | M99: -24913126 | N99: 1162627 | O99: -12666333 | P99: -1929835 | R99: =O79+O80+O81+O82+O83+O85+O86+D89+D90+D91+D92+D93+D95+D96 -> -7581891 | S99: =P99-P84-P94 -> -7581891
A101: Total Usage
B102: 001 | D102: =D45+D79+D89 -> 174580792 | E102: =E45+E79+E89 -> 203662812 | F102: 147685441 | G102: 157500244 | H102: 200880992 | I102: 255348418 | J102: 281627170 | K102: 247330561 | L102: 196873913 | M102: 180154639 | N102: 162440380 | O102: 144910436 | P102: 2352995798
B103: 011/012 | D103: =D46+D47+D80+D81+D90+D91 -> 44810672 | E103: =E46+E47+E80+E81+E90+E91 -> 47502082 | F103: 39618017 | G103: 44201187 | H103: 44029484 | I103: 48236715 | J103: 50491155 | K103: 49842211 | L103: 45838371 | M103: 44458729 | N103: 43955395 | O103: 43314886 | P103: 546298904
B104: 021/022 | D104: =D48+D49+D82+D83+D92+D93 -> 132045398 | E104: =E48+E49+E82+E83+E92+E93 -> 131400882 | F104: 113249881 | G104: 134905030 | H104: 120012267 | I104: 117198074 | J104: 117543144 | K104: 109468301 | L104: 118219020 | M104: 106575032 | N104: 118092297 | O104: 117576061 | P104: 1436285387
B105: 025 | D105: =D50+D84+D94 -> 87434453 | E105: =E50+E84+E94 -> 90566116 | F105: 87038621 | G105: 90799302 | H105: 86700743 | I105: 88802928 | J105: 93925153 | K105: 85845475 | L105: 90459952 | M105: 87005413 | N105: 90040330 | O105: 87171050 | P105: 1065789536
B106: 030/031/032 | D106: =D52+D53+D54+D85+D86+D95+D96 -> 18601045 | E106: =E52+E53+E54+E85+E86+E95+E96 -> 24368286 | F106: 21830732 | G106: 12921209 | H106: 196570 | I106: 1903511 | J106: 3816897 | K106: 3751125 | L106: 3836233 | M106: 5577159 | N106: 14879319 | O106: 19956732 | P106: 131638818
B107: 04X | D107: =D55+D56+D57+D58+D59+D60+D61+D62 -> 2142522 | E107: =E55+E56+E57+E58+E59+E60+E61+E62 -> 2143333 | F107: 2135698 | G107: 2142822 | H107: 2137455 | I107: 2139724 | J107: 2140636 | K107: 2142474 | L107: 2140908 | M107: 2141504 | N107: 2123078 | O107: 2116175 | P107: 25646329
B108: Total | D108: =SUM(D102:D107) -> 459614882 | E108: =SUM(E102:E107) -> 499643511 | F108: 411558390 | G108: 442469794 | H108: 453957511 | I108: 513629370 | J108: 549544155 | K108: 498380147 | L108: 457368397 | M108: 425912476 | N108: 431530799 | O108: 415045340 | P108: 5558654772
D110: =D68+D88+D97-D108 -> 0 | E110: =E68+E88+E97-E108 -> 0 | F110: 0 | G110: 0 | H110: 0 | I110: 0 | J110: 0 | K110: 0 | L110: 0 | M110: 0 | N110: 0 | O110: 0 | P110: 0

Sheet LED Rates (hidden)
B2: Rates for New LED Street Lights
B3: Washington
B7: 60W LED | C7: Present | E7: Proposed | G7: High-Pressure Sodium Vapor | O7: Double | P7: Granville | Q7: Post Top | R7: Kim Light | T7: High-Pressure Sodium Vapor
B8: LED Fixture & Install | C8: =155+74.17 -> 229.17 | E8: =155+74.17 -> 229.17 | G8: Present Rates | H8: No | I8: Wood | J8: Pedestal | K8: Direct | L8: Developer | M8: Underground | N8: Decorative | O8: Wood | P8: Direct | Q8: Direct | R8: Pedestal | T8: Present Rates | U8: No | V8: Wood | W8: Pedestal | X8: Direct | Y8: Developer
B9: Total | C9: =SUM(C8) -> 229.17 | E9: =SUM(E8) -> 229.17 | H9: Pole | I9: Pole | J9: Base | K9: Burial | L9: Contributed | M9: Intallation | N9: Curb | O9: Pool | P9: Burial | Q9: Burial | R9: Base | U9: Pole | V9: Pole | W9: Base | X9: Burial | Y9: Contributed
G10: Light Code | H10: 435 | I10: 431 | J10: 432 | K10: 433 | L10: 436 | M10: 421 | N10: 434 | O10: 441 | P10: 474 | Q10: 484 | R10: 438 | T10: Light Code | U10: 535 | V10: 531 | W10: 532 | X10: 533 | Y10: 536 | Z10: 522 | AA10: 538 | AB10: 541 | AC10: 542
B11: Times: Cap. Recovery Factor | C11: =C93 -> 0.1330041128 | E11: =C129 -> 0.1345304391 | G11: Wattage | H11: 100W | I11: 100W | J11: 100W | K11: 100W | L11: 100W | M11: 100W | N11: 100W | O11: 100W | P11: 100W | Q11: 100W | R11: 100W | T11: Wattage | U11: 200W | V11: 200W | W11: 200W | X11: 200W | Y11: 200W | Z11: 200W | AA11: 200W | AB11: 200W | AC11: 200W
G12: Schedule 42 | H12: ='St Lts'!T15 -> 13.23 | I12: ='St Lts'!T11 -> 15.02 | J12: ='St Lts'!T12 -> 24.75 | K12: ='St Lts'!T13 -> 24.75 | L12: ='St Lts'!T16 -> 13.96 | M12: ='St Lts'!T10 -> 24.75 | N12: ='St Lts'!T14 -> 13.96 | O12: ='St Lts'!T18 -> 27.19 | P12: ='St Lts'!T19 -> 24.31 | Q12: ='St Lts'!T21 -> 23.14 | R12: ='St Lts'!T17 -> 13.96 | T12: Schedule 42 | U12: ='St Lts'!T30 -> 18.4 | V12: ='St Lts'!T27 -> 22.36 | W12: ='St Lts'!T28 -> 33.11 | X12: ='St Lts'!T29 -> 33.11 | Y12: ='St Lts'!T31 -> 22.36 | Z12: ='St Lts'!T26 -> 56.1 | AA12: ='St Lts'!T32 -> 22.06 | AB12: ='St Lts'!T33 -> 44.73 | AC12: ='St Lts'!T34 -> 56.1
B13: Annual Capital | G13: Schedule 44 | H13: 6.89 | I13: 6.89 | J13: 6.89 | K13: 6.89 | L13: 6.89 | M13: 6.89 | N13: 6.89 | O13: 12.09 | P13: 6.89 | Q13: 6.89 | R13: 6.89 | T13: Schedule 44 | U13: 10.74 | V13: 10.74 | W13: 10.74 | X13: 10.74 | Y13: 10.74 | Z13: 10.74 | AA13: 10.74 | AB13: 19.74 | AC13: 19.74
B14: Recovery Requirement | C14: =C9*C11 -> 30.48055254 | E14: =E9*E11 -> 30.83034072 | G14: Schedule 46 | H14: 4.61 | I14: 4.61 | J14: 4.61 | K14: 4.61 | L14: 4.61 | M14: 4.61 | N14: 4.61 | O14: =N14*2 -> 9.22 | P14: 4.61 | Q14: 4.61 | R14: 4.61 | T14: Schedule 46 | U14: 8.48 | V14: 8.48 | W14: 8.48 | X14: 8.48 | Y14: 8.48 | Z14: 8.48 | AA14: 8.48 | AB14: =8.48*2 -> 16.96 | AC14: =8.48*2 -> 16.96
B16: Monthly Capital Requirement | C16: =C14/12 -> 2.540046045 | E16: =E14/12 -> 2.56919506 | G16: Capital | H16: =H12-H13 -> 6.34 | I16: =I12-I13 -> 8.13 | J16: 17.86 | K16: 17.86 | L16: =L12-L13 -> 7.07 | M16: =M12-M13 -> 17.86 | N16: =N12-N13 -> 7.07 | O16: 15.1 | P16: =P12-P13 -> 17.42 | Q16: =Q12-Q13 -> 16.25 | R16: 7.07 | T16: Capital | U16: =U12-U13 -> 7.66 | V16: =V12-V13 -> 11.62 | W16: 22.37 | X16: 22.37 | Y16: 11.62 | Z16: =Z12-Z13 -> 45.36 | AA16: 11.32 | AB16: 24.99 | AC16: 36.36
G17: Maintenance | H17: =H13-H14 -> 2.28 | I17: =I13-I14 -> 2.28 | J17: 2.28 | K17: 2.28 | L17: 2.28 | M17: =M13-M14 -> 2.28 | N17: 2.28 | O17: =O13-O14 -> 2.87 | P17: =P13-P14 -> 2.28 | Q17: =Q13-Q14 -> 2.28 | R17: 2.28 | T17: Maintenance | U17: =U13-U14 -> 2.26 | V17: =V13-V14 -> 2.26 | W17: 2.26 | X17: 2.26 | Y17: 2.26 | Z17: =Z13-Z14 -> 2.26 | AA17: 2.26 | AB17: =AB13-AB14 -> 2.78 | AC17: 2.78
G18: Energy | H18: =H14 -> 4.61 | I18: =I14 -> 4.61 | J18: 4.61 | K18: 4.61 | L18: 4.61 | M18: =M14 -> 4.61 | N18: 4.61 | O18: 9.22 | P18: =P14 -> 4.61 | Q18: =Q14 -> 4.61 | R18: 4.61 | T18: Energy | U18: =U14 -> 8.48 | V18: =V14 -> 8.48 | W18: 8.48 | X18: 8.48 | Y18: 8.48 | Z18: =Z14 -> 8.48 | AA18: 8.48 | AB18: =AB14 -> 16.96 | AC18: 16.96
B19: Monthly Energy | C19: =ROUND(22*'Lighting summary'!O15,2) -> 2.19 | E19: =ROUND(22*'Lighting summary'!P15,2) -> 2.22 | G19: Total | H19: =SUM(H16:H18) -> 13.23 | I19: =SUM(I16:I18) -> 15.02 | J19: 24.75 | K19: 24.75 | L19: 13.96 | M19: =SUM(M16:M18) -> 24.75 | N19: 13.96 | O19: 27.19 | P19: =SUM(P16:P18) -> 24.31 | Q19: =SUM(Q16:Q18) -> 23.14 | R19: 13.96 | T19: Total | U19: =SUM(U16:U18) -> 18.4 | V19: =SUM(V16:V18) -> 22.36 | W19: =SUM(W16:W18) -> 33.11 | X19: =SUM(X16:X18) -> 33.11 | Y19: =SUM(Y16:Y18) -> 22.36 | Z19: 56.1 | AA19: 22.06 | AB19: 44.73 | AC19: 56.1
B21: Monthly Maintenance | C21: =ROUND(400/15/12,2) -> 2.22 | E21: =ROUND(400/15/12,2) -> 2.22
B24: 120W LED | G24: LED's Based on | H24: =H7 -> 0 | I24: 0 | J24: 0 | K24: 0 | L24: 0 | M24: 0 | N24: 0 | O24: Double | P24: =P7 -> Granville | Q24: =Q7 -> Post Top | R24: Kim Light | T24: LED's Based on | U24: =U7 -> 0 | V24: =V7 -> 0 | W24: 0 | X24: 0 | Y24: 0 | Z24: 0 | AA24: 0 | AB24: 0 | AC24: 0
B25: LED Fixture & Install | C25: =360+74.17 -> 434.17 | E25: =360+74.17 -> 434.17 | G25: Present Rates | H25: =H8 -> No | I25: =I8 -> Wood | J25: Pedestal | K25: Direct | L25: Developer | M25: Underground | N25: Decorative | O25: Wood | P25: =P8 -> Direct | Q25: =Q8 -> Direct | R25: Pedestal | T25: Present Rates | U25: =U8 -> No | V25: Wood | W25: Pedestal | X25: Direct | Y25: Developer | Z25: 0 | AA25: 0 | AB25: 0 | AC25: 0
B26: Total | C26: =SUM(C25) -> 434.17 | E26: =SUM(E25) -> 434.17 | H26: =H9 -> Pole | I26: =I9 -> Pole | J26: Base | K26: Burial | L26: Contributed | M26: Intallation | N26: Curb | O26: Pool | P26: =P9 -> Burial | Q26: =Q9 -> Burial | R26: Base | U26: Pole | V26: Pole | W26: Base | X26: Burial | Y26: Contributed | Z26: 0 | AA26: 0 | AB26: 0 | AC26: 0
G27: Light Code | H27: =H10 -> 435 | I27: =I10 -> 431 | J27: 432 | K27: 433 | L27: 436 | M27: 421 | N27: 434 | O27: 441 | P27: =P10 -> 474 | Q27: =Q10 -> 484 | R27: 438 | T27: Light Code | U27: 535 | V27: 531 | W27: 532 | X27: 533 | Y27: 536 | Z27: 537 | AA27: 538 | AB27: 539 | AC27: 540
B28: Times: Cap. Recovery Factor | C28: =C11 -> 0.1330041128 | E28: =E11 -> 0.1345304391 | G28: Wattage | H28: 60W | I28: 60W | J28: 60W | K28: 60W | L28: 60W | M28: 60W | N28: 60W | O28: 60W | P28: 60W | Q28: 60W | R28: 60W | T28: Wattage | U28: 120W | V28: 120W | W28: 120W | X28: 120W | Y28: 120W | Z28: 120W | AA28: 120W | AB28: 120W | AC28: 120W
G29: Schedule 42 | H29: =H16+$C$16 -> 8.880046045 | I29: =I16+$C$16 -> 10.67004604 | J29: 20.40004604 | K29: 20.40004604 | L29: 9.610046045 | M29: =M16+$C$16 -> 20.40004604 | N29: =N16+$C$16 -> 9.610046045 | O29: =O16+($C$16*2) -> 20.18009209 | P29: =P16+$C$16 -> 19.96004604 | Q29: =Q16+$C$16 -> 18.79004604 | R29: =R16+$C$16 -> 9.610046045 | T29: Schedule 42 | U29: =U16+$C$33 -> 12.47219964 | V29: =V16+$C$33 -> 16.43219964 | W29: 27.18219964 | X29: 27.18219964 | Y29: 16.43219964 | Z29: =Z16+$C$33 -> 50.17219964 | AA29: 16.13219964 | AB29: =AB16+($C$33*2) -> 34.61439928 | AC29: =AC16+($C$33*2) -> 45.98439928
B30: Annual Capital | G30: Schedule 44 | H30: =H34 -> 2.22 | I30: =I34 -> 2.22 | J30: 2.22 | K30: 2.22 | L30: 2.22 | M30: =M34 -> 2.22 | N30: 2.22 | O30: =O34 -> 4.44 | P30: =P34 -> 2.22 | Q30: =Q34 -> 2.22 | R30: =R34 -> 2.22 | T30: Schedule 44 | U30: =U34 -> 3.36 | V30: =V34 -> 3.36 | W30: 3.36 | X30: 3.36 | Y30: 3.36 | Z30: =Z34 -> 3.36 | AA30: 3.36 | AB30: =AB34 -> 6.72 | AC30: 6.72
B31: Recovery Requirement | C31: =C26*C28 -> 57.74639567 | E31: =E26*E28 -> 58.40908073 | G31: Schedule 46 | H31: =H35 -> 2.19 | I31: =I35 -> 2.19 | J31: 2.19 | K31: 2.19 | L31: 2.19 | M31: =M35 -> 2.19 | N31: 2.19 | O31: =O35 -> 4.38 | P31: =P35 -> 2.19 | Q31: =Q35 -> 2.19 | R31: =R35 -> 2.19 | T31: Schedule 46 | U31: =U35 -> 4.38 | V31: =V35 -> 4.38 | W31: 4.38 | X31: 4.38 | Y31: 4.38 | Z31: =Z35 -> 4.38 | AA31: 4.38 | AB31: =AB35 -> 8.76 | AC31: 8.76
B33: Monthly Capital Requirement | C33: =C31/12 -> 4.812199639 | E33: =E31/12 -> 4.867423394 | G33: Capital | H33: =H16+$C$16 -> 8.880046045 | I33: =I16+$C$16 -> 10.67004604 | J33: 20.40004604 | K33: 20.40004604 | L33: 9.610046045 | M33: 20.40004604 | N33: =N16+$C$16 -> 9.610046045 | O33: =O16+$C$16 -> 17.64004604 | P33: =P16+$C$16 -> 19.96004604 | Q33: =Q16+$C$16 -> 18.79004604 | R33: 9.610046045 | T33: Capital | U33: =U16+$C$33 -> 12.47219964 | V33: =V16+$C$33 -> 16.43219964 | W33: 27.18219964 | X33: 27.18219964 | Y33: 16.43219964 | Z33: 50.17219964 | AA33: =AA16+$C$33 -> 16.13219964 | AB33: =AB16+($C$33*2) -> 34.61439928 | AC33: =AC16+($C$33*2) -> 45.98439928
G34: Maintenance | H34: =$C$21 -> 2.22 | I34: =$C$21 -> 2.22 | J34: =$C$21 -> 2.22 | K34: =$C$21 -> 2.22 | L34: =$C$21 -> 2.22 | M34: =$C$21 -> 2.22 | N34: 2.22 | O34: =$C$21*2 -> 4.44 | P34: 2.22 | Q34: 2.22 | R34: 2.22 | T34: Maintenance | U34: =$C$38 -> 3.36 | V34: =$C$38 -> 3.36 | W34: 3.36 | X34: 3.36 | Y34: 3.36 | Z34: 3.36 | AA34: 3.36 | AB34: =$C$38*2 -> 6.72 | AC34: =$C$38*2 -> 6.72
G35: Energy | H35: =$C$19 -> 2.19 | I35: =$C$19 -> 2.19 | J35: =$C$19 -> 2.19 | K35: =$C$19 -> 2.19 | L35: =$C$19 -> 2.19 | M35: =$C$19 -> 2.19 | N35: 2.19 | O35: =$C$19*2 -> 4.38 | P35: 2.19 | Q35: 2.19 | R35: 2.19 | T35: Energy | U35: =$C$36 -> 4.38 | V35: =$C$36 -> 4.38 | W35: 4.38 | X35: 4.38 | Y35: 4.38 | Z35: 4.38 | AA35: 4.38 | AB35: =$C$36*2 -> 8.76 | AC35: =$C$36*2 -> 8.76
B36: Monthly Energy | C36: =ROUND(44*'Lighting summary'!O15,2) -> 4.38 | E36: =ROUND(44*'Lighting summary'!P15,2) -> 4.44 | G36: Total | H36: =SUM(H33:H35) -> 13.29004604 | I36: =SUM(I33:I35) -> 15.08004604 | J36: 24.81004604 | K36: 24.81004604 | L36: 14.02004604 | M36: =SUM(M33:M35) -> 24.81004604 | N36: 14.02004604 | O36: 26.46004604 | P36: =SUM(P33:P35) -> 24.37004604 | Q36: =SUM(Q33:Q35) -> 23.20004604 | R36: 14.02004604 | T36: Total | U36: =SUM(U33:U35) -> 20.21219964 | V36: =SUM(V33:V35) -> 24.17219964 | W36: =SUM(W33:W35) -> 34.92219964 | X36: =SUM(X33:X35) -> 34.92219964 | Y36: =SUM(Y33:Y35) -> 24.17219964 | Z36: 57.91219964 | AA36: 23.87219964 | AB36: 50.09439928 | AC36: 61.46439928
B38: Monthly Maintenance | C38: =ROUND(605/15/12,2) -> 3.36 | E38: =ROUND(605/15/12,2) -> 3.36 | G38: Differential | H38: =H36-H19 -> 0.06004604499 | I38: =I36-I19 -> 0.06004604499 | J38: =J36-J19 -> 0.06004604499 | K38: 0.06004604499 | L38: 0.06004604499 | M38: =M36-M19 -> 0.06004604499 | N38: 0.06004604499 | O38: -0.729953955 | P38: =P36-P19 -> 0.06004604499 | Q38: =Q36-Q19 -> 0.06004604499 | R38: 0.06004604499 | T38: Differential | U38: =U36-U19 -> 1.812199639 | V38: =V36-V19 -> 1.812199639 | W38: 1.812199639 | X38: 1.812199639 | Y38: 1.812199639 | Z38: =Z36-Z19 -> 1.812199639 | AA38: 1.812199639 | AB38: 5.364399279 | AC38: 5.364399279
G43: LED's Based on | H43: =H7 -> 0 | I43: =I7 -> 0 | J43: 0 | K43: 0 | L43: 0 | M43: 0 | N43: 0 | O43: Double | P43: Granville | Q43: Post Top | R43: Kim Light | T43: LED's Based on
G44: Proposed Rates | H44: =H8 -> No | I44: Wood | J44: Pedestal | K44: Direct | L44: Developer | M44: Underground | N44: Decorative | O44: Wood | P44: Direct | Q44: Direct | R44: Pedestal | T44: Proposed Rates | U44: No | V44: Wood | W44: Pedestal | X44: Direct | Y44: Developer | Z44: Developer | AA44: Developer | AB44: Developer | AC44: Developer
H45: Pole | I45: Pole | J45: Base | K45: Burial | L45: Contributed | M45: Intallation | N45: Curb | O45: Pool | P45: Burial | Q45: Burial | R45: Base | U45: Pole | V45: Pole | W45: Base | X45: Burial | Y45: Contributed | Z45: Contributed | AA45: Contributed | AB45: Contributed | AC45: Contributed
G46: Light Code | H46: =H10 -> 435 | I46: =I10 -> 431 | J46: 432 | K46: 433 | L46: 436 | M46: 421 | N46: 434 | O46: 441 | P46: 474 | Q46: 484 | R46: 438 | T46: Light Code | U46: =U10 -> 535 | V46: =V10 -> 531 | W46: 532 | X46: 533 | Y46: 536 | Z46: 522 | AA46: 538 | AB46: 541 | AC46: 542
G47: Wattage | H47: 60W | I47: 60W | J47: 60W | K47: 60W | L47: 60W | M47: 60W | N47: 60W | O47: 60W | P47: 60W | Q47: 60W | R47: 60W | T47: Wattage | U47: 120W | V47: 120W | W47: 120W | X47: 120W | Y47: 120W | Z47: 120W | AA47: 120W | AB47: 120W | AC47: 120W
G48: Schedule 42 | H48: ='St Lts'!AL15 -> 13.4 | I48: ='St Lts'!AL11 -> 15.21 | J48: ='St Lts'!AL12 -> 25.07 | K48: ='St Lts'!AL13 -> 25.07 | L48: ='St Lts'!AL16 -> 15.21 | M48: ='St Lts'!AL10 -> 25.07 | N48: ='St Lts'!AL14 -> 14.14 | O48: ='St Lts'!AL18 -> 27.54 | P48: ='St Lts'!AL19 -> 24.62 | Q48: ='St Lts'!AL21 -> 23.44 | R48: ='St Lts'!AL17 -> 14.14 | T48: Schedule 42 | U48: ='St Lts'!AL30 -> 18.64 | V48: ='St Lts'!AL27 -> 22.65 | W48: ='St Lts'!AL28 -> 33.54 | X48: ='St Lts'!AL29 -> 33.54 | Y48: ='St Lts'!AL31 -> 22.65 | Z48: ='St Lts'!AL26 -> 56.83 | AA48: ='St Lts'!AL32 -> 22.35 | AB48: ='St Lts'!AL33 -> 45.31 | AC48: ='St Lts'!AL34 -> 56.83
G50: Capital | H50: =(H33*(1+'St Lts'!AL1))+($E$16-$C$16) -> 9.024054782 | I50: =((I33+1)*(1+'St Lts'!AL1))+($E$16-$C$16) -> 11.85014228 | J50: =(J33*(1+'St Lts'!$AL$1))+($E$16-$C$16) -> 20.69306122 | K50: =(K33*(1+'St Lts'!$AL$1))+($E$16-$C$16) -> 20.69306122 | L50: =((L33+2)*(1+'St Lts'!$AL$1))+($E$16-$C$16) -> 11.7893662 | M50: =(M33*(1+'St Lts'!$AL$1))+($E$16-$C$16) -> 20.69306122 | N50: =(N33*(1+'St Lts'!$AL$1))+($E$16-$C$16) -> 9.76349703 | O50: =(O33*(1+'St Lts'!$AL$1))+($E$16-$C$16) -> 17.89736176 | P50: =(P33*(1+'St Lts'!$AL$1))+($E$16-$C$16) -> 20.24737 | Q50: =(Q33*(1+'St Lts'!$AL$1))+($E$16-$C$16) -> 19.06223653 | R50: =(R33*(1+'St Lts'!$AL$1))+($E$16-$C$16) -> 9.76349703 | T50: Capital | U50: =(U33*(1+'St Lts'!$AL$1))+($E$31-$C$31) -> 13.29620744 | V50: =V33+($E$31-$C$31) -> 17.09488469 | W50: 27.84488469 | X50: 27.84488469 | Y50: 17.09488469 | Z50: =Z33+($E$31-$C$31) -> 50.83488469 | AA50: 16.79488469 | AB50: 35.27708433 | AC50: 46.64708433
G51: Maintenance | H51: =$E$21 -> 2.22 | I51: =$E$21 -> 2.22 | J51: 2.22 | K51: 2.22 | L51: 2.22 | M51: 2.22 | N51: 2.22 | O51: =$E$21*2 -> 4.44 | P51: 2.22 | Q51: 2.22 | R51: 2.22 | T51: Maintenance | U51: =$E$38 -> 3.36 | V51: =$E$38 -> 3.36 | W51: 3.36 | X51: 3.36 | Y51: 3.36 | Z51: 3.36 | AA51: 3.36 | AB51: =$E$38*2 -> 6.72 | AC51: =$E$38*2 -> 6.72
G52: Energy | H52: =$E$19 -> 2.22 | I52: =$E$19 -> 2.22 | J52: 2.22 | K52: 2.22 | L52: 2.22 | M52: 2.22 | N52: 2.22 | O52: =$E$19*2 -> 4.44 | P52: 2.22 | Q52: 2.22 | R52: 2.22 | T52: Energy | U52: =$E$36 -> 4.44 | V52: =$E$36 -> 4.44 | W52: 4.44 | X52: 4.44 | Y52: 4.44 | Z52: 4.44 | AA52: 4.44 | AB52: =$E$36*2 -> 8.88 | AC52: =$E$36*2 -> 8.88
G53: Total | H53: =SUM(H50:H52) -> 13.46405478 | I53: =SUM(I50:I52) -> 16.29014228 | J53: 25.13306122 | K53: 25.13306122 | L53: 16.2293662 | M53: =SUM(M50:M52) -> 25.13306122 | N53: 14.20349703 | O53: 26.77736176 | P53: =SUM(P50:P52) -> 24.68737 | Q53: =SUM(Q50:Q52) -> 23.50223653 | R53: 14.20349703 | T53: Total | U53: =SUM(U50:U52) -> 21.09620744 | V53: =SUM(V50:V52) -> 24.89488469 | W53: 35.64488469 | X53: 35.64488469 | Y53: 24.89488469 | Z53: =SUM(Z50:Z52) -> 58.63488469 | AA53: 24.59488469 | AB53: 50.87708433 | AC53: 62.24708433
G55: Differential | H55: =H53-H48 -> 0.06405478218 | I55: =I53-I48 -> 1.080142278 | J55: =J53-J48 -> 0.0630612168 | K55: =K53-K48 -> 0.0630612168 | L55: =L53-L48 -> 1.019366203 | M55: =M53-M48 -> 0.0630612168 | N55: 0.0634970302 | O55: -0.7626382415 | P55: =P53-P48 -> 0.06736999881 | Q55: =Q53-Q48 -> 0.06223653279 | R55: 0.0634970302 | T55: Differential | U55: =U53-U48 -> 2.456207436 | V55: =V53-V48 -> 2.244884693 | W55: 2.104884693 | X55: 2.104884693 | Y55: 2.244884693 | Z55: 1.804884693 | AA55: 2.244884693 | AB55: 5.567084332 | AC55: 5.417084332
B60: Avista
B61: Capital Recovery Factor Calculation
B62: Present - UE-120436
B65: Cost of Capital
B66: Capital | C66: Capital | D66: Component | E66: Weighted
B67: Component | C67: Structure | D67: Cost | E67: Cost
B68: Long Term Debt | C68: 0.53 | D68: 0.0572 | E68: =C68*D68 -> 0.030316
B69: Preferred Equity | C69: 0 | D69: 0 | E69: =C69*D69 -> 0
B70: Common Equity | C70: 0.47 | D70: 0.098 | E70: 0.04606
B71: Total | C71: =SUM(C68:C70) -> 1 | E71: =SUM(E68:E70) -> 0.076376
B74: Grossed-up Rate of Return
B76: Tax Gross-up Factor | E76: =1/0.62082 -> 1.610772849
B79: Weighted ROE * Tax Gross-up | D79: 1.611 * 4.606% | E79: =E70*E76 -> 0.07419219742
B80: Long Term Debt | E80: =E68 -> 0.030316
B81: Preferred Equity * Tax Gross-up | D81: 1.611 * 0.000% | E81: =E69*E76 -> 0
B82: Grossed-up Rate of Return | E82: =SUM(E79:E81) -> 0.1045081974
F86: Test Year | G86: Effective
B87: Account | C87: Plant in | D87: Accumulated | E87: Net | F87: Depreciation | G87: Depreciation
B88: Number | C88: Service | D88: Depreciation | E88: Plant | F88: Expense | G88: Rate
B89: 373 - Street Lighting | C89: 20810000 | D89: 10481000 | E89: =C89-D89 -> 10329000 | F89: 593000 | G89: =F89/C89 -> 0.02849591543
B91: *From Cost of Service (Knox)
B93: Capital Recovery Factor | C93: =E82+G89 -> 0.1330041128
B96: Avista
B97: Capital Recovery Factor Calculation
B98: Proposed
B101: Cost of Capital
B102: Capital | C102: Capital | D102: Component | E102: Weighted
B103: Component | C103: Structure | D103: Cost | E103: Cost
B104: Long Term Debt | C104: 0.51 | D104: 0.0542 | E104: =C104*D104 -> 0.027642
B105: Preferred Equity | C105: 0 | D105: 0 | E105: =C105*D105 -> 0
B106: Common Equity | C106: 0.49 | D106: 0.101 | E106: 0.04949
B107: Total | C107: =SUM(C104:C106) -> 1 | E107: =SUM(E104:E106) -> 0.077132
B110: Grossed-up Rate of Return
B112: Tax Gross-up Factor | E112: =1/0.62074 -> 1.610980443
B115: Weighted ROE * Tax Gross-up | D115: 1.611 * 4.949% | E115: =E106*E112 -> 0.07972742211
B116: Long Term Debt | E116: =E104 -> 0.027642
B117: Preferred Equity * Tax Gross-up | D117: 1.611 * 0.000% | E117: =E105*E112 -> 0
B118: Grossed-up Rate of Return | E118: =SUM(E115:E117) -> 0.1073694221
F122: Test Year | G122: Effective
B123: Account | C123: Plant in | D123: Accumulated | E123: Net | F123: Depreciation | G123: Depreciation
B124: Number | C124: Service | D124: Depreciation | E124: Plant | F124: Expense | G124: Rate
B125: 373 - Street Lighting | C125: 23600000 | D125: 11193000 | E125: =C125-D125 -> 12407000 | F125: 641000 | G125: =F125/C125 -> 0.02716101695
B127: *From Cost of Service (Knox)
B129: Capital Recovery Factor | C129: =E118+G125 -> 0.1345304391
